{"text_format":"1","workbook":"xlsx","n_sheets":7,"sheets":["HomologacionDireccion","ContratoColaboracionEmpresarial","LogErrores","TiposContrato","Tipos Documento identidad","CIIU","Departamentos - Municipios"],"not_rendered":{"charts":0,"images":1,"macros":1,"external_links":2,"defined_names":59,"comments":0,"pivot_tables":0},"unopened":[],"bounds":{"document_bytes":16777216,"sheet_cells":100000,"rows_first":2000,"rows_last":500,"rows_between":2000,"halvings":0,"cell_chars":16384,"cell_head_chars":4096},"cells_cut":0,"cells_raw":0,"read":"whole","date_system":"1900"}

{"sheet":"HomologacionDireccion","index":0,"n_rows":21,"n_cols":12,"rows_kept":21,"cut":false,"hidden":true,"merged":[[8,2,8,11],[9,2,9,5],[9,6,9,8],[9,9,9,11]]}
[]
[]
[]
[]
[]
[]
[]
[]
[null,null,"Direccion encasillada"]
[null,null," Datos de la via ",null,null,null," Datos del cruce ",null,null," Datos adicionales "]
[null,null," Tipo"," Número"," Apendice"," Orientación"," Número"," Apendice"," Orientación"," Placa"," Interior"," Bloque"]
[null,null," Desplegable con esta opciones "," ENTRE 1 Y 3 CARACTERES, NÚMERICO "," ENTRE 1 Y DOS CARACTERES, TIPO TEXTO "," Desplegable con esta opciones "," ENTRE 1 Y 3 CARACTERES, NÚMERICO "," ENTRE 1 Y DOS CARACTERES, TIPO TEXTO "," Desplegable con esta opciones "," ENTRE 1 Y 3 CARACTERES, NÚMERICO ","ENTRE 1 Y 4 CARACTERES, TIPO TEXO"," Entre 1 y 2 caracteres, Tipo alfanúmerico "]
[null,null,"CR",null,null,"Sur",null,null,"Sur"]
[null,null,"CL",null,null,"Norte",null,null,"Norte"]
[null,null,"CQ",null,null,"Oriente",null,null,"Oriente"]
[null,null,"DG",null,null,"Occidente",null,null,"Occidente"]
[null,null,"AV",null,null,null,null,null,{"$f":"IF(F17<>\"\",F17,\"\")","v":""}]
[null,null,"TG",null,null,null,null,null,""]
[null,null,null,null,null,null,null,null,""]
[null,null,null,null,null,null,null,null,""]
[null,null,null,null,null,null,null,null,""]

{"sheet":"ContratoColaboracionEmpresarial","index":1,"n_rows":2003,"n_cols":28,"rows_kept":2003,"cut":false,"hidden":false,"merged":[[0,4,1,8],[1,9,1,10],[0,9,0,10],[2,13,2,22],[3,13,3,16],[3,17,3,19],[3,20,3,22]]}
[null,null,null,null,"SECRETARIA DE HACIENDA\nSUBSECRETARIA DE INGRESOS\nPREVALIDADOR CONTRATOS DE COLABORACIÓN EMPRESARIAL - RESOLUCION 202150001429 DE 2021",null,null,null,null,"Acciones",null,null,"Estado"]
[null,null,null,null,null,null,null,null,null,null,null,null,"Validado Exitosamente"]
[null,null,null,null,null,null,null,null,null,null,null,null,null,"Dirección notificación"]
[null,null,null,null,null,null,null,null,null,null,null,null,null,"Datos de la via",null,null,null,"Datos del cruce",null,null,"Datos adicionales"]
["TipoContrato","TipoContrato","TipoIdentificacion","Tipo Identificacion","NumeroIdentificacion","Nombre1","Nombre2","Apellido1","Apellido2","ValorTotalOperacion","ObjetoContrato","CodigoCIIU","DESCRIPCION CIIU","Tipo","Numero1","Apendice1","Orientacion1","Numero2","Apendice2","Orientacion2","Placa","Interior","Bloque","DireccionEspecial","CodDpto","Departamento","CodMpio","Municipio"]
[null,null,null,null,null,null,null,null,null,null,null,null,{"$f":"IFERROR(VLOOKUP(L6,CIIU!A:B,2,0),\"\")","v":""}]
[null,null,null,null,null,null,null,null,null,null,null,null,{"$f":"IFERROR(VLOOKUP(L7,CIIU!A:B,2,0),\"\")","v":""}]
[null,null,null,null,null,null,null,null,null,null,null,null,{"$f":"IFERROR(VLOOKUP(L8,CIIU!A:B,2,0),\"\")","v":""}]
[null,null,null,null,null,null,null,null,null,null,null,null,{"$f":"IFERROR(VLOOKUP(L9,CIIU!A:B,2,0),\"\")","v":""}]
[null,null,null,null,null,null,null,null,null,null,null,null,{"$f":"IFERROR(VLOOKUP(L10,CIIU!A:B,2,0),\"\")","v":""}]
[null,null,null,null,null,null,null,null,null,null,null,null,{"$f":"IFERROR(VLOOKUP(L11,CIIU!A:B,2,0),\"\")","v":""}]
[null,null,null,null,null,null,null,null,null,null,null,null,{"$f":"IFERROR(VLOOKUP(L12,CIIU!A:B,2,0),\"\")","v":""}]
[null,null,null,null,null,null,null,null,null,null,null,null,{"$f":"IFERROR(VLOOKUP(L13,CIIU!A:B,2,0),\"\")","v":""}]
[null,null,null,null,null,null,null,null,null,null,null,null,{"$f":"IFERROR(VLOOKUP(L14,CIIU!A:B,2,0),\"\")","v":""}]
[null,null,null,null,null,null,null,null,null,null,null,null,{"$f":"IFERROR(VLOOKUP(L15,CIIU!A:B,2,0),\"\")","v":""}]
[null,null,null,null,null,null,null,null,null,null,null,null,{"$f":"IFERROR(VLOOKUP(L16,CIIU!A:B,2,0),\"\")","v":""}]
[null,null,null,null,null,null,null,null,null,null,null,null,{"$f":"IFERROR(VLOOKUP(L17,CIIU!A:B,2,0),\"\")","v":""}]
[null,null,null,null,null,null,null,null,null,null,null,null,{"$f":"IFERROR(VLOOKUP(L18,CIIU!A:B,2,0),\"\")","v":""}]
[null,null,null,null,null,null,null,null,null,null,null,null,{"$f":"IFERROR(VLOOKUP(L19,CIIU!A:B,2,0),\"\")","v":""}]
[null,null,null,null,null,null,null,null,null,null,null,null,{"$f":"IFERROR(VLOOKUP(L20,CIIU!A:B,2,0),\"\")","v":""}]
[null,null,null,null,null,null,null,null,null,null,null,null,{"$f":"IFERROR(VLOOKUP(L21,CIIU!A:B,2,0),\"\")","v":""}]
[null,null,null,null,null,null,null,null,null,null,null,null,{"$f":"IFERROR(VLOOKUP(L22,CIIU!A:B,2,0),\"\")","v":""}]
[null,null,null,null,null,null,null,null,null,null,null,null,{"$f":"IFERROR(VLOOKUP(L23,CIIU!A:B,2,0),\"\")","v":""}]
[null,null,null,null,null,null,null,null,null,null,null,null,{"$f":"IFERROR(VLOOKUP(L24,CIIU!A:B,2,0),\"\")","v":""}]
[null,null,null,null,null,null,null,null,null,null,null,null,{"$f":"IFERROR(VLOOKUP(L25,CIIU!A:B,2,0),\"\")","v":""}]
[null,null,null,null,null,null,null,null,null,null,null,null,{"$f":"IFERROR(VLOOKUP(L26,CIIU!A:B,2,0),\"\")","v":""}]
[null,null,null,null,null,null,null,null,null,null,null,null,{"$f":"IFERROR(VLOOKUP(L27,CIIU!A:B,2,0),\"\")","v":""}]
[null,null,null,null,null,null,null,null,null,null,null,null,{"$f":"IFERROR(VLOOKUP(L28,CIIU!A:B,2,0),\"\")","v":""}]
[null,null,null,null,null,null,null,null,null,null,null,null,{"$f":"IFERROR(VLOOKUP(L29,CIIU!A:B,2,0),\"\")","v":""}]
[null,null,null,null,null,null,null,null,null,null,null,null,{"$f":"IFERROR(VLOOKUP(L30,CIIU!A:B,2,0),\"\")","v":""}]
[null,null,null,null,null,null,null,null,null,null,null,null,{"$f":"IFERROR(VLOOKUP(L31,CIIU!A:B,2,0),\"\")","v":""}]
[null,null,null,null,null,null,null,null,null,null,null,null,{"$f":"IFERROR(VLOOKUP(L32,CIIU!A:B,2,0),\"\")","v":""}]
[null,null,null,null,null,null,null,null,null,null,null,null,{"$f":"IFERROR(VLOOKUP(L33,CIIU!A:B,2,0),\"\")","v":""}]
[null,null,null,null,null,null,null,null,null,null,null,null,{"$f":"IFERROR(VLOOKUP(L34,CIIU!A:B,2,0),\"\")","v":""}]
[null,null,null,null,null,null,null,null,null,null,null,null,{"$f":"IFERROR(VLOOKUP(L35,CIIU!A:B,2,0),\"\")","v":""}]
[null,null,null,null,null,null,null,null,null,null,null,null,{"$f":"IFERROR(VLOOKUP(L36,CIIU!A:B,2,0),\"\")","v":""}]
[null,null,null,null,null,null,null,null,null,null,null,null,{"$f":"IFERROR(VLOOKUP(L37,CIIU!A:B,2,0),\"\")","v":""}]
[null,null,null,null,null,null,null,null,null,null,null,null,{"$f":"IFERROR(VLOOKUP(L38,CIIU!A:B,2,0),\"\")","v":""}]
[null,null,null,null,null,null,null,null,null,null,null,null,{"$f":"IFERROR(VLOOKUP(L39,CIIU!A:B,2,0),\"\")","v":""}]
[null,null,null,null,null,null,null,null,null,null,null,null,{"$f":"IFERROR(VLOOKUP(L40,CIIU!A:B,2,0),\"\")","v":""}]
[null,null,null,null,null,null,null,null,null,null,null,null,{"$f":"IFERROR(VLOOKUP(L41,CIIU!A:B,2,0),\"\")","v":""}]
[null,null,null,null,null,null,null,null,null,null,null,null,{"$f":"IFERROR(VLOOKUP(L42,CIIU!A:B,2,0),\"\")","v":""}]
[null,null,null,null,null,null,null,null,null,null,null,null,{"$f":"IFERROR(VLOOKUP(L43,CIIU!A:B,2,0),\"\")","v":""}]
[null,null,null,null,null,null,null,null,null,null,null,null,{"$f":"IFERROR(VLOOKUP(L44,CIIU!A:B,2,0),\"\")","v":""}]
[null,null,null,null,null,null,null,null,null,null,null,null,{"$f":"IFERROR(VLOOKUP(L45,CIIU!A:B,2,0),\"\")","v":""}]
[null,null,null,null,null,null,null,null,null,null,null,null,{"$f":"IFERROR(VLOOKUP(L46,CIIU!A:B,2,0),\"\")","v":""}]
[null,null,null,null,null,null,null,null,null,null,null,null,{"$f":"IFERROR(VLOOKUP(L47,CIIU!A:B,2,0),\"\")","v":""}]
[null,null,null,null,null,null,null,null,null,null,null,null,{"$f":"IFERROR(VLOOKUP(L48,CIIU!A:B,2,0),\"\")","v":""}]
[null,null,null,null,null,null,null,null,null,null,null,null,{"$f":"IFERROR(VLOOKUP(L49,CIIU!A:B,2,0),\"\")","v":""}]
[null,null,null,null,null,null,null,null,null,null,null,null,{"$f":"IFERROR(VLOOKUP(L50,CIIU!A:B,2,0),\"\")","v":""}]
[null,null,null,null,null,null,null,null,null,null,null,null,{"$f":"IFERROR(VLOOKUP(L51,CIIU!A:B,2,0),\"\")","v":""}]
[null,null,null,null,null,null,null,null,null,null,null,null,{"$f":"IFERROR(VLOOKUP(L52,CIIU!A:B,2,0),\"\")","v":""}]
[null,null,null,null,null,null,null,null,null,null,null,null,{"$f":"IFERROR(VLOOKUP(L53,CIIU!A:B,2,0),\"\")","v":""}]
[null,null,null,null,null,null,null,null,null,null,null,null,{"$f":"IFERROR(VLOOKUP(L54,CIIU!A:B,2,0),\"\")","v":""}]
[null,null,null,null,null,null,null,null,null,null,null,null,{"$f":"IFERROR(VLOOKUP(L55,CIIU!A:B,2,0),\"\")","v":""}]
[null,null,null,null,null,null,null,null,null,null,null,null,{"$f":"IFERROR(VLOOKUP(L56,CIIU!A:B,2,0),\"\")","v":""}]
[null,null,null,null,null,null,null,null,null,null,null,null,{"$f":"IFERROR(VLOOKUP(L57,CIIU!A:B,2,0),\"\")","v":""}]
[null,null,null,null,null,null,null,null,null,null,null,null,{"$f":"IFERROR(VLOOKUP(L58,CIIU!A:B,2,0),\"\")","v":""}]
[null,null,null,null,null,null,null,null,null,null,null,null,{"$f":"IFERROR(VLOOKUP(L59,CIIU!A:B,2,0),\"\")","v":""}]
[null,null,null,null,null,null,null,null,null,null,null,null,{"$f":"IFERROR(VLOOKUP(L60,CIIU!A:B,2,0),\"\")","v":""}]
[null,null,null,null,null,null,null,null,null,null,null,null,{"$f":"IFERROR(VLOOKUP(L61,CIIU!A:B,2,0),\"\")","v":""}]
[null,null,null,null,null,null,null,null,null,null,null,null,{"$f":"IFERROR(VLOOKUP(L62,CIIU!A:B,2,0),\"\")","v":""}]
[null,null,null,null,null,null,null,null,null,null,null,null,{"$f":"IFERROR(VLOOKUP(L63,CIIU!A:B,2,0),\"\")","v":""}]
[null,null,null,null,null,null,null,null,null,null,null,null,{"$f":"IFERROR(VLOOKUP(L64,CIIU!A:B,2,0),\"\")","v":""}]
[null,null,null,null,null,null,null,null,null,null,null,null,{"$f":"IFERROR(VLOOKUP(L65,CIIU!A:B,2,0),\"\")","v":""}]
[null,null,null,null,null,null,null,null,null,null,null,null,{"$f":"IFERROR(VLOOKUP(L66,CIIU!A:B,2,0),\"\")","v":""}]
[null,null,null,null,null,null,null,null,null,null,null,null,{"$f":"IFERROR(VLOOKUP(L67,CIIU!A:B,2,0),\"\")","v":""}]
[null,null,null,null,null,null,null,null,null,null,null,null,{"$f":"IFERROR(VLOOKUP(L68,CIIU!A:B,2,0),\"\")","v":""}]
[null,null,null,null,null,null,null,null,null,null,null,null,{"$f":"IFERROR(VLOOKUP(L69,CIIU!A:B,2,0),\"\")","v":""}]
[null,null,null,null,null,null,null,null,null,null,null,null,{"$f":"IFERROR(VLOOKUP(L70,CIIU!A:B,2,0),\"\")","v":""}]
[null,null,null,null,null,null,null,null,null,null,null,null,{"$f":"IFERROR(VLOOKUP(L71,CIIU!A:B,2,0),\"\")","v":""}]
[null,null,null,null,null,null,null,null,null,null,null,null,{"$f":"IFERROR(VLOOKUP(L72,CIIU!A:B,2,0),\"\")","v":""}]
[null,null,null,null,null,null,null,null,null,null,null,null,{"$f":"IFERROR(VLOOKUP(L73,CIIU!A:B,2,0),\"\")","v":""}]
[null,null,null,null,null,null,null,null,null,null,null,null,{"$f":"IFERROR(VLOOKUP(L74,CIIU!A:B,2,0),\"\")","v":""}]
[null,null,null,null,null,null,null,null,null,null,null,null,{"$f":"IFERROR(VLOOKUP(L75,CIIU!A:B,2,0),\"\")","v":""}]
[null,null,null,null,null,null,null,null,null,null,null,null,{"$f":"IFERROR(VLOOKUP(L76,CIIU!A:B,2,0),\"\")","v":""}]
[null,null,null,null,null,null,null,null,null,null,null,null,{"$f":"IFERROR(VLOOKUP(L77,CIIU!A:B,2,0),\"\")","v":""}]
[null,null,null,null,null,null,null,null,null,null,null,null,{"$f":"IFERROR(VLOOKUP(L78,CIIU!A:B,2,0),\"\")","v":""}]
[null,null,null,null,null,null,null,null,null,null,null,null,{"$f":"IFERROR(VLOOKUP(L79,CIIU!A:B,2,0),\"\")","v":""}]
[null,null,null,null,null,null,null,null,null,null,null,null,{"$f":"IFERROR(VLOOKUP(L80,CIIU!A:B,2,0),\"\")","v":""}]
[null,null,null,null,null,null,null,null,null,null,null,null,{"$f":"IFERROR(VLOOKUP(L81,CIIU!A:B,2,0),\"\")","v":""}]
[null,null,null,null,null,null,null,null,null,null,null,null,{"$f":"IFERROR(VLOOKUP(L82,CIIU!A:B,2,0),\"\")","v":""}]
[null,null,null,null,null,null,null,null,null,null,null,null,{"$f":"IFERROR(VLOOKUP(L83,CIIU!A:B,2,0),\"\")","v":""}]
[null,null,null,null,null,null,null,null,null,null,null,null,{"$f":"IFERROR(VLOOKUP(L84,CIIU!A:B,2,0),\"\")","v":""}]
[null,null,null,null,null,null,null,null,null,null,null,null,{"$f":"IFERROR(VLOOKUP(L85,CIIU!A:B,2,0),\"\")","v":""}]
[null,null,null,null,null,null,null,null,null,null,null,null,{"$f":"IFERROR(VLOOKUP(L86,CIIU!A:B,2,0),\"\")","v":""}]
[null,null,null,null,null,null,null,null,null,null,null,null,{"$f":"IFERROR(VLOOKUP(L87,CIIU!A:B,2,0),\"\")","v":""}]
[null,null,null,null,null,null,null,null,null,null,null,null,{"$f":"IFERROR(VLOOKUP(L88,CIIU!A:B,2,0),\"\")","v":""}]
[null,null,null,null,null,null,null,null,null,null,null,null,{"$f":"IFERROR(VLOOKUP(L89,CIIU!A:B,2,0),\"\")","v":""}]
[null,null,null,null,null,null,null,null,null,null,null,null,{"$f":"IFERROR(VLOOKUP(L90,CIIU!A:B,2,0),\"\")","v":""}]
[null,null,null,null,null,null,null,null,null,null,null,null,{"$f":"IFERROR(VLOOKUP(L91,CIIU!A:B,2,0),\"\")","v":""}]
[null,null,null,null,null,null,null,null,null,null,null,null,{"$f":"IFERROR(VLOOKUP(L92,CIIU!A:B,2,0),\"\")","v":""}]
[null,null,null,null,null,null,null,null,null,null,null,null,{"$f":"IFERROR(VLOOKUP(L93,CIIU!A:B,2,0),\"\")","v":""}]
[null,null,null,null,null,null,null,null,null,null,null,null,{"$f":"IFERROR(VLOOKUP(L94,CIIU!A:B,2,0),\"\")","v":""}]
[null,null,null,null,null,null,null,null,null,null,null,null,{"$f":"IFERROR(VLOOKUP(L95,CIIU!A:B,2,0),\"\")","v":""}]
[null,null,null,null,null,null,null,null,null,null,null,null,{"$f":"IFERROR(VLOOKUP(L96,CIIU!A:B,2,0),\"\")","v":""}]
[null,null,null,null,null,null,null,null,null,null,null,null,{"$f":"IFERROR(VLOOKUP(L97,CIIU!A:B,2,0),\"\")","v":""}]
[null,null,null,null,null,null,null,null,null,null,null,null,{"$f":"IFERROR(VLOOKUP(L98,CIIU!A:B,2,0),\"\")","v":""}]
[null,null,null,null,null,null,null,null,null,null,null,null,{"$f":"IFERROR(VLOOKUP(L99,CIIU!A:B,2,0),\"\")","v":""}]
[null,null,null,null,null,null,null,null,null,null,null,null,{"$f":"IFERROR(VLOOKUP(L100,CIIU!A:B,2,0),\"\")","v":""}]
[null,null,null,null,null,null,null,null,null,null,null,null,{"$f":"IFERROR(VLOOKUP(L101,CIIU!A:B,2,0),\"\")","v":""}]
[null,null,null,null,null,null,null,null,null,null,null,null,{"$f":"IFERROR(VLOOKUP(L102,CIIU!A:B,2,0),\"\")","v":""}]
[null,null,null,null,null,null,null,null,null,null,null,null,{"$f":"IFERROR(VLOOKUP(L103,CIIU!A:B,2,0),\"\")","v":""}]
[null,null,null,null,null,null,null,null,null,null,null,null,{"$f":"IFERROR(VLOOKUP(L104,CIIU!A:B,2,0),\"\")","v":""}]
[null,null,null,null,null,null,null,null,null,null,null,null,{"$f":"IFERROR(VLOOKUP(L105,CIIU!A:B,2,0),\"\")","v":""}]
[null,null,null,null,null,null,null,null,null,null,null,null,{"$f":"IFERROR(VLOOKUP(L106,CIIU!A:B,2,0),\"\")","v":""}]
[null,null,null,null,null,null,null,null,null,null,null,null,{"$f":"IFERROR(VLOOKUP(L107,CIIU!A:B,2,0),\"\")","v":""}]
[null,null,null,null,null,null,null,null,null,null,null,null,{"$f":"IFERROR(VLOOKUP(L108,CIIU!A:B,2,0),\"\")","v":""}]
[null,null,null,null,null,null,null,null,null,null,null,null,{"$f":"IFERROR(VLOOKUP(L109,CIIU!A:B,2,0),\"\")","v":""}]
[null,null,null,null,null,null,null,null,null,null,null,null,{"$f":"IFERROR(VLOOKUP(L110,CIIU!A:B,2,0),\"\")","v":""}]
[null,null,null,null,null,null,null,null,null,null,null,null,{"$f":"IFERROR(VLOOKUP(L111,CIIU!A:B,2,0),\"\")","v":""}]
[null,null,null,null,null,null,null,null,null,null,null,null,{"$f":"IFERROR(VLOOKUP(L112,CIIU!A:B,2,0),\"\")","v":""}]
[null,null,null,null,null,null,null,null,null,null,null,null,{"$f":"IFERROR(VLOOKUP(L113,CIIU!A:B,2,0),\"\")","v":""}]
[null,null,null,null,null,null,null,null,null,null,null,null,{"$f":"IFERROR(VLOOKUP(L114,CIIU!A:B,2,0),\"\")","v":""}]
[null,null,null,null,null,null,null,null,null,null,null,null,{"$f":"IFERROR(VLOOKUP(L115,CIIU!A:B,2,0),\"\")","v":""}]
[null,null,null,null,null,null,null,null,null,null,null,null,{"$f":"IFERROR(VLOOKUP(L116,CIIU!A:B,2,0),\"\")","v":""}]
[null,null,null,null,null,null,null,null,null,null,null,null,{"$f":"IFERROR(VLOOKUP(L117,CIIU!A:B,2,0),\"\")","v":""}]
[null,null,null,null,null,null,null,null,null,null,null,null,{"$f":"IFERROR(VLOOKUP(L118,CIIU!A:B,2,0),\"\")","v":""}]
[null,null,null,null,null,null,null,null,null,null,null,null,{"$f":"IFERROR(VLOOKUP(L119,CIIU!A:B,2,0),\"\")","v":""}]
[null,null,null,null,null,null,null,null,null,null,null,null,{"$f":"IFERROR(VLOOKUP(L120,CIIU!A:B,2,0),\"\")","v":""}]
[null,null,null,null,null,null,null,null,null,null,null,null,{"$f":"IFERROR(VLOOKUP(L121,CIIU!A:B,2,0),\"\")","v":""}]
[null,null,null,null,null,null,null,null,null,null,null,null,{"$f":"IFERROR(VLOOKUP(L122,CIIU!A:B,2,0),\"\")","v":""}]
[null,null,null,null,null,null,null,null,null,null,null,null,{"$f":"IFERROR(VLOOKUP(L123,CIIU!A:B,2,0),\"\")","v":""}]
[null,null,null,null,null,null,null,null,null,null,null,null,{"$f":"IFERROR(VLOOKUP(L124,CIIU!A:B,2,0),\"\")","v":""}]
[null,null,null,null,null,null,null,null,null,null,null,null,{"$f":"IFERROR(VLOOKUP(L125,CIIU!A:B,2,0),\"\")","v":""}]
[null,null,null,null,null,null,null,null,null,null,null,null,{"$f":"IFERROR(VLOOKUP(L126,CIIU!A:B,2,0),\"\")","v":""}]
[null,null,null,null,null,null,null,null,null,null,null,null,{"$f":"IFERROR(VLOOKUP(L127,CIIU!A:B,2,0),\"\")","v":""}]
[null,null,null,null,null,null,null,null,null,null,null,null,{"$f":"IFERROR(VLOOKUP(L128,CIIU!A:B,2,0),\"\")","v":""}]
[null,null,null,null,null,null,null,null,null,null,null,null,{"$f":"IFERROR(VLOOKUP(L129,CIIU!A:B,2,0),\"\")","v":""}]
[null,null,null,null,null,null,null,null,null,null,null,null,{"$f":"IFERROR(VLOOKUP(L130,CIIU!A:B,2,0),\"\")","v":""}]
[null,null,null,null,null,null,null,null,null,null,null,null,{"$f":"IFERROR(VLOOKUP(L131,CIIU!A:B,2,0),\"\")","v":""}]
[null,null,null,null,null,null,null,null,null,null,null,null,{"$f":"IFERROR(VLOOKUP(L132,CIIU!A:B,2,0),\"\")","v":""}]
[null,null,null,null,null,null,null,null,null,null,null,null,{"$f":"IFERROR(VLOOKUP(L133,CIIU!A:B,2,0),\"\")","v":""}]
[null,null,null,null,null,null,null,null,null,null,null,null,{"$f":"IFERROR(VLOOKUP(L134,CIIU!A:B,2,0),\"\")","v":""}]
[null,null,null,null,null,null,null,null,null,null,null,null,{"$f":"IFERROR(VLOOKUP(L135,CIIU!A:B,2,0),\"\")","v":""}]
[null,null,null,null,null,null,null,null,null,null,null,null,{"$f":"IFERROR(VLOOKUP(L136,CIIU!A:B,2,0),\"\")","v":""}]
[null,null,null,null,null,null,null,null,null,null,null,null,{"$f":"IFERROR(VLOOKUP(L137,CIIU!A:B,2,0),\"\")","v":""}]
[null,null,null,null,null,null,null,null,null,null,null,null,{"$f":"IFERROR(VLOOKUP(L138,CIIU!A:B,2,0),\"\")","v":""}]
[null,null,null,null,null,null,null,null,null,null,null,null,{"$f":"IFERROR(VLOOKUP(L139,CIIU!A:B,2,0),\"\")","v":""}]
[null,null,null,null,null,null,null,null,null,null,null,null,{"$f":"IFERROR(VLOOKUP(L140,CIIU!A:B,2,0),\"\")","v":""}]
[null,null,null,null,null,null,null,null,null,null,null,null,{"$f":"IFERROR(VLOOKUP(L141,CIIU!A:B,2,0),\"\")","v":""}]
[null,null,null,null,null,null,null,null,null,null,null,null,{"$f":"IFERROR(VLOOKUP(L142,CIIU!A:B,2,0),\"\")","v":""}]
[null,null,null,null,null,null,null,null,null,null,null,null,{"$f":"IFERROR(VLOOKUP(L143,CIIU!A:B,2,0),\"\")","v":""}]
[null,null,null,null,null,null,null,null,null,null,null,null,{"$f":"IFERROR(VLOOKUP(L144,CIIU!A:B,2,0),\"\")","v":""}]
[null,null,null,null,null,null,null,null,null,null,null,null,{"$f":"IFERROR(VLOOKUP(L145,CIIU!A:B,2,0),\"\")","v":""}]
[null,null,null,null,null,null,null,null,null,null,null,null,{"$f":"IFERROR(VLOOKUP(L146,CIIU!A:B,2,0),\"\")","v":""}]
[null,null,null,null,null,null,null,null,null,null,null,null,{"$f":"IFERROR(VLOOKUP(L147,CIIU!A:B,2,0),\"\")","v":""}]
[null,null,null,null,null,null,null,null,null,null,null,null,{"$f":"IFERROR(VLOOKUP(L148,CIIU!A:B,2,0),\"\")","v":""}]
[null,null,null,null,null,null,null,null,null,null,null,null,{"$f":"IFERROR(VLOOKUP(L149,CIIU!A:B,2,0),\"\")","v":""}]
[null,null,null,null,null,null,null,null,null,null,null,null,{"$f":"IFERROR(VLOOKUP(L150,CIIU!A:B,2,0),\"\")","v":""}]
[null,null,null,null,null,null,null,null,null,null,null,null,{"$f":"IFERROR(VLOOKUP(L151,CIIU!A:B,2,0),\"\")","v":""}]
[null,null,null,null,null,null,null,null,null,null,null,null,{"$f":"IFERROR(VLOOKUP(L152,CIIU!A:B,2,0),\"\")","v":""}]
[null,null,null,null,null,null,null,null,null,null,null,null,{"$f":"IFERROR(VLOOKUP(L153,CIIU!A:B,2,0),\"\")","v":""}]
[null,null,null,null,null,null,null,null,null,null,null,null,{"$f":"IFERROR(VLOOKUP(L154,CIIU!A:B,2,0),\"\")","v":""}]
[null,null,null,null,null,null,null,null,null,null,null,null,{"$f":"IFERROR(VLOOKUP(L155,CIIU!A:B,2,0),\"\")","v":""}]
[null,null,null,null,null,null,null,null,null,null,null,null,{"$f":"IFERROR(VLOOKUP(L156,CIIU!A:B,2,0),\"\")","v":""}]
[null,null,null,null,null,null,null,null,null,null,null,null,{"$f":"IFERROR(VLOOKUP(L157,CIIU!A:B,2,0),\"\")","v":""}]
[null,null,null,null,null,null,null,null,null,null,null,null,{"$f":"IFERROR(VLOOKUP(L158,CIIU!A:B,2,0),\"\")","v":""}]
[null,null,null,null,null,null,null,null,null,null,null,null,{"$f":"IFERROR(VLOOKUP(L159,CIIU!A:B,2,0),\"\")","v":""}]
[null,null,null,null,null,null,null,null,null,null,null,null,{"$f":"IFERROR(VLOOKUP(L160,CIIU!A:B,2,0),\"\")","v":""}]
[null,null,null,null,null,null,null,null,null,null,null,null,{"$f":"IFERROR(VLOOKUP(L161,CIIU!A:B,2,0),\"\")","v":""}]
[null,null,null,null,null,null,null,null,null,null,null,null,{"$f":"IFERROR(VLOOKUP(L162,CIIU!A:B,2,0),\"\")","v":""}]
[null,null,null,null,null,null,null,null,null,null,null,null,{"$f":"IFERROR(VLOOKUP(L163,CIIU!A:B,2,0),\"\")","v":""}]
[null,null,null,null,null,null,null,null,null,null,null,null,{"$f":"IFERROR(VLOOKUP(L164,CIIU!A:B,2,0),\"\")","v":""}]
[null,null,null,null,null,null,null,null,null,null,null,null,{"$f":"IFERROR(VLOOKUP(L165,CIIU!A:B,2,0),\"\")","v":""}]
[null,null,null,null,null,null,null,null,null,null,null,null,{"$f":"IFERROR(VLOOKUP(L166,CIIU!A:B,2,0),\"\")","v":""}]
[null,null,null,null,null,null,null,null,null,null,null,null,{"$f":"IFERROR(VLOOKUP(L167,CIIU!A:B,2,0),\"\")","v":""}]
[null,null,null,null,null,null,null,null,null,null,null,null,{"$f":"IFERROR(VLOOKUP(L168,CIIU!A:B,2,0),\"\")","v":""}]
[null,null,null,null,null,null,null,null,null,null,null,null,{"$f":"IFERROR(VLOOKUP(L169,CIIU!A:B,2,0),\"\")","v":""}]
[null,null,null,null,null,null,null,null,null,null,null,null,{"$f":"IFERROR(VLOOKUP(L170,CIIU!A:B,2,0),\"\")","v":""}]
[null,null,null,null,null,null,null,null,null,null,null,null,{"$f":"IFERROR(VLOOKUP(L171,CIIU!A:B,2,0),\"\")","v":""}]
[null,null,null,null,null,null,null,null,null,null,null,null,{"$f":"IFERROR(VLOOKUP(L172,CIIU!A:B,2,0),\"\")","v":""}]
[null,null,null,null,null,null,null,null,null,null,null,null,{"$f":"IFERROR(VLOOKUP(L173,CIIU!A:B,2,0),\"\")","v":""}]
[null,null,null,null,null,null,null,null,null,null,null,null,{"$f":"IFERROR(VLOOKUP(L174,CIIU!A:B,2,0),\"\")","v":""}]
[null,null,null,null,null,null,null,null,null,null,null,null,{"$f":"IFERROR(VLOOKUP(L175,CIIU!A:B,2,0),\"\")","v":""}]
[null,null,null,null,null,null,null,null,null,null,null,null,{"$f":"IFERROR(VLOOKUP(L176,CIIU!A:B,2,0),\"\")","v":""}]
[null,null,null,null,null,null,null,null,null,null,null,null,{"$f":"IFERROR(VLOOKUP(L177,CIIU!A:B,2,0),\"\")","v":""}]
[null,null,null,null,null,null,null,null,null,null,null,null,{"$f":"IFERROR(VLOOKUP(L178,CIIU!A:B,2,0),\"\")","v":""}]
[null,null,null,null,null,null,null,null,null,null,null,null,{"$f":"IFERROR(VLOOKUP(L179,CIIU!A:B,2,0),\"\")","v":""}]
[null,null,null,null,null,null,null,null,null,null,null,null,{"$f":"IFERROR(VLOOKUP(L180,CIIU!A:B,2,0),\"\")","v":""}]
[null,null,null,null,null,null,null,null,null,null,null,null,{"$f":"IFERROR(VLOOKUP(L181,CIIU!A:B,2,0),\"\")","v":""}]
[null,null,null,null,null,null,null,null,null,null,null,null,{"$f":"IFERROR(VLOOKUP(L182,CIIU!A:B,2,0),\"\")","v":""}]
[null,null,null,null,null,null,null,null,null,null,null,null,{"$f":"IFERROR(VLOOKUP(L183,CIIU!A:B,2,0),\"\")","v":""}]
[null,null,null,null,null,null,null,null,null,null,null,null,{"$f":"IFERROR(VLOOKUP(L184,CIIU!A:B,2,0),\"\")","v":""}]
[null,null,null,null,null,null,null,null,null,null,null,null,{"$f":"IFERROR(VLOOKUP(L185,CIIU!A:B,2,0),\"\")","v":""}]
[null,null,null,null,null,null,null,null,null,null,null,null,{"$f":"IFERROR(VLOOKUP(L186,CIIU!A:B,2,0),\"\")","v":""}]
[null,null,null,null,null,null,null,null,null,null,null,null,{"$f":"IFERROR(VLOOKUP(L187,CIIU!A:B,2,0),\"\")","v":""}]
[null,null,null,null,null,null,null,null,null,null,null,null,{"$f":"IFERROR(VLOOKUP(L188,CIIU!A:B,2,0),\"\")","v":""}]
[null,null,null,null,null,null,null,null,null,null,null,null,{"$f":"IFERROR(VLOOKUP(L189,CIIU!A:B,2,0),\"\")","v":""}]
[null,null,null,null,null,null,null,null,null,null,null,null,{"$f":"IFERROR(VLOOKUP(L190,CIIU!A:B,2,0),\"\")","v":""}]
[null,null,null,null,null,null,null,null,null,null,null,null,{"$f":"IFERROR(VLOOKUP(L191,CIIU!A:B,2,0),\"\")","v":""}]
[null,null,null,null,null,null,null,null,null,null,null,null,{"$f":"IFERROR(VLOOKUP(L192,CIIU!A:B,2,0),\"\")","v":""}]
[null,null,null,null,null,null,null,null,null,null,null,null,{"$f":"IFERROR(VLOOKUP(L193,CIIU!A:B,2,0),\"\")","v":""}]
[null,null,null,null,null,null,null,null,null,null,null,null,{"$f":"IFERROR(VLOOKUP(L194,CIIU!A:B,2,0),\"\")","v":""}]
[null,null,null,null,null,null,null,null,null,null,null,null,{"$f":"IFERROR(VLOOKUP(L195,CIIU!A:B,2,0),\"\")","v":""}]
[null,null,null,null,null,null,null,null,null,null,null,null,{"$f":"IFERROR(VLOOKUP(L196,CIIU!A:B,2,0),\"\")","v":""}]
[null,null,null,null,null,null,null,null,null,null,null,null,{"$f":"IFERROR(VLOOKUP(L197,CIIU!A:B,2,0),\"\")","v":""}]
[null,null,null,null,null,null,null,null,null,null,null,null,{"$f":"IFERROR(VLOOKUP(L198,CIIU!A:B,2,0),\"\")","v":""}]
[null,null,null,null,null,null,null,null,null,null,null,null,{"$f":"IFERROR(VLOOKUP(L199,CIIU!A:B,2,0),\"\")","v":""}]
[null,null,null,null,null,null,null,null,null,null,null,null,{"$f":"IFERROR(VLOOKUP(L200,CIIU!A:B,2,0),\"\")","v":""}]
[null,null,null,null,null,null,null,null,null,null,null,null,{"$f":"IFERROR(VLOOKUP(L201,CIIU!A:B,2,0),\"\")","v":""}]
[null,null,null,null,null,null,null,null,null,null,null,null,{"$f":"IFERROR(VLOOKUP(L202,CIIU!A:B,2,0),\"\")","v":""}]
[null,null,null,null,null,null,null,null,null,null,null,null,{"$f":"IFERROR(VLOOKUP(L203,CIIU!A:B,2,0),\"\")","v":""}]
[null,null,null,null,null,null,null,null,null,null,null,null,{"$f":"IFERROR(VLOOKUP(L204,CIIU!A:B,2,0),\"\")","v":""}]
[null,null,null,null,null,null,null,null,null,null,null,null,{"$f":"IFERROR(VLOOKUP(L205,CIIU!A:B,2,0),\"\")","v":""}]
[null,null,null,null,null,null,null,null,null,null,null,null,{"$f":"IFERROR(VLOOKUP(L206,CIIU!A:B,2,0),\"\")","v":""}]
[null,null,null,null,null,null,null,null,null,null,null,null,{"$f":"IFERROR(VLOOKUP(L207,CIIU!A:B,2,0),\"\")","v":""}]
[null,null,null,null,null,null,null,null,null,null,null,null,{"$f":"IFERROR(VLOOKUP(L208,CIIU!A:B,2,0),\"\")","v":""}]
[null,null,null,null,null,null,null,null,null,null,null,null,{"$f":"IFERROR(VLOOKUP(L209,CIIU!A:B,2,0),\"\")","v":""}]
[null,null,null,null,null,null,null,null,null,null,null,null,{"$f":"IFERROR(VLOOKUP(L210,CIIU!A:B,2,0),\"\")","v":""}]
[null,null,null,null,null,null,null,null,null,null,null,null,{"$f":"IFERROR(VLOOKUP(L211,CIIU!A:B,2,0),\"\")","v":""}]
[null,null,null,null,null,null,null,null,null,null,null,null,{"$f":"IFERROR(VLOOKUP(L212,CIIU!A:B,2,0),\"\")","v":""}]
[null,null,null,null,null,null,null,null,null,null,null,null,{"$f":"IFERROR(VLOOKUP(L213,CIIU!A:B,2,0),\"\")","v":""}]
[null,null,null,null,null,null,null,null,null,null,null,null,{"$f":"IFERROR(VLOOKUP(L214,CIIU!A:B,2,0),\"\")","v":""}]
[null,null,null,null,null,null,null,null,null,null,null,null,{"$f":"IFERROR(VLOOKUP(L215,CIIU!A:B,2,0),\"\")","v":""}]
[null,null,null,null,null,null,null,null,null,null,null,null,{"$f":"IFERROR(VLOOKUP(L216,CIIU!A:B,2,0),\"\")","v":""}]
[null,null,null,null,null,null,null,null,null,null,null,null,{"$f":"IFERROR(VLOOKUP(L217,CIIU!A:B,2,0),\"\")","v":""}]
[null,null,null,null,null,null,null,null,null,null,null,null,{"$f":"IFERROR(VLOOKUP(L218,CIIU!A:B,2,0),\"\")","v":""}]
[null,null,null,null,null,null,null,null,null,null,null,null,{"$f":"IFERROR(VLOOKUP(L219,CIIU!A:B,2,0),\"\")","v":""}]
[null,null,null,null,null,null,null,null,null,null,null,null,{"$f":"IFERROR(VLOOKUP(L220,CIIU!A:B,2,0),\"\")","v":""}]
[null,null,null,null,null,null,null,null,null,null,null,null,{"$f":"IFERROR(VLOOKUP(L221,CIIU!A:B,2,0),\"\")","v":""}]
[null,null,null,null,null,null,null,null,null,null,null,null,{"$f":"IFERROR(VLOOKUP(L222,CIIU!A:B,2,0),\"\")","v":""}]
[null,null,null,null,null,null,null,null,null,null,null,null,{"$f":"IFERROR(VLOOKUP(L223,CIIU!A:B,2,0),\"\")","v":""}]
[null,null,null,null,null,null,null,null,null,null,null,null,{"$f":"IFERROR(VLOOKUP(L224,CIIU!A:B,2,0),\"\")","v":""}]
[null,null,null,null,null,null,null,null,null,null,null,null,{"$f":"IFERROR(VLOOKUP(L225,CIIU!A:B,2,0),\"\")","v":""}]
[null,null,null,null,null,null,null,null,null,null,null,null,{"$f":"IFERROR(VLOOKUP(L226,CIIU!A:B,2,0),\"\")","v":""}]
[null,null,null,null,null,null,null,null,null,null,null,null,{"$f":"IFERROR(VLOOKUP(L227,CIIU!A:B,2,0),\"\")","v":""}]
[null,null,null,null,null,null,null,null,null,null,null,null,{"$f":"IFERROR(VLOOKUP(L228,CIIU!A:B,2,0),\"\")","v":""}]
[null,null,null,null,null,null,null,null,null,null,null,null,{"$f":"IFERROR(VLOOKUP(L229,CIIU!A:B,2,0),\"\")","v":""}]
[null,null,null,null,null,null,null,null,null,null,null,null,{"$f":"IFERROR(VLOOKUP(L230,CIIU!A:B,2,0),\"\")","v":""}]
[null,null,null,null,null,null,null,null,null,null,null,null,{"$f":"IFERROR(VLOOKUP(L231,CIIU!A:B,2,0),\"\")","v":""}]
[null,null,null,null,null,null,null,null,null,null,null,null,{"$f":"IFERROR(VLOOKUP(L232,CIIU!A:B,2,0),\"\")","v":""}]
[null,null,null,null,null,null,null,null,null,null,null,null,{"$f":"IFERROR(VLOOKUP(L233,CIIU!A:B,2,0),\"\")","v":""}]
[null,null,null,null,null,null,null,null,null,null,null,null,{"$f":"IFERROR(VLOOKUP(L234,CIIU!A:B,2,0),\"\")","v":""}]
[null,null,null,null,null,null,null,null,null,null,null,null,{"$f":"IFERROR(VLOOKUP(L235,CIIU!A:B,2,0),\"\")","v":""}]
[null,null,null,null,null,null,null,null,null,null,null,null,{"$f":"IFERROR(VLOOKUP(L236,CIIU!A:B,2,0),\"\")","v":""}]
[null,null,null,null,null,null,null,null,null,null,null,null,{"$f":"IFERROR(VLOOKUP(L237,CIIU!A:B,2,0),\"\")","v":""}]
[null,null,null,null,null,null,null,null,null,null,null,null,{"$f":"IFERROR(VLOOKUP(L238,CIIU!A:B,2,0),\"\")","v":""}]
[null,null,null,null,null,null,null,null,null,null,null,null,{"$f":"IFERROR(VLOOKUP(L239,CIIU!A:B,2,0),\"\")","v":""}]
[null,null,null,null,null,null,null,null,null,null,null,null,{"$f":"IFERROR(VLOOKUP(L240,CIIU!A:B,2,0),\"\")","v":""}]
[null,null,null,null,null,null,null,null,null,null,null,null,{"$f":"IFERROR(VLOOKUP(L241,CIIU!A:B,2,0),\"\")","v":""}]
[null,null,null,null,null,null,null,null,null,null,null,null,{"$f":"IFERROR(VLOOKUP(L242,CIIU!A:B,2,0),\"\")","v":""}]
[null,null,null,null,null,null,null,null,null,null,null,null,{"$f":"IFERROR(VLOOKUP(L243,CIIU!A:B,2,0),\"\")","v":""}]
[null,null,null,null,null,null,null,null,null,null,null,null,{"$f":"IFERROR(VLOOKUP(L244,CIIU!A:B,2,0),\"\")","v":""}]
[null,null,null,null,null,null,null,null,null,null,null,null,{"$f":"IFERROR(VLOOKUP(L245,CIIU!A:B,2,0),\"\")","v":""}]
[null,null,null,null,null,null,null,null,null,null,null,null,{"$f":"IFERROR(VLOOKUP(L246,CIIU!A:B,2,0),\"\")","v":""}]
[null,null,null,null,null,null,null,null,null,null,null,null,{"$f":"IFERROR(VLOOKUP(L247,CIIU!A:B,2,0),\"\")","v":""}]
[null,null,null,null,null,null,null,null,null,null,null,null,{"$f":"IFERROR(VLOOKUP(L248,CIIU!A:B,2,0),\"\")","v":""}]
[null,null,null,null,null,null,null,null,null,null,null,null,{"$f":"IFERROR(VLOOKUP(L249,CIIU!A:B,2,0),\"\")","v":""}]
[null,null,null,null,null,null,null,null,null,null,null,null,{"$f":"IFERROR(VLOOKUP(L250,CIIU!A:B,2,0),\"\")","v":""}]
[null,null,null,null,null,null,null,null,null,null,null,null,{"$f":"IFERROR(VLOOKUP(L251,CIIU!A:B,2,0),\"\")","v":""}]
[null,null,null,null,null,null,null,null,null,null,null,null,{"$f":"IFERROR(VLOOKUP(L252,CIIU!A:B,2,0),\"\")","v":""}]
[null,null,null,null,null,null,null,null,null,null,null,null,{"$f":"IFERROR(VLOOKUP(L253,CIIU!A:B,2,0),\"\")","v":""}]
[null,null,null,null,null,null,null,null,null,null,null,null,{"$f":"IFERROR(VLOOKUP(L254,CIIU!A:B,2,0),\"\")","v":""}]
[null,null,null,null,null,null,null,null,null,null,null,null,{"$f":"IFERROR(VLOOKUP(L255,CIIU!A:B,2,0),\"\")","v":""}]
[null,null,null,null,null,null,null,null,null,null,null,null,{"$f":"IFERROR(VLOOKUP(L256,CIIU!A:B,2,0),\"\")","v":""}]
[null,null,null,null,null,null,null,null,null,null,null,null,{"$f":"IFERROR(VLOOKUP(L257,CIIU!A:B,2,0),\"\")","v":""}]
[null,null,null,null,null,null,null,null,null,null,null,null,{"$f":"IFERROR(VLOOKUP(L258,CIIU!A:B,2,0),\"\")","v":""}]
[null,null,null,null,null,null,null,null,null,null,null,null,{"$f":"IFERROR(VLOOKUP(L259,CIIU!A:B,2,0),\"\")","v":""}]
[null,null,null,null,null,null,null,null,null,null,null,null,{"$f":"IFERROR(VLOOKUP(L260,CIIU!A:B,2,0),\"\")","v":""}]
[null,null,null,null,null,null,null,null,null,null,null,null,{"$f":"IFERROR(VLOOKUP(L261,CIIU!A:B,2,0),\"\")","v":""}]
[null,null,null,null,null,null,null,null,null,null,null,null,{"$f":"IFERROR(VLOOKUP(L262,CIIU!A:B,2,0),\"\")","v":""}]
[null,null,null,null,null,null,null,null,null,null,null,null,{"$f":"IFERROR(VLOOKUP(L263,CIIU!A:B,2,0),\"\")","v":""}]
[null,null,null,null,null,null,null,null,null,null,null,null,{"$f":"IFERROR(VLOOKUP(L264,CIIU!A:B,2,0),\"\")","v":""}]
[null,null,null,null,null,null,null,null,null,null,null,null,{"$f":"IFERROR(VLOOKUP(L265,CIIU!A:B,2,0),\"\")","v":""}]
[null,null,null,null,null,null,null,null,null,null,null,null,{"$f":"IFERROR(VLOOKUP(L266,CIIU!A:B,2,0),\"\")","v":""}]
[null,null,null,null,null,null,null,null,null,null,null,null,{"$f":"IFERROR(VLOOKUP(L267,CIIU!A:B,2,0),\"\")","v":""}]
[null,null,null,null,null,null,null,null,null,null,null,null,{"$f":"IFERROR(VLOOKUP(L268,CIIU!A:B,2,0),\"\")","v":""}]
[null,null,null,null,null,null,null,null,null,null,null,null,{"$f":"IFERROR(VLOOKUP(L269,CIIU!A:B,2,0),\"\")","v":""}]
[null,null,null,null,null,null,null,null,null,null,null,null,{"$f":"IFERROR(VLOOKUP(L270,CIIU!A:B,2,0),\"\")","v":""}]
[null,null,null,null,null,null,null,null,null,null,null,null,{"$f":"IFERROR(VLOOKUP(L271,CIIU!A:B,2,0),\"\")","v":""}]
[null,null,null,null,null,null,null,null,null,null,null,null,{"$f":"IFERROR(VLOOKUP(L272,CIIU!A:B,2,0),\"\")","v":""}]
[null,null,null,null,null,null,null,null,null,null,null,null,{"$f":"IFERROR(VLOOKUP(L273,CIIU!A:B,2,0),\"\")","v":""}]
[null,null,null,null,null,null,null,null,null,null,null,null,{"$f":"IFERROR(VLOOKUP(L274,CIIU!A:B,2,0),\"\")","v":""}]
[null,null,null,null,null,null,null,null,null,null,null,null,{"$f":"IFERROR(VLOOKUP(L275,CIIU!A:B,2,0),\"\")","v":""}]
[null,null,null,null,null,null,null,null,null,null,null,null,{"$f":"IFERROR(VLOOKUP(L276,CIIU!A:B,2,0),\"\")","v":""}]
[null,null,null,null,null,null,null,null,null,null,null,null,{"$f":"IFERROR(VLOOKUP(L277,CIIU!A:B,2,0),\"\")","v":""}]
[null,null,null,null,null,null,null,null,null,null,null,null,{"$f":"IFERROR(VLOOKUP(L278,CIIU!A:B,2,0),\"\")","v":""}]
[null,null,null,null,null,null,null,null,null,null,null,null,{"$f":"IFERROR(VLOOKUP(L279,CIIU!A:B,2,0),\"\")","v":""}]
[null,null,null,null,null,null,null,null,null,null,null,null,{"$f":"IFERROR(VLOOKUP(L280,CIIU!A:B,2,0),\"\")","v":""}]
[null,null,null,null,null,null,null,null,null,null,null,null,{"$f":"IFERROR(VLOOKUP(L281,CIIU!A:B,2,0),\"\")","v":""}]
[null,null,null,null,null,null,null,null,null,null,null,null,{"$f":"IFERROR(VLOOKUP(L282,CIIU!A:B,2,0),\"\")","v":""}]
[null,null,null,null,null,null,null,null,null,null,null,null,{"$f":"IFERROR(VLOOKUP(L283,CIIU!A:B,2,0),\"\")","v":""}]
[null,null,null,null,null,null,null,null,null,null,null,null,{"$f":"IFERROR(VLOOKUP(L284,CIIU!A:B,2,0),\"\")","v":""}]
[null,null,null,null,null,null,null,null,null,null,null,null,{"$f":"IFERROR(VLOOKUP(L285,CIIU!A:B,2,0),\"\")","v":""}]
[null,null,null,null,null,null,null,null,null,null,null,null,{"$f":"IFERROR(VLOOKUP(L286,CIIU!A:B,2,0),\"\")","v":""}]
[null,null,null,null,null,null,null,null,null,null,null,null,{"$f":"IFERROR(VLOOKUP(L287,CIIU!A:B,2,0),\"\")","v":""}]
[null,null,null,null,null,null,null,null,null,null,null,null,{"$f":"IFERROR(VLOOKUP(L288,CIIU!A:B,2,0),\"\")","v":""}]
[null,null,null,null,null,null,null,null,null,null,null,null,{"$f":"IFERROR(VLOOKUP(L289,CIIU!A:B,2,0),\"\")","v":""}]
[null,null,null,null,null,null,null,null,null,null,null,null,{"$f":"IFERROR(VLOOKUP(L290,CIIU!A:B,2,0),\"\")","v":""}]
[null,null,null,null,null,null,null,null,null,null,null,null,{"$f":"IFERROR(VLOOKUP(L291,CIIU!A:B,2,0),\"\")","v":""}]
[null,null,null,null,null,null,null,null,null,null,null,null,{"$f":"IFERROR(VLOOKUP(L292,CIIU!A:B,2,0),\"\")","v":""}]
[null,null,null,null,null,null,null,null,null,null,null,null,{"$f":"IFERROR(VLOOKUP(L293,CIIU!A:B,2,0),\"\")","v":""}]
[null,null,null,null,null,null,null,null,null,null,null,null,{"$f":"IFERROR(VLOOKUP(L294,CIIU!A:B,2,0),\"\")","v":""}]
[null,null,null,null,null,null,null,null,null,null,null,null,{"$f":"IFERROR(VLOOKUP(L295,CIIU!A:B,2,0),\"\")","v":""}]
[null,null,null,null,null,null,null,null,null,null,null,null,{"$f":"IFERROR(VLOOKUP(L296,CIIU!A:B,2,0),\"\")","v":""}]
[null,null,null,null,null,null,null,null,null,null,null,null,{"$f":"IFERROR(VLOOKUP(L297,CIIU!A:B,2,0),\"\")","v":""}]
[null,null,null,null,null,null,null,null,null,null,null,null,{"$f":"IFERROR(VLOOKUP(L298,CIIU!A:B,2,0),\"\")","v":""}]
[null,null,null,null,null,null,null,null,null,null,null,null,{"$f":"IFERROR(VLOOKUP(L299,CIIU!A:B,2,0),\"\")","v":""}]
[null,null,null,null,null,null,null,null,null,null,null,null,{"$f":"IFERROR(VLOOKUP(L300,CIIU!A:B,2,0),\"\")","v":""}]
[null,null,null,null,null,null,null,null,null,null,null,null,{"$f":"IFERROR(VLOOKUP(L301,CIIU!A:B,2,0),\"\")","v":""}]
[null,null,null,null,null,null,null,null,null,null,null,null,{"$f":"IFERROR(VLOOKUP(L302,CIIU!A:B,2,0),\"\")","v":""}]
[null,null,null,null,null,null,null,null,null,null,null,null,{"$f":"IFERROR(VLOOKUP(L303,CIIU!A:B,2,0),\"\")","v":""}]
[null,null,null,null,null,null,null,null,null,null,null,null,{"$f":"IFERROR(VLOOKUP(L304,CIIU!A:B,2,0),\"\")","v":""}]
[null,null,null,null,null,null,null,null,null,null,null,null,{"$f":"IFERROR(VLOOKUP(L305,CIIU!A:B,2,0),\"\")","v":""}]
[null,null,null,null,null,null,null,null,null,null,null,null,{"$f":"IFERROR(VLOOKUP(L306,CIIU!A:B,2,0),\"\")","v":""}]
[null,null,null,null,null,null,null,null,null,null,null,null,{"$f":"IFERROR(VLOOKUP(L307,CIIU!A:B,2,0),\"\")","v":""}]
[null,null,null,null,null,null,null,null,null,null,null,null,{"$f":"IFERROR(VLOOKUP(L308,CIIU!A:B,2,0),\"\")","v":""}]
[null,null,null,null,null,null,null,null,null,null,null,null,{"$f":"IFERROR(VLOOKUP(L309,CIIU!A:B,2,0),\"\")","v":""}]
[null,null,null,null,null,null,null,null,null,null,null,null,{"$f":"IFERROR(VLOOKUP(L310,CIIU!A:B,2,0),\"\")","v":""}]
[null,null,null,null,null,null,null,null,null,null,null,null,{"$f":"IFERROR(VLOOKUP(L311,CIIU!A:B,2,0),\"\")","v":""}]
[null,null,null,null,null,null,null,null,null,null,null,null,{"$f":"IFERROR(VLOOKUP(L312,CIIU!A:B,2,0),\"\")","v":""}]
[null,null,null,null,null,null,null,null,null,null,null,null,{"$f":"IFERROR(VLOOKUP(L313,CIIU!A:B,2,0),\"\")","v":""}]
[null,null,null,null,null,null,null,null,null,null,null,null,{"$f":"IFERROR(VLOOKUP(L314,CIIU!A:B,2,0),\"\")","v":""}]
[null,null,null,null,null,null,null,null,null,null,null,null,{"$f":"IFERROR(VLOOKUP(L315,CIIU!A:B,2,0),\"\")","v":""}]
[null,null,null,null,null,null,null,null,null,null,null,null,{"$f":"IFERROR(VLOOKUP(L316,CIIU!A:B,2,0),\"\")","v":""}]
[null,null,null,null,null,null,null,null,null,null,null,null,{"$f":"IFERROR(VLOOKUP(L317,CIIU!A:B,2,0),\"\")","v":""}]
[null,null,null,null,null,null,null,null,null,null,null,null,{"$f":"IFERROR(VLOOKUP(L318,CIIU!A:B,2,0),\"\")","v":""}]
[null,null,null,null,null,null,null,null,null,null,null,null,{"$f":"IFERROR(VLOOKUP(L319,CIIU!A:B,2,0),\"\")","v":""}]
[null,null,null,null,null,null,null,null,null,null,null,null,{"$f":"IFERROR(VLOOKUP(L320,CIIU!A:B,2,0),\"\")","v":""}]
[null,null,null,null,null,null,null,null,null,null,null,null,{"$f":"IFERROR(VLOOKUP(L321,CIIU!A:B,2,0),\"\")","v":""}]
[null,null,null,null,null,null,null,null,null,null,null,null,{"$f":"IFERROR(VLOOKUP(L322,CIIU!A:B,2,0),\"\")","v":""}]
[null,null,null,null,null,null,null,null,null,null,null,null,{"$f":"IFERROR(VLOOKUP(L323,CIIU!A:B,2,0),\"\")","v":""}]
[null,null,null,null,null,null,null,null,null,null,null,null,{"$f":"IFERROR(VLOOKUP(L324,CIIU!A:B,2,0),\"\")","v":""}]
[null,null,null,null,null,null,null,null,null,null,null,null,{"$f":"IFERROR(VLOOKUP(L325,CIIU!A:B,2,0),\"\")","v":""}]
[null,null,null,null,null,null,null,null,null,null,null,null,{"$f":"IFERROR(VLOOKUP(L326,CIIU!A:B,2,0),\"\")","v":""}]
[null,null,null,null,null,null,null,null,null,null,null,null,{"$f":"IFERROR(VLOOKUP(L327,CIIU!A:B,2,0),\"\")","v":""}]
[null,null,null,null,null,null,null,null,null,null,null,null,{"$f":"IFERROR(VLOOKUP(L328,CIIU!A:B,2,0),\"\")","v":""}]
[null,null,null,null,null,null,null,null,null,null,null,null,{"$f":"IFERROR(VLOOKUP(L329,CIIU!A:B,2,0),\"\")","v":""}]
[null,null,null,null,null,null,null,null,null,null,null,null,{"$f":"IFERROR(VLOOKUP(L330,CIIU!A:B,2,0),\"\")","v":""}]
[null,null,null,null,null,null,null,null,null,null,null,null,{"$f":"IFERROR(VLOOKUP(L331,CIIU!A:B,2,0),\"\")","v":""}]
[null,null,null,null,null,null,null,null,null,null,null,null,{"$f":"IFERROR(VLOOKUP(L332,CIIU!A:B,2,0),\"\")","v":""}]
[null,null,null,null,null,null,null,null,null,null,null,null,{"$f":"IFERROR(VLOOKUP(L333,CIIU!A:B,2,0),\"\")","v":""}]
[null,null,null,null,null,null,null,null,null,null,null,null,{"$f":"IFERROR(VLOOKUP(L334,CIIU!A:B,2,0),\"\")","v":""}]
[null,null,null,null,null,null,null,null,null,null,null,null,{"$f":"IFERROR(VLOOKUP(L335,CIIU!A:B,2,0),\"\")","v":""}]
[null,null,null,null,null,null,null,null,null,null,null,null,{"$f":"IFERROR(VLOOKUP(L336,CIIU!A:B,2,0),\"\")","v":""}]
[null,null,null,null,null,null,null,null,null,null,null,null,{"$f":"IFERROR(VLOOKUP(L337,CIIU!A:B,2,0),\"\")","v":""}]
[null,null,null,null,null,null,null,null,null,null,null,null,{"$f":"IFERROR(VLOOKUP(L338,CIIU!A:B,2,0),\"\")","v":""}]
[null,null,null,null,null,null,null,null,null,null,null,null,{"$f":"IFERROR(VLOOKUP(L339,CIIU!A:B,2,0),\"\")","v":""}]
[null,null,null,null,null,null,null,null,null,null,null,null,{"$f":"IFERROR(VLOOKUP(L340,CIIU!A:B,2,0),\"\")","v":""}]
[null,null,null,null,null,null,null,null,null,null,null,null,{"$f":"IFERROR(VLOOKUP(L341,CIIU!A:B,2,0),\"\")","v":""}]
[null,null,null,null,null,null,null,null,null,null,null,null,{"$f":"IFERROR(VLOOKUP(L342,CIIU!A:B,2,0),\"\")","v":""}]
[null,null,null,null,null,null,null,null,null,null,null,null,{"$f":"IFERROR(VLOOKUP(L343,CIIU!A:B,2,0),\"\")","v":""}]
[null,null,null,null,null,null,null,null,null,null,null,null,{"$f":"IFERROR(VLOOKUP(L344,CIIU!A:B,2,0),\"\")","v":""}]
[null,null,null,null,null,null,null,null,null,null,null,null,{"$f":"IFERROR(VLOOKUP(L345,CIIU!A:B,2,0),\"\")","v":""}]
[null,null,null,null,null,null,null,null,null,null,null,null,{"$f":"IFERROR(VLOOKUP(L346,CIIU!A:B,2,0),\"\")","v":""}]
[null,null,null,null,null,null,null,null,null,null,null,null,{"$f":"IFERROR(VLOOKUP(L347,CIIU!A:B,2,0),\"\")","v":""}]
[null,null,null,null,null,null,null,null,null,null,null,null,{"$f":"IFERROR(VLOOKUP(L348,CIIU!A:B,2,0),\"\")","v":""}]
[null,null,null,null,null,null,null,null,null,null,null,null,{"$f":"IFERROR(VLOOKUP(L349,CIIU!A:B,2,0),\"\")","v":""}]
[null,null,null,null,null,null,null,null,null,null,null,null,{"$f":"IFERROR(VLOOKUP(L350,CIIU!A:B,2,0),\"\")","v":""}]
[null,null,null,null,null,null,null,null,null,null,null,null,{"$f":"IFERROR(VLOOKUP(L351,CIIU!A:B,2,0),\"\")","v":""}]
[null,null,null,null,null,null,null,null,null,null,null,null,{"$f":"IFERROR(VLOOKUP(L352,CIIU!A:B,2,0),\"\")","v":""}]
[null,null,null,null,null,null,null,null,null,null,null,null,{"$f":"IFERROR(VLOOKUP(L353,CIIU!A:B,2,0),\"\")","v":""}]
[null,null,null,null,null,null,null,null,null,null,null,null,{"$f":"IFERROR(VLOOKUP(L354,CIIU!A:B,2,0),\"\")","v":""}]
[null,null,null,null,null,null,null,null,null,null,null,null,{"$f":"IFERROR(VLOOKUP(L355,CIIU!A:B,2,0),\"\")","v":""}]
[null,null,null,null,null,null,null,null,null,null,null,null,{"$f":"IFERROR(VLOOKUP(L356,CIIU!A:B,2,0),\"\")","v":""}]
[null,null,null,null,null,null,null,null,null,null,null,null,{"$f":"IFERROR(VLOOKUP(L357,CIIU!A:B,2,0),\"\")","v":""}]
[null,null,null,null,null,null,null,null,null,null,null,null,{"$f":"IFERROR(VLOOKUP(L358,CIIU!A:B,2,0),\"\")","v":""}]
[null,null,null,null,null,null,null,null,null,null,null,null,{"$f":"IFERROR(VLOOKUP(L359,CIIU!A:B,2,0),\"\")","v":""}]
[null,null,null,null,null,null,null,null,null,null,null,null,{"$f":"IFERROR(VLOOKUP(L360,CIIU!A:B,2,0),\"\")","v":""}]
[null,null,null,null,null,null,null,null,null,null,null,null,{"$f":"IFERROR(VLOOKUP(L361,CIIU!A:B,2,0),\"\")","v":""}]
[null,null,null,null,null,null,null,null,null,null,null,null,{"$f":"IFERROR(VLOOKUP(L362,CIIU!A:B,2,0),\"\")","v":""}]
[null,null,null,null,null,null,null,null,null,null,null,null,{"$f":"IFERROR(VLOOKUP(L363,CIIU!A:B,2,0),\"\")","v":""}]
[null,null,null,null,null,null,null,null,null,null,null,null,{"$f":"IFERROR(VLOOKUP(L364,CIIU!A:B,2,0),\"\")","v":""}]
[null,null,null,null,null,null,null,null,null,null,null,null,{"$f":"IFERROR(VLOOKUP(L365,CIIU!A:B,2,0),\"\")","v":""}]
[null,null,null,null,null,null,null,null,null,null,null,null,{"$f":"IFERROR(VLOOKUP(L366,CIIU!A:B,2,0),\"\")","v":""}]
[null,null,null,null,null,null,null,null,null,null,null,null,{"$f":"IFERROR(VLOOKUP(L367,CIIU!A:B,2,0),\"\")","v":""}]
[null,null,null,null,null,null,null,null,null,null,null,null,{"$f":"IFERROR(VLOOKUP(L368,CIIU!A:B,2,0),\"\")","v":""}]
[null,null,null,null,null,null,null,null,null,null,null,null,{"$f":"IFERROR(VLOOKUP(L369,CIIU!A:B,2,0),\"\")","v":""}]
[null,null,null,null,null,null,null,null,null,null,null,null,{"$f":"IFERROR(VLOOKUP(L370,CIIU!A:B,2,0),\"\")","v":""}]
[null,null,null,null,null,null,null,null,null,null,null,null,{"$f":"IFERROR(VLOOKUP(L371,CIIU!A:B,2,0),\"\")","v":""}]
[null,null,null,null,null,null,null,null,null,null,null,null,{"$f":"IFERROR(VLOOKUP(L372,CIIU!A:B,2,0),\"\")","v":""}]
[null,null,null,null,null,null,null,null,null,null,null,null,{"$f":"IFERROR(VLOOKUP(L373,CIIU!A:B,2,0),\"\")","v":""}]
[null,null,null,null,null,null,null,null,null,null,null,null,{"$f":"IFERROR(VLOOKUP(L374,CIIU!A:B,2,0),\"\")","v":""}]
[null,null,null,null,null,null,null,null,null,null,null,null,{"$f":"IFERROR(VLOOKUP(L375,CIIU!A:B,2,0),\"\")","v":""}]
[null,null,null,null,null,null,null,null,null,null,null,null,{"$f":"IFERROR(VLOOKUP(L376,CIIU!A:B,2,0),\"\")","v":""}]
[null,null,null,null,null,null,null,null,null,null,null,null,{"$f":"IFERROR(VLOOKUP(L377,CIIU!A:B,2,0),\"\")","v":""}]
[null,null,null,null,null,null,null,null,null,null,null,null,{"$f":"IFERROR(VLOOKUP(L378,CIIU!A:B,2,0),\"\")","v":""}]
[null,null,null,null,null,null,null,null,null,null,null,null,{"$f":"IFERROR(VLOOKUP(L379,CIIU!A:B,2,0),\"\")","v":""}]
[null,null,null,null,null,null,null,null,null,null,null,null,{"$f":"IFERROR(VLOOKUP(L380,CIIU!A:B,2,0),\"\")","v":""}]
[null,null,null,null,null,null,null,null,null,null,null,null,{"$f":"IFERROR(VLOOKUP(L381,CIIU!A:B,2,0),\"\")","v":""}]
[null,null,null,null,null,null,null,null,null,null,null,null,{"$f":"IFERROR(VLOOKUP(L382,CIIU!A:B,2,0),\"\")","v":""}]
[null,null,null,null,null,null,null,null,null,null,null,null,{"$f":"IFERROR(VLOOKUP(L383,CIIU!A:B,2,0),\"\")","v":""}]
[null,null,null,null,null,null,null,null,null,null,null,null,{"$f":"IFERROR(VLOOKUP(L384,CIIU!A:B,2,0),\"\")","v":""}]
[null,null,null,null,null,null,null,null,null,null,null,null,{"$f":"IFERROR(VLOOKUP(L385,CIIU!A:B,2,0),\"\")","v":""}]
[null,null,null,null,null,null,null,null,null,null,null,null,{"$f":"IFERROR(VLOOKUP(L386,CIIU!A:B,2,0),\"\")","v":""}]
[null,null,null,null,null,null,null,null,null,null,null,null,{"$f":"IFERROR(VLOOKUP(L387,CIIU!A:B,2,0),\"\")","v":""}]
[null,null,null,null,null,null,null,null,null,null,null,null,{"$f":"IFERROR(VLOOKUP(L388,CIIU!A:B,2,0),\"\")","v":""}]
[null,null,null,null,null,null,null,null,null,null,null,null,{"$f":"IFERROR(VLOOKUP(L389,CIIU!A:B,2,0),\"\")","v":""}]
[null,null,null,null,null,null,null,null,null,null,null,null,{"$f":"IFERROR(VLOOKUP(L390,CIIU!A:B,2,0),\"\")","v":""}]
[null,null,null,null,null,null,null,null,null,null,null,null,{"$f":"IFERROR(VLOOKUP(L391,CIIU!A:B,2,0),\"\")","v":""}]
[null,null,null,null,null,null,null,null,null,null,null,null,{"$f":"IFERROR(VLOOKUP(L392,CIIU!A:B,2,0),\"\")","v":""}]
[null,null,null,null,null,null,null,null,null,null,null,null,{"$f":"IFERROR(VLOOKUP(L393,CIIU!A:B,2,0),\"\")","v":""}]
[null,null,null,null,null,null,null,null,null,null,null,null,{"$f":"IFERROR(VLOOKUP(L394,CIIU!A:B,2,0),\"\")","v":""}]
[null,null,null,null,null,null,null,null,null,null,null,null,{"$f":"IFERROR(VLOOKUP(L395,CIIU!A:B,2,0),\"\")","v":""}]
[null,null,null,null,null,null,null,null,null,null,null,null,{"$f":"IFERROR(VLOOKUP(L396,CIIU!A:B,2,0),\"\")","v":""}]
[null,null,null,null,null,null,null,null,null,null,null,null,{"$f":"IFERROR(VLOOKUP(L397,CIIU!A:B,2,0),\"\")","v":""}]
[null,null,null,null,null,null,null,null,null,null,null,null,{"$f":"IFERROR(VLOOKUP(L398,CIIU!A:B,2,0),\"\")","v":""}]
[null,null,null,null,null,null,null,null,null,null,null,null,{"$f":"IFERROR(VLOOKUP(L399,CIIU!A:B,2,0),\"\")","v":""}]
[null,null,null,null,null,null,null,null,null,null,null,null,{"$f":"IFERROR(VLOOKUP(L400,CIIU!A:B,2,0),\"\")","v":""}]
[null,null,null,null,null,null,null,null,null,null,null,null,{"$f":"IFERROR(VLOOKUP(L401,CIIU!A:B,2,0),\"\")","v":""}]
[null,null,null,null,null,null,null,null,null,null,null,null,{"$f":"IFERROR(VLOOKUP(L402,CIIU!A:B,2,0),\"\")","v":""}]
[null,null,null,null,null,null,null,null,null,null,null,null,{"$f":"IFERROR(VLOOKUP(L403,CIIU!A:B,2,0),\"\")","v":""}]
[null,null,null,null,null,null,null,null,null,null,null,null,{"$f":"IFERROR(VLOOKUP(L404,CIIU!A:B,2,0),\"\")","v":""}]
[null,null,null,null,null,null,null,null,null,null,null,null,{"$f":"IFERROR(VLOOKUP(L405,CIIU!A:B,2,0),\"\")","v":""}]
[null,null,null,null,null,null,null,null,null,null,null,null,{"$f":"IFERROR(VLOOKUP(L406,CIIU!A:B,2,0),\"\")","v":""}]
[null,null,null,null,null,null,null,null,null,null,null,null,{"$f":"IFERROR(VLOOKUP(L407,CIIU!A:B,2,0),\"\")","v":""}]
[null,null,null,null,null,null,null,null,null,null,null,null,{"$f":"IFERROR(VLOOKUP(L408,CIIU!A:B,2,0),\"\")","v":""}]
[null,null,null,null,null,null,null,null,null,null,null,null,{"$f":"IFERROR(VLOOKUP(L409,CIIU!A:B,2,0),\"\")","v":""}]
[null,null,null,null,null,null,null,null,null,null,null,null,{"$f":"IFERROR(VLOOKUP(L410,CIIU!A:B,2,0),\"\")","v":""}]
[null,null,null,null,null,null,null,null,null,null,null,null,{"$f":"IFERROR(VLOOKUP(L411,CIIU!A:B,2,0),\"\")","v":""}]
[null,null,null,null,null,null,null,null,null,null,null,null,{"$f":"IFERROR(VLOOKUP(L412,CIIU!A:B,2,0),\"\")","v":""}]
[null,null,null,null,null,null,null,null,null,null,null,null,{"$f":"IFERROR(VLOOKUP(L413,CIIU!A:B,2,0),\"\")","v":""}]
[null,null,null,null,null,null,null,null,null,null,null,null,{"$f":"IFERROR(VLOOKUP(L414,CIIU!A:B,2,0),\"\")","v":""}]
[null,null,null,null,null,null,null,null,null,null,null,null,{"$f":"IFERROR(VLOOKUP(L415,CIIU!A:B,2,0),\"\")","v":""}]
[null,null,null,null,null,null,null,null,null,null,null,null,{"$f":"IFERROR(VLOOKUP(L416,CIIU!A:B,2,0),\"\")","v":""}]
[null,null,null,null,null,null,null,null,null,null,null,null,{"$f":"IFERROR(VLOOKUP(L417,CIIU!A:B,2,0),\"\")","v":""}]
[null,null,null,null,null,null,null,null,null,null,null,null,{"$f":"IFERROR(VLOOKUP(L418,CIIU!A:B,2,0),\"\")","v":""}]
[null,null,null,null,null,null,null,null,null,null,null,null,{"$f":"IFERROR(VLOOKUP(L419,CIIU!A:B,2,0),\"\")","v":""}]
[null,null,null,null,null,null,null,null,null,null,null,null,{"$f":"IFERROR(VLOOKUP(L420,CIIU!A:B,2,0),\"\")","v":""}]
[null,null,null,null,null,null,null,null,null,null,null,null,{"$f":"IFERROR(VLOOKUP(L421,CIIU!A:B,2,0),\"\")","v":""}]
[null,null,null,null,null,null,null,null,null,null,null,null,{"$f":"IFERROR(VLOOKUP(L422,CIIU!A:B,2,0),\"\")","v":""}]
[null,null,null,null,null,null,null,null,null,null,null,null,{"$f":"IFERROR(VLOOKUP(L423,CIIU!A:B,2,0),\"\")","v":""}]
[null,null,null,null,null,null,null,null,null,null,null,null,{"$f":"IFERROR(VLOOKUP(L424,CIIU!A:B,2,0),\"\")","v":""}]
[null,null,null,null,null,null,null,null,null,null,null,null,{"$f":"IFERROR(VLOOKUP(L425,CIIU!A:B,2,0),\"\")","v":""}]
[null,null,null,null,null,null,null,null,null,null,null,null,{"$f":"IFERROR(VLOOKUP(L426,CIIU!A:B,2,0),\"\")","v":""}]
[null,null,null,null,null,null,null,null,null,null,null,null,{"$f":"IFERROR(VLOOKUP(L427,CIIU!A:B,2,0),\"\")","v":""}]
[null,null,null,null,null,null,null,null,null,null,null,null,{"$f":"IFERROR(VLOOKUP(L428,CIIU!A:B,2,0),\"\")","v":""}]
[null,null,null,null,null,null,null,null,null,null,null,null,{"$f":"IFERROR(VLOOKUP(L429,CIIU!A:B,2,0),\"\")","v":""}]
[null,null,null,null,null,null,null,null,null,null,null,null,{"$f":"IFERROR(VLOOKUP(L430,CIIU!A:B,2,0),\"\")","v":""}]
[null,null,null,null,null,null,null,null,null,null,null,null,{"$f":"IFERROR(VLOOKUP(L431,CIIU!A:B,2,0),\"\")","v":""}]
[null,null,null,null,null,null,null,null,null,null,null,null,{"$f":"IFERROR(VLOOKUP(L432,CIIU!A:B,2,0),\"\")","v":""}]
[null,null,null,null,null,null,null,null,null,null,null,null,{"$f":"IFERROR(VLOOKUP(L433,CIIU!A:B,2,0),\"\")","v":""}]
[null,null,null,null,null,null,null,null,null,null,null,null,{"$f":"IFERROR(VLOOKUP(L434,CIIU!A:B,2,0),\"\")","v":""}]
[null,null,null,null,null,null,null,null,null,null,null,null,{"$f":"IFERROR(VLOOKUP(L435,CIIU!A:B,2,0),\"\")","v":""}]
[null,null,null,null,null,null,null,null,null,null,null,null,{"$f":"IFERROR(VLOOKUP(L436,CIIU!A:B,2,0),\"\")","v":""}]
[null,null,null,null,null,null,null,null,null,null,null,null,{"$f":"IFERROR(VLOOKUP(L437,CIIU!A:B,2,0),\"\")","v":""}]
[null,null,null,null,null,null,null,null,null,null,null,null,{"$f":"IFERROR(VLOOKUP(L438,CIIU!A:B,2,0),\"\")","v":""}]
[null,null,null,null,null,null,null,null,null,null,null,null,{"$f":"IFERROR(VLOOKUP(L439,CIIU!A:B,2,0),\"\")","v":""}]
[null,null,null,null,null,null,null,null,null,null,null,null,{"$f":"IFERROR(VLOOKUP(L440,CIIU!A:B,2,0),\"\")","v":""}]
[null,null,null,null,null,null,null,null,null,null,null,null,{"$f":"IFERROR(VLOOKUP(L441,CIIU!A:B,2,0),\"\")","v":""}]
[null,null,null,null,null,null,null,null,null,null,null,null,{"$f":"IFERROR(VLOOKUP(L442,CIIU!A:B,2,0),\"\")","v":""}]
[null,null,null,null,null,null,null,null,null,null,null,null,{"$f":"IFERROR(VLOOKUP(L443,CIIU!A:B,2,0),\"\")","v":""}]
[null,null,null,null,null,null,null,null,null,null,null,null,{"$f":"IFERROR(VLOOKUP(L444,CIIU!A:B,2,0),\"\")","v":""}]
[null,null,null,null,null,null,null,null,null,null,null,null,{"$f":"IFERROR(VLOOKUP(L445,CIIU!A:B,2,0),\"\")","v":""}]
[null,null,null,null,null,null,null,null,null,null,null,null,{"$f":"IFERROR(VLOOKUP(L446,CIIU!A:B,2,0),\"\")","v":""}]
[null,null,null,null,null,null,null,null,null,null,null,null,{"$f":"IFERROR(VLOOKUP(L447,CIIU!A:B,2,0),\"\")","v":""}]
[null,null,null,null,null,null,null,null,null,null,null,null,{"$f":"IFERROR(VLOOKUP(L448,CIIU!A:B,2,0),\"\")","v":""}]
[null,null,null,null,null,null,null,null,null,null,null,null,{"$f":"IFERROR(VLOOKUP(L449,CIIU!A:B,2,0),\"\")","v":""}]
[null,null,null,null,null,null,null,null,null,null,null,null,{"$f":"IFERROR(VLOOKUP(L450,CIIU!A:B,2,0),\"\")","v":""}]
[null,null,null,null,null,null,null,null,null,null,null,null,{"$f":"IFERROR(VLOOKUP(L451,CIIU!A:B,2,0),\"\")","v":""}]
[null,null,null,null,null,null,null,null,null,null,null,null,{"$f":"IFERROR(VLOOKUP(L452,CIIU!A:B,2,0),\"\")","v":""}]
[null,null,null,null,null,null,null,null,null,null,null,null,{"$f":"IFERROR(VLOOKUP(L453,CIIU!A:B,2,0),\"\")","v":""}]
[null,null,null,null,null,null,null,null,null,null,null,null,{"$f":"IFERROR(VLOOKUP(L454,CIIU!A:B,2,0),\"\")","v":""}]
[null,null,null,null,null,null,null,null,null,null,null,null,{"$f":"IFERROR(VLOOKUP(L455,CIIU!A:B,2,0),\"\")","v":""}]
[null,null,null,null,null,null,null,null,null,null,null,null,{"$f":"IFERROR(VLOOKUP(L456,CIIU!A:B,2,0),\"\")","v":""}]
[null,null,null,null,null,null,null,null,null,null,null,null,{"$f":"IFERROR(VLOOKUP(L457,CIIU!A:B,2,0),\"\")","v":""}]
[null,null,null,null,null,null,null,null,null,null,null,null,{"$f":"IFERROR(VLOOKUP(L458,CIIU!A:B,2,0),\"\")","v":""}]
[null,null,null,null,null,null,null,null,null,null,null,null,{"$f":"IFERROR(VLOOKUP(L459,CIIU!A:B,2,0),\"\")","v":""}]
[null,null,null,null,null,null,null,null,null,null,null,null,{"$f":"IFERROR(VLOOKUP(L460,CIIU!A:B,2,0),\"\")","v":""}]
[null,null,null,null,null,null,null,null,null,null,null,null,{"$f":"IFERROR(VLOOKUP(L461,CIIU!A:B,2,0),\"\")","v":""}]
[null,null,null,null,null,null,null,null,null,null,null,null,{"$f":"IFERROR(VLOOKUP(L462,CIIU!A:B,2,0),\"\")","v":""}]
[null,null,null,null,null,null,null,null,null,null,null,null,{"$f":"IFERROR(VLOOKUP(L463,CIIU!A:B,2,0),\"\")","v":""}]
[null,null,null,null,null,null,null,null,null,null,null,null,{"$f":"IFERROR(VLOOKUP(L464,CIIU!A:B,2,0),\"\")","v":""}]
[null,null,null,null,null,null,null,null,null,null,null,null,{"$f":"IFERROR(VLOOKUP(L465,CIIU!A:B,2,0),\"\")","v":""}]
[null,null,null,null,null,null,null,null,null,null,null,null,{"$f":"IFERROR(VLOOKUP(L466,CIIU!A:B,2,0),\"\")","v":""}]
[null,null,null,null,null,null,null,null,null,null,null,null,{"$f":"IFERROR(VLOOKUP(L467,CIIU!A:B,2,0),\"\")","v":""}]
[null,null,null,null,null,null,null,null,null,null,null,null,{"$f":"IFERROR(VLOOKUP(L468,CIIU!A:B,2,0),\"\")","v":""}]
[null,null,null,null,null,null,null,null,null,null,null,null,{"$f":"IFERROR(VLOOKUP(L469,CIIU!A:B,2,0),\"\")","v":""}]
[null,null,null,null,null,null,null,null,null,null,null,null,{"$f":"IFERROR(VLOOKUP(L470,CIIU!A:B,2,0),\"\")","v":""}]
[null,null,null,null,null,null,null,null,null,null,null,null,{"$f":"IFERROR(VLOOKUP(L471,CIIU!A:B,2,0),\"\")","v":""}]
[null,null,null,null,null,null,null,null,null,null,null,null,{"$f":"IFERROR(VLOOKUP(L472,CIIU!A:B,2,0),\"\")","v":""}]
[null,null,null,null,null,null,null,null,null,null,null,null,{"$f":"IFERROR(VLOOKUP(L473,CIIU!A:B,2,0),\"\")","v":""}]
[null,null,null,null,null,null,null,null,null,null,null,null,{"$f":"IFERROR(VLOOKUP(L474,CIIU!A:B,2,0),\"\")","v":""}]
[null,null,null,null,null,null,null,null,null,null,null,null,{"$f":"IFERROR(VLOOKUP(L475,CIIU!A:B,2,0),\"\")","v":""}]
[null,null,null,null,null,null,null,null,null,null,null,null,{"$f":"IFERROR(VLOOKUP(L476,CIIU!A:B,2,0),\"\")","v":""}]
[null,null,null,null,null,null,null,null,null,null,null,null,{"$f":"IFERROR(VLOOKUP(L477,CIIU!A:B,2,0),\"\")","v":""}]
[null,null,null,null,null,null,null,null,null,null,null,null,{"$f":"IFERROR(VLOOKUP(L478,CIIU!A:B,2,0),\"\")","v":""}]
[null,null,null,null,null,null,null,null,null,null,null,null,{"$f":"IFERROR(VLOOKUP(L479,CIIU!A:B,2,0),\"\")","v":""}]
[null,null,null,null,null,null,null,null,null,null,null,null,{"$f":"IFERROR(VLOOKUP(L480,CIIU!A:B,2,0),\"\")","v":""}]
[null,null,null,null,null,null,null,null,null,null,null,null,{"$f":"IFERROR(VLOOKUP(L481,CIIU!A:B,2,0),\"\")","v":""}]
[null,null,null,null,null,null,null,null,null,null,null,null,{"$f":"IFERROR(VLOOKUP(L482,CIIU!A:B,2,0),\"\")","v":""}]
[null,null,null,null,null,null,null,null,null,null,null,null,{"$f":"IFERROR(VLOOKUP(L483,CIIU!A:B,2,0),\"\")","v":""}]
[null,null,null,null,null,null,null,null,null,null,null,null,{"$f":"IFERROR(VLOOKUP(L484,CIIU!A:B,2,0),\"\")","v":""}]
[null,null,null,null,null,null,null,null,null,null,null,null,{"$f":"IFERROR(VLOOKUP(L485,CIIU!A:B,2,0),\"\")","v":""}]
[null,null,null,null,null,null,null,null,null,null,null,null,{"$f":"IFERROR(VLOOKUP(L486,CIIU!A:B,2,0),\"\")","v":""}]
[null,null,null,null,null,null,null,null,null,null,null,null,{"$f":"IFERROR(VLOOKUP(L487,CIIU!A:B,2,0),\"\")","v":""}]
[null,null,null,null,null,null,null,null,null,null,null,null,{"$f":"IFERROR(VLOOKUP(L488,CIIU!A:B,2,0),\"\")","v":""}]
[null,null,null,null,null,null,null,null,null,null,null,null,{"$f":"IFERROR(VLOOKUP(L489,CIIU!A:B,2,0),\"\")","v":""}]
[null,null,null,null,null,null,null,null,null,null,null,null,{"$f":"IFERROR(VLOOKUP(L490,CIIU!A:B,2,0),\"\")","v":""}]
[null,null,null,null,null,null,null,null,null,null,null,null,{"$f":"IFERROR(VLOOKUP(L491,CIIU!A:B,2,0),\"\")","v":""}]
[null,null,null,null,null,null,null,null,null,null,null,null,{"$f":"IFERROR(VLOOKUP(L492,CIIU!A:B,2,0),\"\")","v":""}]
[null,null,null,null,null,null,null,null,null,null,null,null,{"$f":"IFERROR(VLOOKUP(L493,CIIU!A:B,2,0),\"\")","v":""}]
[null,null,null,null,null,null,null,null,null,null,null,null,{"$f":"IFERROR(VLOOKUP(L494,CIIU!A:B,2,0),\"\")","v":""}]
[null,null,null,null,null,null,null,null,null,null,null,null,{"$f":"IFERROR(VLOOKUP(L495,CIIU!A:B,2,0),\"\")","v":""}]
[null,null,null,null,null,null,null,null,null,null,null,null,{"$f":"IFERROR(VLOOKUP(L496,CIIU!A:B,2,0),\"\")","v":""}]
[null,null,null,null,null,null,null,null,null,null,null,null,{"$f":"IFERROR(VLOOKUP(L497,CIIU!A:B,2,0),\"\")","v":""}]
[null,null,null,null,null,null,null,null,null,null,null,null,{"$f":"IFERROR(VLOOKUP(L498,CIIU!A:B,2,0),\"\")","v":""}]
[null,null,null,null,null,null,null,null,null,null,null,null,{"$f":"IFERROR(VLOOKUP(L499,CIIU!A:B,2,0),\"\")","v":""}]
[null,null,null,null,null,null,null,null,null,null,null,null,{"$f":"IFERROR(VLOOKUP(L500,CIIU!A:B,2,0),\"\")","v":""}]
[null,null,null,null,null,null,null,null,null,null,null,null,{"$f":"IFERROR(VLOOKUP(L501,CIIU!A:B,2,0),\"\")","v":""}]
[null,null,null,null,null,null,null,null,null,null,null,null,{"$f":"IFERROR(VLOOKUP(L502,CIIU!A:B,2,0),\"\")","v":""}]
[null,null,null,null,null,null,null,null,null,null,null,null,{"$f":"IFERROR(VLOOKUP(L503,CIIU!A:B,2,0),\"\")","v":""}]
[null,null,null,null,null,null,null,null,null,null,null,null,{"$f":"IFERROR(VLOOKUP(L504,CIIU!A:B,2,0),\"\")","v":""}]
[null,null,null,null,null,null,null,null,null,null,null,null,{"$f":"IFERROR(VLOOKUP(L505,CIIU!A:B,2,0),\"\")","v":""}]
[null,null,null,null,null,null,null,null,null,null,null,null,{"$f":"IFERROR(VLOOKUP(L506,CIIU!A:B,2,0),\"\")","v":""}]
[null,null,null,null,null,null,null,null,null,null,null,null,{"$f":"IFERROR(VLOOKUP(L507,CIIU!A:B,2,0),\"\")","v":""}]
[null,null,null,null,null,null,null,null,null,null,null,null,{"$f":"IFERROR(VLOOKUP(L508,CIIU!A:B,2,0),\"\")","v":""}]
[null,null,null,null,null,null,null,null,null,null,null,null,{"$f":"IFERROR(VLOOKUP(L509,CIIU!A:B,2,0),\"\")","v":""}]
[null,null,null,null,null,null,null,null,null,null,null,null,{"$f":"IFERROR(VLOOKUP(L510,CIIU!A:B,2,0),\"\")","v":""}]
[null,null,null,null,null,null,null,null,null,null,null,null,{"$f":"IFERROR(VLOOKUP(L511,CIIU!A:B,2,0),\"\")","v":""}]
[null,null,null,null,null,null,null,null,null,null,null,null,{"$f":"IFERROR(VLOOKUP(L512,CIIU!A:B,2,0),\"\")","v":""}]
[null,null,null,null,null,null,null,null,null,null,null,null,{"$f":"IFERROR(VLOOKUP(L513,CIIU!A:B,2,0),\"\")","v":""}]
[null,null,null,null,null,null,null,null,null,null,null,null,{"$f":"IFERROR(VLOOKUP(L514,CIIU!A:B,2,0),\"\")","v":""}]
[null,null,null,null,null,null,null,null,null,null,null,null,{"$f":"IFERROR(VLOOKUP(L515,CIIU!A:B,2,0),\"\")","v":""}]
[null,null,null,null,null,null,null,null,null,null,null,null,{"$f":"IFERROR(VLOOKUP(L516,CIIU!A:B,2,0),\"\")","v":""}]
[null,null,null,null,null,null,null,null,null,null,null,null,{"$f":"IFERROR(VLOOKUP(L517,CIIU!A:B,2,0),\"\")","v":""}]
[null,null,null,null,null,null,null,null,null,null,null,null,{"$f":"IFERROR(VLOOKUP(L518,CIIU!A:B,2,0),\"\")","v":""}]
[null,null,null,null,null,null,null,null,null,null,null,null,{"$f":"IFERROR(VLOOKUP(L519,CIIU!A:B,2,0),\"\")","v":""}]
[null,null,null,null,null,null,null,null,null,null,null,null,{"$f":"IFERROR(VLOOKUP(L520,CIIU!A:B,2,0),\"\")","v":""}]
[null,null,null,null,null,null,null,null,null,null,null,null,{"$f":"IFERROR(VLOOKUP(L521,CIIU!A:B,2,0),\"\")","v":""}]
[null,null,null,null,null,null,null,null,null,null,null,null,{"$f":"IFERROR(VLOOKUP(L522,CIIU!A:B,2,0),\"\")","v":""}]
[null,null,null,null,null,null,null,null,null,null,null,null,{"$f":"IFERROR(VLOOKUP(L523,CIIU!A:B,2,0),\"\")","v":""}]
[null,null,null,null,null,null,null,null,null,null,null,null,{"$f":"IFERROR(VLOOKUP(L524,CIIU!A:B,2,0),\"\")","v":""}]
[null,null,null,null,null,null,null,null,null,null,null,null,{"$f":"IFERROR(VLOOKUP(L525,CIIU!A:B,2,0),\"\")","v":""}]
[null,null,null,null,null,null,null,null,null,null,null,null,{"$f":"IFERROR(VLOOKUP(L526,CIIU!A:B,2,0),\"\")","v":""}]
[null,null,null,null,null,null,null,null,null,null,null,null,{"$f":"IFERROR(VLOOKUP(L527,CIIU!A:B,2,0),\"\")","v":""}]
[null,null,null,null,null,null,null,null,null,null,null,null,{"$f":"IFERROR(VLOOKUP(L528,CIIU!A:B,2,0),\"\")","v":""}]
[null,null,null,null,null,null,null,null,null,null,null,null,{"$f":"IFERROR(VLOOKUP(L529,CIIU!A:B,2,0),\"\")","v":""}]
[null,null,null,null,null,null,null,null,null,null,null,null,{"$f":"IFERROR(VLOOKUP(L530,CIIU!A:B,2,0),\"\")","v":""}]
[null,null,null,null,null,null,null,null,null,null,null,null,{"$f":"IFERROR(VLOOKUP(L531,CIIU!A:B,2,0),\"\")","v":""}]
[null,null,null,null,null,null,null,null,null,null,null,null,{"$f":"IFERROR(VLOOKUP(L532,CIIU!A:B,2,0),\"\")","v":""}]
[null,null,null,null,null,null,null,null,null,null,null,null,{"$f":"IFERROR(VLOOKUP(L533,CIIU!A:B,2,0),\"\")","v":""}]
[null,null,null,null,null,null,null,null,null,null,null,null,{"$f":"IFERROR(VLOOKUP(L534,CIIU!A:B,2,0),\"\")","v":""}]
[null,null,null,null,null,null,null,null,null,null,null,null,{"$f":"IFERROR(VLOOKUP(L535,CIIU!A:B,2,0),\"\")","v":""}]
[null,null,null,null,null,null,null,null,null,null,null,null,{"$f":"IFERROR(VLOOKUP(L536,CIIU!A:B,2,0),\"\")","v":""}]
[null,null,null,null,null,null,null,null,null,null,null,null,{"$f":"IFERROR(VLOOKUP(L537,CIIU!A:B,2,0),\"\")","v":""}]
[null,null,null,null,null,null,null,null,null,null,null,null,{"$f":"IFERROR(VLOOKUP(L538,CIIU!A:B,2,0),\"\")","v":""}]
[null,null,null,null,null,null,null,null,null,null,null,null,{"$f":"IFERROR(VLOOKUP(L539,CIIU!A:B,2,0),\"\")","v":""}]
[null,null,null,null,null,null,null,null,null,null,null,null,{"$f":"IFERROR(VLOOKUP(L540,CIIU!A:B,2,0),\"\")","v":""}]
[null,null,null,null,null,null,null,null,null,null,null,null,{"$f":"IFERROR(VLOOKUP(L541,CIIU!A:B,2,0),\"\")","v":""}]
[null,null,null,null,null,null,null,null,null,null,null,null,{"$f":"IFERROR(VLOOKUP(L542,CIIU!A:B,2,0),\"\")","v":""}]
[null,null,null,null,null,null,null,null,null,null,null,null,{"$f":"IFERROR(VLOOKUP(L543,CIIU!A:B,2,0),\"\")","v":""}]
[null,null,null,null,null,null,null,null,null,null,null,null,{"$f":"IFERROR(VLOOKUP(L544,CIIU!A:B,2,0),\"\")","v":""}]
[null,null,null,null,null,null,null,null,null,null,null,null,{"$f":"IFERROR(VLOOKUP(L545,CIIU!A:B,2,0),\"\")","v":""}]
[null,null,null,null,null,null,null,null,null,null,null,null,{"$f":"IFERROR(VLOOKUP(L546,CIIU!A:B,2,0),\"\")","v":""}]
[null,null,null,null,null,null,null,null,null,null,null,null,{"$f":"IFERROR(VLOOKUP(L547,CIIU!A:B,2,0),\"\")","v":""}]
[null,null,null,null,null,null,null,null,null,null,null,null,{"$f":"IFERROR(VLOOKUP(L548,CIIU!A:B,2,0),\"\")","v":""}]
[null,null,null,null,null,null,null,null,null,null,null,null,{"$f":"IFERROR(VLOOKUP(L549,CIIU!A:B,2,0),\"\")","v":""}]
[null,null,null,null,null,null,null,null,null,null,null,null,{"$f":"IFERROR(VLOOKUP(L550,CIIU!A:B,2,0),\"\")","v":""}]
[null,null,null,null,null,null,null,null,null,null,null,null,{"$f":"IFERROR(VLOOKUP(L551,CIIU!A:B,2,0),\"\")","v":""}]
[null,null,null,null,null,null,null,null,null,null,null,null,{"$f":"IFERROR(VLOOKUP(L552,CIIU!A:B,2,0),\"\")","v":""}]
[null,null,null,null,null,null,null,null,null,null,null,null,{"$f":"IFERROR(VLOOKUP(L553,CIIU!A:B,2,0),\"\")","v":""}]
[null,null,null,null,null,null,null,null,null,null,null,null,{"$f":"IFERROR(VLOOKUP(L554,CIIU!A:B,2,0),\"\")","v":""}]
[null,null,null,null,null,null,null,null,null,null,null,null,{"$f":"IFERROR(VLOOKUP(L555,CIIU!A:B,2,0),\"\")","v":""}]
[null,null,null,null,null,null,null,null,null,null,null,null,{"$f":"IFERROR(VLOOKUP(L556,CIIU!A:B,2,0),\"\")","v":""}]
[null,null,null,null,null,null,null,null,null,null,null,null,{"$f":"IFERROR(VLOOKUP(L557,CIIU!A:B,2,0),\"\")","v":""}]
[null,null,null,null,null,null,null,null,null,null,null,null,{"$f":"IFERROR(VLOOKUP(L558,CIIU!A:B,2,0),\"\")","v":""}]
[null,null,null,null,null,null,null,null,null,null,null,null,{"$f":"IFERROR(VLOOKUP(L559,CIIU!A:B,2,0),\"\")","v":""}]
[null,null,null,null,null,null,null,null,null,null,null,null,{"$f":"IFERROR(VLOOKUP(L560,CIIU!A:B,2,0),\"\")","v":""}]
[null,null,null,null,null,null,null,null,null,null,null,null,{"$f":"IFERROR(VLOOKUP(L561,CIIU!A:B,2,0),\"\")","v":""}]
[null,null,null,null,null,null,null,null,null,null,null,null,{"$f":"IFERROR(VLOOKUP(L562,CIIU!A:B,2,0),\"\")","v":""}]
[null,null,null,null,null,null,null,null,null,null,null,null,{"$f":"IFERROR(VLOOKUP(L563,CIIU!A:B,2,0),\"\")","v":""}]
[null,null,null,null,null,null,null,null,null,null,null,null,{"$f":"IFERROR(VLOOKUP(L564,CIIU!A:B,2,0),\"\")","v":""}]
[null,null,null,null,null,null,null,null,null,null,null,null,{"$f":"IFERROR(VLOOKUP(L565,CIIU!A:B,2,0),\"\")","v":""}]
[null,null,null,null,null,null,null,null,null,null,null,null,{"$f":"IFERROR(VLOOKUP(L566,CIIU!A:B,2,0),\"\")","v":""}]
[null,null,null,null,null,null,null,null,null,null,null,null,{"$f":"IFERROR(VLOOKUP(L567,CIIU!A:B,2,0),\"\")","v":""}]
[null,null,null,null,null,null,null,null,null,null,null,null,{"$f":"IFERROR(VLOOKUP(L568,CIIU!A:B,2,0),\"\")","v":""}]
[null,null,null,null,null,null,null,null,null,null,null,null,{"$f":"IFERROR(VLOOKUP(L569,CIIU!A:B,2,0),\"\")","v":""}]
[null,null,null,null,null,null,null,null,null,null,null,null,{"$f":"IFERROR(VLOOKUP(L570,CIIU!A:B,2,0),\"\")","v":""}]
[null,null,null,null,null,null,null,null,null,null,null,null,{"$f":"IFERROR(VLOOKUP(L571,CIIU!A:B,2,0),\"\")","v":""}]
[null,null,null,null,null,null,null,null,null,null,null,null,{"$f":"IFERROR(VLOOKUP(L572,CIIU!A:B,2,0),\"\")","v":""}]
[null,null,null,null,null,null,null,null,null,null,null,null,{"$f":"IFERROR(VLOOKUP(L573,CIIU!A:B,2,0),\"\")","v":""}]
[null,null,null,null,null,null,null,null,null,null,null,null,{"$f":"IFERROR(VLOOKUP(L574,CIIU!A:B,2,0),\"\")","v":""}]
[null,null,null,null,null,null,null,null,null,null,null,null,{"$f":"IFERROR(VLOOKUP(L575,CIIU!A:B,2,0),\"\")","v":""}]
[null,null,null,null,null,null,null,null,null,null,null,null,{"$f":"IFERROR(VLOOKUP(L576,CIIU!A:B,2,0),\"\")","v":""}]
[null,null,null,null,null,null,null,null,null,null,null,null,{"$f":"IFERROR(VLOOKUP(L577,CIIU!A:B,2,0),\"\")","v":""}]
[null,null,null,null,null,null,null,null,null,null,null,null,{"$f":"IFERROR(VLOOKUP(L578,CIIU!A:B,2,0),\"\")","v":""}]
[null,null,null,null,null,null,null,null,null,null,null,null,{"$f":"IFERROR(VLOOKUP(L579,CIIU!A:B,2,0),\"\")","v":""}]
[null,null,null,null,null,null,null,null,null,null,null,null,{"$f":"IFERROR(VLOOKUP(L580,CIIU!A:B,2,0),\"\")","v":""}]
[null,null,null,null,null,null,null,null,null,null,null,null,{"$f":"IFERROR(VLOOKUP(L581,CIIU!A:B,2,0),\"\")","v":""}]
[null,null,null,null,null,null,null,null,null,null,null,null,{"$f":"IFERROR(VLOOKUP(L582,CIIU!A:B,2,0),\"\")","v":""}]
[null,null,null,null,null,null,null,null,null,null,null,null,{"$f":"IFERROR(VLOOKUP(L583,CIIU!A:B,2,0),\"\")","v":""}]
[null,null,null,null,null,null,null,null,null,null,null,null,{"$f":"IFERROR(VLOOKUP(L584,CIIU!A:B,2,0),\"\")","v":""}]
[null,null,null,null,null,null,null,null,null,null,null,null,{"$f":"IFERROR(VLOOKUP(L585,CIIU!A:B,2,0),\"\")","v":""}]
[null,null,null,null,null,null,null,null,null,null,null,null,{"$f":"IFERROR(VLOOKUP(L586,CIIU!A:B,2,0),\"\")","v":""}]
[null,null,null,null,null,null,null,null,null,null,null,null,{"$f":"IFERROR(VLOOKUP(L587,CIIU!A:B,2,0),\"\")","v":""}]
[null,null,null,null,null,null,null,null,null,null,null,null,{"$f":"IFERROR(VLOOKUP(L588,CIIU!A:B,2,0),\"\")","v":""}]
[null,null,null,null,null,null,null,null,null,null,null,null,{"$f":"IFERROR(VLOOKUP(L589,CIIU!A:B,2,0),\"\")","v":""}]
[null,null,null,null,null,null,null,null,null,null,null,null,{"$f":"IFERROR(VLOOKUP(L590,CIIU!A:B,2,0),\"\")","v":""}]
[null,null,null,null,null,null,null,null,null,null,null,null,{"$f":"IFERROR(VLOOKUP(L591,CIIU!A:B,2,0),\"\")","v":""}]
[null,null,null,null,null,null,null,null,null,null,null,null,{"$f":"IFERROR(VLOOKUP(L592,CIIU!A:B,2,0),\"\")","v":""}]
[null,null,null,null,null,null,null,null,null,null,null,null,{"$f":"IFERROR(VLOOKUP(L593,CIIU!A:B,2,0),\"\")","v":""}]
[null,null,null,null,null,null,null,null,null,null,null,null,{"$f":"IFERROR(VLOOKUP(L594,CIIU!A:B,2,0),\"\")","v":""}]
[null,null,null,null,null,null,null,null,null,null,null,null,{"$f":"IFERROR(VLOOKUP(L595,CIIU!A:B,2,0),\"\")","v":""}]
[null,null,null,null,null,null,null,null,null,null,null,null,{"$f":"IFERROR(VLOOKUP(L596,CIIU!A:B,2,0),\"\")","v":""}]
[null,null,null,null,null,null,null,null,null,null,null,null,{"$f":"IFERROR(VLOOKUP(L597,CIIU!A:B,2,0),\"\")","v":""}]
[null,null,null,null,null,null,null,null,null,null,null,null,{"$f":"IFERROR(VLOOKUP(L598,CIIU!A:B,2,0),\"\")","v":""}]
[null,null,null,null,null,null,null,null,null,null,null,null,{"$f":"IFERROR(VLOOKUP(L599,CIIU!A:B,2,0),\"\")","v":""}]
[null,null,null,null,null,null,null,null,null,null,null,null,{"$f":"IFERROR(VLOOKUP(L600,CIIU!A:B,2,0),\"\")","v":""}]
[null,null,null,null,null,null,null,null,null,null,null,null,{"$f":"IFERROR(VLOOKUP(L601,CIIU!A:B,2,0),\"\")","v":""}]
[null,null,null,null,null,null,null,null,null,null,null,null,{"$f":"IFERROR(VLOOKUP(L602,CIIU!A:B,2,0),\"\")","v":""}]
[null,null,null,null,null,null,null,null,null,null,null,null,{"$f":"IFERROR(VLOOKUP(L603,CIIU!A:B,2,0),\"\")","v":""}]
[null,null,null,null,null,null,null,null,null,null,null,null,{"$f":"IFERROR(VLOOKUP(L604,CIIU!A:B,2,0),\"\")","v":""}]
[null,null,null,null,null,null,null,null,null,null,null,null,{"$f":"IFERROR(VLOOKUP(L605,CIIU!A:B,2,0),\"\")","v":""}]
[null,null,null,null,null,null,null,null,null,null,null,null,{"$f":"IFERROR(VLOOKUP(L606,CIIU!A:B,2,0),\"\")","v":""}]
[null,null,null,null,null,null,null,null,null,null,null,null,{"$f":"IFERROR(VLOOKUP(L607,CIIU!A:B,2,0),\"\")","v":""}]
[null,null,null,null,null,null,null,null,null,null,null,null,{"$f":"IFERROR(VLOOKUP(L608,CIIU!A:B,2,0),\"\")","v":""}]
[null,null,null,null,null,null,null,null,null,null,null,null,{"$f":"IFERROR(VLOOKUP(L609,CIIU!A:B,2,0),\"\")","v":""}]
[null,null,null,null,null,null,null,null,null,null,null,null,{"$f":"IFERROR(VLOOKUP(L610,CIIU!A:B,2,0),\"\")","v":""}]
[null,null,null,null,null,null,null,null,null,null,null,null,{"$f":"IFERROR(VLOOKUP(L611,CIIU!A:B,2,0),\"\")","v":""}]
[null,null,null,null,null,null,null,null,null,null,null,null,{"$f":"IFERROR(VLOOKUP(L612,CIIU!A:B,2,0),\"\")","v":""}]
[null,null,null,null,null,null,null,null,null,null,null,null,{"$f":"IFERROR(VLOOKUP(L613,CIIU!A:B,2,0),\"\")","v":""}]
[null,null,null,null,null,null,null,null,null,null,null,null,{"$f":"IFERROR(VLOOKUP(L614,CIIU!A:B,2,0),\"\")","v":""}]
[null,null,null,null,null,null,null,null,null,null,null,null,{"$f":"IFERROR(VLOOKUP(L615,CIIU!A:B,2,0),\"\")","v":""}]
[null,null,null,null,null,null,null,null,null,null,null,null,{"$f":"IFERROR(VLOOKUP(L616,CIIU!A:B,2,0),\"\")","v":""}]
[null,null,null,null,null,null,null,null,null,null,null,null,{"$f":"IFERROR(VLOOKUP(L617,CIIU!A:B,2,0),\"\")","v":""}]
[null,null,null,null,null,null,null,null,null,null,null,null,{"$f":"IFERROR(VLOOKUP(L618,CIIU!A:B,2,0),\"\")","v":""}]
[null,null,null,null,null,null,null,null,null,null,null,null,{"$f":"IFERROR(VLOOKUP(L619,CIIU!A:B,2,0),\"\")","v":""}]
[null,null,null,null,null,null,null,null,null,null,null,null,{"$f":"IFERROR(VLOOKUP(L620,CIIU!A:B,2,0),\"\")","v":""}]
[null,null,null,null,null,null,null,null,null,null,null,null,{"$f":"IFERROR(VLOOKUP(L621,CIIU!A:B,2,0),\"\")","v":""}]
[null,null,null,null,null,null,null,null,null,null,null,null,{"$f":"IFERROR(VLOOKUP(L622,CIIU!A:B,2,0),\"\")","v":""}]
[null,null,null,null,null,null,null,null,null,null,null,null,{"$f":"IFERROR(VLOOKUP(L623,CIIU!A:B,2,0),\"\")","v":""}]
[null,null,null,null,null,null,null,null,null,null,null,null,{"$f":"IFERROR(VLOOKUP(L624,CIIU!A:B,2,0),\"\")","v":""}]
[null,null,null,null,null,null,null,null,null,null,null,null,{"$f":"IFERROR(VLOOKUP(L625,CIIU!A:B,2,0),\"\")","v":""}]
[null,null,null,null,null,null,null,null,null,null,null,null,{"$f":"IFERROR(VLOOKUP(L626,CIIU!A:B,2,0),\"\")","v":""}]
[null,null,null,null,null,null,null,null,null,null,null,null,{"$f":"IFERROR(VLOOKUP(L627,CIIU!A:B,2,0),\"\")","v":""}]
[null,null,null,null,null,null,null,null,null,null,null,null,{"$f":"IFERROR(VLOOKUP(L628,CIIU!A:B,2,0),\"\")","v":""}]
[null,null,null,null,null,null,null,null,null,null,null,null,{"$f":"IFERROR(VLOOKUP(L629,CIIU!A:B,2,0),\"\")","v":""}]
[null,null,null,null,null,null,null,null,null,null,null,null,{"$f":"IFERROR(VLOOKUP(L630,CIIU!A:B,2,0),\"\")","v":""}]
[null,null,null,null,null,null,null,null,null,null,null,null,{"$f":"IFERROR(VLOOKUP(L631,CIIU!A:B,2,0),\"\")","v":""}]
[null,null,null,null,null,null,null,null,null,null,null,null,{"$f":"IFERROR(VLOOKUP(L632,CIIU!A:B,2,0),\"\")","v":""}]
[null,null,null,null,null,null,null,null,null,null,null,null,{"$f":"IFERROR(VLOOKUP(L633,CIIU!A:B,2,0),\"\")","v":""}]
[null,null,null,null,null,null,null,null,null,null,null,null,{"$f":"IFERROR(VLOOKUP(L634,CIIU!A:B,2,0),\"\")","v":""}]
[null,null,null,null,null,null,null,null,null,null,null,null,{"$f":"IFERROR(VLOOKUP(L635,CIIU!A:B,2,0),\"\")","v":""}]
[null,null,null,null,null,null,null,null,null,null,null,null,{"$f":"IFERROR(VLOOKUP(L636,CIIU!A:B,2,0),\"\")","v":""}]
[null,null,null,null,null,null,null,null,null,null,null,null,{"$f":"IFERROR(VLOOKUP(L637,CIIU!A:B,2,0),\"\")","v":""}]
[null,null,null,null,null,null,null,null,null,null,null,null,{"$f":"IFERROR(VLOOKUP(L638,CIIU!A:B,2,0),\"\")","v":""}]
[null,null,null,null,null,null,null,null,null,null,null,null,{"$f":"IFERROR(VLOOKUP(L639,CIIU!A:B,2,0),\"\")","v":""}]
[null,null,null,null,null,null,null,null,null,null,null,null,{"$f":"IFERROR(VLOOKUP(L640,CIIU!A:B,2,0),\"\")","v":""}]
[null,null,null,null,null,null,null,null,null,null,null,null,{"$f":"IFERROR(VLOOKUP(L641,CIIU!A:B,2,0),\"\")","v":""}]
[null,null,null,null,null,null,null,null,null,null,null,null,{"$f":"IFERROR(VLOOKUP(L642,CIIU!A:B,2,0),\"\")","v":""}]
[null,null,null,null,null,null,null,null,null,null,null,null,{"$f":"IFERROR(VLOOKUP(L643,CIIU!A:B,2,0),\"\")","v":""}]
[null,null,null,null,null,null,null,null,null,null,null,null,{"$f":"IFERROR(VLOOKUP(L644,CIIU!A:B,2,0),\"\")","v":""}]
[null,null,null,null,null,null,null,null,null,null,null,null,{"$f":"IFERROR(VLOOKUP(L645,CIIU!A:B,2,0),\"\")","v":""}]
[null,null,null,null,null,null,null,null,null,null,null,null,{"$f":"IFERROR(VLOOKUP(L646,CIIU!A:B,2,0),\"\")","v":""}]
[null,null,null,null,null,null,null,null,null,null,null,null,{"$f":"IFERROR(VLOOKUP(L647,CIIU!A:B,2,0),\"\")","v":""}]
[null,null,null,null,null,null,null,null,null,null,null,null,{"$f":"IFERROR(VLOOKUP(L648,CIIU!A:B,2,0),\"\")","v":""}]
[null,null,null,null,null,null,null,null,null,null,null,null,{"$f":"IFERROR(VLOOKUP(L649,CIIU!A:B,2,0),\"\")","v":""}]
[null,null,null,null,null,null,null,null,null,null,null,null,{"$f":"IFERROR(VLOOKUP(L650,CIIU!A:B,2,0),\"\")","v":""}]
[null,null,null,null,null,null,null,null,null,null,null,null,{"$f":"IFERROR(VLOOKUP(L651,CIIU!A:B,2,0),\"\")","v":""}]
[null,null,null,null,null,null,null,null,null,null,null,null,{"$f":"IFERROR(VLOOKUP(L652,CIIU!A:B,2,0),\"\")","v":""}]
[null,null,null,null,null,null,null,null,null,null,null,null,{"$f":"IFERROR(VLOOKUP(L653,CIIU!A:B,2,0),\"\")","v":""}]
[null,null,null,null,null,null,null,null,null,null,null,null,{"$f":"IFERROR(VLOOKUP(L654,CIIU!A:B,2,0),\"\")","v":""}]
[null,null,null,null,null,null,null,null,null,null,null,null,{"$f":"IFERROR(VLOOKUP(L655,CIIU!A:B,2,0),\"\")","v":""}]
[null,null,null,null,null,null,null,null,null,null,null,null,{"$f":"IFERROR(VLOOKUP(L656,CIIU!A:B,2,0),\"\")","v":""}]
[null,null,null,null,null,null,null,null,null,null,null,null,{"$f":"IFERROR(VLOOKUP(L657,CIIU!A:B,2,0),\"\")","v":""}]
[null,null,null,null,null,null,null,null,null,null,null,null,{"$f":"IFERROR(VLOOKUP(L658,CIIU!A:B,2,0),\"\")","v":""}]
[null,null,null,null,null,null,null,null,null,null,null,null,{"$f":"IFERROR(VLOOKUP(L659,CIIU!A:B,2,0),\"\")","v":""}]
[null,null,null,null,null,null,null,null,null,null,null,null,{"$f":"IFERROR(VLOOKUP(L660,CIIU!A:B,2,0),\"\")","v":""}]
[null,null,null,null,null,null,null,null,null,null,null,null,{"$f":"IFERROR(VLOOKUP(L661,CIIU!A:B,2,0),\"\")","v":""}]
[null,null,null,null,null,null,null,null,null,null,null,null,{"$f":"IFERROR(VLOOKUP(L662,CIIU!A:B,2,0),\"\")","v":""}]
[null,null,null,null,null,null,null,null,null,null,null,null,{"$f":"IFERROR(VLOOKUP(L663,CIIU!A:B,2,0),\"\")","v":""}]
[null,null,null,null,null,null,null,null,null,null,null,null,{"$f":"IFERROR(VLOOKUP(L664,CIIU!A:B,2,0),\"\")","v":""}]
[null,null,null,null,null,null,null,null,null,null,null,null,{"$f":"IFERROR(VLOOKUP(L665,CIIU!A:B,2,0),\"\")","v":""}]
[null,null,null,null,null,null,null,null,null,null,null,null,{"$f":"IFERROR(VLOOKUP(L666,CIIU!A:B,2,0),\"\")","v":""}]
[null,null,null,null,null,null,null,null,null,null,null,null,{"$f":"IFERROR(VLOOKUP(L667,CIIU!A:B,2,0),\"\")","v":""}]
[null,null,null,null,null,null,null,null,null,null,null,null,{"$f":"IFERROR(VLOOKUP(L668,CIIU!A:B,2,0),\"\")","v":""}]
[null,null,null,null,null,null,null,null,null,null,null,null,{"$f":"IFERROR(VLOOKUP(L669,CIIU!A:B,2,0),\"\")","v":""}]
[null,null,null,null,null,null,null,null,null,null,null,null,{"$f":"IFERROR(VLOOKUP(L670,CIIU!A:B,2,0),\"\")","v":""}]
[null,null,null,null,null,null,null,null,null,null,null,null,{"$f":"IFERROR(VLOOKUP(L671,CIIU!A:B,2,0),\"\")","v":""}]
[null,null,null,null,null,null,null,null,null,null,null,null,{"$f":"IFERROR(VLOOKUP(L672,CIIU!A:B,2,0),\"\")","v":""}]
[null,null,null,null,null,null,null,null,null,null,null,null,{"$f":"IFERROR(VLOOKUP(L673,CIIU!A:B,2,0),\"\")","v":""}]
[null,null,null,null,null,null,null,null,null,null,null,null,{"$f":"IFERROR(VLOOKUP(L674,CIIU!A:B,2,0),\"\")","v":""}]
[null,null,null,null,null,null,null,null,null,null,null,null,{"$f":"IFERROR(VLOOKUP(L675,CIIU!A:B,2,0),\"\")","v":""}]
[null,null,null,null,null,null,null,null,null,null,null,null,{"$f":"IFERROR(VLOOKUP(L676,CIIU!A:B,2,0),\"\")","v":""}]
[null,null,null,null,null,null,null,null,null,null,null,null,{"$f":"IFERROR(VLOOKUP(L677,CIIU!A:B,2,0),\"\")","v":""}]
[null,null,null,null,null,null,null,null,null,null,null,null,{"$f":"IFERROR(VLOOKUP(L678,CIIU!A:B,2,0),\"\")","v":""}]
[null,null,null,null,null,null,null,null,null,null,null,null,{"$f":"IFERROR(VLOOKUP(L679,CIIU!A:B,2,0),\"\")","v":""}]
[null,null,null,null,null,null,null,null,null,null,null,null,{"$f":"IFERROR(VLOOKUP(L680,CIIU!A:B,2,0),\"\")","v":""}]
[null,null,null,null,null,null,null,null,null,null,null,null,{"$f":"IFERROR(VLOOKUP(L681,CIIU!A:B,2,0),\"\")","v":""}]
[null,null,null,null,null,null,null,null,null,null,null,null,{"$f":"IFERROR(VLOOKUP(L682,CIIU!A:B,2,0),\"\")","v":""}]
[null,null,null,null,null,null,null,null,null,null,null,null,{"$f":"IFERROR(VLOOKUP(L683,CIIU!A:B,2,0),\"\")","v":""}]
[null,null,null,null,null,null,null,null,null,null,null,null,{"$f":"IFERROR(VLOOKUP(L684,CIIU!A:B,2,0),\"\")","v":""}]
[null,null,null,null,null,null,null,null,null,null,null,null,{"$f":"IFERROR(VLOOKUP(L685,CIIU!A:B,2,0),\"\")","v":""}]
[null,null,null,null,null,null,null,null,null,null,null,null,{"$f":"IFERROR(VLOOKUP(L686,CIIU!A:B,2,0),\"\")","v":""}]
[null,null,null,null,null,null,null,null,null,null,null,null,{"$f":"IFERROR(VLOOKUP(L687,CIIU!A:B,2,0),\"\")","v":""}]
[null,null,null,null,null,null,null,null,null,null,null,null,{"$f":"IFERROR(VLOOKUP(L688,CIIU!A:B,2,0),\"\")","v":""}]
[null,null,null,null,null,null,null,null,null,null,null,null,{"$f":"IFERROR(VLOOKUP(L689,CIIU!A:B,2,0),\"\")","v":""}]
[null,null,null,null,null,null,null,null,null,null,null,null,{"$f":"IFERROR(VLOOKUP(L690,CIIU!A:B,2,0),\"\")","v":""}]
[null,null,null,null,null,null,null,null,null,null,null,null,{"$f":"IFERROR(VLOOKUP(L691,CIIU!A:B,2,0),\"\")","v":""}]
[null,null,null,null,null,null,null,null,null,null,null,null,{"$f":"IFERROR(VLOOKUP(L692,CIIU!A:B,2,0),\"\")","v":""}]
[null,null,null,null,null,null,null,null,null,null,null,null,{"$f":"IFERROR(VLOOKUP(L693,CIIU!A:B,2,0),\"\")","v":""}]
[null,null,null,null,null,null,null,null,null,null,null,null,{"$f":"IFERROR(VLOOKUP(L694,CIIU!A:B,2,0),\"\")","v":""}]
[null,null,null,null,null,null,null,null,null,null,null,null,{"$f":"IFERROR(VLOOKUP(L695,CIIU!A:B,2,0),\"\")","v":""}]
[null,null,null,null,null,null,null,null,null,null,null,null,{"$f":"IFERROR(VLOOKUP(L696,CIIU!A:B,2,0),\"\")","v":""}]
[null,null,null,null,null,null,null,null,null,null,null,null,{"$f":"IFERROR(VLOOKUP(L697,CIIU!A:B,2,0),\"\")","v":""}]
[null,null,null,null,null,null,null,null,null,null,null,null,{"$f":"IFERROR(VLOOKUP(L698,CIIU!A:B,2,0),\"\")","v":""}]
[null,null,null,null,null,null,null,null,null,null,null,null,{"$f":"IFERROR(VLOOKUP(L699,CIIU!A:B,2,0),\"\")","v":""}]
[null,null,null,null,null,null,null,null,null,null,null,null,{"$f":"IFERROR(VLOOKUP(L700,CIIU!A:B,2,0),\"\")","v":""}]
[null,null,null,null,null,null,null,null,null,null,null,null,{"$f":"IFERROR(VLOOKUP(L701,CIIU!A:B,2,0),\"\")","v":""}]
[null,null,null,null,null,null,null,null,null,null,null,null,{"$f":"IFERROR(VLOOKUP(L702,CIIU!A:B,2,0),\"\")","v":""}]
[null,null,null,null,null,null,null,null,null,null,null,null,{"$f":"IFERROR(VLOOKUP(L703,CIIU!A:B,2,0),\"\")","v":""}]
[null,null,null,null,null,null,null,null,null,null,null,null,{"$f":"IFERROR(VLOOKUP(L704,CIIU!A:B,2,0),\"\")","v":""}]
[null,null,null,null,null,null,null,null,null,null,null,null,{"$f":"IFERROR(VLOOKUP(L705,CIIU!A:B,2,0),\"\")","v":""}]
[null,null,null,null,null,null,null,null,null,null,null,null,{"$f":"IFERROR(VLOOKUP(L706,CIIU!A:B,2,0),\"\")","v":""}]
[null,null,null,null,null,null,null,null,null,null,null,null,{"$f":"IFERROR(VLOOKUP(L707,CIIU!A:B,2,0),\"\")","v":""}]
[null,null,null,null,null,null,null,null,null,null,null,null,{"$f":"IFERROR(VLOOKUP(L708,CIIU!A:B,2,0),\"\")","v":""}]
[null,null,null,null,null,null,null,null,null,null,null,null,{"$f":"IFERROR(VLOOKUP(L709,CIIU!A:B,2,0),\"\")","v":""}]
[null,null,null,null,null,null,null,null,null,null,null,null,{"$f":"IFERROR(VLOOKUP(L710,CIIU!A:B,2,0),\"\")","v":""}]
[null,null,null,null,null,null,null,null,null,null,null,null,{"$f":"IFERROR(VLOOKUP(L711,CIIU!A:B,2,0),\"\")","v":""}]
[null,null,null,null,null,null,null,null,null,null,null,null,{"$f":"IFERROR(VLOOKUP(L712,CIIU!A:B,2,0),\"\")","v":""}]
[null,null,null,null,null,null,null,null,null,null,null,null,{"$f":"IFERROR(VLOOKUP(L713,CIIU!A:B,2,0),\"\")","v":""}]
[null,null,null,null,null,null,null,null,null,null,null,null,{"$f":"IFERROR(VLOOKUP(L714,CIIU!A:B,2,0),\"\")","v":""}]
[null,null,null,null,null,null,null,null,null,null,null,null,{"$f":"IFERROR(VLOOKUP(L715,CIIU!A:B,2,0),\"\")","v":""}]
[null,null,null,null,null,null,null,null,null,null,null,null,{"$f":"IFERROR(VLOOKUP(L716,CIIU!A:B,2,0),\"\")","v":""}]
[null,null,null,null,null,null,null,null,null,null,null,null,{"$f":"IFERROR(VLOOKUP(L717,CIIU!A:B,2,0),\"\")","v":""}]
[null,null,null,null,null,null,null,null,null,null,null,null,{"$f":"IFERROR(VLOOKUP(L718,CIIU!A:B,2,0),\"\")","v":""}]
[null,null,null,null,null,null,null,null,null,null,null,null,{"$f":"IFERROR(VLOOKUP(L719,CIIU!A:B,2,0),\"\")","v":""}]
[null,null,null,null,null,null,null,null,null,null,null,null,{"$f":"IFERROR(VLOOKUP(L720,CIIU!A:B,2,0),\"\")","v":""}]
[null,null,null,null,null,null,null,null,null,null,null,null,{"$f":"IFERROR(VLOOKUP(L721,CIIU!A:B,2,0),\"\")","v":""}]
[null,null,null,null,null,null,null,null,null,null,null,null,{"$f":"IFERROR(VLOOKUP(L722,CIIU!A:B,2,0),\"\")","v":""}]
[null,null,null,null,null,null,null,null,null,null,null,null,{"$f":"IFERROR(VLOOKUP(L723,CIIU!A:B,2,0),\"\")","v":""}]
[null,null,null,null,null,null,null,null,null,null,null,null,{"$f":"IFERROR(VLOOKUP(L724,CIIU!A:B,2,0),\"\")","v":""}]
[null,null,null,null,null,null,null,null,null,null,null,null,{"$f":"IFERROR(VLOOKUP(L725,CIIU!A:B,2,0),\"\")","v":""}]
[null,null,null,null,null,null,null,null,null,null,null,null,{"$f":"IFERROR(VLOOKUP(L726,CIIU!A:B,2,0),\"\")","v":""}]
[null,null,null,null,null,null,null,null,null,null,null,null,{"$f":"IFERROR(VLOOKUP(L727,CIIU!A:B,2,0),\"\")","v":""}]
[null,null,null,null,null,null,null,null,null,null,null,null,{"$f":"IFERROR(VLOOKUP(L728,CIIU!A:B,2,0),\"\")","v":""}]
[null,null,null,null,null,null,null,null,null,null,null,null,{"$f":"IFERROR(VLOOKUP(L729,CIIU!A:B,2,0),\"\")","v":""}]
[null,null,null,null,null,null,null,null,null,null,null,null,{"$f":"IFERROR(VLOOKUP(L730,CIIU!A:B,2,0),\"\")","v":""}]
[null,null,null,null,null,null,null,null,null,null,null,null,{"$f":"IFERROR(VLOOKUP(L731,CIIU!A:B,2,0),\"\")","v":""}]
[null,null,null,null,null,null,null,null,null,null,null,null,{"$f":"IFERROR(VLOOKUP(L732,CIIU!A:B,2,0),\"\")","v":""}]
[null,null,null,null,null,null,null,null,null,null,null,null,{"$f":"IFERROR(VLOOKUP(L733,CIIU!A:B,2,0),\"\")","v":""}]
[null,null,null,null,null,null,null,null,null,null,null,null,{"$f":"IFERROR(VLOOKUP(L734,CIIU!A:B,2,0),\"\")","v":""}]
[null,null,null,null,null,null,null,null,null,null,null,null,{"$f":"IFERROR(VLOOKUP(L735,CIIU!A:B,2,0),\"\")","v":""}]
[null,null,null,null,null,null,null,null,null,null,null,null,{"$f":"IFERROR(VLOOKUP(L736,CIIU!A:B,2,0),\"\")","v":""}]
[null,null,null,null,null,null,null,null,null,null,null,null,{"$f":"IFERROR(VLOOKUP(L737,CIIU!A:B,2,0),\"\")","v":""}]
[null,null,null,null,null,null,null,null,null,null,null,null,{"$f":"IFERROR(VLOOKUP(L738,CIIU!A:B,2,0),\"\")","v":""}]
[null,null,null,null,null,null,null,null,null,null,null,null,{"$f":"IFERROR(VLOOKUP(L739,CIIU!A:B,2,0),\"\")","v":""}]
[null,null,null,null,null,null,null,null,null,null,null,null,{"$f":"IFERROR(VLOOKUP(L740,CIIU!A:B,2,0),\"\")","v":""}]
[null,null,null,null,null,null,null,null,null,null,null,null,{"$f":"IFERROR(VLOOKUP(L741,CIIU!A:B,2,0),\"\")","v":""}]
[null,null,null,null,null,null,null,null,null,null,null,null,{"$f":"IFERROR(VLOOKUP(L742,CIIU!A:B,2,0),\"\")","v":""}]
[null,null,null,null,null,null,null,null,null,null,null,null,{"$f":"IFERROR(VLOOKUP(L743,CIIU!A:B,2,0),\"\")","v":""}]
[null,null,null,null,null,null,null,null,null,null,null,null,{"$f":"IFERROR(VLOOKUP(L744,CIIU!A:B,2,0),\"\")","v":""}]
[null,null,null,null,null,null,null,null,null,null,null,null,{"$f":"IFERROR(VLOOKUP(L745,CIIU!A:B,2,0),\"\")","v":""}]
[null,null,null,null,null,null,null,null,null,null,null,null,{"$f":"IFERROR(VLOOKUP(L746,CIIU!A:B,2,0),\"\")","v":""}]
[null,null,null,null,null,null,null,null,null,null,null,null,{"$f":"IFERROR(VLOOKUP(L747,CIIU!A:B,2,0),\"\")","v":""}]
[null,null,null,null,null,null,null,null,null,null,null,null,{"$f":"IFERROR(VLOOKUP(L748,CIIU!A:B,2,0),\"\")","v":""}]
[null,null,null,null,null,null,null,null,null,null,null,null,{"$f":"IFERROR(VLOOKUP(L749,CIIU!A:B,2,0),\"\")","v":""}]
[null,null,null,null,null,null,null,null,null,null,null,null,{"$f":"IFERROR(VLOOKUP(L750,CIIU!A:B,2,0),\"\")","v":""}]
[null,null,null,null,null,null,null,null,null,null,null,null,{"$f":"IFERROR(VLOOKUP(L751,CIIU!A:B,2,0),\"\")","v":""}]
[null,null,null,null,null,null,null,null,null,null,null,null,{"$f":"IFERROR(VLOOKUP(L752,CIIU!A:B,2,0),\"\")","v":""}]
[null,null,null,null,null,null,null,null,null,null,null,null,{"$f":"IFERROR(VLOOKUP(L753,CIIU!A:B,2,0),\"\")","v":""}]
[null,null,null,null,null,null,null,null,null,null,null,null,{"$f":"IFERROR(VLOOKUP(L754,CIIU!A:B,2,0),\"\")","v":""}]
[null,null,null,null,null,null,null,null,null,null,null,null,{"$f":"IFERROR(VLOOKUP(L755,CIIU!A:B,2,0),\"\")","v":""}]
[null,null,null,null,null,null,null,null,null,null,null,null,{"$f":"IFERROR(VLOOKUP(L756,CIIU!A:B,2,0),\"\")","v":""}]
[null,null,null,null,null,null,null,null,null,null,null,null,{"$f":"IFERROR(VLOOKUP(L757,CIIU!A:B,2,0),\"\")","v":""}]
[null,null,null,null,null,null,null,null,null,null,null,null,{"$f":"IFERROR(VLOOKUP(L758,CIIU!A:B,2,0),\"\")","v":""}]
[null,null,null,null,null,null,null,null,null,null,null,null,{"$f":"IFERROR(VLOOKUP(L759,CIIU!A:B,2,0),\"\")","v":""}]
[null,null,null,null,null,null,null,null,null,null,null,null,{"$f":"IFERROR(VLOOKUP(L760,CIIU!A:B,2,0),\"\")","v":""}]
[null,null,null,null,null,null,null,null,null,null,null,null,{"$f":"IFERROR(VLOOKUP(L761,CIIU!A:B,2,0),\"\")","v":""}]
[null,null,null,null,null,null,null,null,null,null,null,null,{"$f":"IFERROR(VLOOKUP(L762,CIIU!A:B,2,0),\"\")","v":""}]
[null,null,null,null,null,null,null,null,null,null,null,null,{"$f":"IFERROR(VLOOKUP(L763,CIIU!A:B,2,0),\"\")","v":""}]
[null,null,null,null,null,null,null,null,null,null,null,null,{"$f":"IFERROR(VLOOKUP(L764,CIIU!A:B,2,0),\"\")","v":""}]
[null,null,null,null,null,null,null,null,null,null,null,null,{"$f":"IFERROR(VLOOKUP(L765,CIIU!A:B,2,0),\"\")","v":""}]
[null,null,null,null,null,null,null,null,null,null,null,null,{"$f":"IFERROR(VLOOKUP(L766,CIIU!A:B,2,0),\"\")","v":""}]
[null,null,null,null,null,null,null,null,null,null,null,null,{"$f":"IFERROR(VLOOKUP(L767,CIIU!A:B,2,0),\"\")","v":""}]
[null,null,null,null,null,null,null,null,null,null,null,null,{"$f":"IFERROR(VLOOKUP(L768,CIIU!A:B,2,0),\"\")","v":""}]
[null,null,null,null,null,null,null,null,null,null,null,null,{"$f":"IFERROR(VLOOKUP(L769,CIIU!A:B,2,0),\"\")","v":""}]
[null,null,null,null,null,null,null,null,null,null,null,null,{"$f":"IFERROR(VLOOKUP(L770,CIIU!A:B,2,0),\"\")","v":""}]
[null,null,null,null,null,null,null,null,null,null,null,null,{"$f":"IFERROR(VLOOKUP(L771,CIIU!A:B,2,0),\"\")","v":""}]
[null,null,null,null,null,null,null,null,null,null,null,null,{"$f":"IFERROR(VLOOKUP(L772,CIIU!A:B,2,0),\"\")","v":""}]
[null,null,null,null,null,null,null,null,null,null,null,null,{"$f":"IFERROR(VLOOKUP(L773,CIIU!A:B,2,0),\"\")","v":""}]
[null,null,null,null,null,null,null,null,null,null,null,null,{"$f":"IFERROR(VLOOKUP(L774,CIIU!A:B,2,0),\"\")","v":""}]
[null,null,null,null,null,null,null,null,null,null,null,null,{"$f":"IFERROR(VLOOKUP(L775,CIIU!A:B,2,0),\"\")","v":""}]
[null,null,null,null,null,null,null,null,null,null,null,null,{"$f":"IFERROR(VLOOKUP(L776,CIIU!A:B,2,0),\"\")","v":""}]
[null,null,null,null,null,null,null,null,null,null,null,null,{"$f":"IFERROR(VLOOKUP(L777,CIIU!A:B,2,0),\"\")","v":""}]
[null,null,null,null,null,null,null,null,null,null,null,null,{"$f":"IFERROR(VLOOKUP(L778,CIIU!A:B,2,0),\"\")","v":""}]
[null,null,null,null,null,null,null,null,null,null,null,null,{"$f":"IFERROR(VLOOKUP(L779,CIIU!A:B,2,0),\"\")","v":""}]
[null,null,null,null,null,null,null,null,null,null,null,null,{"$f":"IFERROR(VLOOKUP(L780,CIIU!A:B,2,0),\"\")","v":""}]
[null,null,null,null,null,null,null,null,null,null,null,null,{"$f":"IFERROR(VLOOKUP(L781,CIIU!A:B,2,0),\"\")","v":""}]
[null,null,null,null,null,null,null,null,null,null,null,null,{"$f":"IFERROR(VLOOKUP(L782,CIIU!A:B,2,0),\"\")","v":""}]
[null,null,null,null,null,null,null,null,null,null,null,null,{"$f":"IFERROR(VLOOKUP(L783,CIIU!A:B,2,0),\"\")","v":""}]
[null,null,null,null,null,null,null,null,null,null,null,null,{"$f":"IFERROR(VLOOKUP(L784,CIIU!A:B,2,0),\"\")","v":""}]
[null,null,null,null,null,null,null,null,null,null,null,null,{"$f":"IFERROR(VLOOKUP(L785,CIIU!A:B,2,0),\"\")","v":""}]
[null,null,null,null,null,null,null,null,null,null,null,null,{"$f":"IFERROR(VLOOKUP(L786,CIIU!A:B,2,0),\"\")","v":""}]
[null,null,null,null,null,null,null,null,null,null,null,null,{"$f":"IFERROR(VLOOKUP(L787,CIIU!A:B,2,0),\"\")","v":""}]
[null,null,null,null,null,null,null,null,null,null,null,null,{"$f":"IFERROR(VLOOKUP(L788,CIIU!A:B,2,0),\"\")","v":""}]
[null,null,null,null,null,null,null,null,null,null,null,null,{"$f":"IFERROR(VLOOKUP(L789,CIIU!A:B,2,0),\"\")","v":""}]
[null,null,null,null,null,null,null,null,null,null,null,null,{"$f":"IFERROR(VLOOKUP(L790,CIIU!A:B,2,0),\"\")","v":""}]
[null,null,null,null,null,null,null,null,null,null,null,null,{"$f":"IFERROR(VLOOKUP(L791,CIIU!A:B,2,0),\"\")","v":""}]
[null,null,null,null,null,null,null,null,null,null,null,null,{"$f":"IFERROR(VLOOKUP(L792,CIIU!A:B,2,0),\"\")","v":""}]
[null,null,null,null,null,null,null,null,null,null,null,null,{"$f":"IFERROR(VLOOKUP(L793,CIIU!A:B,2,0),\"\")","v":""}]
[null,null,null,null,null,null,null,null,null,null,null,null,{"$f":"IFERROR(VLOOKUP(L794,CIIU!A:B,2,0),\"\")","v":""}]
[null,null,null,null,null,null,null,null,null,null,null,null,{"$f":"IFERROR(VLOOKUP(L795,CIIU!A:B,2,0),\"\")","v":""}]
[null,null,null,null,null,null,null,null,null,null,null,null,{"$f":"IFERROR(VLOOKUP(L796,CIIU!A:B,2,0),\"\")","v":""}]
[null,null,null,null,null,null,null,null,null,null,null,null,{"$f":"IFERROR(VLOOKUP(L797,CIIU!A:B,2,0),\"\")","v":""}]
[null,null,null,null,null,null,null,null,null,null,null,null,{"$f":"IFERROR(VLOOKUP(L798,CIIU!A:B,2,0),\"\")","v":""}]
[null,null,null,null,null,null,null,null,null,null,null,null,{"$f":"IFERROR(VLOOKUP(L799,CIIU!A:B,2,0),\"\")","v":""}]
[null,null,null,null,null,null,null,null,null,null,null,null,{"$f":"IFERROR(VLOOKUP(L800,CIIU!A:B,2,0),\"\")","v":""}]
[null,null,null,null,null,null,null,null,null,null,null,null,{"$f":"IFERROR(VLOOKUP(L801,CIIU!A:B,2,0),\"\")","v":""}]
[null,null,null,null,null,null,null,null,null,null,null,null,{"$f":"IFERROR(VLOOKUP(L802,CIIU!A:B,2,0),\"\")","v":""}]
[null,null,null,null,null,null,null,null,null,null,null,null,{"$f":"IFERROR(VLOOKUP(L803,CIIU!A:B,2,0),\"\")","v":""}]
[null,null,null,null,null,null,null,null,null,null,null,null,{"$f":"IFERROR(VLOOKUP(L804,CIIU!A:B,2,0),\"\")","v":""}]
[null,null,null,null,null,null,null,null,null,null,null,null,{"$f":"IFERROR(VLOOKUP(L805,CIIU!A:B,2,0),\"\")","v":""}]
[null,null,null,null,null,null,null,null,null,null,null,null,{"$f":"IFERROR(VLOOKUP(L806,CIIU!A:B,2,0),\"\")","v":""}]
[null,null,null,null,null,null,null,null,null,null,null,null,{"$f":"IFERROR(VLOOKUP(L807,CIIU!A:B,2,0),\"\")","v":""}]
[null,null,null,null,null,null,null,null,null,null,null,null,{"$f":"IFERROR(VLOOKUP(L808,CIIU!A:B,2,0),\"\")","v":""}]
[null,null,null,null,null,null,null,null,null,null,null,null,{"$f":"IFERROR(VLOOKUP(L809,CIIU!A:B,2,0),\"\")","v":""}]
[null,null,null,null,null,null,null,null,null,null,null,null,{"$f":"IFERROR(VLOOKUP(L810,CIIU!A:B,2,0),\"\")","v":""}]
[null,null,null,null,null,null,null,null,null,null,null,null,{"$f":"IFERROR(VLOOKUP(L811,CIIU!A:B,2,0),\"\")","v":""}]
[null,null,null,null,null,null,null,null,null,null,null,null,{"$f":"IFERROR(VLOOKUP(L812,CIIU!A:B,2,0),\"\")","v":""}]
[null,null,null,null,null,null,null,null,null,null,null,null,{"$f":"IFERROR(VLOOKUP(L813,CIIU!A:B,2,0),\"\")","v":""}]
[null,null,null,null,null,null,null,null,null,null,null,null,{"$f":"IFERROR(VLOOKUP(L814,CIIU!A:B,2,0),\"\")","v":""}]
[null,null,null,null,null,null,null,null,null,null,null,null,{"$f":"IFERROR(VLOOKUP(L815,CIIU!A:B,2,0),\"\")","v":""}]
[null,null,null,null,null,null,null,null,null,null,null,null,{"$f":"IFERROR(VLOOKUP(L816,CIIU!A:B,2,0),\"\")","v":""}]
[null,null,null,null,null,null,null,null,null,null,null,null,{"$f":"IFERROR(VLOOKUP(L817,CIIU!A:B,2,0),\"\")","v":""}]
[null,null,null,null,null,null,null,null,null,null,null,null,{"$f":"IFERROR(VLOOKUP(L818,CIIU!A:B,2,0),\"\")","v":""}]
[null,null,null,null,null,null,null,null,null,null,null,null,{"$f":"IFERROR(VLOOKUP(L819,CIIU!A:B,2,0),\"\")","v":""}]
[null,null,null,null,null,null,null,null,null,null,null,null,{"$f":"IFERROR(VLOOKUP(L820,CIIU!A:B,2,0),\"\")","v":""}]
[null,null,null,null,null,null,null,null,null,null,null,null,{"$f":"IFERROR(VLOOKUP(L821,CIIU!A:B,2,0),\"\")","v":""}]
[null,null,null,null,null,null,null,null,null,null,null,null,{"$f":"IFERROR(VLOOKUP(L822,CIIU!A:B,2,0),\"\")","v":""}]
[null,null,null,null,null,null,null,null,null,null,null,null,{"$f":"IFERROR(VLOOKUP(L823,CIIU!A:B,2,0),\"\")","v":""}]
[null,null,null,null,null,null,null,null,null,null,null,null,{"$f":"IFERROR(VLOOKUP(L824,CIIU!A:B,2,0),\"\")","v":""}]
[null,null,null,null,null,null,null,null,null,null,null,null,{"$f":"IFERROR(VLOOKUP(L825,CIIU!A:B,2,0),\"\")","v":""}]
[null,null,null,null,null,null,null,null,null,null,null,null,{"$f":"IFERROR(VLOOKUP(L826,CIIU!A:B,2,0),\"\")","v":""}]
[null,null,null,null,null,null,null,null,null,null,null,null,{"$f":"IFERROR(VLOOKUP(L827,CIIU!A:B,2,0),\"\")","v":""}]
[null,null,null,null,null,null,null,null,null,null,null,null,{"$f":"IFERROR(VLOOKUP(L828,CIIU!A:B,2,0),\"\")","v":""}]
[null,null,null,null,null,null,null,null,null,null,null,null,{"$f":"IFERROR(VLOOKUP(L829,CIIU!A:B,2,0),\"\")","v":""}]
[null,null,null,null,null,null,null,null,null,null,null,null,{"$f":"IFERROR(VLOOKUP(L830,CIIU!A:B,2,0),\"\")","v":""}]
[null,null,null,null,null,null,null,null,null,null,null,null,{"$f":"IFERROR(VLOOKUP(L831,CIIU!A:B,2,0),\"\")","v":""}]
[null,null,null,null,null,null,null,null,null,null,null,null,{"$f":"IFERROR(VLOOKUP(L832,CIIU!A:B,2,0),\"\")","v":""}]
[null,null,null,null,null,null,null,null,null,null,null,null,{"$f":"IFERROR(VLOOKUP(L833,CIIU!A:B,2,0),\"\")","v":""}]
[null,null,null,null,null,null,null,null,null,null,null,null,{"$f":"IFERROR(VLOOKUP(L834,CIIU!A:B,2,0),\"\")","v":""}]
[null,null,null,null,null,null,null,null,null,null,null,null,{"$f":"IFERROR(VLOOKUP(L835,CIIU!A:B,2,0),\"\")","v":""}]
[null,null,null,null,null,null,null,null,null,null,null,null,{"$f":"IFERROR(VLOOKUP(L836,CIIU!A:B,2,0),\"\")","v":""}]
[null,null,null,null,null,null,null,null,null,null,null,null,{"$f":"IFERROR(VLOOKUP(L837,CIIU!A:B,2,0),\"\")","v":""}]
[null,null,null,null,null,null,null,null,null,null,null,null,{"$f":"IFERROR(VLOOKUP(L838,CIIU!A:B,2,0),\"\")","v":""}]
[null,null,null,null,null,null,null,null,null,null,null,null,{"$f":"IFERROR(VLOOKUP(L839,CIIU!A:B,2,0),\"\")","v":""}]
[null,null,null,null,null,null,null,null,null,null,null,null,{"$f":"IFERROR(VLOOKUP(L840,CIIU!A:B,2,0),\"\")","v":""}]
[null,null,null,null,null,null,null,null,null,null,null,null,{"$f":"IFERROR(VLOOKUP(L841,CIIU!A:B,2,0),\"\")","v":""}]
[null,null,null,null,null,null,null,null,null,null,null,null,{"$f":"IFERROR(VLOOKUP(L842,CIIU!A:B,2,0),\"\")","v":""}]
[null,null,null,null,null,null,null,null,null,null,null,null,{"$f":"IFERROR(VLOOKUP(L843,CIIU!A:B,2,0),\"\")","v":""}]
[null,null,null,null,null,null,null,null,null,null,null,null,{"$f":"IFERROR(VLOOKUP(L844,CIIU!A:B,2,0),\"\")","v":""}]
[null,null,null,null,null,null,null,null,null,null,null,null,{"$f":"IFERROR(VLOOKUP(L845,CIIU!A:B,2,0),\"\")","v":""}]
[null,null,null,null,null,null,null,null,null,null,null,null,{"$f":"IFERROR(VLOOKUP(L846,CIIU!A:B,2,0),\"\")","v":""}]
[null,null,null,null,null,null,null,null,null,null,null,null,{"$f":"IFERROR(VLOOKUP(L847,CIIU!A:B,2,0),\"\")","v":""}]
[null,null,null,null,null,null,null,null,null,null,null,null,{"$f":"IFERROR(VLOOKUP(L848,CIIU!A:B,2,0),\"\")","v":""}]
[null,null,null,null,null,null,null,null,null,null,null,null,{"$f":"IFERROR(VLOOKUP(L849,CIIU!A:B,2,0),\"\")","v":""}]
[null,null,null,null,null,null,null,null,null,null,null,null,{"$f":"IFERROR(VLOOKUP(L850,CIIU!A:B,2,0),\"\")","v":""}]
[null,null,null,null,null,null,null,null,null,null,null,null,{"$f":"IFERROR(VLOOKUP(L851,CIIU!A:B,2,0),\"\")","v":""}]
[null,null,null,null,null,null,null,null,null,null,null,null,{"$f":"IFERROR(VLOOKUP(L852,CIIU!A:B,2,0),\"\")","v":""}]
[null,null,null,null,null,null,null,null,null,null,null,null,{"$f":"IFERROR(VLOOKUP(L853,CIIU!A:B,2,0),\"\")","v":""}]
[null,null,null,null,null,null,null,null,null,null,null,null,{"$f":"IFERROR(VLOOKUP(L854,CIIU!A:B,2,0),\"\")","v":""}]
[null,null,null,null,null,null,null,null,null,null,null,null,{"$f":"IFERROR(VLOOKUP(L855,CIIU!A:B,2,0),\"\")","v":""}]
[null,null,null,null,null,null,null,null,null,null,null,null,{"$f":"IFERROR(VLOOKUP(L856,CIIU!A:B,2,0),\"\")","v":""}]
[null,null,null,null,null,null,null,null,null,null,null,null,{"$f":"IFERROR(VLOOKUP(L857,CIIU!A:B,2,0),\"\")","v":""}]
[null,null,null,null,null,null,null,null,null,null,null,null,{"$f":"IFERROR(VLOOKUP(L858,CIIU!A:B,2,0),\"\")","v":""}]
[null,null,null,null,null,null,null,null,null,null,null,null,{"$f":"IFERROR(VLOOKUP(L859,CIIU!A:B,2,0),\"\")","v":""}]
[null,null,null,null,null,null,null,null,null,null,null,null,{"$f":"IFERROR(VLOOKUP(L860,CIIU!A:B,2,0),\"\")","v":""}]
[null,null,null,null,null,null,null,null,null,null,null,null,{"$f":"IFERROR(VLOOKUP(L861,CIIU!A:B,2,0),\"\")","v":""}]
[null,null,null,null,null,null,null,null,null,null,null,null,{"$f":"IFERROR(VLOOKUP(L862,CIIU!A:B,2,0),\"\")","v":""}]
[null,null,null,null,null,null,null,null,null,null,null,null,{"$f":"IFERROR(VLOOKUP(L863,CIIU!A:B,2,0),\"\")","v":""}]
[null,null,null,null,null,null,null,null,null,null,null,null,{"$f":"IFERROR(VLOOKUP(L864,CIIU!A:B,2,0),\"\")","v":""}]
[null,null,null,null,null,null,null,null,null,null,null,null,{"$f":"IFERROR(VLOOKUP(L865,CIIU!A:B,2,0),\"\")","v":""}]
[null,null,null,null,null,null,null,null,null,null,null,null,{"$f":"IFERROR(VLOOKUP(L866,CIIU!A:B,2,0),\"\")","v":""}]
[null,null,null,null,null,null,null,null,null,null,null,null,{"$f":"IFERROR(VLOOKUP(L867,CIIU!A:B,2,0),\"\")","v":""}]
[null,null,null,null,null,null,null,null,null,null,null,null,{"$f":"IFERROR(VLOOKUP(L868,CIIU!A:B,2,0),\"\")","v":""}]
[null,null,null,null,null,null,null,null,null,null,null,null,{"$f":"IFERROR(VLOOKUP(L869,CIIU!A:B,2,0),\"\")","v":""}]
[null,null,null,null,null,null,null,null,null,null,null,null,{"$f":"IFERROR(VLOOKUP(L870,CIIU!A:B,2,0),\"\")","v":""}]
[null,null,null,null,null,null,null,null,null,null,null,null,{"$f":"IFERROR(VLOOKUP(L871,CIIU!A:B,2,0),\"\")","v":""}]
[null,null,null,null,null,null,null,null,null,null,null,null,{"$f":"IFERROR(VLOOKUP(L872,CIIU!A:B,2,0),\"\")","v":""}]
[null,null,null,null,null,null,null,null,null,null,null,null,{"$f":"IFERROR(VLOOKUP(L873,CIIU!A:B,2,0),\"\")","v":""}]
[null,null,null,null,null,null,null,null,null,null,null,null,{"$f":"IFERROR(VLOOKUP(L874,CIIU!A:B,2,0),\"\")","v":""}]
[null,null,null,null,null,null,null,null,null,null,null,null,{"$f":"IFERROR(VLOOKUP(L875,CIIU!A:B,2,0),\"\")","v":""}]
[null,null,null,null,null,null,null,null,null,null,null,null,{"$f":"IFERROR(VLOOKUP(L876,CIIU!A:B,2,0),\"\")","v":""}]
[null,null,null,null,null,null,null,null,null,null,null,null,{"$f":"IFERROR(VLOOKUP(L877,CIIU!A:B,2,0),\"\")","v":""}]
[null,null,null,null,null,null,null,null,null,null,null,null,{"$f":"IFERROR(VLOOKUP(L878,CIIU!A:B,2,0),\"\")","v":""}]
[null,null,null,null,null,null,null,null,null,null,null,null,{"$f":"IFERROR(VLOOKUP(L879,CIIU!A:B,2,0),\"\")","v":""}]
[null,null,null,null,null,null,null,null,null,null,null,null,{"$f":"IFERROR(VLOOKUP(L880,CIIU!A:B,2,0),\"\")","v":""}]
[null,null,null,null,null,null,null,null,null,null,null,null,{"$f":"IFERROR(VLOOKUP(L881,CIIU!A:B,2,0),\"\")","v":""}]
[null,null,null,null,null,null,null,null,null,null,null,null,{"$f":"IFERROR(VLOOKUP(L882,CIIU!A:B,2,0),\"\")","v":""}]
[null,null,null,null,null,null,null,null,null,null,null,null,{"$f":"IFERROR(VLOOKUP(L883,CIIU!A:B,2,0),\"\")","v":""}]
[null,null,null,null,null,null,null,null,null,null,null,null,{"$f":"IFERROR(VLOOKUP(L884,CIIU!A:B,2,0),\"\")","v":""}]
[null,null,null,null,null,null,null,null,null,null,null,null,{"$f":"IFERROR(VLOOKUP(L885,CIIU!A:B,2,0),\"\")","v":""}]
[null,null,null,null,null,null,null,null,null,null,null,null,{"$f":"IFERROR(VLOOKUP(L886,CIIU!A:B,2,0),\"\")","v":""}]
[null,null,null,null,null,null,null,null,null,null,null,null,{"$f":"IFERROR(VLOOKUP(L887,CIIU!A:B,2,0),\"\")","v":""}]
[null,null,null,null,null,null,null,null,null,null,null,null,{"$f":"IFERROR(VLOOKUP(L888,CIIU!A:B,2,0),\"\")","v":""}]
[null,null,null,null,null,null,null,null,null,null,null,null,{"$f":"IFERROR(VLOOKUP(L889,CIIU!A:B,2,0),\"\")","v":""}]
[null,null,null,null,null,null,null,null,null,null,null,null,{"$f":"IFERROR(VLOOKUP(L890,CIIU!A:B,2,0),\"\")","v":""}]
[null,null,null,null,null,null,null,null,null,null,null,null,{"$f":"IFERROR(VLOOKUP(L891,CIIU!A:B,2,0),\"\")","v":""}]
[null,null,null,null,null,null,null,null,null,null,null,null,{"$f":"IFERROR(VLOOKUP(L892,CIIU!A:B,2,0),\"\")","v":""}]
[null,null,null,null,null,null,null,null,null,null,null,null,{"$f":"IFERROR(VLOOKUP(L893,CIIU!A:B,2,0),\"\")","v":""}]
[null,null,null,null,null,null,null,null,null,null,null,null,{"$f":"IFERROR(VLOOKUP(L894,CIIU!A:B,2,0),\"\")","v":""}]
[null,null,null,null,null,null,null,null,null,null,null,null,{"$f":"IFERROR(VLOOKUP(L895,CIIU!A:B,2,0),\"\")","v":""}]
[null,null,null,null,null,null,null,null,null,null,null,null,{"$f":"IFERROR(VLOOKUP(L896,CIIU!A:B,2,0),\"\")","v":""}]
[null,null,null,null,null,null,null,null,null,null,null,null,{"$f":"IFERROR(VLOOKUP(L897,CIIU!A:B,2,0),\"\")","v":""}]
[null,null,null,null,null,null,null,null,null,null,null,null,{"$f":"IFERROR(VLOOKUP(L898,CIIU!A:B,2,0),\"\")","v":""}]
[null,null,null,null,null,null,null,null,null,null,null,null,{"$f":"IFERROR(VLOOKUP(L899,CIIU!A:B,2,0),\"\")","v":""}]
[null,null,null,null,null,null,null,null,null,null,null,null,{"$f":"IFERROR(VLOOKUP(L900,CIIU!A:B,2,0),\"\")","v":""}]
[null,null,null,null,null,null,null,null,null,null,null,null,{"$f":"IFERROR(VLOOKUP(L901,CIIU!A:B,2,0),\"\")","v":""}]
[null,null,null,null,null,null,null,null,null,null,null,null,{"$f":"IFERROR(VLOOKUP(L902,CIIU!A:B,2,0),\"\")","v":""}]
[null,null,null,null,null,null,null,null,null,null,null,null,{"$f":"IFERROR(VLOOKUP(L903,CIIU!A:B,2,0),\"\")","v":""}]
[null,null,null,null,null,null,null,null,null,null,null,null,{"$f":"IFERROR(VLOOKUP(L904,CIIU!A:B,2,0),\"\")","v":""}]
[null,null,null,null,null,null,null,null,null,null,null,null,{"$f":"IFERROR(VLOOKUP(L905,CIIU!A:B,2,0),\"\")","v":""}]
[null,null,null,null,null,null,null,null,null,null,null,null,{"$f":"IFERROR(VLOOKUP(L906,CIIU!A:B,2,0),\"\")","v":""}]
[null,null,null,null,null,null,null,null,null,null,null,null,{"$f":"IFERROR(VLOOKUP(L907,CIIU!A:B,2,0),\"\")","v":""}]
[null,null,null,null,null,null,null,null,null,null,null,null,{"$f":"IFERROR(VLOOKUP(L908,CIIU!A:B,2,0),\"\")","v":""}]
[null,null,null,null,null,null,null,null,null,null,null,null,{"$f":"IFERROR(VLOOKUP(L909,CIIU!A:B,2,0),\"\")","v":""}]
[null,null,null,null,null,null,null,null,null,null,null,null,{"$f":"IFERROR(VLOOKUP(L910,CIIU!A:B,2,0),\"\")","v":""}]
[null,null,null,null,null,null,null,null,null,null,null,null,{"$f":"IFERROR(VLOOKUP(L911,CIIU!A:B,2,0),\"\")","v":""}]
[null,null,null,null,null,null,null,null,null,null,null,null,{"$f":"IFERROR(VLOOKUP(L912,CIIU!A:B,2,0),\"\")","v":""}]
[null,null,null,null,null,null,null,null,null,null,null,null,{"$f":"IFERROR(VLOOKUP(L913,CIIU!A:B,2,0),\"\")","v":""}]
[null,null,null,null,null,null,null,null,null,null,null,null,{"$f":"IFERROR(VLOOKUP(L914,CIIU!A:B,2,0),\"\")","v":""}]
[null,null,null,null,null,null,null,null,null,null,null,null,{"$f":"IFERROR(VLOOKUP(L915,CIIU!A:B,2,0),\"\")","v":""}]
[null,null,null,null,null,null,null,null,null,null,null,null,{"$f":"IFERROR(VLOOKUP(L916,CIIU!A:B,2,0),\"\")","v":""}]
[null,null,null,null,null,null,null,null,null,null,null,null,{"$f":"IFERROR(VLOOKUP(L917,CIIU!A:B,2,0),\"\")","v":""}]
[null,null,null,null,null,null,null,null,null,null,null,null,{"$f":"IFERROR(VLOOKUP(L918,CIIU!A:B,2,0),\"\")","v":""}]
[null,null,null,null,null,null,null,null,null,null,null,null,{"$f":"IFERROR(VLOOKUP(L919,CIIU!A:B,2,0),\"\")","v":""}]
[null,null,null,null,null,null,null,null,null,null,null,null,{"$f":"IFERROR(VLOOKUP(L920,CIIU!A:B,2,0),\"\")","v":""}]
[null,null,null,null,null,null,null,null,null,null,null,null,{"$f":"IFERROR(VLOOKUP(L921,CIIU!A:B,2,0),\"\")","v":""}]
[null,null,null,null,null,null,null,null,null,null,null,null,{"$f":"IFERROR(VLOOKUP(L922,CIIU!A:B,2,0),\"\")","v":""}]
[null,null,null,null,null,null,null,null,null,null,null,null,{"$f":"IFERROR(VLOOKUP(L923,CIIU!A:B,2,0),\"\")","v":""}]
[null,null,null,null,null,null,null,null,null,null,null,null,{"$f":"IFERROR(VLOOKUP(L924,CIIU!A:B,2,0),\"\")","v":""}]
[null,null,null,null,null,null,null,null,null,null,null,null,{"$f":"IFERROR(VLOOKUP(L925,CIIU!A:B,2,0),\"\")","v":""}]
[null,null,null,null,null,null,null,null,null,null,null,null,{"$f":"IFERROR(VLOOKUP(L926,CIIU!A:B,2,0),\"\")","v":""}]
[null,null,null,null,null,null,null,null,null,null,null,null,{"$f":"IFERROR(VLOOKUP(L927,CIIU!A:B,2,0),\"\")","v":""}]
[null,null,null,null,null,null,null,null,null,null,null,null,{"$f":"IFERROR(VLOOKUP(L928,CIIU!A:B,2,0),\"\")","v":""}]
[null,null,null,null,null,null,null,null,null,null,null,null,{"$f":"IFERROR(VLOOKUP(L929,CIIU!A:B,2,0),\"\")","v":""}]
[null,null,null,null,null,null,null,null,null,null,null,null,{"$f":"IFERROR(VLOOKUP(L930,CIIU!A:B,2,0),\"\")","v":""}]
[null,null,null,null,null,null,null,null,null,null,null,null,{"$f":"IFERROR(VLOOKUP(L931,CIIU!A:B,2,0),\"\")","v":""}]
[null,null,null,null,null,null,null,null,null,null,null,null,{"$f":"IFERROR(VLOOKUP(L932,CIIU!A:B,2,0),\"\")","v":""}]
[null,null,null,null,null,null,null,null,null,null,null,null,{"$f":"IFERROR(VLOOKUP(L933,CIIU!A:B,2,0),\"\")","v":""}]
[null,null,null,null,null,null,null,null,null,null,null,null,{"$f":"IFERROR(VLOOKUP(L934,CIIU!A:B,2,0),\"\")","v":""}]
[null,null,null,null,null,null,null,null,null,null,null,null,{"$f":"IFERROR(VLOOKUP(L935,CIIU!A:B,2,0),\"\")","v":""}]
[null,null,null,null,null,null,null,null,null,null,null,null,{"$f":"IFERROR(VLOOKUP(L936,CIIU!A:B,2,0),\"\")","v":""}]
[null,null,null,null,null,null,null,null,null,null,null,null,{"$f":"IFERROR(VLOOKUP(L937,CIIU!A:B,2,0),\"\")","v":""}]
[null,null,null,null,null,null,null,null,null,null,null,null,{"$f":"IFERROR(VLOOKUP(L938,CIIU!A:B,2,0),\"\")","v":""}]
[null,null,null,null,null,null,null,null,null,null,null,null,{"$f":"IFERROR(VLOOKUP(L939,CIIU!A:B,2,0),\"\")","v":""}]
[null,null,null,null,null,null,null,null,null,null,null,null,{"$f":"IFERROR(VLOOKUP(L940,CIIU!A:B,2,0),\"\")","v":""}]
[null,null,null,null,null,null,null,null,null,null,null,null,{"$f":"IFERROR(VLOOKUP(L941,CIIU!A:B,2,0),\"\")","v":""}]
[null,null,null,null,null,null,null,null,null,null,null,null,{"$f":"IFERROR(VLOOKUP(L942,CIIU!A:B,2,0),\"\")","v":""}]
[null,null,null,null,null,null,null,null,null,null,null,null,{"$f":"IFERROR(VLOOKUP(L943,CIIU!A:B,2,0),\"\")","v":""}]
[null,null,null,null,null,null,null,null,null,null,null,null,{"$f":"IFERROR(VLOOKUP(L944,CIIU!A:B,2,0),\"\")","v":""}]
[null,null,null,null,null,null,null,null,null,null,null,null,{"$f":"IFERROR(VLOOKUP(L945,CIIU!A:B,2,0),\"\")","v":""}]
[null,null,null,null,null,null,null,null,null,null,null,null,{"$f":"IFERROR(VLOOKUP(L946,CIIU!A:B,2,0),\"\")","v":""}]
[null,null,null,null,null,null,null,null,null,null,null,null,{"$f":"IFERROR(VLOOKUP(L947,CIIU!A:B,2,0),\"\")","v":""}]
[null,null,null,null,null,null,null,null,null,null,null,null,{"$f":"IFERROR(VLOOKUP(L948,CIIU!A:B,2,0),\"\")","v":""}]
[null,null,null,null,null,null,null,null,null,null,null,null,{"$f":"IFERROR(VLOOKUP(L949,CIIU!A:B,2,0),\"\")","v":""}]
[null,null,null,null,null,null,null,null,null,null,null,null,{"$f":"IFERROR(VLOOKUP(L950,CIIU!A:B,2,0),\"\")","v":""}]
[null,null,null,null,null,null,null,null,null,null,null,null,{"$f":"IFERROR(VLOOKUP(L951,CIIU!A:B,2,0),\"\")","v":""}]
[null,null,null,null,null,null,null,null,null,null,null,null,{"$f":"IFERROR(VLOOKUP(L952,CIIU!A:B,2,0),\"\")","v":""}]
[null,null,null,null,null,null,null,null,null,null,null,null,{"$f":"IFERROR(VLOOKUP(L953,CIIU!A:B,2,0),\"\")","v":""}]
[null,null,null,null,null,null,null,null,null,null,null,null,{"$f":"IFERROR(VLOOKUP(L954,CIIU!A:B,2,0),\"\")","v":""}]
[null,null,null,null,null,null,null,null,null,null,null,null,{"$f":"IFERROR(VLOOKUP(L955,CIIU!A:B,2,0),\"\")","v":""}]
[null,null,null,null,null,null,null,null,null,null,null,null,{"$f":"IFERROR(VLOOKUP(L956,CIIU!A:B,2,0),\"\")","v":""}]
[null,null,null,null,null,null,null,null,null,null,null,null,{"$f":"IFERROR(VLOOKUP(L957,CIIU!A:B,2,0),\"\")","v":""}]
[null,null,null,null,null,null,null,null,null,null,null,null,{"$f":"IFERROR(VLOOKUP(L958,CIIU!A:B,2,0),\"\")","v":""}]
[null,null,null,null,null,null,null,null,null,null,null,null,{"$f":"IFERROR(VLOOKUP(L959,CIIU!A:B,2,0),\"\")","v":""}]
[null,null,null,null,null,null,null,null,null,null,null,null,{"$f":"IFERROR(VLOOKUP(L960,CIIU!A:B,2,0),\"\")","v":""}]
[null,null,null,null,null,null,null,null,null,null,null,null,{"$f":"IFERROR(VLOOKUP(L961,CIIU!A:B,2,0),\"\")","v":""}]
[null,null,null,null,null,null,null,null,null,null,null,null,{"$f":"IFERROR(VLOOKUP(L962,CIIU!A:B,2,0),\"\")","v":""}]
[null,null,null,null,null,null,null,null,null,null,null,null,{"$f":"IFERROR(VLOOKUP(L963,CIIU!A:B,2,0),\"\")","v":""}]
[null,null,null,null,null,null,null,null,null,null,null,null,{"$f":"IFERROR(VLOOKUP(L964,CIIU!A:B,2,0),\"\")","v":""}]
[null,null,null,null,null,null,null,null,null,null,null,null,{"$f":"IFERROR(VLOOKUP(L965,CIIU!A:B,2,0),\"\")","v":""}]
[null,null,null,null,null,null,null,null,null,null,null,null,{"$f":"IFERROR(VLOOKUP(L966,CIIU!A:B,2,0),\"\")","v":""}]
[null,null,null,null,null,null,null,null,null,null,null,null,{"$f":"IFERROR(VLOOKUP(L967,CIIU!A:B,2,0),\"\")","v":""}]
[null,null,null,null,null,null,null,null,null,null,null,null,{"$f":"IFERROR(VLOOKUP(L968,CIIU!A:B,2,0),\"\")","v":""}]
[null,null,null,null,null,null,null,null,null,null,null,null,{"$f":"IFERROR(VLOOKUP(L969,CIIU!A:B,2,0),\"\")","v":""}]
[null,null,null,null,null,null,null,null,null,null,null,null,{"$f":"IFERROR(VLOOKUP(L970,CIIU!A:B,2,0),\"\")","v":""}]
[null,null,null,null,null,null,null,null,null,null,null,null,{"$f":"IFERROR(VLOOKUP(L971,CIIU!A:B,2,0),\"\")","v":""}]
[null,null,null,null,null,null,null,null,null,null,null,null,{"$f":"IFERROR(VLOOKUP(L972,CIIU!A:B,2,0),\"\")","v":""}]
[null,null,null,null,null,null,null,null,null,null,null,null,{"$f":"IFERROR(VLOOKUP(L973,CIIU!A:B,2,0),\"\")","v":""}]
[null,null,null,null,null,null,null,null,null,null,null,null,{"$f":"IFERROR(VLOOKUP(L974,CIIU!A:B,2,0),\"\")","v":""}]
[null,null,null,null,null,null,null,null,null,null,null,null,{"$f":"IFERROR(VLOOKUP(L975,CIIU!A:B,2,0),\"\")","v":""}]
[null,null,null,null,null,null,null,null,null,null,null,null,{"$f":"IFERROR(VLOOKUP(L976,CIIU!A:B,2,0),\"\")","v":""}]
[null,null,null,null,null,null,null,null,null,null,null,null,{"$f":"IFERROR(VLOOKUP(L977,CIIU!A:B,2,0),\"\")","v":""}]
[null,null,null,null,null,null,null,null,null,null,null,null,{"$f":"IFERROR(VLOOKUP(L978,CIIU!A:B,2,0),\"\")","v":""}]
[null,null,null,null,null,null,null,null,null,null,null,null,{"$f":"IFERROR(VLOOKUP(L979,CIIU!A:B,2,0),\"\")","v":""}]
[null,null,null,null,null,null,null,null,null,null,null,null,{"$f":"IFERROR(VLOOKUP(L980,CIIU!A:B,2,0),\"\")","v":""}]
[null,null,null,null,null,null,null,null,null,null,null,null,{"$f":"IFERROR(VLOOKUP(L981,CIIU!A:B,2,0),\"\")","v":""}]
[null,null,null,null,null,null,null,null,null,null,null,null,{"$f":"IFERROR(VLOOKUP(L982,CIIU!A:B,2,0),\"\")","v":""}]
[null,null,null,null,null,null,null,null,null,null,null,null,{"$f":"IFERROR(VLOOKUP(L983,CIIU!A:B,2,0),\"\")","v":""}]
[null,null,null,null,null,null,null,null,null,null,null,null,{"$f":"IFERROR(VLOOKUP(L984,CIIU!A:B,2,0),\"\")","v":""}]
[null,null,null,null,null,null,null,null,null,null,null,null,{"$f":"IFERROR(VLOOKUP(L985,CIIU!A:B,2,0),\"\")","v":""}]
[null,null,null,null,null,null,null,null,null,null,null,null,{"$f":"IFERROR(VLOOKUP(L986,CIIU!A:B,2,0),\"\")","v":""}]
[null,null,null,null,null,null,null,null,null,null,null,null,{"$f":"IFERROR(VLOOKUP(L987,CIIU!A:B,2,0),\"\")","v":""}]
[null,null,null,null,null,null,null,null,null,null,null,null,{"$f":"IFERROR(VLOOKUP(L988,CIIU!A:B,2,0),\"\")","v":""}]
[null,null,null,null,null,null,null,null,null,null,null,null,{"$f":"IFERROR(VLOOKUP(L989,CIIU!A:B,2,0),\"\")","v":""}]
[null,null,null,null,null,null,null,null,null,null,null,null,{"$f":"IFERROR(VLOOKUP(L990,CIIU!A:B,2,0),\"\")","v":""}]
[null,null,null,null,null,null,null,null,null,null,null,null,{"$f":"IFERROR(VLOOKUP(L991,CIIU!A:B,2,0),\"\")","v":""}]
[null,null,null,null,null,null,null,null,null,null,null,null,{"$f":"IFERROR(VLOOKUP(L992,CIIU!A:B,2,0),\"\")","v":""}]
[null,null,null,null,null,null,null,null,null,null,null,null,{"$f":"IFERROR(VLOOKUP(L993,CIIU!A:B,2,0),\"\")","v":""}]
[null,null,null,null,null,null,null,null,null,null,null,null,{"$f":"IFERROR(VLOOKUP(L994,CIIU!A:B,2,0),\"\")","v":""}]
[null,null,null,null,null,null,null,null,null,null,null,null,{"$f":"IFERROR(VLOOKUP(L995,CIIU!A:B,2,0),\"\")","v":""}]
[null,null,null,null,null,null,null,null,null,null,null,null,{"$f":"IFERROR(VLOOKUP(L996,CIIU!A:B,2,0),\"\")","v":""}]
[null,null,null,null,null,null,null,null,null,null,null,null,{"$f":"IFERROR(VLOOKUP(L997,CIIU!A:B,2,0),\"\")","v":""}]
[null,null,null,null,null,null,null,null,null,null,null,null,{"$f":"IFERROR(VLOOKUP(L998,CIIU!A:B,2,0),\"\")","v":""}]
[null,null,null,null,null,null,null,null,null,null,null,null,{"$f":"IFERROR(VLOOKUP(L999,CIIU!A:B,2,0),\"\")","v":""}]
[null,null,null,null,null,null,null,null,null,null,null,null,{"$f":"IFERROR(VLOOKUP(L1000,CIIU!A:B,2,0),\"\")","v":""}]
[null,null,null,null,null,null,null,null,null,null,null,null,{"$f":"IFERROR(VLOOKUP(L1001,CIIU!A:B,2,0),\"\")","v":""}]
[null,null,null,null,null,null,null,null,null,null,null,null,{"$f":"IFERROR(VLOOKUP(L1002,CIIU!A:B,2,0),\"\")","v":""}]
[null,null,null,null,null,null,null,null,null,null,null,null,{"$f":"IFERROR(VLOOKUP(L1003,CIIU!A:B,2,0),\"\")","v":""}]
[null,null,null,null,null,null,null,null,null,null,null,null,{"$f":"IFERROR(VLOOKUP(L1004,CIIU!A:B,2,0),\"\")","v":""}]
[null,null,null,null,null,null,null,null,null,null,null,null,{"$f":"IFERROR(VLOOKUP(L1005,CIIU!A:B,2,0),\"\")","v":""}]
[null,null,null,null,null,null,null,null,null,null,null,null,{"$f":"IFERROR(VLOOKUP(L1006,CIIU!A:B,2,0),\"\")","v":""}]
[null,null,null,null,null,null,null,null,null,null,null,null,{"$f":"IFERROR(VLOOKUP(L1007,CIIU!A:B,2,0),\"\")","v":""}]
[null,null,null,null,null,null,null,null,null,null,null,null,{"$f":"IFERROR(VLOOKUP(L1008,CIIU!A:B,2,0),\"\")","v":""}]
[null,null,null,null,null,null,null,null,null,null,null,null,{"$f":"IFERROR(VLOOKUP(L1009,CIIU!A:B,2,0),\"\")","v":""}]
[null,null,null,null,null,null,null,null,null,null,null,null,{"$f":"IFERROR(VLOOKUP(L1010,CIIU!A:B,2,0),\"\")","v":""}]
[null,null,null,null,null,null,null,null,null,null,null,null,{"$f":"IFERROR(VLOOKUP(L1011,CIIU!A:B,2,0),\"\")","v":""}]
[null,null,null,null,null,null,null,null,null,null,null,null,{"$f":"IFERROR(VLOOKUP(L1012,CIIU!A:B,2,0),\"\")","v":""}]
[null,null,null,null,null,null,null,null,null,null,null,null,{"$f":"IFERROR(VLOOKUP(L1013,CIIU!A:B,2,0),\"\")","v":""}]
[null,null,null,null,null,null,null,null,null,null,null,null,{"$f":"IFERROR(VLOOKUP(L1014,CIIU!A:B,2,0),\"\")","v":""}]
[null,null,null,null,null,null,null,null,null,null,null,null,{"$f":"IFERROR(VLOOKUP(L1015,CIIU!A:B,2,0),\"\")","v":""}]
[null,null,null,null,null,null,null,null,null,null,null,null,{"$f":"IFERROR(VLOOKUP(L1016,CIIU!A:B,2,0),\"\")","v":""}]
[null,null,null,null,null,null,null,null,null,null,null,null,{"$f":"IFERROR(VLOOKUP(L1017,CIIU!A:B,2,0),\"\")","v":""}]
[null,null,null,null,null,null,null,null,null,null,null,null,{"$f":"IFERROR(VLOOKUP(L1018,CIIU!A:B,2,0),\"\")","v":""}]
[null,null,null,null,null,null,null,null,null,null,null,null,{"$f":"IFERROR(VLOOKUP(L1019,CIIU!A:B,2,0),\"\")","v":""}]
[null,null,null,null,null,null,null,null,null,null,null,null,{"$f":"IFERROR(VLOOKUP(L1020,CIIU!A:B,2,0),\"\")","v":""}]
[null,null,null,null,null,null,null,null,null,null,null,null,{"$f":"IFERROR(VLOOKUP(L1021,CIIU!A:B,2,0),\"\")","v":""}]
[null,null,null,null,null,null,null,null,null,null,null,null,{"$f":"IFERROR(VLOOKUP(L1022,CIIU!A:B,2,0),\"\")","v":""}]
[null,null,null,null,null,null,null,null,null,null,null,null,{"$f":"IFERROR(VLOOKUP(L1023,CIIU!A:B,2,0),\"\")","v":""}]
[null,null,null,null,null,null,null,null,null,null,null,null,{"$f":"IFERROR(VLOOKUP(L1024,CIIU!A:B,2,0),\"\")","v":""}]
[null,null,null,null,null,null,null,null,null,null,null,null,{"$f":"IFERROR(VLOOKUP(L1025,CIIU!A:B,2,0),\"\")","v":""}]
[null,null,null,null,null,null,null,null,null,null,null,null,{"$f":"IFERROR(VLOOKUP(L1026,CIIU!A:B,2,0),\"\")","v":""}]
[null,null,null,null,null,null,null,null,null,null,null,null,{"$f":"IFERROR(VLOOKUP(L1027,CIIU!A:B,2,0),\"\")","v":""}]
[null,null,null,null,null,null,null,null,null,null,null,null,{"$f":"IFERROR(VLOOKUP(L1028,CIIU!A:B,2,0),\"\")","v":""}]
[null,null,null,null,null,null,null,null,null,null,null,null,{"$f":"IFERROR(VLOOKUP(L1029,CIIU!A:B,2,0),\"\")","v":""}]
[null,null,null,null,null,null,null,null,null,null,null,null,{"$f":"IFERROR(VLOOKUP(L1030,CIIU!A:B,2,0),\"\")","v":""}]
[null,null,null,null,null,null,null,null,null,null,null,null,{"$f":"IFERROR(VLOOKUP(L1031,CIIU!A:B,2,0),\"\")","v":""}]
[null,null,null,null,null,null,null,null,null,null,null,null,{"$f":"IFERROR(VLOOKUP(L1032,CIIU!A:B,2,0),\"\")","v":""}]
[null,null,null,null,null,null,null,null,null,null,null,null,{"$f":"IFERROR(VLOOKUP(L1033,CIIU!A:B,2,0),\"\")","v":""}]
[null,null,null,null,null,null,null,null,null,null,null,null,{"$f":"IFERROR(VLOOKUP(L1034,CIIU!A:B,2,0),\"\")","v":""}]
[null,null,null,null,null,null,null,null,null,null,null,null,{"$f":"IFERROR(VLOOKUP(L1035,CIIU!A:B,2,0),\"\")","v":""}]
[null,null,null,null,null,null,null,null,null,null,null,null,{"$f":"IFERROR(VLOOKUP(L1036,CIIU!A:B,2,0),\"\")","v":""}]
[null,null,null,null,null,null,null,null,null,null,null,null,{"$f":"IFERROR(VLOOKUP(L1037,CIIU!A:B,2,0),\"\")","v":""}]
[null,null,null,null,null,null,null,null,null,null,null,null,{"$f":"IFERROR(VLOOKUP(L1038,CIIU!A:B,2,0),\"\")","v":""}]
[null,null,null,null,null,null,null,null,null,null,null,null,{"$f":"IFERROR(VLOOKUP(L1039,CIIU!A:B,2,0),\"\")","v":""}]
[null,null,null,null,null,null,null,null,null,null,null,null,{"$f":"IFERROR(VLOOKUP(L1040,CIIU!A:B,2,0),\"\")","v":""}]
[null,null,null,null,null,null,null,null,null,null,null,null,{"$f":"IFERROR(VLOOKUP(L1041,CIIU!A:B,2,0),\"\")","v":""}]
[null,null,null,null,null,null,null,null,null,null,null,null,{"$f":"IFERROR(VLOOKUP(L1042,CIIU!A:B,2,0),\"\")","v":""}]
[null,null,null,null,null,null,null,null,null,null,null,null,{"$f":"IFERROR(VLOOKUP(L1043,CIIU!A:B,2,0),\"\")","v":""}]
[null,null,null,null,null,null,null,null,null,null,null,null,{"$f":"IFERROR(VLOOKUP(L1044,CIIU!A:B,2,0),\"\")","v":""}]
[null,null,null,null,null,null,null,null,null,null,null,null,{"$f":"IFERROR(VLOOKUP(L1045,CIIU!A:B,2,0),\"\")","v":""}]
[null,null,null,null,null,null,null,null,null,null,null,null,{"$f":"IFERROR(VLOOKUP(L1046,CIIU!A:B,2,0),\"\")","v":""}]
[null,null,null,null,null,null,null,null,null,null,null,null,{"$f":"IFERROR(VLOOKUP(L1047,CIIU!A:B,2,0),\"\")","v":""}]
[null,null,null,null,null,null,null,null,null,null,null,null,{"$f":"IFERROR(VLOOKUP(L1048,CIIU!A:B,2,0),\"\")","v":""}]
[null,null,null,null,null,null,null,null,null,null,null,null,{"$f":"IFERROR(VLOOKUP(L1049,CIIU!A:B,2,0),\"\")","v":""}]
[null,null,null,null,null,null,null,null,null,null,null,null,{"$f":"IFERROR(VLOOKUP(L1050,CIIU!A:B,2,0),\"\")","v":""}]
[null,null,null,null,null,null,null,null,null,null,null,null,{"$f":"IFERROR(VLOOKUP(L1051,CIIU!A:B,2,0),\"\")","v":""}]
[null,null,null,null,null,null,null,null,null,null,null,null,{"$f":"IFERROR(VLOOKUP(L1052,CIIU!A:B,2,0),\"\")","v":""}]
[null,null,null,null,null,null,null,null,null,null,null,null,{"$f":"IFERROR(VLOOKUP(L1053,CIIU!A:B,2,0),\"\")","v":""}]
[null,null,null,null,null,null,null,null,null,null,null,null,{"$f":"IFERROR(VLOOKUP(L1054,CIIU!A:B,2,0),\"\")","v":""}]
[null,null,null,null,null,null,null,null,null,null,null,null,{"$f":"IFERROR(VLOOKUP(L1055,CIIU!A:B,2,0),\"\")","v":""}]
[null,null,null,null,null,null,null,null,null,null,null,null,{"$f":"IFERROR(VLOOKUP(L1056,CIIU!A:B,2,0),\"\")","v":""}]
[null,null,null,null,null,null,null,null,null,null,null,null,{"$f":"IFERROR(VLOOKUP(L1057,CIIU!A:B,2,0),\"\")","v":""}]
[null,null,null,null,null,null,null,null,null,null,null,null,{"$f":"IFERROR(VLOOKUP(L1058,CIIU!A:B,2,0),\"\")","v":""}]
[null,null,null,null,null,null,null,null,null,null,null,null,{"$f":"IFERROR(VLOOKUP(L1059,CIIU!A:B,2,0),\"\")","v":""}]
[null,null,null,null,null,null,null,null,null,null,null,null,{"$f":"IFERROR(VLOOKUP(L1060,CIIU!A:B,2,0),\"\")","v":""}]
[null,null,null,null,null,null,null,null,null,null,null,null,{"$f":"IFERROR(VLOOKUP(L1061,CIIU!A:B,2,0),\"\")","v":""}]
[null,null,null,null,null,null,null,null,null,null,null,null,{"$f":"IFERROR(VLOOKUP(L1062,CIIU!A:B,2,0),\"\")","v":""}]
[null,null,null,null,null,null,null,null,null,null,null,null,{"$f":"IFERROR(VLOOKUP(L1063,CIIU!A:B,2,0),\"\")","v":""}]
[null,null,null,null,null,null,null,null,null,null,null,null,{"$f":"IFERROR(VLOOKUP(L1064,CIIU!A:B,2,0),\"\")","v":""}]
[null,null,null,null,null,null,null,null,null,null,null,null,{"$f":"IFERROR(VLOOKUP(L1065,CIIU!A:B,2,0),\"\")","v":""}]
[null,null,null,null,null,null,null,null,null,null,null,null,{"$f":"IFERROR(VLOOKUP(L1066,CIIU!A:B,2,0),\"\")","v":""}]
[null,null,null,null,null,null,null,null,null,null,null,null,{"$f":"IFERROR(VLOOKUP(L1067,CIIU!A:B,2,0),\"\")","v":""}]
[null,null,null,null,null,null,null,null,null,null,null,null,{"$f":"IFERROR(VLOOKUP(L1068,CIIU!A:B,2,0),\"\")","v":""}]
[null,null,null,null,null,null,null,null,null,null,null,null,{"$f":"IFERROR(VLOOKUP(L1069,CIIU!A:B,2,0),\"\")","v":""}]
[null,null,null,null,null,null,null,null,null,null,null,null,{"$f":"IFERROR(VLOOKUP(L1070,CIIU!A:B,2,0),\"\")","v":""}]
[null,null,null,null,null,null,null,null,null,null,null,null,{"$f":"IFERROR(VLOOKUP(L1071,CIIU!A:B,2,0),\"\")","v":""}]
[null,null,null,null,null,null,null,null,null,null,null,null,{"$f":"IFERROR(VLOOKUP(L1072,CIIU!A:B,2,0),\"\")","v":""}]
[null,null,null,null,null,null,null,null,null,null,null,null,{"$f":"IFERROR(VLOOKUP(L1073,CIIU!A:B,2,0),\"\")","v":""}]
[null,null,null,null,null,null,null,null,null,null,null,null,{"$f":"IFERROR(VLOOKUP(L1074,CIIU!A:B,2,0),\"\")","v":""}]
[null,null,null,null,null,null,null,null,null,null,null,null,{"$f":"IFERROR(VLOOKUP(L1075,CIIU!A:B,2,0),\"\")","v":""}]
[null,null,null,null,null,null,null,null,null,null,null,null,{"$f":"IFERROR(VLOOKUP(L1076,CIIU!A:B,2,0),\"\")","v":""}]
[null,null,null,null,null,null,null,null,null,null,null,null,{"$f":"IFERROR(VLOOKUP(L1077,CIIU!A:B,2,0),\"\")","v":""}]
[null,null,null,null,null,null,null,null,null,null,null,null,{"$f":"IFERROR(VLOOKUP(L1078,CIIU!A:B,2,0),\"\")","v":""}]
[null,null,null,null,null,null,null,null,null,null,null,null,{"$f":"IFERROR(VLOOKUP(L1079,CIIU!A:B,2,0),\"\")","v":""}]
[null,null,null,null,null,null,null,null,null,null,null,null,{"$f":"IFERROR(VLOOKUP(L1080,CIIU!A:B,2,0),\"\")","v":""}]
[null,null,null,null,null,null,null,null,null,null,null,null,{"$f":"IFERROR(VLOOKUP(L1081,CIIU!A:B,2,0),\"\")","v":""}]
[null,null,null,null,null,null,null,null,null,null,null,null,{"$f":"IFERROR(VLOOKUP(L1082,CIIU!A:B,2,0),\"\")","v":""}]
[null,null,null,null,null,null,null,null,null,null,null,null,{"$f":"IFERROR(VLOOKUP(L1083,CIIU!A:B,2,0),\"\")","v":""}]
[null,null,null,null,null,null,null,null,null,null,null,null,{"$f":"IFERROR(VLOOKUP(L1084,CIIU!A:B,2,0),\"\")","v":""}]
[null,null,null,null,null,null,null,null,null,null,null,null,{"$f":"IFERROR(VLOOKUP(L1085,CIIU!A:B,2,0),\"\")","v":""}]
[null,null,null,null,null,null,null,null,null,null,null,null,{"$f":"IFERROR(VLOOKUP(L1086,CIIU!A:B,2,0),\"\")","v":""}]
[null,null,null,null,null,null,null,null,null,null,null,null,{"$f":"IFERROR(VLOOKUP(L1087,CIIU!A:B,2,0),\"\")","v":""}]
[null,null,null,null,null,null,null,null,null,null,null,null,{"$f":"IFERROR(VLOOKUP(L1088,CIIU!A:B,2,0),\"\")","v":""}]
[null,null,null,null,null,null,null,null,null,null,null,null,{"$f":"IFERROR(VLOOKUP(L1089,CIIU!A:B,2,0),\"\")","v":""}]
[null,null,null,null,null,null,null,null,null,null,null,null,{"$f":"IFERROR(VLOOKUP(L1090,CIIU!A:B,2,0),\"\")","v":""}]
[null,null,null,null,null,null,null,null,null,null,null,null,{"$f":"IFERROR(VLOOKUP(L1091,CIIU!A:B,2,0),\"\")","v":""}]
[null,null,null,null,null,null,null,null,null,null,null,null,{"$f":"IFERROR(VLOOKUP(L1092,CIIU!A:B,2,0),\"\")","v":""}]
[null,null,null,null,null,null,null,null,null,null,null,null,{"$f":"IFERROR(VLOOKUP(L1093,CIIU!A:B,2,0),\"\")","v":""}]
[null,null,null,null,null,null,null,null,null,null,null,null,{"$f":"IFERROR(VLOOKUP(L1094,CIIU!A:B,2,0),\"\")","v":""}]
[null,null,null,null,null,null,null,null,null,null,null,null,{"$f":"IFERROR(VLOOKUP(L1095,CIIU!A:B,2,0),\"\")","v":""}]
[null,null,null,null,null,null,null,null,null,null,null,null,{"$f":"IFERROR(VLOOKUP(L1096,CIIU!A:B,2,0),\"\")","v":""}]
[null,null,null,null,null,null,null,null,null,null,null,null,{"$f":"IFERROR(VLOOKUP(L1097,CIIU!A:B,2,0),\"\")","v":""}]
[null,null,null,null,null,null,null,null,null,null,null,null,{"$f":"IFERROR(VLOOKUP(L1098,CIIU!A:B,2,0),\"\")","v":""}]
[null,null,null,null,null,null,null,null,null,null,null,null,{"$f":"IFERROR(VLOOKUP(L1099,CIIU!A:B,2,0),\"\")","v":""}]
[null,null,null,null,null,null,null,null,null,null,null,null,{"$f":"IFERROR(VLOOKUP(L1100,CIIU!A:B,2,0),\"\")","v":""}]
[null,null,null,null,null,null,null,null,null,null,null,null,{"$f":"IFERROR(VLOOKUP(L1101,CIIU!A:B,2,0),\"\")","v":""}]
[null,null,null,null,null,null,null,null,null,null,null,null,{"$f":"IFERROR(VLOOKUP(L1102,CIIU!A:B,2,0),\"\")","v":""}]
[null,null,null,null,null,null,null,null,null,null,null,null,{"$f":"IFERROR(VLOOKUP(L1103,CIIU!A:B,2,0),\"\")","v":""}]
[null,null,null,null,null,null,null,null,null,null,null,null,{"$f":"IFERROR(VLOOKUP(L1104,CIIU!A:B,2,0),\"\")","v":""}]
[null,null,null,null,null,null,null,null,null,null,null,null,{"$f":"IFERROR(VLOOKUP(L1105,CIIU!A:B,2,0),\"\")","v":""}]
[null,null,null,null,null,null,null,null,null,null,null,null,{"$f":"IFERROR(VLOOKUP(L1106,CIIU!A:B,2,0),\"\")","v":""}]
[null,null,null,null,null,null,null,null,null,null,null,null,{"$f":"IFERROR(VLOOKUP(L1107,CIIU!A:B,2,0),\"\")","v":""}]
[null,null,null,null,null,null,null,null,null,null,null,null,{"$f":"IFERROR(VLOOKUP(L1108,CIIU!A:B,2,0),\"\")","v":""}]
[null,null,null,null,null,null,null,null,null,null,null,null,{"$f":"IFERROR(VLOOKUP(L1109,CIIU!A:B,2,0),\"\")","v":""}]
[null,null,null,null,null,null,null,null,null,null,null,null,{"$f":"IFERROR(VLOOKUP(L1110,CIIU!A:B,2,0),\"\")","v":""}]
[null,null,null,null,null,null,null,null,null,null,null,null,{"$f":"IFERROR(VLOOKUP(L1111,CIIU!A:B,2,0),\"\")","v":""}]
[null,null,null,null,null,null,null,null,null,null,null,null,{"$f":"IFERROR(VLOOKUP(L1112,CIIU!A:B,2,0),\"\")","v":""}]
[null,null,null,null,null,null,null,null,null,null,null,null,{"$f":"IFERROR(VLOOKUP(L1113,CIIU!A:B,2,0),\"\")","v":""}]
[null,null,null,null,null,null,null,null,null,null,null,null,{"$f":"IFERROR(VLOOKUP(L1114,CIIU!A:B,2,0),\"\")","v":""}]
[null,null,null,null,null,null,null,null,null,null,null,null,{"$f":"IFERROR(VLOOKUP(L1115,CIIU!A:B,2,0),\"\")","v":""}]
[null,null,null,null,null,null,null,null,null,null,null,null,{"$f":"IFERROR(VLOOKUP(L1116,CIIU!A:B,2,0),\"\")","v":""}]
[null,null,null,null,null,null,null,null,null,null,null,null,{"$f":"IFERROR(VLOOKUP(L1117,CIIU!A:B,2,0),\"\")","v":""}]
[null,null,null,null,null,null,null,null,null,null,null,null,{"$f":"IFERROR(VLOOKUP(L1118,CIIU!A:B,2,0),\"\")","v":""}]
[null,null,null,null,null,null,null,null,null,null,null,null,{"$f":"IFERROR(VLOOKUP(L1119,CIIU!A:B,2,0),\"\")","v":""}]
[null,null,null,null,null,null,null,null,null,null,null,null,{"$f":"IFERROR(VLOOKUP(L1120,CIIU!A:B,2,0),\"\")","v":""}]
[null,null,null,null,null,null,null,null,null,null,null,null,{"$f":"IFERROR(VLOOKUP(L1121,CIIU!A:B,2,0),\"\")","v":""}]
[null,null,null,null,null,null,null,null,null,null,null,null,{"$f":"IFERROR(VLOOKUP(L1122,CIIU!A:B,2,0),\"\")","v":""}]
[null,null,null,null,null,null,null,null,null,null,null,null,{"$f":"IFERROR(VLOOKUP(L1123,CIIU!A:B,2,0),\"\")","v":""}]
[null,null,null,null,null,null,null,null,null,null,null,null,{"$f":"IFERROR(VLOOKUP(L1124,CIIU!A:B,2,0),\"\")","v":""}]
[null,null,null,null,null,null,null,null,null,null,null,null,{"$f":"IFERROR(VLOOKUP(L1125,CIIU!A:B,2,0),\"\")","v":""}]
[null,null,null,null,null,null,null,null,null,null,null,null,{"$f":"IFERROR(VLOOKUP(L1126,CIIU!A:B,2,0),\"\")","v":""}]
[null,null,null,null,null,null,null,null,null,null,null,null,{"$f":"IFERROR(VLOOKUP(L1127,CIIU!A:B,2,0),\"\")","v":""}]
[null,null,null,null,null,null,null,null,null,null,null,null,{"$f":"IFERROR(VLOOKUP(L1128,CIIU!A:B,2,0),\"\")","v":""}]
[null,null,null,null,null,null,null,null,null,null,null,null,{"$f":"IFERROR(VLOOKUP(L1129,CIIU!A:B,2,0),\"\")","v":""}]
[null,null,null,null,null,null,null,null,null,null,null,null,{"$f":"IFERROR(VLOOKUP(L1130,CIIU!A:B,2,0),\"\")","v":""}]
[null,null,null,null,null,null,null,null,null,null,null,null,{"$f":"IFERROR(VLOOKUP(L1131,CIIU!A:B,2,0),\"\")","v":""}]
[null,null,null,null,null,null,null,null,null,null,null,null,{"$f":"IFERROR(VLOOKUP(L1132,CIIU!A:B,2,0),\"\")","v":""}]
[null,null,null,null,null,null,null,null,null,null,null,null,{"$f":"IFERROR(VLOOKUP(L1133,CIIU!A:B,2,0),\"\")","v":""}]
[null,null,null,null,null,null,null,null,null,null,null,null,{"$f":"IFERROR(VLOOKUP(L1134,CIIU!A:B,2,0),\"\")","v":""}]
[null,null,null,null,null,null,null,null,null,null,null,null,{"$f":"IFERROR(VLOOKUP(L1135,CIIU!A:B,2,0),\"\")","v":""}]
[null,null,null,null,null,null,null,null,null,null,null,null,{"$f":"IFERROR(VLOOKUP(L1136,CIIU!A:B,2,0),\"\")","v":""}]
[null,null,null,null,null,null,null,null,null,null,null,null,{"$f":"IFERROR(VLOOKUP(L1137,CIIU!A:B,2,0),\"\")","v":""}]
[null,null,null,null,null,null,null,null,null,null,null,null,{"$f":"IFERROR(VLOOKUP(L1138,CIIU!A:B,2,0),\"\")","v":""}]
[null,null,null,null,null,null,null,null,null,null,null,null,{"$f":"IFERROR(VLOOKUP(L1139,CIIU!A:B,2,0),\"\")","v":""}]
[null,null,null,null,null,null,null,null,null,null,null,null,{"$f":"IFERROR(VLOOKUP(L1140,CIIU!A:B,2,0),\"\")","v":""}]
[null,null,null,null,null,null,null,null,null,null,null,null,{"$f":"IFERROR(VLOOKUP(L1141,CIIU!A:B,2,0),\"\")","v":""}]
[null,null,null,null,null,null,null,null,null,null,null,null,{"$f":"IFERROR(VLOOKUP(L1142,CIIU!A:B,2,0),\"\")","v":""}]
[null,null,null,null,null,null,null,null,null,null,null,null,{"$f":"IFERROR(VLOOKUP(L1143,CIIU!A:B,2,0),\"\")","v":""}]
[null,null,null,null,null,null,null,null,null,null,null,null,{"$f":"IFERROR(VLOOKUP(L1144,CIIU!A:B,2,0),\"\")","v":""}]
[null,null,null,null,null,null,null,null,null,null,null,null,{"$f":"IFERROR(VLOOKUP(L1145,CIIU!A:B,2,0),\"\")","v":""}]
[null,null,null,null,null,null,null,null,null,null,null,null,{"$f":"IFERROR(VLOOKUP(L1146,CIIU!A:B,2,0),\"\")","v":""}]
[null,null,null,null,null,null,null,null,null,null,null,null,{"$f":"IFERROR(VLOOKUP(L1147,CIIU!A:B,2,0),\"\")","v":""}]
[null,null,null,null,null,null,null,null,null,null,null,null,{"$f":"IFERROR(VLOOKUP(L1148,CIIU!A:B,2,0),\"\")","v":""}]
[null,null,null,null,null,null,null,null,null,null,null,null,{"$f":"IFERROR(VLOOKUP(L1149,CIIU!A:B,2,0),\"\")","v":""}]
[null,null,null,null,null,null,null,null,null,null,null,null,{"$f":"IFERROR(VLOOKUP(L1150,CIIU!A:B,2,0),\"\")","v":""}]
[null,null,null,null,null,null,null,null,null,null,null,null,{"$f":"IFERROR(VLOOKUP(L1151,CIIU!A:B,2,0),\"\")","v":""}]
[null,null,null,null,null,null,null,null,null,null,null,null,{"$f":"IFERROR(VLOOKUP(L1152,CIIU!A:B,2,0),\"\")","v":""}]
[null,null,null,null,null,null,null,null,null,null,null,null,{"$f":"IFERROR(VLOOKUP(L1153,CIIU!A:B,2,0),\"\")","v":""}]
[null,null,null,null,null,null,null,null,null,null,null,null,{"$f":"IFERROR(VLOOKUP(L1154,CIIU!A:B,2,0),\"\")","v":""}]
[null,null,null,null,null,null,null,null,null,null,null,null,{"$f":"IFERROR(VLOOKUP(L1155,CIIU!A:B,2,0),\"\")","v":""}]
[null,null,null,null,null,null,null,null,null,null,null,null,{"$f":"IFERROR(VLOOKUP(L1156,CIIU!A:B,2,0),\"\")","v":""}]
[null,null,null,null,null,null,null,null,null,null,null,null,{"$f":"IFERROR(VLOOKUP(L1157,CIIU!A:B,2,0),\"\")","v":""}]
[null,null,null,null,null,null,null,null,null,null,null,null,{"$f":"IFERROR(VLOOKUP(L1158,CIIU!A:B,2,0),\"\")","v":""}]
[null,null,null,null,null,null,null,null,null,null,null,null,{"$f":"IFERROR(VLOOKUP(L1159,CIIU!A:B,2,0),\"\")","v":""}]
[null,null,null,null,null,null,null,null,null,null,null,null,{"$f":"IFERROR(VLOOKUP(L1160,CIIU!A:B,2,0),\"\")","v":""}]
[null,null,null,null,null,null,null,null,null,null,null,null,{"$f":"IFERROR(VLOOKUP(L1161,CIIU!A:B,2,0),\"\")","v":""}]
[null,null,null,null,null,null,null,null,null,null,null,null,{"$f":"IFERROR(VLOOKUP(L1162,CIIU!A:B,2,0),\"\")","v":""}]
[null,null,null,null,null,null,null,null,null,null,null,null,{"$f":"IFERROR(VLOOKUP(L1163,CIIU!A:B,2,0),\"\")","v":""}]
[null,null,null,null,null,null,null,null,null,null,null,null,{"$f":"IFERROR(VLOOKUP(L1164,CIIU!A:B,2,0),\"\")","v":""}]
[null,null,null,null,null,null,null,null,null,null,null,null,{"$f":"IFERROR(VLOOKUP(L1165,CIIU!A:B,2,0),\"\")","v":""}]
[null,null,null,null,null,null,null,null,null,null,null,null,{"$f":"IFERROR(VLOOKUP(L1166,CIIU!A:B,2,0),\"\")","v":""}]
[null,null,null,null,null,null,null,null,null,null,null,null,{"$f":"IFERROR(VLOOKUP(L1167,CIIU!A:B,2,0),\"\")","v":""}]
[null,null,null,null,null,null,null,null,null,null,null,null,{"$f":"IFERROR(VLOOKUP(L1168,CIIU!A:B,2,0),\"\")","v":""}]
[null,null,null,null,null,null,null,null,null,null,null,null,{"$f":"IFERROR(VLOOKUP(L1169,CIIU!A:B,2,0),\"\")","v":""}]
[null,null,null,null,null,null,null,null,null,null,null,null,{"$f":"IFERROR(VLOOKUP(L1170,CIIU!A:B,2,0),\"\")","v":""}]
[null,null,null,null,null,null,null,null,null,null,null,null,{"$f":"IFERROR(VLOOKUP(L1171,CIIU!A:B,2,0),\"\")","v":""}]
[null,null,null,null,null,null,null,null,null,null,null,null,{"$f":"IFERROR(VLOOKUP(L1172,CIIU!A:B,2,0),\"\")","v":""}]
[null,null,null,null,null,null,null,null,null,null,null,null,{"$f":"IFERROR(VLOOKUP(L1173,CIIU!A:B,2,0),\"\")","v":""}]
[null,null,null,null,null,null,null,null,null,null,null,null,{"$f":"IFERROR(VLOOKUP(L1174,CIIU!A:B,2,0),\"\")","v":""}]
[null,null,null,null,null,null,null,null,null,null,null,null,{"$f":"IFERROR(VLOOKUP(L1175,CIIU!A:B,2,0),\"\")","v":""}]
[null,null,null,null,null,null,null,null,null,null,null,null,{"$f":"IFERROR(VLOOKUP(L1176,CIIU!A:B,2,0),\"\")","v":""}]
[null,null,null,null,null,null,null,null,null,null,null,null,{"$f":"IFERROR(VLOOKUP(L1177,CIIU!A:B,2,0),\"\")","v":""}]
[null,null,null,null,null,null,null,null,null,null,null,null,{"$f":"IFERROR(VLOOKUP(L1178,CIIU!A:B,2,0),\"\")","v":""}]
[null,null,null,null,null,null,null,null,null,null,null,null,{"$f":"IFERROR(VLOOKUP(L1179,CIIU!A:B,2,0),\"\")","v":""}]
[null,null,null,null,null,null,null,null,null,null,null,null,{"$f":"IFERROR(VLOOKUP(L1180,CIIU!A:B,2,0),\"\")","v":""}]
[null,null,null,null,null,null,null,null,null,null,null,null,{"$f":"IFERROR(VLOOKUP(L1181,CIIU!A:B,2,0),\"\")","v":""}]
[null,null,null,null,null,null,null,null,null,null,null,null,{"$f":"IFERROR(VLOOKUP(L1182,CIIU!A:B,2,0),\"\")","v":""}]
[null,null,null,null,null,null,null,null,null,null,null,null,{"$f":"IFERROR(VLOOKUP(L1183,CIIU!A:B,2,0),\"\")","v":""}]
[null,null,null,null,null,null,null,null,null,null,null,null,{"$f":"IFERROR(VLOOKUP(L1184,CIIU!A:B,2,0),\"\")","v":""}]
[null,null,null,null,null,null,null,null,null,null,null,null,{"$f":"IFERROR(VLOOKUP(L1185,CIIU!A:B,2,0),\"\")","v":""}]
[null,null,null,null,null,null,null,null,null,null,null,null,{"$f":"IFERROR(VLOOKUP(L1186,CIIU!A:B,2,0),\"\")","v":""}]
[null,null,null,null,null,null,null,null,null,null,null,null,{"$f":"IFERROR(VLOOKUP(L1187,CIIU!A:B,2,0),\"\")","v":""}]
[null,null,null,null,null,null,null,null,null,null,null,null,{"$f":"IFERROR(VLOOKUP(L1188,CIIU!A:B,2,0),\"\")","v":""}]
[null,null,null,null,null,null,null,null,null,null,null,null,{"$f":"IFERROR(VLOOKUP(L1189,CIIU!A:B,2,0),\"\")","v":""}]
[null,null,null,null,null,null,null,null,null,null,null,null,{"$f":"IFERROR(VLOOKUP(L1190,CIIU!A:B,2,0),\"\")","v":""}]
[null,null,null,null,null,null,null,null,null,null,null,null,{"$f":"IFERROR(VLOOKUP(L1191,CIIU!A:B,2,0),\"\")","v":""}]
[null,null,null,null,null,null,null,null,null,null,null,null,{"$f":"IFERROR(VLOOKUP(L1192,CIIU!A:B,2,0),\"\")","v":""}]
[null,null,null,null,null,null,null,null,null,null,null,null,{"$f":"IFERROR(VLOOKUP(L1193,CIIU!A:B,2,0),\"\")","v":""}]
[null,null,null,null,null,null,null,null,null,null,null,null,{"$f":"IFERROR(VLOOKUP(L1194,CIIU!A:B,2,0),\"\")","v":""}]
[null,null,null,null,null,null,null,null,null,null,null,null,{"$f":"IFERROR(VLOOKUP(L1195,CIIU!A:B,2,0),\"\")","v":""}]
[null,null,null,null,null,null,null,null,null,null,null,null,{"$f":"IFERROR(VLOOKUP(L1196,CIIU!A:B,2,0),\"\")","v":""}]
[null,null,null,null,null,null,null,null,null,null,null,null,{"$f":"IFERROR(VLOOKUP(L1197,CIIU!A:B,2,0),\"\")","v":""}]
[null,null,null,null,null,null,null,null,null,null,null,null,{"$f":"IFERROR(VLOOKUP(L1198,CIIU!A:B,2,0),\"\")","v":""}]
[null,null,null,null,null,null,null,null,null,null,null,null,{"$f":"IFERROR(VLOOKUP(L1199,CIIU!A:B,2,0),\"\")","v":""}]
[null,null,null,null,null,null,null,null,null,null,null,null,{"$f":"IFERROR(VLOOKUP(L1200,CIIU!A:B,2,0),\"\")","v":""}]
[null,null,null,null,null,null,null,null,null,null,null,null,{"$f":"IFERROR(VLOOKUP(L1201,CIIU!A:B,2,0),\"\")","v":""}]
[null,null,null,null,null,null,null,null,null,null,null,null,{"$f":"IFERROR(VLOOKUP(L1202,CIIU!A:B,2,0),\"\")","v":""}]
[null,null,null,null,null,null,null,null,null,null,null,null,{"$f":"IFERROR(VLOOKUP(L1203,CIIU!A:B,2,0),\"\")","v":""}]
[null,null,null,null,null,null,null,null,null,null,null,null,{"$f":"IFERROR(VLOOKUP(L1204,CIIU!A:B,2,0),\"\")","v":""}]
[null,null,null,null,null,null,null,null,null,null,null,null,{"$f":"IFERROR(VLOOKUP(L1205,CIIU!A:B,2,0),\"\")","v":""}]
[null,null,null,null,null,null,null,null,null,null,null,null,{"$f":"IFERROR(VLOOKUP(L1206,CIIU!A:B,2,0),\"\")","v":""}]
[null,null,null,null,null,null,null,null,null,null,null,null,{"$f":"IFERROR(VLOOKUP(L1207,CIIU!A:B,2,0),\"\")","v":""}]
[null,null,null,null,null,null,null,null,null,null,null,null,{"$f":"IFERROR(VLOOKUP(L1208,CIIU!A:B,2,0),\"\")","v":""}]
[null,null,null,null,null,null,null,null,null,null,null,null,{"$f":"IFERROR(VLOOKUP(L1209,CIIU!A:B,2,0),\"\")","v":""}]
[null,null,null,null,null,null,null,null,null,null,null,null,{"$f":"IFERROR(VLOOKUP(L1210,CIIU!A:B,2,0),\"\")","v":""}]
[null,null,null,null,null,null,null,null,null,null,null,null,{"$f":"IFERROR(VLOOKUP(L1211,CIIU!A:B,2,0),\"\")","v":""}]
[null,null,null,null,null,null,null,null,null,null,null,null,{"$f":"IFERROR(VLOOKUP(L1212,CIIU!A:B,2,0),\"\")","v":""}]
[null,null,null,null,null,null,null,null,null,null,null,null,{"$f":"IFERROR(VLOOKUP(L1213,CIIU!A:B,2,0),\"\")","v":""}]
[null,null,null,null,null,null,null,null,null,null,null,null,{"$f":"IFERROR(VLOOKUP(L1214,CIIU!A:B,2,0),\"\")","v":""}]
[null,null,null,null,null,null,null,null,null,null,null,null,{"$f":"IFERROR(VLOOKUP(L1215,CIIU!A:B,2,0),\"\")","v":""}]
[null,null,null,null,null,null,null,null,null,null,null,null,{"$f":"IFERROR(VLOOKUP(L1216,CIIU!A:B,2,0),\"\")","v":""}]
[null,null,null,null,null,null,null,null,null,null,null,null,{"$f":"IFERROR(VLOOKUP(L1217,CIIU!A:B,2,0),\"\")","v":""}]
[null,null,null,null,null,null,null,null,null,null,null,null,{"$f":"IFERROR(VLOOKUP(L1218,CIIU!A:B,2,0),\"\")","v":""}]
[null,null,null,null,null,null,null,null,null,null,null,null,{"$f":"IFERROR(VLOOKUP(L1219,CIIU!A:B,2,0),\"\")","v":""}]
[null,null,null,null,null,null,null,null,null,null,null,null,{"$f":"IFERROR(VLOOKUP(L1220,CIIU!A:B,2,0),\"\")","v":""}]
[null,null,null,null,null,null,null,null,null,null,null,null,{"$f":"IFERROR(VLOOKUP(L1221,CIIU!A:B,2,0),\"\")","v":""}]
[null,null,null,null,null,null,null,null,null,null,null,null,{"$f":"IFERROR(VLOOKUP(L1222,CIIU!A:B,2,0),\"\")","v":""}]
[null,null,null,null,null,null,null,null,null,null,null,null,{"$f":"IFERROR(VLOOKUP(L1223,CIIU!A:B,2,0),\"\")","v":""}]
[null,null,null,null,null,null,null,null,null,null,null,null,{"$f":"IFERROR(VLOOKUP(L1224,CIIU!A:B,2,0),\"\")","v":""}]
[null,null,null,null,null,null,null,null,null,null,null,null,{"$f":"IFERROR(VLOOKUP(L1225,CIIU!A:B,2,0),\"\")","v":""}]
[null,null,null,null,null,null,null,null,null,null,null,null,{"$f":"IFERROR(VLOOKUP(L1226,CIIU!A:B,2,0),\"\")","v":""}]
[null,null,null,null,null,null,null,null,null,null,null,null,{"$f":"IFERROR(VLOOKUP(L1227,CIIU!A:B,2,0),\"\")","v":""}]
[null,null,null,null,null,null,null,null,null,null,null,null,{"$f":"IFERROR(VLOOKUP(L1228,CIIU!A:B,2,0),\"\")","v":""}]
[null,null,null,null,null,null,null,null,null,null,null,null,{"$f":"IFERROR(VLOOKUP(L1229,CIIU!A:B,2,0),\"\")","v":""}]
[null,null,null,null,null,null,null,null,null,null,null,null,{"$f":"IFERROR(VLOOKUP(L1230,CIIU!A:B,2,0),\"\")","v":""}]
[null,null,null,null,null,null,null,null,null,null,null,null,{"$f":"IFERROR(VLOOKUP(L1231,CIIU!A:B,2,0),\"\")","v":""}]
[null,null,null,null,null,null,null,null,null,null,null,null,{"$f":"IFERROR(VLOOKUP(L1232,CIIU!A:B,2,0),\"\")","v":""}]
[null,null,null,null,null,null,null,null,null,null,null,null,{"$f":"IFERROR(VLOOKUP(L1233,CIIU!A:B,2,0),\"\")","v":""}]
[null,null,null,null,null,null,null,null,null,null,null,null,{"$f":"IFERROR(VLOOKUP(L1234,CIIU!A:B,2,0),\"\")","v":""}]
[null,null,null,null,null,null,null,null,null,null,null,null,{"$f":"IFERROR(VLOOKUP(L1235,CIIU!A:B,2,0),\"\")","v":""}]
[null,null,null,null,null,null,null,null,null,null,null,null,{"$f":"IFERROR(VLOOKUP(L1236,CIIU!A:B,2,0),\"\")","v":""}]
[null,null,null,null,null,null,null,null,null,null,null,null,{"$f":"IFERROR(VLOOKUP(L1237,CIIU!A:B,2,0),\"\")","v":""}]
[null,null,null,null,null,null,null,null,null,null,null,null,{"$f":"IFERROR(VLOOKUP(L1238,CIIU!A:B,2,0),\"\")","v":""}]
[null,null,null,null,null,null,null,null,null,null,null,null,{"$f":"IFERROR(VLOOKUP(L1239,CIIU!A:B,2,0),\"\")","v":""}]
[null,null,null,null,null,null,null,null,null,null,null,null,{"$f":"IFERROR(VLOOKUP(L1240,CIIU!A:B,2,0),\"\")","v":""}]
[null,null,null,null,null,null,null,null,null,null,null,null,{"$f":"IFERROR(VLOOKUP(L1241,CIIU!A:B,2,0),\"\")","v":""}]
[null,null,null,null,null,null,null,null,null,null,null,null,{"$f":"IFERROR(VLOOKUP(L1242,CIIU!A:B,2,0),\"\")","v":""}]
[null,null,null,null,null,null,null,null,null,null,null,null,{"$f":"IFERROR(VLOOKUP(L1243,CIIU!A:B,2,0),\"\")","v":""}]
[null,null,null,null,null,null,null,null,null,null,null,null,{"$f":"IFERROR(VLOOKUP(L1244,CIIU!A:B,2,0),\"\")","v":""}]
[null,null,null,null,null,null,null,null,null,null,null,null,{"$f":"IFERROR(VLOOKUP(L1245,CIIU!A:B,2,0),\"\")","v":""}]
[null,null,null,null,null,null,null,null,null,null,null,null,{"$f":"IFERROR(VLOOKUP(L1246,CIIU!A:B,2,0),\"\")","v":""}]
[null,null,null,null,null,null,null,null,null,null,null,null,{"$f":"IFERROR(VLOOKUP(L1247,CIIU!A:B,2,0),\"\")","v":""}]
[null,null,null,null,null,null,null,null,null,null,null,null,{"$f":"IFERROR(VLOOKUP(L1248,CIIU!A:B,2,0),\"\")","v":""}]
[null,null,null,null,null,null,null,null,null,null,null,null,{"$f":"IFERROR(VLOOKUP(L1249,CIIU!A:B,2,0),\"\")","v":""}]
[null,null,null,null,null,null,null,null,null,null,null,null,{"$f":"IFERROR(VLOOKUP(L1250,CIIU!A:B,2,0),\"\")","v":""}]
[null,null,null,null,null,null,null,null,null,null,null,null,{"$f":"IFERROR(VLOOKUP(L1251,CIIU!A:B,2,0),\"\")","v":""}]
[null,null,null,null,null,null,null,null,null,null,null,null,{"$f":"IFERROR(VLOOKUP(L1252,CIIU!A:B,2,0),\"\")","v":""}]
[null,null,null,null,null,null,null,null,null,null,null,null,{"$f":"IFERROR(VLOOKUP(L1253,CIIU!A:B,2,0),\"\")","v":""}]
[null,null,null,null,null,null,null,null,null,null,null,null,{"$f":"IFERROR(VLOOKUP(L1254,CIIU!A:B,2,0),\"\")","v":""}]
[null,null,null,null,null,null,null,null,null,null,null,null,{"$f":"IFERROR(VLOOKUP(L1255,CIIU!A:B,2,0),\"\")","v":""}]
[null,null,null,null,null,null,null,null,null,null,null,null,{"$f":"IFERROR(VLOOKUP(L1256,CIIU!A:B,2,0),\"\")","v":""}]
[null,null,null,null,null,null,null,null,null,null,null,null,{"$f":"IFERROR(VLOOKUP(L1257,CIIU!A:B,2,0),\"\")","v":""}]
[null,null,null,null,null,null,null,null,null,null,null,null,{"$f":"IFERROR(VLOOKUP(L1258,CIIU!A:B,2,0),\"\")","v":""}]
[null,null,null,null,null,null,null,null,null,null,null,null,{"$f":"IFERROR(VLOOKUP(L1259,CIIU!A:B,2,0),\"\")","v":""}]
[null,null,null,null,null,null,null,null,null,null,null,null,{"$f":"IFERROR(VLOOKUP(L1260,CIIU!A:B,2,0),\"\")","v":""}]
[null,null,null,null,null,null,null,null,null,null,null,null,{"$f":"IFERROR(VLOOKUP(L1261,CIIU!A:B,2,0),\"\")","v":""}]
[null,null,null,null,null,null,null,null,null,null,null,null,{"$f":"IFERROR(VLOOKUP(L1262,CIIU!A:B,2,0),\"\")","v":""}]
[null,null,null,null,null,null,null,null,null,null,null,null,{"$f":"IFERROR(VLOOKUP(L1263,CIIU!A:B,2,0),\"\")","v":""}]
[null,null,null,null,null,null,null,null,null,null,null,null,{"$f":"IFERROR(VLOOKUP(L1264,CIIU!A:B,2,0),\"\")","v":""}]
[null,null,null,null,null,null,null,null,null,null,null,null,{"$f":"IFERROR(VLOOKUP(L1265,CIIU!A:B,2,0),\"\")","v":""}]
[null,null,null,null,null,null,null,null,null,null,null,null,{"$f":"IFERROR(VLOOKUP(L1266,CIIU!A:B,2,0),\"\")","v":""}]
[null,null,null,null,null,null,null,null,null,null,null,null,{"$f":"IFERROR(VLOOKUP(L1267,CIIU!A:B,2,0),\"\")","v":""}]
[null,null,null,null,null,null,null,null,null,null,null,null,{"$f":"IFERROR(VLOOKUP(L1268,CIIU!A:B,2,0),\"\")","v":""}]
[null,null,null,null,null,null,null,null,null,null,null,null,{"$f":"IFERROR(VLOOKUP(L1269,CIIU!A:B,2,0),\"\")","v":""}]
[null,null,null,null,null,null,null,null,null,null,null,null,{"$f":"IFERROR(VLOOKUP(L1270,CIIU!A:B,2,0),\"\")","v":""}]
[null,null,null,null,null,null,null,null,null,null,null,null,{"$f":"IFERROR(VLOOKUP(L1271,CIIU!A:B,2,0),\"\")","v":""}]
[null,null,null,null,null,null,null,null,null,null,null,null,{"$f":"IFERROR(VLOOKUP(L1272,CIIU!A:B,2,0),\"\")","v":""}]
[null,null,null,null,null,null,null,null,null,null,null,null,{"$f":"IFERROR(VLOOKUP(L1273,CIIU!A:B,2,0),\"\")","v":""}]
[null,null,null,null,null,null,null,null,null,null,null,null,{"$f":"IFERROR(VLOOKUP(L1274,CIIU!A:B,2,0),\"\")","v":""}]
[null,null,null,null,null,null,null,null,null,null,null,null,{"$f":"IFERROR(VLOOKUP(L1275,CIIU!A:B,2,0),\"\")","v":""}]
[null,null,null,null,null,null,null,null,null,null,null,null,{"$f":"IFERROR(VLOOKUP(L1276,CIIU!A:B,2,0),\"\")","v":""}]
[null,null,null,null,null,null,null,null,null,null,null,null,{"$f":"IFERROR(VLOOKUP(L1277,CIIU!A:B,2,0),\"\")","v":""}]
[null,null,null,null,null,null,null,null,null,null,null,null,{"$f":"IFERROR(VLOOKUP(L1278,CIIU!A:B,2,0),\"\")","v":""}]
[null,null,null,null,null,null,null,null,null,null,null,null,{"$f":"IFERROR(VLOOKUP(L1279,CIIU!A:B,2,0),\"\")","v":""}]
[null,null,null,null,null,null,null,null,null,null,null,null,{"$f":"IFERROR(VLOOKUP(L1280,CIIU!A:B,2,0),\"\")","v":""}]
[null,null,null,null,null,null,null,null,null,null,null,null,{"$f":"IFERROR(VLOOKUP(L1281,CIIU!A:B,2,0),\"\")","v":""}]
[null,null,null,null,null,null,null,null,null,null,null,null,{"$f":"IFERROR(VLOOKUP(L1282,CIIU!A:B,2,0),\"\")","v":""}]
[null,null,null,null,null,null,null,null,null,null,null,null,{"$f":"IFERROR(VLOOKUP(L1283,CIIU!A:B,2,0),\"\")","v":""}]
[null,null,null,null,null,null,null,null,null,null,null,null,{"$f":"IFERROR(VLOOKUP(L1284,CIIU!A:B,2,0),\"\")","v":""}]
[null,null,null,null,null,null,null,null,null,null,null,null,{"$f":"IFERROR(VLOOKUP(L1285,CIIU!A:B,2,0),\"\")","v":""}]
[null,null,null,null,null,null,null,null,null,null,null,null,{"$f":"IFERROR(VLOOKUP(L1286,CIIU!A:B,2,0),\"\")","v":""}]
[null,null,null,null,null,null,null,null,null,null,null,null,{"$f":"IFERROR(VLOOKUP(L1287,CIIU!A:B,2,0),\"\")","v":""}]
[null,null,null,null,null,null,null,null,null,null,null,null,{"$f":"IFERROR(VLOOKUP(L1288,CIIU!A:B,2,0),\"\")","v":""}]
[null,null,null,null,null,null,null,null,null,null,null,null,{"$f":"IFERROR(VLOOKUP(L1289,CIIU!A:B,2,0),\"\")","v":""}]
[null,null,null,null,null,null,null,null,null,null,null,null,{"$f":"IFERROR(VLOOKUP(L1290,CIIU!A:B,2,0),\"\")","v":""}]
[null,null,null,null,null,null,null,null,null,null,null,null,{"$f":"IFERROR(VLOOKUP(L1291,CIIU!A:B,2,0),\"\")","v":""}]
[null,null,null,null,null,null,null,null,null,null,null,null,{"$f":"IFERROR(VLOOKUP(L1292,CIIU!A:B,2,0),\"\")","v":""}]
[null,null,null,null,null,null,null,null,null,null,null,null,{"$f":"IFERROR(VLOOKUP(L1293,CIIU!A:B,2,0),\"\")","v":""}]
[null,null,null,null,null,null,null,null,null,null,null,null,{"$f":"IFERROR(VLOOKUP(L1294,CIIU!A:B,2,0),\"\")","v":""}]
[null,null,null,null,null,null,null,null,null,null,null,null,{"$f":"IFERROR(VLOOKUP(L1295,CIIU!A:B,2,0),\"\")","v":""}]
[null,null,null,null,null,null,null,null,null,null,null,null,{"$f":"IFERROR(VLOOKUP(L1296,CIIU!A:B,2,0),\"\")","v":""}]
[null,null,null,null,null,null,null,null,null,null,null,null,{"$f":"IFERROR(VLOOKUP(L1297,CIIU!A:B,2,0),\"\")","v":""}]
[null,null,null,null,null,null,null,null,null,null,null,null,{"$f":"IFERROR(VLOOKUP(L1298,CIIU!A:B,2,0),\"\")","v":""}]
[null,null,null,null,null,null,null,null,null,null,null,null,{"$f":"IFERROR(VLOOKUP(L1299,CIIU!A:B,2,0),\"\")","v":""}]
[null,null,null,null,null,null,null,null,null,null,null,null,{"$f":"IFERROR(VLOOKUP(L1300,CIIU!A:B,2,0),\"\")","v":""}]
[null,null,null,null,null,null,null,null,null,null,null,null,{"$f":"IFERROR(VLOOKUP(L1301,CIIU!A:B,2,0),\"\")","v":""}]
[null,null,null,null,null,null,null,null,null,null,null,null,{"$f":"IFERROR(VLOOKUP(L1302,CIIU!A:B,2,0),\"\")","v":""}]
[null,null,null,null,null,null,null,null,null,null,null,null,{"$f":"IFERROR(VLOOKUP(L1303,CIIU!A:B,2,0),\"\")","v":""}]
[null,null,null,null,null,null,null,null,null,null,null,null,{"$f":"IFERROR(VLOOKUP(L1304,CIIU!A:B,2,0),\"\")","v":""}]
[null,null,null,null,null,null,null,null,null,null,null,null,{"$f":"IFERROR(VLOOKUP(L1305,CIIU!A:B,2,0),\"\")","v":""}]
[null,null,null,null,null,null,null,null,null,null,null,null,{"$f":"IFERROR(VLOOKUP(L1306,CIIU!A:B,2,0),\"\")","v":""}]
[null,null,null,null,null,null,null,null,null,null,null,null,{"$f":"IFERROR(VLOOKUP(L1307,CIIU!A:B,2,0),\"\")","v":""}]
[null,null,null,null,null,null,null,null,null,null,null,null,{"$f":"IFERROR(VLOOKUP(L1308,CIIU!A:B,2,0),\"\")","v":""}]
[null,null,null,null,null,null,null,null,null,null,null,null,{"$f":"IFERROR(VLOOKUP(L1309,CIIU!A:B,2,0),\"\")","v":""}]
[null,null,null,null,null,null,null,null,null,null,null,null,{"$f":"IFERROR(VLOOKUP(L1310,CIIU!A:B,2,0),\"\")","v":""}]
[null,null,null,null,null,null,null,null,null,null,null,null,{"$f":"IFERROR(VLOOKUP(L1311,CIIU!A:B,2,0),\"\")","v":""}]
[null,null,null,null,null,null,null,null,null,null,null,null,{"$f":"IFERROR(VLOOKUP(L1312,CIIU!A:B,2,0),\"\")","v":""}]
[null,null,null,null,null,null,null,null,null,null,null,null,{"$f":"IFERROR(VLOOKUP(L1313,CIIU!A:B,2,0),\"\")","v":""}]
[null,null,null,null,null,null,null,null,null,null,null,null,{"$f":"IFERROR(VLOOKUP(L1314,CIIU!A:B,2,0),\"\")","v":""}]
[null,null,null,null,null,null,null,null,null,null,null,null,{"$f":"IFERROR(VLOOKUP(L1315,CIIU!A:B,2,0),\"\")","v":""}]
[null,null,null,null,null,null,null,null,null,null,null,null,{"$f":"IFERROR(VLOOKUP(L1316,CIIU!A:B,2,0),\"\")","v":""}]
[null,null,null,null,null,null,null,null,null,null,null,null,{"$f":"IFERROR(VLOOKUP(L1317,CIIU!A:B,2,0),\"\")","v":""}]
[null,null,null,null,null,null,null,null,null,null,null,null,{"$f":"IFERROR(VLOOKUP(L1318,CIIU!A:B,2,0),\"\")","v":""}]
[null,null,null,null,null,null,null,null,null,null,null,null,{"$f":"IFERROR(VLOOKUP(L1319,CIIU!A:B,2,0),\"\")","v":""}]
[null,null,null,null,null,null,null,null,null,null,null,null,{"$f":"IFERROR(VLOOKUP(L1320,CIIU!A:B,2,0),\"\")","v":""}]
[null,null,null,null,null,null,null,null,null,null,null,null,{"$f":"IFERROR(VLOOKUP(L1321,CIIU!A:B,2,0),\"\")","v":""}]
[null,null,null,null,null,null,null,null,null,null,null,null,{"$f":"IFERROR(VLOOKUP(L1322,CIIU!A:B,2,0),\"\")","v":""}]
[null,null,null,null,null,null,null,null,null,null,null,null,{"$f":"IFERROR(VLOOKUP(L1323,CIIU!A:B,2,0),\"\")","v":""}]
[null,null,null,null,null,null,null,null,null,null,null,null,{"$f":"IFERROR(VLOOKUP(L1324,CIIU!A:B,2,0),\"\")","v":""}]
[null,null,null,null,null,null,null,null,null,null,null,null,{"$f":"IFERROR(VLOOKUP(L1325,CIIU!A:B,2,0),\"\")","v":""}]
[null,null,null,null,null,null,null,null,null,null,null,null,{"$f":"IFERROR(VLOOKUP(L1326,CIIU!A:B,2,0),\"\")","v":""}]
[null,null,null,null,null,null,null,null,null,null,null,null,{"$f":"IFERROR(VLOOKUP(L1327,CIIU!A:B,2,0),\"\")","v":""}]
[null,null,null,null,null,null,null,null,null,null,null,null,{"$f":"IFERROR(VLOOKUP(L1328,CIIU!A:B,2,0),\"\")","v":""}]
[null,null,null,null,null,null,null,null,null,null,null,null,{"$f":"IFERROR(VLOOKUP(L1329,CIIU!A:B,2,0),\"\")","v":""}]
[null,null,null,null,null,null,null,null,null,null,null,null,{"$f":"IFERROR(VLOOKUP(L1330,CIIU!A:B,2,0),\"\")","v":""}]
[null,null,null,null,null,null,null,null,null,null,null,null,{"$f":"IFERROR(VLOOKUP(L1331,CIIU!A:B,2,0),\"\")","v":""}]
[null,null,null,null,null,null,null,null,null,null,null,null,{"$f":"IFERROR(VLOOKUP(L1332,CIIU!A:B,2,0),\"\")","v":""}]
[null,null,null,null,null,null,null,null,null,null,null,null,{"$f":"IFERROR(VLOOKUP(L1333,CIIU!A:B,2,0),\"\")","v":""}]
[null,null,null,null,null,null,null,null,null,null,null,null,{"$f":"IFERROR(VLOOKUP(L1334,CIIU!A:B,2,0),\"\")","v":""}]
[null,null,null,null,null,null,null,null,null,null,null,null,{"$f":"IFERROR(VLOOKUP(L1335,CIIU!A:B,2,0),\"\")","v":""}]
[null,null,null,null,null,null,null,null,null,null,null,null,{"$f":"IFERROR(VLOOKUP(L1336,CIIU!A:B,2,0),\"\")","v":""}]
[null,null,null,null,null,null,null,null,null,null,null,null,{"$f":"IFERROR(VLOOKUP(L1337,CIIU!A:B,2,0),\"\")","v":""}]
[null,null,null,null,null,null,null,null,null,null,null,null,{"$f":"IFERROR(VLOOKUP(L1338,CIIU!A:B,2,0),\"\")","v":""}]
[null,null,null,null,null,null,null,null,null,null,null,null,{"$f":"IFERROR(VLOOKUP(L1339,CIIU!A:B,2,0),\"\")","v":""}]
[null,null,null,null,null,null,null,null,null,null,null,null,{"$f":"IFERROR(VLOOKUP(L1340,CIIU!A:B,2,0),\"\")","v":""}]
[null,null,null,null,null,null,null,null,null,null,null,null,{"$f":"IFERROR(VLOOKUP(L1341,CIIU!A:B,2,0),\"\")","v":""}]
[null,null,null,null,null,null,null,null,null,null,null,null,{"$f":"IFERROR(VLOOKUP(L1342,CIIU!A:B,2,0),\"\")","v":""}]
[null,null,null,null,null,null,null,null,null,null,null,null,{"$f":"IFERROR(VLOOKUP(L1343,CIIU!A:B,2,0),\"\")","v":""}]
[null,null,null,null,null,null,null,null,null,null,null,null,{"$f":"IFERROR(VLOOKUP(L1344,CIIU!A:B,2,0),\"\")","v":""}]
[null,null,null,null,null,null,null,null,null,null,null,null,{"$f":"IFERROR(VLOOKUP(L1345,CIIU!A:B,2,0),\"\")","v":""}]
[null,null,null,null,null,null,null,null,null,null,null,null,{"$f":"IFERROR(VLOOKUP(L1346,CIIU!A:B,2,0),\"\")","v":""}]
[null,null,null,null,null,null,null,null,null,null,null,null,{"$f":"IFERROR(VLOOKUP(L1347,CIIU!A:B,2,0),\"\")","v":""}]
[null,null,null,null,null,null,null,null,null,null,null,null,{"$f":"IFERROR(VLOOKUP(L1348,CIIU!A:B,2,0),\"\")","v":""}]
[null,null,null,null,null,null,null,null,null,null,null,null,{"$f":"IFERROR(VLOOKUP(L1349,CIIU!A:B,2,0),\"\")","v":""}]
[null,null,null,null,null,null,null,null,null,null,null,null,{"$f":"IFERROR(VLOOKUP(L1350,CIIU!A:B,2,0),\"\")","v":""}]
[null,null,null,null,null,null,null,null,null,null,null,null,{"$f":"IFERROR(VLOOKUP(L1351,CIIU!A:B,2,0),\"\")","v":""}]
[null,null,null,null,null,null,null,null,null,null,null,null,{"$f":"IFERROR(VLOOKUP(L1352,CIIU!A:B,2,0),\"\")","v":""}]
[null,null,null,null,null,null,null,null,null,null,null,null,{"$f":"IFERROR(VLOOKUP(L1353,CIIU!A:B,2,0),\"\")","v":""}]
[null,null,null,null,null,null,null,null,null,null,null,null,{"$f":"IFERROR(VLOOKUP(L1354,CIIU!A:B,2,0),\"\")","v":""}]
[null,null,null,null,null,null,null,null,null,null,null,null,{"$f":"IFERROR(VLOOKUP(L1355,CIIU!A:B,2,0),\"\")","v":""}]
[null,null,null,null,null,null,null,null,null,null,null,null,{"$f":"IFERROR(VLOOKUP(L1356,CIIU!A:B,2,0),\"\")","v":""}]
[null,null,null,null,null,null,null,null,null,null,null,null,{"$f":"IFERROR(VLOOKUP(L1357,CIIU!A:B,2,0),\"\")","v":""}]
[null,null,null,null,null,null,null,null,null,null,null,null,{"$f":"IFERROR(VLOOKUP(L1358,CIIU!A:B,2,0),\"\")","v":""}]
[null,null,null,null,null,null,null,null,null,null,null,null,{"$f":"IFERROR(VLOOKUP(L1359,CIIU!A:B,2,0),\"\")","v":""}]
[null,null,null,null,null,null,null,null,null,null,null,null,{"$f":"IFERROR(VLOOKUP(L1360,CIIU!A:B,2,0),\"\")","v":""}]
[null,null,null,null,null,null,null,null,null,null,null,null,{"$f":"IFERROR(VLOOKUP(L1361,CIIU!A:B,2,0),\"\")","v":""}]
[null,null,null,null,null,null,null,null,null,null,null,null,{"$f":"IFERROR(VLOOKUP(L1362,CIIU!A:B,2,0),\"\")","v":""}]
[null,null,null,null,null,null,null,null,null,null,null,null,{"$f":"IFERROR(VLOOKUP(L1363,CIIU!A:B,2,0),\"\")","v":""}]
[null,null,null,null,null,null,null,null,null,null,null,null,{"$f":"IFERROR(VLOOKUP(L1364,CIIU!A:B,2,0),\"\")","v":""}]
[null,null,null,null,null,null,null,null,null,null,null,null,{"$f":"IFERROR(VLOOKUP(L1365,CIIU!A:B,2,0),\"\")","v":""}]
[null,null,null,null,null,null,null,null,null,null,null,null,{"$f":"IFERROR(VLOOKUP(L1366,CIIU!A:B,2,0),\"\")","v":""}]
[null,null,null,null,null,null,null,null,null,null,null,null,{"$f":"IFERROR(VLOOKUP(L1367,CIIU!A:B,2,0),\"\")","v":""}]
[null,null,null,null,null,null,null,null,null,null,null,null,{"$f":"IFERROR(VLOOKUP(L1368,CIIU!A:B,2,0),\"\")","v":""}]
[null,null,null,null,null,null,null,null,null,null,null,null,{"$f":"IFERROR(VLOOKUP(L1369,CIIU!A:B,2,0),\"\")","v":""}]
[null,null,null,null,null,null,null,null,null,null,null,null,{"$f":"IFERROR(VLOOKUP(L1370,CIIU!A:B,2,0),\"\")","v":""}]
[null,null,null,null,null,null,null,null,null,null,null,null,{"$f":"IFERROR(VLOOKUP(L1371,CIIU!A:B,2,0),\"\")","v":""}]
[null,null,null,null,null,null,null,null,null,null,null,null,{"$f":"IFERROR(VLOOKUP(L1372,CIIU!A:B,2,0),\"\")","v":""}]
[null,null,null,null,null,null,null,null,null,null,null,null,{"$f":"IFERROR(VLOOKUP(L1373,CIIU!A:B,2,0),\"\")","v":""}]
[null,null,null,null,null,null,null,null,null,null,null,null,{"$f":"IFERROR(VLOOKUP(L1374,CIIU!A:B,2,0),\"\")","v":""}]
[null,null,null,null,null,null,null,null,null,null,null,null,{"$f":"IFERROR(VLOOKUP(L1375,CIIU!A:B,2,0),\"\")","v":""}]
[null,null,null,null,null,null,null,null,null,null,null,null,{"$f":"IFERROR(VLOOKUP(L1376,CIIU!A:B,2,0),\"\")","v":""}]
[null,null,null,null,null,null,null,null,null,null,null,null,{"$f":"IFERROR(VLOOKUP(L1377,CIIU!A:B,2,0),\"\")","v":""}]
[null,null,null,null,null,null,null,null,null,null,null,null,{"$f":"IFERROR(VLOOKUP(L1378,CIIU!A:B,2,0),\"\")","v":""}]
[null,null,null,null,null,null,null,null,null,null,null,null,{"$f":"IFERROR(VLOOKUP(L1379,CIIU!A:B,2,0),\"\")","v":""}]
[null,null,null,null,null,null,null,null,null,null,null,null,{"$f":"IFERROR(VLOOKUP(L1380,CIIU!A:B,2,0),\"\")","v":""}]
[null,null,null,null,null,null,null,null,null,null,null,null,{"$f":"IFERROR(VLOOKUP(L1381,CIIU!A:B,2,0),\"\")","v":""}]
[null,null,null,null,null,null,null,null,null,null,null,null,{"$f":"IFERROR(VLOOKUP(L1382,CIIU!A:B,2,0),\"\")","v":""}]
[null,null,null,null,null,null,null,null,null,null,null,null,{"$f":"IFERROR(VLOOKUP(L1383,CIIU!A:B,2,0),\"\")","v":""}]
[null,null,null,null,null,null,null,null,null,null,null,null,{"$f":"IFERROR(VLOOKUP(L1384,CIIU!A:B,2,0),\"\")","v":""}]
[null,null,null,null,null,null,null,null,null,null,null,null,{"$f":"IFERROR(VLOOKUP(L1385,CIIU!A:B,2,0),\"\")","v":""}]
[null,null,null,null,null,null,null,null,null,null,null,null,{"$f":"IFERROR(VLOOKUP(L1386,CIIU!A:B,2,0),\"\")","v":""}]
[null,null,null,null,null,null,null,null,null,null,null,null,{"$f":"IFERROR(VLOOKUP(L1387,CIIU!A:B,2,0),\"\")","v":""}]
[null,null,null,null,null,null,null,null,null,null,null,null,{"$f":"IFERROR(VLOOKUP(L1388,CIIU!A:B,2,0),\"\")","v":""}]
[null,null,null,null,null,null,null,null,null,null,null,null,{"$f":"IFERROR(VLOOKUP(L1389,CIIU!A:B,2,0),\"\")","v":""}]
[null,null,null,null,null,null,null,null,null,null,null,null,{"$f":"IFERROR(VLOOKUP(L1390,CIIU!A:B,2,0),\"\")","v":""}]
[null,null,null,null,null,null,null,null,null,null,null,null,{"$f":"IFERROR(VLOOKUP(L1391,CIIU!A:B,2,0),\"\")","v":""}]
[null,null,null,null,null,null,null,null,null,null,null,null,{"$f":"IFERROR(VLOOKUP(L1392,CIIU!A:B,2,0),\"\")","v":""}]
[null,null,null,null,null,null,null,null,null,null,null,null,{"$f":"IFERROR(VLOOKUP(L1393,CIIU!A:B,2,0),\"\")","v":""}]
[null,null,null,null,null,null,null,null,null,null,null,null,{"$f":"IFERROR(VLOOKUP(L1394,CIIU!A:B,2,0),\"\")","v":""}]
[null,null,null,null,null,null,null,null,null,null,null,null,{"$f":"IFERROR(VLOOKUP(L1395,CIIU!A:B,2,0),\"\")","v":""}]
[null,null,null,null,null,null,null,null,null,null,null,null,{"$f":"IFERROR(VLOOKUP(L1396,CIIU!A:B,2,0),\"\")","v":""}]
[null,null,null,null,null,null,null,null,null,null,null,null,{"$f":"IFERROR(VLOOKUP(L1397,CIIU!A:B,2,0),\"\")","v":""}]
[null,null,null,null,null,null,null,null,null,null,null,null,{"$f":"IFERROR(VLOOKUP(L1398,CIIU!A:B,2,0),\"\")","v":""}]
[null,null,null,null,null,null,null,null,null,null,null,null,{"$f":"IFERROR(VLOOKUP(L1399,CIIU!A:B,2,0),\"\")","v":""}]
[null,null,null,null,null,null,null,null,null,null,null,null,{"$f":"IFERROR(VLOOKUP(L1400,CIIU!A:B,2,0),\"\")","v":""}]
[null,null,null,null,null,null,null,null,null,null,null,null,{"$f":"IFERROR(VLOOKUP(L1401,CIIU!A:B,2,0),\"\")","v":""}]
[null,null,null,null,null,null,null,null,null,null,null,null,{"$f":"IFERROR(VLOOKUP(L1402,CIIU!A:B,2,0),\"\")","v":""}]
[null,null,null,null,null,null,null,null,null,null,null,null,{"$f":"IFERROR(VLOOKUP(L1403,CIIU!A:B,2,0),\"\")","v":""}]
[null,null,null,null,null,null,null,null,null,null,null,null,{"$f":"IFERROR(VLOOKUP(L1404,CIIU!A:B,2,0),\"\")","v":""}]
[null,null,null,null,null,null,null,null,null,null,null,null,{"$f":"IFERROR(VLOOKUP(L1405,CIIU!A:B,2,0),\"\")","v":""}]
[null,null,null,null,null,null,null,null,null,null,null,null,{"$f":"IFERROR(VLOOKUP(L1406,CIIU!A:B,2,0),\"\")","v":""}]
[null,null,null,null,null,null,null,null,null,null,null,null,{"$f":"IFERROR(VLOOKUP(L1407,CIIU!A:B,2,0),\"\")","v":""}]
[null,null,null,null,null,null,null,null,null,null,null,null,{"$f":"IFERROR(VLOOKUP(L1408,CIIU!A:B,2,0),\"\")","v":""}]
[null,null,null,null,null,null,null,null,null,null,null,null,{"$f":"IFERROR(VLOOKUP(L1409,CIIU!A:B,2,0),\"\")","v":""}]
[null,null,null,null,null,null,null,null,null,null,null,null,{"$f":"IFERROR(VLOOKUP(L1410,CIIU!A:B,2,0),\"\")","v":""}]
[null,null,null,null,null,null,null,null,null,null,null,null,{"$f":"IFERROR(VLOOKUP(L1411,CIIU!A:B,2,0),\"\")","v":""}]
[null,null,null,null,null,null,null,null,null,null,null,null,{"$f":"IFERROR(VLOOKUP(L1412,CIIU!A:B,2,0),\"\")","v":""}]
[null,null,null,null,null,null,null,null,null,null,null,null,{"$f":"IFERROR(VLOOKUP(L1413,CIIU!A:B,2,0),\"\")","v":""}]
[null,null,null,null,null,null,null,null,null,null,null,null,{"$f":"IFERROR(VLOOKUP(L1414,CIIU!A:B,2,0),\"\")","v":""}]
[null,null,null,null,null,null,null,null,null,null,null,null,{"$f":"IFERROR(VLOOKUP(L1415,CIIU!A:B,2,0),\"\")","v":""}]
[null,null,null,null,null,null,null,null,null,null,null,null,{"$f":"IFERROR(VLOOKUP(L1416,CIIU!A:B,2,0),\"\")","v":""}]
[null,null,null,null,null,null,null,null,null,null,null,null,{"$f":"IFERROR(VLOOKUP(L1417,CIIU!A:B,2,0),\"\")","v":""}]
[null,null,null,null,null,null,null,null,null,null,null,null,{"$f":"IFERROR(VLOOKUP(L1418,CIIU!A:B,2,0),\"\")","v":""}]
[null,null,null,null,null,null,null,null,null,null,null,null,{"$f":"IFERROR(VLOOKUP(L1419,CIIU!A:B,2,0),\"\")","v":""}]
[null,null,null,null,null,null,null,null,null,null,null,null,{"$f":"IFERROR(VLOOKUP(L1420,CIIU!A:B,2,0),\"\")","v":""}]
[null,null,null,null,null,null,null,null,null,null,null,null,{"$f":"IFERROR(VLOOKUP(L1421,CIIU!A:B,2,0),\"\")","v":""}]
[null,null,null,null,null,null,null,null,null,null,null,null,{"$f":"IFERROR(VLOOKUP(L1422,CIIU!A:B,2,0),\"\")","v":""}]
[null,null,null,null,null,null,null,null,null,null,null,null,{"$f":"IFERROR(VLOOKUP(L1423,CIIU!A:B,2,0),\"\")","v":""}]
[null,null,null,null,null,null,null,null,null,null,null,null,{"$f":"IFERROR(VLOOKUP(L1424,CIIU!A:B,2,0),\"\")","v":""}]
[null,null,null,null,null,null,null,null,null,null,null,null,{"$f":"IFERROR(VLOOKUP(L1425,CIIU!A:B,2,0),\"\")","v":""}]
[null,null,null,null,null,null,null,null,null,null,null,null,{"$f":"IFERROR(VLOOKUP(L1426,CIIU!A:B,2,0),\"\")","v":""}]
[null,null,null,null,null,null,null,null,null,null,null,null,{"$f":"IFERROR(VLOOKUP(L1427,CIIU!A:B,2,0),\"\")","v":""}]
[null,null,null,null,null,null,null,null,null,null,null,null,{"$f":"IFERROR(VLOOKUP(L1428,CIIU!A:B,2,0),\"\")","v":""}]
[null,null,null,null,null,null,null,null,null,null,null,null,{"$f":"IFERROR(VLOOKUP(L1429,CIIU!A:B,2,0),\"\")","v":""}]
[null,null,null,null,null,null,null,null,null,null,null,null,{"$f":"IFERROR(VLOOKUP(L1430,CIIU!A:B,2,0),\"\")","v":""}]
[null,null,null,null,null,null,null,null,null,null,null,null,{"$f":"IFERROR(VLOOKUP(L1431,CIIU!A:B,2,0),\"\")","v":""}]
[null,null,null,null,null,null,null,null,null,null,null,null,{"$f":"IFERROR(VLOOKUP(L1432,CIIU!A:B,2,0),\"\")","v":""}]
[null,null,null,null,null,null,null,null,null,null,null,null,{"$f":"IFERROR(VLOOKUP(L1433,CIIU!A:B,2,0),\"\")","v":""}]
[null,null,null,null,null,null,null,null,null,null,null,null,{"$f":"IFERROR(VLOOKUP(L1434,CIIU!A:B,2,0),\"\")","v":""}]
[null,null,null,null,null,null,null,null,null,null,null,null,{"$f":"IFERROR(VLOOKUP(L1435,CIIU!A:B,2,0),\"\")","v":""}]
[null,null,null,null,null,null,null,null,null,null,null,null,{"$f":"IFERROR(VLOOKUP(L1436,CIIU!A:B,2,0),\"\")","v":""}]
[null,null,null,null,null,null,null,null,null,null,null,null,{"$f":"IFERROR(VLOOKUP(L1437,CIIU!A:B,2,0),\"\")","v":""}]
[null,null,null,null,null,null,null,null,null,null,null,null,{"$f":"IFERROR(VLOOKUP(L1438,CIIU!A:B,2,0),\"\")","v":""}]
[null,null,null,null,null,null,null,null,null,null,null,null,{"$f":"IFERROR(VLOOKUP(L1439,CIIU!A:B,2,0),\"\")","v":""}]
[null,null,null,null,null,null,null,null,null,null,null,null,{"$f":"IFERROR(VLOOKUP(L1440,CIIU!A:B,2,0),\"\")","v":""}]
[null,null,null,null,null,null,null,null,null,null,null,null,{"$f":"IFERROR(VLOOKUP(L1441,CIIU!A:B,2,0),\"\")","v":""}]
[null,null,null,null,null,null,null,null,null,null,null,null,{"$f":"IFERROR(VLOOKUP(L1442,CIIU!A:B,2,0),\"\")","v":""}]
[null,null,null,null,null,null,null,null,null,null,null,null,{"$f":"IFERROR(VLOOKUP(L1443,CIIU!A:B,2,0),\"\")","v":""}]
[null,null,null,null,null,null,null,null,null,null,null,null,{"$f":"IFERROR(VLOOKUP(L1444,CIIU!A:B,2,0),\"\")","v":""}]
[null,null,null,null,null,null,null,null,null,null,null,null,{"$f":"IFERROR(VLOOKUP(L1445,CIIU!A:B,2,0),\"\")","v":""}]
[null,null,null,null,null,null,null,null,null,null,null,null,{"$f":"IFERROR(VLOOKUP(L1446,CIIU!A:B,2,0),\"\")","v":""}]
[null,null,null,null,null,null,null,null,null,null,null,null,{"$f":"IFERROR(VLOOKUP(L1447,CIIU!A:B,2,0),\"\")","v":""}]
[null,null,null,null,null,null,null,null,null,null,null,null,{"$f":"IFERROR(VLOOKUP(L1448,CIIU!A:B,2,0),\"\")","v":""}]
[null,null,null,null,null,null,null,null,null,null,null,null,{"$f":"IFERROR(VLOOKUP(L1449,CIIU!A:B,2,0),\"\")","v":""}]
[null,null,null,null,null,null,null,null,null,null,null,null,{"$f":"IFERROR(VLOOKUP(L1450,CIIU!A:B,2,0),\"\")","v":""}]
[null,null,null,null,null,null,null,null,null,null,null,null,{"$f":"IFERROR(VLOOKUP(L1451,CIIU!A:B,2,0),\"\")","v":""}]
[null,null,null,null,null,null,null,null,null,null,null,null,{"$f":"IFERROR(VLOOKUP(L1452,CIIU!A:B,2,0),\"\")","v":""}]
[null,null,null,null,null,null,null,null,null,null,null,null,{"$f":"IFERROR(VLOOKUP(L1453,CIIU!A:B,2,0),\"\")","v":""}]
[null,null,null,null,null,null,null,null,null,null,null,null,{"$f":"IFERROR(VLOOKUP(L1454,CIIU!A:B,2,0),\"\")","v":""}]
[null,null,null,null,null,null,null,null,null,null,null,null,{"$f":"IFERROR(VLOOKUP(L1455,CIIU!A:B,2,0),\"\")","v":""}]
[null,null,null,null,null,null,null,null,null,null,null,null,{"$f":"IFERROR(VLOOKUP(L1456,CIIU!A:B,2,0),\"\")","v":""}]
[null,null,null,null,null,null,null,null,null,null,null,null,{"$f":"IFERROR(VLOOKUP(L1457,CIIU!A:B,2,0),\"\")","v":""}]
[null,null,null,null,null,null,null,null,null,null,null,null,{"$f":"IFERROR(VLOOKUP(L1458,CIIU!A:B,2,0),\"\")","v":""}]
[null,null,null,null,null,null,null,null,null,null,null,null,{"$f":"IFERROR(VLOOKUP(L1459,CIIU!A:B,2,0),\"\")","v":""}]
[null,null,null,null,null,null,null,null,null,null,null,null,{"$f":"IFERROR(VLOOKUP(L1460,CIIU!A:B,2,0),\"\")","v":""}]
[null,null,null,null,null,null,null,null,null,null,null,null,{"$f":"IFERROR(VLOOKUP(L1461,CIIU!A:B,2,0),\"\")","v":""}]
[null,null,null,null,null,null,null,null,null,null,null,null,{"$f":"IFERROR(VLOOKUP(L1462,CIIU!A:B,2,0),\"\")","v":""}]
[null,null,null,null,null,null,null,null,null,null,null,null,{"$f":"IFERROR(VLOOKUP(L1463,CIIU!A:B,2,0),\"\")","v":""}]
[null,null,null,null,null,null,null,null,null,null,null,null,{"$f":"IFERROR(VLOOKUP(L1464,CIIU!A:B,2,0),\"\")","v":""}]
[null,null,null,null,null,null,null,null,null,null,null,null,{"$f":"IFERROR(VLOOKUP(L1465,CIIU!A:B,2,0),\"\")","v":""}]
[null,null,null,null,null,null,null,null,null,null,null,null,{"$f":"IFERROR(VLOOKUP(L1466,CIIU!A:B,2,0),\"\")","v":""}]
[null,null,null,null,null,null,null,null,null,null,null,null,{"$f":"IFERROR(VLOOKUP(L1467,CIIU!A:B,2,0),\"\")","v":""}]
[null,null,null,null,null,null,null,null,null,null,null,null,{"$f":"IFERROR(VLOOKUP(L1468,CIIU!A:B,2,0),\"\")","v":""}]
[null,null,null,null,null,null,null,null,null,null,null,null,{"$f":"IFERROR(VLOOKUP(L1469,CIIU!A:B,2,0),\"\")","v":""}]
[null,null,null,null,null,null,null,null,null,null,null,null,{"$f":"IFERROR(VLOOKUP(L1470,CIIU!A:B,2,0),\"\")","v":""}]
[null,null,null,null,null,null,null,null,null,null,null,null,{"$f":"IFERROR(VLOOKUP(L1471,CIIU!A:B,2,0),\"\")","v":""}]
[null,null,null,null,null,null,null,null,null,null,null,null,{"$f":"IFERROR(VLOOKUP(L1472,CIIU!A:B,2,0),\"\")","v":""}]
[null,null,null,null,null,null,null,null,null,null,null,null,{"$f":"IFERROR(VLOOKUP(L1473,CIIU!A:B,2,0),\"\")","v":""}]
[null,null,null,null,null,null,null,null,null,null,null,null,{"$f":"IFERROR(VLOOKUP(L1474,CIIU!A:B,2,0),\"\")","v":""}]
[null,null,null,null,null,null,null,null,null,null,null,null,{"$f":"IFERROR(VLOOKUP(L1475,CIIU!A:B,2,0),\"\")","v":""}]
[null,null,null,null,null,null,null,null,null,null,null,null,{"$f":"IFERROR(VLOOKUP(L1476,CIIU!A:B,2,0),\"\")","v":""}]
[null,null,null,null,null,null,null,null,null,null,null,null,{"$f":"IFERROR(VLOOKUP(L1477,CIIU!A:B,2,0),\"\")","v":""}]
[null,null,null,null,null,null,null,null,null,null,null,null,{"$f":"IFERROR(VLOOKUP(L1478,CIIU!A:B,2,0),\"\")","v":""}]
[null,null,null,null,null,null,null,null,null,null,null,null,{"$f":"IFERROR(VLOOKUP(L1479,CIIU!A:B,2,0),\"\")","v":""}]
[null,null,null,null,null,null,null,null,null,null,null,null,{"$f":"IFERROR(VLOOKUP(L1480,CIIU!A:B,2,0),\"\")","v":""}]
[null,null,null,null,null,null,null,null,null,null,null,null,{"$f":"IFERROR(VLOOKUP(L1481,CIIU!A:B,2,0),\"\")","v":""}]
[null,null,null,null,null,null,null,null,null,null,null,null,{"$f":"IFERROR(VLOOKUP(L1482,CIIU!A:B,2,0),\"\")","v":""}]
[null,null,null,null,null,null,null,null,null,null,null,null,{"$f":"IFERROR(VLOOKUP(L1483,CIIU!A:B,2,0),\"\")","v":""}]
[null,null,null,null,null,null,null,null,null,null,null,null,{"$f":"IFERROR(VLOOKUP(L1484,CIIU!A:B,2,0),\"\")","v":""}]
[null,null,null,null,null,null,null,null,null,null,null,null,{"$f":"IFERROR(VLOOKUP(L1485,CIIU!A:B,2,0),\"\")","v":""}]
[null,null,null,null,null,null,null,null,null,null,null,null,{"$f":"IFERROR(VLOOKUP(L1486,CIIU!A:B,2,0),\"\")","v":""}]
[null,null,null,null,null,null,null,null,null,null,null,null,{"$f":"IFERROR(VLOOKUP(L1487,CIIU!A:B,2,0),\"\")","v":""}]
[null,null,null,null,null,null,null,null,null,null,null,null,{"$f":"IFERROR(VLOOKUP(L1488,CIIU!A:B,2,0),\"\")","v":""}]
[null,null,null,null,null,null,null,null,null,null,null,null,{"$f":"IFERROR(VLOOKUP(L1489,CIIU!A:B,2,0),\"\")","v":""}]
[null,null,null,null,null,null,null,null,null,null,null,null,{"$f":"IFERROR(VLOOKUP(L1490,CIIU!A:B,2,0),\"\")","v":""}]
[null,null,null,null,null,null,null,null,null,null,null,null,{"$f":"IFERROR(VLOOKUP(L1491,CIIU!A:B,2,0),\"\")","v":""}]
[null,null,null,null,null,null,null,null,null,null,null,null,{"$f":"IFERROR(VLOOKUP(L1492,CIIU!A:B,2,0),\"\")","v":""}]
[null,null,null,null,null,null,null,null,null,null,null,null,{"$f":"IFERROR(VLOOKUP(L1493,CIIU!A:B,2,0),\"\")","v":""}]
[null,null,null,null,null,null,null,null,null,null,null,null,{"$f":"IFERROR(VLOOKUP(L1494,CIIU!A:B,2,0),\"\")","v":""}]
[null,null,null,null,null,null,null,null,null,null,null,null,{"$f":"IFERROR(VLOOKUP(L1495,CIIU!A:B,2,0),\"\")","v":""}]
[null,null,null,null,null,null,null,null,null,null,null,null,{"$f":"IFERROR(VLOOKUP(L1496,CIIU!A:B,2,0),\"\")","v":""}]
[null,null,null,null,null,null,null,null,null,null,null,null,{"$f":"IFERROR(VLOOKUP(L1497,CIIU!A:B,2,0),\"\")","v":""}]
[null,null,null,null,null,null,null,null,null,null,null,null,{"$f":"IFERROR(VLOOKUP(L1498,CIIU!A:B,2,0),\"\")","v":""}]
[null,null,null,null,null,null,null,null,null,null,null,null,{"$f":"IFERROR(VLOOKUP(L1499,CIIU!A:B,2,0),\"\")","v":""}]
[null,null,null,null,null,null,null,null,null,null,null,null,{"$f":"IFERROR(VLOOKUP(L1500,CIIU!A:B,2,0),\"\")","v":""}]
[null,null,null,null,null,null,null,null,null,null,null,null,{"$f":"IFERROR(VLOOKUP(L1501,CIIU!A:B,2,0),\"\")","v":""}]
[null,null,null,null,null,null,null,null,null,null,null,null,{"$f":"IFERROR(VLOOKUP(L1502,CIIU!A:B,2,0),\"\")","v":""}]
[null,null,null,null,null,null,null,null,null,null,null,null,{"$f":"IFERROR(VLOOKUP(L1503,CIIU!A:B,2,0),\"\")","v":""}]
[null,null,null,null,null,null,null,null,null,null,null,null,{"$f":"IFERROR(VLOOKUP(L1504,CIIU!A:B,2,0),\"\")","v":""}]
[null,null,null,null,null,null,null,null,null,null,null,null,{"$f":"IFERROR(VLOOKUP(L1505,CIIU!A:B,2,0),\"\")","v":""}]
[null,null,null,null,null,null,null,null,null,null,null,null,{"$f":"IFERROR(VLOOKUP(L1506,CIIU!A:B,2,0),\"\")","v":""}]
[null,null,null,null,null,null,null,null,null,null,null,null,{"$f":"IFERROR(VLOOKUP(L1507,CIIU!A:B,2,0),\"\")","v":""}]
[null,null,null,null,null,null,null,null,null,null,null,null,{"$f":"IFERROR(VLOOKUP(L1508,CIIU!A:B,2,0),\"\")","v":""}]
[null,null,null,null,null,null,null,null,null,null,null,null,{"$f":"IFERROR(VLOOKUP(L1509,CIIU!A:B,2,0),\"\")","v":""}]
[null,null,null,null,null,null,null,null,null,null,null,null,{"$f":"IFERROR(VLOOKUP(L1510,CIIU!A:B,2,0),\"\")","v":""}]
[null,null,null,null,null,null,null,null,null,null,null,null,{"$f":"IFERROR(VLOOKUP(L1511,CIIU!A:B,2,0),\"\")","v":""}]
[null,null,null,null,null,null,null,null,null,null,null,null,{"$f":"IFERROR(VLOOKUP(L1512,CIIU!A:B,2,0),\"\")","v":""}]
[null,null,null,null,null,null,null,null,null,null,null,null,{"$f":"IFERROR(VLOOKUP(L1513,CIIU!A:B,2,0),\"\")","v":""}]
[null,null,null,null,null,null,null,null,null,null,null,null,{"$f":"IFERROR(VLOOKUP(L1514,CIIU!A:B,2,0),\"\")","v":""}]
[null,null,null,null,null,null,null,null,null,null,null,null,{"$f":"IFERROR(VLOOKUP(L1515,CIIU!A:B,2,0),\"\")","v":""}]
[null,null,null,null,null,null,null,null,null,null,null,null,{"$f":"IFERROR(VLOOKUP(L1516,CIIU!A:B,2,0),\"\")","v":""}]
[null,null,null,null,null,null,null,null,null,null,null,null,{"$f":"IFERROR(VLOOKUP(L1517,CIIU!A:B,2,0),\"\")","v":""}]
[null,null,null,null,null,null,null,null,null,null,null,null,{"$f":"IFERROR(VLOOKUP(L1518,CIIU!A:B,2,0),\"\")","v":""}]
[null,null,null,null,null,null,null,null,null,null,null,null,{"$f":"IFERROR(VLOOKUP(L1519,CIIU!A:B,2,0),\"\")","v":""}]
[null,null,null,null,null,null,null,null,null,null,null,null,{"$f":"IFERROR(VLOOKUP(L1520,CIIU!A:B,2,0),\"\")","v":""}]
[null,null,null,null,null,null,null,null,null,null,null,null,{"$f":"IFERROR(VLOOKUP(L1521,CIIU!A:B,2,0),\"\")","v":""}]
[null,null,null,null,null,null,null,null,null,null,null,null,{"$f":"IFERROR(VLOOKUP(L1522,CIIU!A:B,2,0),\"\")","v":""}]
[null,null,null,null,null,null,null,null,null,null,null,null,{"$f":"IFERROR(VLOOKUP(L1523,CIIU!A:B,2,0),\"\")","v":""}]
[null,null,null,null,null,null,null,null,null,null,null,null,{"$f":"IFERROR(VLOOKUP(L1524,CIIU!A:B,2,0),\"\")","v":""}]
[null,null,null,null,null,null,null,null,null,null,null,null,{"$f":"IFERROR(VLOOKUP(L1525,CIIU!A:B,2,0),\"\")","v":""}]
[null,null,null,null,null,null,null,null,null,null,null,null,{"$f":"IFERROR(VLOOKUP(L1526,CIIU!A:B,2,0),\"\")","v":""}]
[null,null,null,null,null,null,null,null,null,null,null,null,{"$f":"IFERROR(VLOOKUP(L1527,CIIU!A:B,2,0),\"\")","v":""}]
[null,null,null,null,null,null,null,null,null,null,null,null,{"$f":"IFERROR(VLOOKUP(L1528,CIIU!A:B,2,0),\"\")","v":""}]
[null,null,null,null,null,null,null,null,null,null,null,null,{"$f":"IFERROR(VLOOKUP(L1529,CIIU!A:B,2,0),\"\")","v":""}]
[null,null,null,null,null,null,null,null,null,null,null,null,{"$f":"IFERROR(VLOOKUP(L1530,CIIU!A:B,2,0),\"\")","v":""}]
[null,null,null,null,null,null,null,null,null,null,null,null,{"$f":"IFERROR(VLOOKUP(L1531,CIIU!A:B,2,0),\"\")","v":""}]
[null,null,null,null,null,null,null,null,null,null,null,null,{"$f":"IFERROR(VLOOKUP(L1532,CIIU!A:B,2,0),\"\")","v":""}]
[null,null,null,null,null,null,null,null,null,null,null,null,{"$f":"IFERROR(VLOOKUP(L1533,CIIU!A:B,2,0),\"\")","v":""}]
[null,null,null,null,null,null,null,null,null,null,null,null,{"$f":"IFERROR(VLOOKUP(L1534,CIIU!A:B,2,0),\"\")","v":""}]
[null,null,null,null,null,null,null,null,null,null,null,null,{"$f":"IFERROR(VLOOKUP(L1535,CIIU!A:B,2,0),\"\")","v":""}]
[null,null,null,null,null,null,null,null,null,null,null,null,{"$f":"IFERROR(VLOOKUP(L1536,CIIU!A:B,2,0),\"\")","v":""}]
[null,null,null,null,null,null,null,null,null,null,null,null,{"$f":"IFERROR(VLOOKUP(L1537,CIIU!A:B,2,0),\"\")","v":""}]
[null,null,null,null,null,null,null,null,null,null,null,null,{"$f":"IFERROR(VLOOKUP(L1538,CIIU!A:B,2,0),\"\")","v":""}]
[null,null,null,null,null,null,null,null,null,null,null,null,{"$f":"IFERROR(VLOOKUP(L1539,CIIU!A:B,2,0),\"\")","v":""}]
[null,null,null,null,null,null,null,null,null,null,null,null,{"$f":"IFERROR(VLOOKUP(L1540,CIIU!A:B,2,0),\"\")","v":""}]
[null,null,null,null,null,null,null,null,null,null,null,null,{"$f":"IFERROR(VLOOKUP(L1541,CIIU!A:B,2,0),\"\")","v":""}]
[null,null,null,null,null,null,null,null,null,null,null,null,{"$f":"IFERROR(VLOOKUP(L1542,CIIU!A:B,2,0),\"\")","v":""}]
[null,null,null,null,null,null,null,null,null,null,null,null,{"$f":"IFERROR(VLOOKUP(L1543,CIIU!A:B,2,0),\"\")","v":""}]
[null,null,null,null,null,null,null,null,null,null,null,null,{"$f":"IFERROR(VLOOKUP(L1544,CIIU!A:B,2,0),\"\")","v":""}]
[null,null,null,null,null,null,null,null,null,null,null,null,{"$f":"IFERROR(VLOOKUP(L1545,CIIU!A:B,2,0),\"\")","v":""}]
[null,null,null,null,null,null,null,null,null,null,null,null,{"$f":"IFERROR(VLOOKUP(L1546,CIIU!A:B,2,0),\"\")","v":""}]
[null,null,null,null,null,null,null,null,null,null,null,null,{"$f":"IFERROR(VLOOKUP(L1547,CIIU!A:B,2,0),\"\")","v":""}]
[null,null,null,null,null,null,null,null,null,null,null,null,{"$f":"IFERROR(VLOOKUP(L1548,CIIU!A:B,2,0),\"\")","v":""}]
[null,null,null,null,null,null,null,null,null,null,null,null,{"$f":"IFERROR(VLOOKUP(L1549,CIIU!A:B,2,0),\"\")","v":""}]
[null,null,null,null,null,null,null,null,null,null,null,null,{"$f":"IFERROR(VLOOKUP(L1550,CIIU!A:B,2,0),\"\")","v":""}]
[null,null,null,null,null,null,null,null,null,null,null,null,{"$f":"IFERROR(VLOOKUP(L1551,CIIU!A:B,2,0),\"\")","v":""}]
[null,null,null,null,null,null,null,null,null,null,null,null,{"$f":"IFERROR(VLOOKUP(L1552,CIIU!A:B,2,0),\"\")","v":""}]
[null,null,null,null,null,null,null,null,null,null,null,null,{"$f":"IFERROR(VLOOKUP(L1553,CIIU!A:B,2,0),\"\")","v":""}]
[null,null,null,null,null,null,null,null,null,null,null,null,{"$f":"IFERROR(VLOOKUP(L1554,CIIU!A:B,2,0),\"\")","v":""}]
[null,null,null,null,null,null,null,null,null,null,null,null,{"$f":"IFERROR(VLOOKUP(L1555,CIIU!A:B,2,0),\"\")","v":""}]
[null,null,null,null,null,null,null,null,null,null,null,null,{"$f":"IFERROR(VLOOKUP(L1556,CIIU!A:B,2,0),\"\")","v":""}]
[null,null,null,null,null,null,null,null,null,null,null,null,{"$f":"IFERROR(VLOOKUP(L1557,CIIU!A:B,2,0),\"\")","v":""}]
[null,null,null,null,null,null,null,null,null,null,null,null,{"$f":"IFERROR(VLOOKUP(L1558,CIIU!A:B,2,0),\"\")","v":""}]
[null,null,null,null,null,null,null,null,null,null,null,null,{"$f":"IFERROR(VLOOKUP(L1559,CIIU!A:B,2,0),\"\")","v":""}]
[null,null,null,null,null,null,null,null,null,null,null,null,{"$f":"IFERROR(VLOOKUP(L1560,CIIU!A:B,2,0),\"\")","v":""}]
[null,null,null,null,null,null,null,null,null,null,null,null,{"$f":"IFERROR(VLOOKUP(L1561,CIIU!A:B,2,0),\"\")","v":""}]
[null,null,null,null,null,null,null,null,null,null,null,null,{"$f":"IFERROR(VLOOKUP(L1562,CIIU!A:B,2,0),\"\")","v":""}]
[null,null,null,null,null,null,null,null,null,null,null,null,{"$f":"IFERROR(VLOOKUP(L1563,CIIU!A:B,2,0),\"\")","v":""}]
[null,null,null,null,null,null,null,null,null,null,null,null,{"$f":"IFERROR(VLOOKUP(L1564,CIIU!A:B,2,0),\"\")","v":""}]
[null,null,null,null,null,null,null,null,null,null,null,null,{"$f":"IFERROR(VLOOKUP(L1565,CIIU!A:B,2,0),\"\")","v":""}]
[null,null,null,null,null,null,null,null,null,null,null,null,{"$f":"IFERROR(VLOOKUP(L1566,CIIU!A:B,2,0),\"\")","v":""}]
[null,null,null,null,null,null,null,null,null,null,null,null,{"$f":"IFERROR(VLOOKUP(L1567,CIIU!A:B,2,0),\"\")","v":""}]
[null,null,null,null,null,null,null,null,null,null,null,null,{"$f":"IFERROR(VLOOKUP(L1568,CIIU!A:B,2,0),\"\")","v":""}]
[null,null,null,null,null,null,null,null,null,null,null,null,{"$f":"IFERROR(VLOOKUP(L1569,CIIU!A:B,2,0),\"\")","v":""}]
[null,null,null,null,null,null,null,null,null,null,null,null,{"$f":"IFERROR(VLOOKUP(L1570,CIIU!A:B,2,0),\"\")","v":""}]
[null,null,null,null,null,null,null,null,null,null,null,null,{"$f":"IFERROR(VLOOKUP(L1571,CIIU!A:B,2,0),\"\")","v":""}]
[null,null,null,null,null,null,null,null,null,null,null,null,{"$f":"IFERROR(VLOOKUP(L1572,CIIU!A:B,2,0),\"\")","v":""}]
[null,null,null,null,null,null,null,null,null,null,null,null,{"$f":"IFERROR(VLOOKUP(L1573,CIIU!A:B,2,0),\"\")","v":""}]
[null,null,null,null,null,null,null,null,null,null,null,null,{"$f":"IFERROR(VLOOKUP(L1574,CIIU!A:B,2,0),\"\")","v":""}]
[null,null,null,null,null,null,null,null,null,null,null,null,{"$f":"IFERROR(VLOOKUP(L1575,CIIU!A:B,2,0),\"\")","v":""}]
[null,null,null,null,null,null,null,null,null,null,null,null,{"$f":"IFERROR(VLOOKUP(L1576,CIIU!A:B,2,0),\"\")","v":""}]
[null,null,null,null,null,null,null,null,null,null,null,null,{"$f":"IFERROR(VLOOKUP(L1577,CIIU!A:B,2,0),\"\")","v":""}]
[null,null,null,null,null,null,null,null,null,null,null,null,{"$f":"IFERROR(VLOOKUP(L1578,CIIU!A:B,2,0),\"\")","v":""}]
[null,null,null,null,null,null,null,null,null,null,null,null,{"$f":"IFERROR(VLOOKUP(L1579,CIIU!A:B,2,0),\"\")","v":""}]
[null,null,null,null,null,null,null,null,null,null,null,null,{"$f":"IFERROR(VLOOKUP(L1580,CIIU!A:B,2,0),\"\")","v":""}]
[null,null,null,null,null,null,null,null,null,null,null,null,{"$f":"IFERROR(VLOOKUP(L1581,CIIU!A:B,2,0),\"\")","v":""}]
[null,null,null,null,null,null,null,null,null,null,null,null,{"$f":"IFERROR(VLOOKUP(L1582,CIIU!A:B,2,0),\"\")","v":""}]
[null,null,null,null,null,null,null,null,null,null,null,null,{"$f":"IFERROR(VLOOKUP(L1583,CIIU!A:B,2,0),\"\")","v":""}]
[null,null,null,null,null,null,null,null,null,null,null,null,{"$f":"IFERROR(VLOOKUP(L1584,CIIU!A:B,2,0),\"\")","v":""}]
[null,null,null,null,null,null,null,null,null,null,null,null,{"$f":"IFERROR(VLOOKUP(L1585,CIIU!A:B,2,0),\"\")","v":""}]
[null,null,null,null,null,null,null,null,null,null,null,null,{"$f":"IFERROR(VLOOKUP(L1586,CIIU!A:B,2,0),\"\")","v":""}]
[null,null,null,null,null,null,null,null,null,null,null,null,{"$f":"IFERROR(VLOOKUP(L1587,CIIU!A:B,2,0),\"\")","v":""}]
[null,null,null,null,null,null,null,null,null,null,null,null,{"$f":"IFERROR(VLOOKUP(L1588,CIIU!A:B,2,0),\"\")","v":""}]
[null,null,null,null,null,null,null,null,null,null,null,null,{"$f":"IFERROR(VLOOKUP(L1589,CIIU!A:B,2,0),\"\")","v":""}]
[null,null,null,null,null,null,null,null,null,null,null,null,{"$f":"IFERROR(VLOOKUP(L1590,CIIU!A:B,2,0),\"\")","v":""}]
[null,null,null,null,null,null,null,null,null,null,null,null,{"$f":"IFERROR(VLOOKUP(L1591,CIIU!A:B,2,0),\"\")","v":""}]
[null,null,null,null,null,null,null,null,null,null,null,null,{"$f":"IFERROR(VLOOKUP(L1592,CIIU!A:B,2,0),\"\")","v":""}]
[null,null,null,null,null,null,null,null,null,null,null,null,{"$f":"IFERROR(VLOOKUP(L1593,CIIU!A:B,2,0),\"\")","v":""}]
[null,null,null,null,null,null,null,null,null,null,null,null,{"$f":"IFERROR(VLOOKUP(L1594,CIIU!A:B,2,0),\"\")","v":""}]
[null,null,null,null,null,null,null,null,null,null,null,null,{"$f":"IFERROR(VLOOKUP(L1595,CIIU!A:B,2,0),\"\")","v":""}]
[null,null,null,null,null,null,null,null,null,null,null,null,{"$f":"IFERROR(VLOOKUP(L1596,CIIU!A:B,2,0),\"\")","v":""}]
[null,null,null,null,null,null,null,null,null,null,null,null,{"$f":"IFERROR(VLOOKUP(L1597,CIIU!A:B,2,0),\"\")","v":""}]
[null,null,null,null,null,null,null,null,null,null,null,null,{"$f":"IFERROR(VLOOKUP(L1598,CIIU!A:B,2,0),\"\")","v":""}]
[null,null,null,null,null,null,null,null,null,null,null,null,{"$f":"IFERROR(VLOOKUP(L1599,CIIU!A:B,2,0),\"\")","v":""}]
[null,null,null,null,null,null,null,null,null,null,null,null,{"$f":"IFERROR(VLOOKUP(L1600,CIIU!A:B,2,0),\"\")","v":""}]
[null,null,null,null,null,null,null,null,null,null,null,null,{"$f":"IFERROR(VLOOKUP(L1601,CIIU!A:B,2,0),\"\")","v":""}]
[null,null,null,null,null,null,null,null,null,null,null,null,{"$f":"IFERROR(VLOOKUP(L1602,CIIU!A:B,2,0),\"\")","v":""}]
[null,null,null,null,null,null,null,null,null,null,null,null,{"$f":"IFERROR(VLOOKUP(L1603,CIIU!A:B,2,0),\"\")","v":""}]
[null,null,null,null,null,null,null,null,null,null,null,null,{"$f":"IFERROR(VLOOKUP(L1604,CIIU!A:B,2,0),\"\")","v":""}]
[null,null,null,null,null,null,null,null,null,null,null,null,{"$f":"IFERROR(VLOOKUP(L1605,CIIU!A:B,2,0),\"\")","v":""}]
[null,null,null,null,null,null,null,null,null,null,null,null,{"$f":"IFERROR(VLOOKUP(L1606,CIIU!A:B,2,0),\"\")","v":""}]
[null,null,null,null,null,null,null,null,null,null,null,null,{"$f":"IFERROR(VLOOKUP(L1607,CIIU!A:B,2,0),\"\")","v":""}]
[null,null,null,null,null,null,null,null,null,null,null,null,{"$f":"IFERROR(VLOOKUP(L1608,CIIU!A:B,2,0),\"\")","v":""}]
[null,null,null,null,null,null,null,null,null,null,null,null,{"$f":"IFERROR(VLOOKUP(L1609,CIIU!A:B,2,0),\"\")","v":""}]
[null,null,null,null,null,null,null,null,null,null,null,null,{"$f":"IFERROR(VLOOKUP(L1610,CIIU!A:B,2,0),\"\")","v":""}]
[null,null,null,null,null,null,null,null,null,null,null,null,{"$f":"IFERROR(VLOOKUP(L1611,CIIU!A:B,2,0),\"\")","v":""}]
[null,null,null,null,null,null,null,null,null,null,null,null,{"$f":"IFERROR(VLOOKUP(L1612,CIIU!A:B,2,0),\"\")","v":""}]
[null,null,null,null,null,null,null,null,null,null,null,null,{"$f":"IFERROR(VLOOKUP(L1613,CIIU!A:B,2,0),\"\")","v":""}]
[null,null,null,null,null,null,null,null,null,null,null,null,{"$f":"IFERROR(VLOOKUP(L1614,CIIU!A:B,2,0),\"\")","v":""}]
[null,null,null,null,null,null,null,null,null,null,null,null,{"$f":"IFERROR(VLOOKUP(L1615,CIIU!A:B,2,0),\"\")","v":""}]
[null,null,null,null,null,null,null,null,null,null,null,null,{"$f":"IFERROR(VLOOKUP(L1616,CIIU!A:B,2,0),\"\")","v":""}]
[null,null,null,null,null,null,null,null,null,null,null,null,{"$f":"IFERROR(VLOOKUP(L1617,CIIU!A:B,2,0),\"\")","v":""}]
[null,null,null,null,null,null,null,null,null,null,null,null,{"$f":"IFERROR(VLOOKUP(L1618,CIIU!A:B,2,0),\"\")","v":""}]
[null,null,null,null,null,null,null,null,null,null,null,null,{"$f":"IFERROR(VLOOKUP(L1619,CIIU!A:B,2,0),\"\")","v":""}]
[null,null,null,null,null,null,null,null,null,null,null,null,{"$f":"IFERROR(VLOOKUP(L1620,CIIU!A:B,2,0),\"\")","v":""}]
[null,null,null,null,null,null,null,null,null,null,null,null,{"$f":"IFERROR(VLOOKUP(L1621,CIIU!A:B,2,0),\"\")","v":""}]
[null,null,null,null,null,null,null,null,null,null,null,null,{"$f":"IFERROR(VLOOKUP(L1622,CIIU!A:B,2,0),\"\")","v":""}]
[null,null,null,null,null,null,null,null,null,null,null,null,{"$f":"IFERROR(VLOOKUP(L1623,CIIU!A:B,2,0),\"\")","v":""}]
[null,null,null,null,null,null,null,null,null,null,null,null,{"$f":"IFERROR(VLOOKUP(L1624,CIIU!A:B,2,0),\"\")","v":""}]
[null,null,null,null,null,null,null,null,null,null,null,null,{"$f":"IFERROR(VLOOKUP(L1625,CIIU!A:B,2,0),\"\")","v":""}]
[null,null,null,null,null,null,null,null,null,null,null,null,{"$f":"IFERROR(VLOOKUP(L1626,CIIU!A:B,2,0),\"\")","v":""}]
[null,null,null,null,null,null,null,null,null,null,null,null,{"$f":"IFERROR(VLOOKUP(L1627,CIIU!A:B,2,0),\"\")","v":""}]
[null,null,null,null,null,null,null,null,null,null,null,null,{"$f":"IFERROR(VLOOKUP(L1628,CIIU!A:B,2,0),\"\")","v":""}]
[null,null,null,null,null,null,null,null,null,null,null,null,{"$f":"IFERROR(VLOOKUP(L1629,CIIU!A:B,2,0),\"\")","v":""}]
[null,null,null,null,null,null,null,null,null,null,null,null,{"$f":"IFERROR(VLOOKUP(L1630,CIIU!A:B,2,0),\"\")","v":""}]
[null,null,null,null,null,null,null,null,null,null,null,null,{"$f":"IFERROR(VLOOKUP(L1631,CIIU!A:B,2,0),\"\")","v":""}]
[null,null,null,null,null,null,null,null,null,null,null,null,{"$f":"IFERROR(VLOOKUP(L1632,CIIU!A:B,2,0),\"\")","v":""}]
[null,null,null,null,null,null,null,null,null,null,null,null,{"$f":"IFERROR(VLOOKUP(L1633,CIIU!A:B,2,0),\"\")","v":""}]
[null,null,null,null,null,null,null,null,null,null,null,null,{"$f":"IFERROR(VLOOKUP(L1634,CIIU!A:B,2,0),\"\")","v":""}]
[null,null,null,null,null,null,null,null,null,null,null,null,{"$f":"IFERROR(VLOOKUP(L1635,CIIU!A:B,2,0),\"\")","v":""}]
[null,null,null,null,null,null,null,null,null,null,null,null,{"$f":"IFERROR(VLOOKUP(L1636,CIIU!A:B,2,0),\"\")","v":""}]
[null,null,null,null,null,null,null,null,null,null,null,null,{"$f":"IFERROR(VLOOKUP(L1637,CIIU!A:B,2,0),\"\")","v":""}]
[null,null,null,null,null,null,null,null,null,null,null,null,{"$f":"IFERROR(VLOOKUP(L1638,CIIU!A:B,2,0),\"\")","v":""}]
[null,null,null,null,null,null,null,null,null,null,null,null,{"$f":"IFERROR(VLOOKUP(L1639,CIIU!A:B,2,0),\"\")","v":""}]
[null,null,null,null,null,null,null,null,null,null,null,null,{"$f":"IFERROR(VLOOKUP(L1640,CIIU!A:B,2,0),\"\")","v":""}]
[null,null,null,null,null,null,null,null,null,null,null,null,{"$f":"IFERROR(VLOOKUP(L1641,CIIU!A:B,2,0),\"\")","v":""}]
[null,null,null,null,null,null,null,null,null,null,null,null,{"$f":"IFERROR(VLOOKUP(L1642,CIIU!A:B,2,0),\"\")","v":""}]
[null,null,null,null,null,null,null,null,null,null,null,null,{"$f":"IFERROR(VLOOKUP(L1643,CIIU!A:B,2,0),\"\")","v":""}]
[null,null,null,null,null,null,null,null,null,null,null,null,{"$f":"IFERROR(VLOOKUP(L1644,CIIU!A:B,2,0),\"\")","v":""}]
[null,null,null,null,null,null,null,null,null,null,null,null,{"$f":"IFERROR(VLOOKUP(L1645,CIIU!A:B,2,0),\"\")","v":""}]
[null,null,null,null,null,null,null,null,null,null,null,null,{"$f":"IFERROR(VLOOKUP(L1646,CIIU!A:B,2,0),\"\")","v":""}]
[null,null,null,null,null,null,null,null,null,null,null,null,{"$f":"IFERROR(VLOOKUP(L1647,CIIU!A:B,2,0),\"\")","v":""}]
[null,null,null,null,null,null,null,null,null,null,null,null,{"$f":"IFERROR(VLOOKUP(L1648,CIIU!A:B,2,0),\"\")","v":""}]
[null,null,null,null,null,null,null,null,null,null,null,null,{"$f":"IFERROR(VLOOKUP(L1649,CIIU!A:B,2,0),\"\")","v":""}]
[null,null,null,null,null,null,null,null,null,null,null,null,{"$f":"IFERROR(VLOOKUP(L1650,CIIU!A:B,2,0),\"\")","v":""}]
[null,null,null,null,null,null,null,null,null,null,null,null,{"$f":"IFERROR(VLOOKUP(L1651,CIIU!A:B,2,0),\"\")","v":""}]
[null,null,null,null,null,null,null,null,null,null,null,null,{"$f":"IFERROR(VLOOKUP(L1652,CIIU!A:B,2,0),\"\")","v":""}]
[null,null,null,null,null,null,null,null,null,null,null,null,{"$f":"IFERROR(VLOOKUP(L1653,CIIU!A:B,2,0),\"\")","v":""}]
[null,null,null,null,null,null,null,null,null,null,null,null,{"$f":"IFERROR(VLOOKUP(L1654,CIIU!A:B,2,0),\"\")","v":""}]
[null,null,null,null,null,null,null,null,null,null,null,null,{"$f":"IFERROR(VLOOKUP(L1655,CIIU!A:B,2,0),\"\")","v":""}]
[null,null,null,null,null,null,null,null,null,null,null,null,{"$f":"IFERROR(VLOOKUP(L1656,CIIU!A:B,2,0),\"\")","v":""}]
[null,null,null,null,null,null,null,null,null,null,null,null,{"$f":"IFERROR(VLOOKUP(L1657,CIIU!A:B,2,0),\"\")","v":""}]
[null,null,null,null,null,null,null,null,null,null,null,null,{"$f":"IFERROR(VLOOKUP(L1658,CIIU!A:B,2,0),\"\")","v":""}]
[null,null,null,null,null,null,null,null,null,null,null,null,{"$f":"IFERROR(VLOOKUP(L1659,CIIU!A:B,2,0),\"\")","v":""}]
[null,null,null,null,null,null,null,null,null,null,null,null,{"$f":"IFERROR(VLOOKUP(L1660,CIIU!A:B,2,0),\"\")","v":""}]
[null,null,null,null,null,null,null,null,null,null,null,null,{"$f":"IFERROR(VLOOKUP(L1661,CIIU!A:B,2,0),\"\")","v":""}]
[null,null,null,null,null,null,null,null,null,null,null,null,{"$f":"IFERROR(VLOOKUP(L1662,CIIU!A:B,2,0),\"\")","v":""}]
[null,null,null,null,null,null,null,null,null,null,null,null,{"$f":"IFERROR(VLOOKUP(L1663,CIIU!A:B,2,0),\"\")","v":""}]
[null,null,null,null,null,null,null,null,null,null,null,null,{"$f":"IFERROR(VLOOKUP(L1664,CIIU!A:B,2,0),\"\")","v":""}]
[null,null,null,null,null,null,null,null,null,null,null,null,{"$f":"IFERROR(VLOOKUP(L1665,CIIU!A:B,2,0),\"\")","v":""}]
[null,null,null,null,null,null,null,null,null,null,null,null,{"$f":"IFERROR(VLOOKUP(L1666,CIIU!A:B,2,0),\"\")","v":""}]
[null,null,null,null,null,null,null,null,null,null,null,null,{"$f":"IFERROR(VLOOKUP(L1667,CIIU!A:B,2,0),\"\")","v":""}]
[null,null,null,null,null,null,null,null,null,null,null,null,{"$f":"IFERROR(VLOOKUP(L1668,CIIU!A:B,2,0),\"\")","v":""}]
[null,null,null,null,null,null,null,null,null,null,null,null,{"$f":"IFERROR(VLOOKUP(L1669,CIIU!A:B,2,0),\"\")","v":""}]
[null,null,null,null,null,null,null,null,null,null,null,null,{"$f":"IFERROR(VLOOKUP(L1670,CIIU!A:B,2,0),\"\")","v":""}]
[null,null,null,null,null,null,null,null,null,null,null,null,{"$f":"IFERROR(VLOOKUP(L1671,CIIU!A:B,2,0),\"\")","v":""}]
[null,null,null,null,null,null,null,null,null,null,null,null,{"$f":"IFERROR(VLOOKUP(L1672,CIIU!A:B,2,0),\"\")","v":""}]
[null,null,null,null,null,null,null,null,null,null,null,null,{"$f":"IFERROR(VLOOKUP(L1673,CIIU!A:B,2,0),\"\")","v":""}]
[null,null,null,null,null,null,null,null,null,null,null,null,{"$f":"IFERROR(VLOOKUP(L1674,CIIU!A:B,2,0),\"\")","v":""}]
[null,null,null,null,null,null,null,null,null,null,null,null,{"$f":"IFERROR(VLOOKUP(L1675,CIIU!A:B,2,0),\"\")","v":""}]
[null,null,null,null,null,null,null,null,null,null,null,null,{"$f":"IFERROR(VLOOKUP(L1676,CIIU!A:B,2,0),\"\")","v":""}]
[null,null,null,null,null,null,null,null,null,null,null,null,{"$f":"IFERROR(VLOOKUP(L1677,CIIU!A:B,2,0),\"\")","v":""}]
[null,null,null,null,null,null,null,null,null,null,null,null,{"$f":"IFERROR(VLOOKUP(L1678,CIIU!A:B,2,0),\"\")","v":""}]
[null,null,null,null,null,null,null,null,null,null,null,null,{"$f":"IFERROR(VLOOKUP(L1679,CIIU!A:B,2,0),\"\")","v":""}]
[null,null,null,null,null,null,null,null,null,null,null,null,{"$f":"IFERROR(VLOOKUP(L1680,CIIU!A:B,2,0),\"\")","v":""}]
[null,null,null,null,null,null,null,null,null,null,null,null,{"$f":"IFERROR(VLOOKUP(L1681,CIIU!A:B,2,0),\"\")","v":""}]
[null,null,null,null,null,null,null,null,null,null,null,null,{"$f":"IFERROR(VLOOKUP(L1682,CIIU!A:B,2,0),\"\")","v":""}]
[null,null,null,null,null,null,null,null,null,null,null,null,{"$f":"IFERROR(VLOOKUP(L1683,CIIU!A:B,2,0),\"\")","v":""}]
[null,null,null,null,null,null,null,null,null,null,null,null,{"$f":"IFERROR(VLOOKUP(L1684,CIIU!A:B,2,0),\"\")","v":""}]
[null,null,null,null,null,null,null,null,null,null,null,null,{"$f":"IFERROR(VLOOKUP(L1685,CIIU!A:B,2,0),\"\")","v":""}]
[null,null,null,null,null,null,null,null,null,null,null,null,{"$f":"IFERROR(VLOOKUP(L1686,CIIU!A:B,2,0),\"\")","v":""}]
[null,null,null,null,null,null,null,null,null,null,null,null,{"$f":"IFERROR(VLOOKUP(L1687,CIIU!A:B,2,0),\"\")","v":""}]
[null,null,null,null,null,null,null,null,null,null,null,null,{"$f":"IFERROR(VLOOKUP(L1688,CIIU!A:B,2,0),\"\")","v":""}]
[null,null,null,null,null,null,null,null,null,null,null,null,{"$f":"IFERROR(VLOOKUP(L1689,CIIU!A:B,2,0),\"\")","v":""}]
[null,null,null,null,null,null,null,null,null,null,null,null,{"$f":"IFERROR(VLOOKUP(L1690,CIIU!A:B,2,0),\"\")","v":""}]
[null,null,null,null,null,null,null,null,null,null,null,null,{"$f":"IFERROR(VLOOKUP(L1691,CIIU!A:B,2,0),\"\")","v":""}]
[null,null,null,null,null,null,null,null,null,null,null,null,{"$f":"IFERROR(VLOOKUP(L1692,CIIU!A:B,2,0),\"\")","v":""}]
[null,null,null,null,null,null,null,null,null,null,null,null,{"$f":"IFERROR(VLOOKUP(L1693,CIIU!A:B,2,0),\"\")","v":""}]
[null,null,null,null,null,null,null,null,null,null,null,null,{"$f":"IFERROR(VLOOKUP(L1694,CIIU!A:B,2,0),\"\")","v":""}]
[null,null,null,null,null,null,null,null,null,null,null,null,{"$f":"IFERROR(VLOOKUP(L1695,CIIU!A:B,2,0),\"\")","v":""}]
[null,null,null,null,null,null,null,null,null,null,null,null,{"$f":"IFERROR(VLOOKUP(L1696,CIIU!A:B,2,0),\"\")","v":""}]
[null,null,null,null,null,null,null,null,null,null,null,null,{"$f":"IFERROR(VLOOKUP(L1697,CIIU!A:B,2,0),\"\")","v":""}]
[null,null,null,null,null,null,null,null,null,null,null,null,{"$f":"IFERROR(VLOOKUP(L1698,CIIU!A:B,2,0),\"\")","v":""}]
[null,null,null,null,null,null,null,null,null,null,null,null,{"$f":"IFERROR(VLOOKUP(L1699,CIIU!A:B,2,0),\"\")","v":""}]
[null,null,null,null,null,null,null,null,null,null,null,null,{"$f":"IFERROR(VLOOKUP(L1700,CIIU!A:B,2,0),\"\")","v":""}]
[null,null,null,null,null,null,null,null,null,null,null,null,{"$f":"IFERROR(VLOOKUP(L1701,CIIU!A:B,2,0),\"\")","v":""}]
[null,null,null,null,null,null,null,null,null,null,null,null,{"$f":"IFERROR(VLOOKUP(L1702,CIIU!A:B,2,0),\"\")","v":""}]
[null,null,null,null,null,null,null,null,null,null,null,null,{"$f":"IFERROR(VLOOKUP(L1703,CIIU!A:B,2,0),\"\")","v":""}]
[null,null,null,null,null,null,null,null,null,null,null,null,{"$f":"IFERROR(VLOOKUP(L1704,CIIU!A:B,2,0),\"\")","v":""}]
[null,null,null,null,null,null,null,null,null,null,null,null,{"$f":"IFERROR(VLOOKUP(L1705,CIIU!A:B,2,0),\"\")","v":""}]
[null,null,null,null,null,null,null,null,null,null,null,null,{"$f":"IFERROR(VLOOKUP(L1706,CIIU!A:B,2,0),\"\")","v":""}]
[null,null,null,null,null,null,null,null,null,null,null,null,{"$f":"IFERROR(VLOOKUP(L1707,CIIU!A:B,2,0),\"\")","v":""}]
[null,null,null,null,null,null,null,null,null,null,null,null,{"$f":"IFERROR(VLOOKUP(L1708,CIIU!A:B,2,0),\"\")","v":""}]
[null,null,null,null,null,null,null,null,null,null,null,null,{"$f":"IFERROR(VLOOKUP(L1709,CIIU!A:B,2,0),\"\")","v":""}]
[null,null,null,null,null,null,null,null,null,null,null,null,{"$f":"IFERROR(VLOOKUP(L1710,CIIU!A:B,2,0),\"\")","v":""}]
[null,null,null,null,null,null,null,null,null,null,null,null,{"$f":"IFERROR(VLOOKUP(L1711,CIIU!A:B,2,0),\"\")","v":""}]
[null,null,null,null,null,null,null,null,null,null,null,null,{"$f":"IFERROR(VLOOKUP(L1712,CIIU!A:B,2,0),\"\")","v":""}]
[null,null,null,null,null,null,null,null,null,null,null,null,{"$f":"IFERROR(VLOOKUP(L1713,CIIU!A:B,2,0),\"\")","v":""}]
[null,null,null,null,null,null,null,null,null,null,null,null,{"$f":"IFERROR(VLOOKUP(L1714,CIIU!A:B,2,0),\"\")","v":""}]
[null,null,null,null,null,null,null,null,null,null,null,null,{"$f":"IFERROR(VLOOKUP(L1715,CIIU!A:B,2,0),\"\")","v":""}]
[null,null,null,null,null,null,null,null,null,null,null,null,{"$f":"IFERROR(VLOOKUP(L1716,CIIU!A:B,2,0),\"\")","v":""}]
[null,null,null,null,null,null,null,null,null,null,null,null,{"$f":"IFERROR(VLOOKUP(L1717,CIIU!A:B,2,0),\"\")","v":""}]
[null,null,null,null,null,null,null,null,null,null,null,null,{"$f":"IFERROR(VLOOKUP(L1718,CIIU!A:B,2,0),\"\")","v":""}]
[null,null,null,null,null,null,null,null,null,null,null,null,{"$f":"IFERROR(VLOOKUP(L1719,CIIU!A:B,2,0),\"\")","v":""}]
[null,null,null,null,null,null,null,null,null,null,null,null,{"$f":"IFERROR(VLOOKUP(L1720,CIIU!A:B,2,0),\"\")","v":""}]
[null,null,null,null,null,null,null,null,null,null,null,null,{"$f":"IFERROR(VLOOKUP(L1721,CIIU!A:B,2,0),\"\")","v":""}]
[null,null,null,null,null,null,null,null,null,null,null,null,{"$f":"IFERROR(VLOOKUP(L1722,CIIU!A:B,2,0),\"\")","v":""}]
[null,null,null,null,null,null,null,null,null,null,null,null,{"$f":"IFERROR(VLOOKUP(L1723,CIIU!A:B,2,0),\"\")","v":""}]
[null,null,null,null,null,null,null,null,null,null,null,null,{"$f":"IFERROR(VLOOKUP(L1724,CIIU!A:B,2,0),\"\")","v":""}]
[null,null,null,null,null,null,null,null,null,null,null,null,{"$f":"IFERROR(VLOOKUP(L1725,CIIU!A:B,2,0),\"\")","v":""}]
[null,null,null,null,null,null,null,null,null,null,null,null,{"$f":"IFERROR(VLOOKUP(L1726,CIIU!A:B,2,0),\"\")","v":""}]
[null,null,null,null,null,null,null,null,null,null,null,null,{"$f":"IFERROR(VLOOKUP(L1727,CIIU!A:B,2,0),\"\")","v":""}]
[null,null,null,null,null,null,null,null,null,null,null,null,{"$f":"IFERROR(VLOOKUP(L1728,CIIU!A:B,2,0),\"\")","v":""}]
[null,null,null,null,null,null,null,null,null,null,null,null,{"$f":"IFERROR(VLOOKUP(L1729,CIIU!A:B,2,0),\"\")","v":""}]
[null,null,null,null,null,null,null,null,null,null,null,null,{"$f":"IFERROR(VLOOKUP(L1730,CIIU!A:B,2,0),\"\")","v":""}]
[null,null,null,null,null,null,null,null,null,null,null,null,{"$f":"IFERROR(VLOOKUP(L1731,CIIU!A:B,2,0),\"\")","v":""}]
[null,null,null,null,null,null,null,null,null,null,null,null,{"$f":"IFERROR(VLOOKUP(L1732,CIIU!A:B,2,0),\"\")","v":""}]
[null,null,null,null,null,null,null,null,null,null,null,null,{"$f":"IFERROR(VLOOKUP(L1733,CIIU!A:B,2,0),\"\")","v":""}]
[null,null,null,null,null,null,null,null,null,null,null,null,{"$f":"IFERROR(VLOOKUP(L1734,CIIU!A:B,2,0),\"\")","v":""}]
[null,null,null,null,null,null,null,null,null,null,null,null,{"$f":"IFERROR(VLOOKUP(L1735,CIIU!A:B,2,0),\"\")","v":""}]
[null,null,null,null,null,null,null,null,null,null,null,null,{"$f":"IFERROR(VLOOKUP(L1736,CIIU!A:B,2,0),\"\")","v":""}]
[null,null,null,null,null,null,null,null,null,null,null,null,{"$f":"IFERROR(VLOOKUP(L1737,CIIU!A:B,2,0),\"\")","v":""}]
[null,null,null,null,null,null,null,null,null,null,null,null,{"$f":"IFERROR(VLOOKUP(L1738,CIIU!A:B,2,0),\"\")","v":""}]
[null,null,null,null,null,null,null,null,null,null,null,null,{"$f":"IFERROR(VLOOKUP(L1739,CIIU!A:B,2,0),\"\")","v":""}]
[null,null,null,null,null,null,null,null,null,null,null,null,{"$f":"IFERROR(VLOOKUP(L1740,CIIU!A:B,2,0),\"\")","v":""}]
[null,null,null,null,null,null,null,null,null,null,null,null,{"$f":"IFERROR(VLOOKUP(L1741,CIIU!A:B,2,0),\"\")","v":""}]
[null,null,null,null,null,null,null,null,null,null,null,null,{"$f":"IFERROR(VLOOKUP(L1742,CIIU!A:B,2,0),\"\")","v":""}]
[null,null,null,null,null,null,null,null,null,null,null,null,{"$f":"IFERROR(VLOOKUP(L1743,CIIU!A:B,2,0),\"\")","v":""}]
[null,null,null,null,null,null,null,null,null,null,null,null,{"$f":"IFERROR(VLOOKUP(L1744,CIIU!A:B,2,0),\"\")","v":""}]
[null,null,null,null,null,null,null,null,null,null,null,null,{"$f":"IFERROR(VLOOKUP(L1745,CIIU!A:B,2,0),\"\")","v":""}]
[null,null,null,null,null,null,null,null,null,null,null,null,{"$f":"IFERROR(VLOOKUP(L1746,CIIU!A:B,2,0),\"\")","v":""}]
[null,null,null,null,null,null,null,null,null,null,null,null,{"$f":"IFERROR(VLOOKUP(L1747,CIIU!A:B,2,0),\"\")","v":""}]
[null,null,null,null,null,null,null,null,null,null,null,null,{"$f":"IFERROR(VLOOKUP(L1748,CIIU!A:B,2,0),\"\")","v":""}]
[null,null,null,null,null,null,null,null,null,null,null,null,{"$f":"IFERROR(VLOOKUP(L1749,CIIU!A:B,2,0),\"\")","v":""}]
[null,null,null,null,null,null,null,null,null,null,null,null,{"$f":"IFERROR(VLOOKUP(L1750,CIIU!A:B,2,0),\"\")","v":""}]
[null,null,null,null,null,null,null,null,null,null,null,null,{"$f":"IFERROR(VLOOKUP(L1751,CIIU!A:B,2,0),\"\")","v":""}]
[null,null,null,null,null,null,null,null,null,null,null,null,{"$f":"IFERROR(VLOOKUP(L1752,CIIU!A:B,2,0),\"\")","v":""}]
[null,null,null,null,null,null,null,null,null,null,null,null,{"$f":"IFERROR(VLOOKUP(L1753,CIIU!A:B,2,0),\"\")","v":""}]
[null,null,null,null,null,null,null,null,null,null,null,null,{"$f":"IFERROR(VLOOKUP(L1754,CIIU!A:B,2,0),\"\")","v":""}]
[null,null,null,null,null,null,null,null,null,null,null,null,{"$f":"IFERROR(VLOOKUP(L1755,CIIU!A:B,2,0),\"\")","v":""}]
[null,null,null,null,null,null,null,null,null,null,null,null,{"$f":"IFERROR(VLOOKUP(L1756,CIIU!A:B,2,0),\"\")","v":""}]
[null,null,null,null,null,null,null,null,null,null,null,null,{"$f":"IFERROR(VLOOKUP(L1757,CIIU!A:B,2,0),\"\")","v":""}]
[null,null,null,null,null,null,null,null,null,null,null,null,{"$f":"IFERROR(VLOOKUP(L1758,CIIU!A:B,2,0),\"\")","v":""}]
[null,null,null,null,null,null,null,null,null,null,null,null,{"$f":"IFERROR(VLOOKUP(L1759,CIIU!A:B,2,0),\"\")","v":""}]
[null,null,null,null,null,null,null,null,null,null,null,null,{"$f":"IFERROR(VLOOKUP(L1760,CIIU!A:B,2,0),\"\")","v":""}]
[null,null,null,null,null,null,null,null,null,null,null,null,{"$f":"IFERROR(VLOOKUP(L1761,CIIU!A:B,2,0),\"\")","v":""}]
[null,null,null,null,null,null,null,null,null,null,null,null,{"$f":"IFERROR(VLOOKUP(L1762,CIIU!A:B,2,0),\"\")","v":""}]
[null,null,null,null,null,null,null,null,null,null,null,null,{"$f":"IFERROR(VLOOKUP(L1763,CIIU!A:B,2,0),\"\")","v":""}]
[null,null,null,null,null,null,null,null,null,null,null,null,{"$f":"IFERROR(VLOOKUP(L1764,CIIU!A:B,2,0),\"\")","v":""}]
[null,null,null,null,null,null,null,null,null,null,null,null,{"$f":"IFERROR(VLOOKUP(L1765,CIIU!A:B,2,0),\"\")","v":""}]
[null,null,null,null,null,null,null,null,null,null,null,null,{"$f":"IFERROR(VLOOKUP(L1766,CIIU!A:B,2,0),\"\")","v":""}]
[null,null,null,null,null,null,null,null,null,null,null,null,{"$f":"IFERROR(VLOOKUP(L1767,CIIU!A:B,2,0),\"\")","v":""}]
[null,null,null,null,null,null,null,null,null,null,null,null,{"$f":"IFERROR(VLOOKUP(L1768,CIIU!A:B,2,0),\"\")","v":""}]
[null,null,null,null,null,null,null,null,null,null,null,null,{"$f":"IFERROR(VLOOKUP(L1769,CIIU!A:B,2,0),\"\")","v":""}]
[null,null,null,null,null,null,null,null,null,null,null,null,{"$f":"IFERROR(VLOOKUP(L1770,CIIU!A:B,2,0),\"\")","v":""}]
[null,null,null,null,null,null,null,null,null,null,null,null,{"$f":"IFERROR(VLOOKUP(L1771,CIIU!A:B,2,0),\"\")","v":""}]
[null,null,null,null,null,null,null,null,null,null,null,null,{"$f":"IFERROR(VLOOKUP(L1772,CIIU!A:B,2,0),\"\")","v":""}]
[null,null,null,null,null,null,null,null,null,null,null,null,{"$f":"IFERROR(VLOOKUP(L1773,CIIU!A:B,2,0),\"\")","v":""}]
[null,null,null,null,null,null,null,null,null,null,null,null,{"$f":"IFERROR(VLOOKUP(L1774,CIIU!A:B,2,0),\"\")","v":""}]
[null,null,null,null,null,null,null,null,null,null,null,null,{"$f":"IFERROR(VLOOKUP(L1775,CIIU!A:B,2,0),\"\")","v":""}]
[null,null,null,null,null,null,null,null,null,null,null,null,{"$f":"IFERROR(VLOOKUP(L1776,CIIU!A:B,2,0),\"\")","v":""}]
[null,null,null,null,null,null,null,null,null,null,null,null,{"$f":"IFERROR(VLOOKUP(L1777,CIIU!A:B,2,0),\"\")","v":""}]
[null,null,null,null,null,null,null,null,null,null,null,null,{"$f":"IFERROR(VLOOKUP(L1778,CIIU!A:B,2,0),\"\")","v":""}]
[null,null,null,null,null,null,null,null,null,null,null,null,{"$f":"IFERROR(VLOOKUP(L1779,CIIU!A:B,2,0),\"\")","v":""}]
[null,null,null,null,null,null,null,null,null,null,null,null,{"$f":"IFERROR(VLOOKUP(L1780,CIIU!A:B,2,0),\"\")","v":""}]
[null,null,null,null,null,null,null,null,null,null,null,null,{"$f":"IFERROR(VLOOKUP(L1781,CIIU!A:B,2,0),\"\")","v":""}]
[null,null,null,null,null,null,null,null,null,null,null,null,{"$f":"IFERROR(VLOOKUP(L1782,CIIU!A:B,2,0),\"\")","v":""}]
[null,null,null,null,null,null,null,null,null,null,null,null,{"$f":"IFERROR(VLOOKUP(L1783,CIIU!A:B,2,0),\"\")","v":""}]
[null,null,null,null,null,null,null,null,null,null,null,null,{"$f":"IFERROR(VLOOKUP(L1784,CIIU!A:B,2,0),\"\")","v":""}]
[null,null,null,null,null,null,null,null,null,null,null,null,{"$f":"IFERROR(VLOOKUP(L1785,CIIU!A:B,2,0),\"\")","v":""}]
[null,null,null,null,null,null,null,null,null,null,null,null,{"$f":"IFERROR(VLOOKUP(L1786,CIIU!A:B,2,0),\"\")","v":""}]
[null,null,null,null,null,null,null,null,null,null,null,null,{"$f":"IFERROR(VLOOKUP(L1787,CIIU!A:B,2,0),\"\")","v":""}]
[null,null,null,null,null,null,null,null,null,null,null,null,{"$f":"IFERROR(VLOOKUP(L1788,CIIU!A:B,2,0),\"\")","v":""}]
[null,null,null,null,null,null,null,null,null,null,null,null,{"$f":"IFERROR(VLOOKUP(L1789,CIIU!A:B,2,0),\"\")","v":""}]
[null,null,null,null,null,null,null,null,null,null,null,null,{"$f":"IFERROR(VLOOKUP(L1790,CIIU!A:B,2,0),\"\")","v":""}]
[null,null,null,null,null,null,null,null,null,null,null,null,{"$f":"IFERROR(VLOOKUP(L1791,CIIU!A:B,2,0),\"\")","v":""}]
[null,null,null,null,null,null,null,null,null,null,null,null,{"$f":"IFERROR(VLOOKUP(L1792,CIIU!A:B,2,0),\"\")","v":""}]
[null,null,null,null,null,null,null,null,null,null,null,null,{"$f":"IFERROR(VLOOKUP(L1793,CIIU!A:B,2,0),\"\")","v":""}]
[null,null,null,null,null,null,null,null,null,null,null,null,{"$f":"IFERROR(VLOOKUP(L1794,CIIU!A:B,2,0),\"\")","v":""}]
[null,null,null,null,null,null,null,null,null,null,null,null,{"$f":"IFERROR(VLOOKUP(L1795,CIIU!A:B,2,0),\"\")","v":""}]
[null,null,null,null,null,null,null,null,null,null,null,null,{"$f":"IFERROR(VLOOKUP(L1796,CIIU!A:B,2,0),\"\")","v":""}]
[null,null,null,null,null,null,null,null,null,null,null,null,{"$f":"IFERROR(VLOOKUP(L1797,CIIU!A:B,2,0),\"\")","v":""}]
[null,null,null,null,null,null,null,null,null,null,null,null,{"$f":"IFERROR(VLOOKUP(L1798,CIIU!A:B,2,0),\"\")","v":""}]
[null,null,null,null,null,null,null,null,null,null,null,null,{"$f":"IFERROR(VLOOKUP(L1799,CIIU!A:B,2,0),\"\")","v":""}]
[null,null,null,null,null,null,null,null,null,null,null,null,{"$f":"IFERROR(VLOOKUP(L1800,CIIU!A:B,2,0),\"\")","v":""}]
[null,null,null,null,null,null,null,null,null,null,null,null,{"$f":"IFERROR(VLOOKUP(L1801,CIIU!A:B,2,0),\"\")","v":""}]
[null,null,null,null,null,null,null,null,null,null,null,null,{"$f":"IFERROR(VLOOKUP(L1802,CIIU!A:B,2,0),\"\")","v":""}]
[null,null,null,null,null,null,null,null,null,null,null,null,{"$f":"IFERROR(VLOOKUP(L1803,CIIU!A:B,2,0),\"\")","v":""}]
[null,null,null,null,null,null,null,null,null,null,null,null,{"$f":"IFERROR(VLOOKUP(L1804,CIIU!A:B,2,0),\"\")","v":""}]
[null,null,null,null,null,null,null,null,null,null,null,null,{"$f":"IFERROR(VLOOKUP(L1805,CIIU!A:B,2,0),\"\")","v":""}]
[null,null,null,null,null,null,null,null,null,null,null,null,{"$f":"IFERROR(VLOOKUP(L1806,CIIU!A:B,2,0),\"\")","v":""}]
[null,null,null,null,null,null,null,null,null,null,null,null,{"$f":"IFERROR(VLOOKUP(L1807,CIIU!A:B,2,0),\"\")","v":""}]
[null,null,null,null,null,null,null,null,null,null,null,null,{"$f":"IFERROR(VLOOKUP(L1808,CIIU!A:B,2,0),\"\")","v":""}]
[null,null,null,null,null,null,null,null,null,null,null,null,{"$f":"IFERROR(VLOOKUP(L1809,CIIU!A:B,2,0),\"\")","v":""}]
[null,null,null,null,null,null,null,null,null,null,null,null,{"$f":"IFERROR(VLOOKUP(L1810,CIIU!A:B,2,0),\"\")","v":""}]
[null,null,null,null,null,null,null,null,null,null,null,null,{"$f":"IFERROR(VLOOKUP(L1811,CIIU!A:B,2,0),\"\")","v":""}]
[null,null,null,null,null,null,null,null,null,null,null,null,{"$f":"IFERROR(VLOOKUP(L1812,CIIU!A:B,2,0),\"\")","v":""}]
[null,null,null,null,null,null,null,null,null,null,null,null,{"$f":"IFERROR(VLOOKUP(L1813,CIIU!A:B,2,0),\"\")","v":""}]
[null,null,null,null,null,null,null,null,null,null,null,null,{"$f":"IFERROR(VLOOKUP(L1814,CIIU!A:B,2,0),\"\")","v":""}]
[null,null,null,null,null,null,null,null,null,null,null,null,{"$f":"IFERROR(VLOOKUP(L1815,CIIU!A:B,2,0),\"\")","v":""}]
[null,null,null,null,null,null,null,null,null,null,null,null,{"$f":"IFERROR(VLOOKUP(L1816,CIIU!A:B,2,0),\"\")","v":""}]
[null,null,null,null,null,null,null,null,null,null,null,null,{"$f":"IFERROR(VLOOKUP(L1817,CIIU!A:B,2,0),\"\")","v":""}]
[null,null,null,null,null,null,null,null,null,null,null,null,{"$f":"IFERROR(VLOOKUP(L1818,CIIU!A:B,2,0),\"\")","v":""}]
[null,null,null,null,null,null,null,null,null,null,null,null,{"$f":"IFERROR(VLOOKUP(L1819,CIIU!A:B,2,0),\"\")","v":""}]
[null,null,null,null,null,null,null,null,null,null,null,null,{"$f":"IFERROR(VLOOKUP(L1820,CIIU!A:B,2,0),\"\")","v":""}]
[null,null,null,null,null,null,null,null,null,null,null,null,{"$f":"IFERROR(VLOOKUP(L1821,CIIU!A:B,2,0),\"\")","v":""}]
[null,null,null,null,null,null,null,null,null,null,null,null,{"$f":"IFERROR(VLOOKUP(L1822,CIIU!A:B,2,0),\"\")","v":""}]
[null,null,null,null,null,null,null,null,null,null,null,null,{"$f":"IFERROR(VLOOKUP(L1823,CIIU!A:B,2,0),\"\")","v":""}]
[null,null,null,null,null,null,null,null,null,null,null,null,{"$f":"IFERROR(VLOOKUP(L1824,CIIU!A:B,2,0),\"\")","v":""}]
[null,null,null,null,null,null,null,null,null,null,null,null,{"$f":"IFERROR(VLOOKUP(L1825,CIIU!A:B,2,0),\"\")","v":""}]
[null,null,null,null,null,null,null,null,null,null,null,null,{"$f":"IFERROR(VLOOKUP(L1826,CIIU!A:B,2,0),\"\")","v":""}]
[null,null,null,null,null,null,null,null,null,null,null,null,{"$f":"IFERROR(VLOOKUP(L1827,CIIU!A:B,2,0),\"\")","v":""}]
[null,null,null,null,null,null,null,null,null,null,null,null,{"$f":"IFERROR(VLOOKUP(L1828,CIIU!A:B,2,0),\"\")","v":""}]
[null,null,null,null,null,null,null,null,null,null,null,null,{"$f":"IFERROR(VLOOKUP(L1829,CIIU!A:B,2,0),\"\")","v":""}]
[null,null,null,null,null,null,null,null,null,null,null,null,{"$f":"IFERROR(VLOOKUP(L1830,CIIU!A:B,2,0),\"\")","v":""}]
[null,null,null,null,null,null,null,null,null,null,null,null,{"$f":"IFERROR(VLOOKUP(L1831,CIIU!A:B,2,0),\"\")","v":""}]
[null,null,null,null,null,null,null,null,null,null,null,null,{"$f":"IFERROR(VLOOKUP(L1832,CIIU!A:B,2,0),\"\")","v":""}]
[null,null,null,null,null,null,null,null,null,null,null,null,{"$f":"IFERROR(VLOOKUP(L1833,CIIU!A:B,2,0),\"\")","v":""}]
[null,null,null,null,null,null,null,null,null,null,null,null,{"$f":"IFERROR(VLOOKUP(L1834,CIIU!A:B,2,0),\"\")","v":""}]
[null,null,null,null,null,null,null,null,null,null,null,null,{"$f":"IFERROR(VLOOKUP(L1835,CIIU!A:B,2,0),\"\")","v":""}]
[null,null,null,null,null,null,null,null,null,null,null,null,{"$f":"IFERROR(VLOOKUP(L1836,CIIU!A:B,2,0),\"\")","v":""}]
[null,null,null,null,null,null,null,null,null,null,null,null,{"$f":"IFERROR(VLOOKUP(L1837,CIIU!A:B,2,0),\"\")","v":""}]
[null,null,null,null,null,null,null,null,null,null,null,null,{"$f":"IFERROR(VLOOKUP(L1838,CIIU!A:B,2,0),\"\")","v":""}]
[null,null,null,null,null,null,null,null,null,null,null,null,{"$f":"IFERROR(VLOOKUP(L1839,CIIU!A:B,2,0),\"\")","v":""}]
[null,null,null,null,null,null,null,null,null,null,null,null,{"$f":"IFERROR(VLOOKUP(L1840,CIIU!A:B,2,0),\"\")","v":""}]
[null,null,null,null,null,null,null,null,null,null,null,null,{"$f":"IFERROR(VLOOKUP(L1841,CIIU!A:B,2,0),\"\")","v":""}]
[null,null,null,null,null,null,null,null,null,null,null,null,{"$f":"IFERROR(VLOOKUP(L1842,CIIU!A:B,2,0),\"\")","v":""}]
[null,null,null,null,null,null,null,null,null,null,null,null,{"$f":"IFERROR(VLOOKUP(L1843,CIIU!A:B,2,0),\"\")","v":""}]
[null,null,null,null,null,null,null,null,null,null,null,null,{"$f":"IFERROR(VLOOKUP(L1844,CIIU!A:B,2,0),\"\")","v":""}]
[null,null,null,null,null,null,null,null,null,null,null,null,{"$f":"IFERROR(VLOOKUP(L1845,CIIU!A:B,2,0),\"\")","v":""}]
[null,null,null,null,null,null,null,null,null,null,null,null,{"$f":"IFERROR(VLOOKUP(L1846,CIIU!A:B,2,0),\"\")","v":""}]
[null,null,null,null,null,null,null,null,null,null,null,null,{"$f":"IFERROR(VLOOKUP(L1847,CIIU!A:B,2,0),\"\")","v":""}]
[null,null,null,null,null,null,null,null,null,null,null,null,{"$f":"IFERROR(VLOOKUP(L1848,CIIU!A:B,2,0),\"\")","v":""}]
[null,null,null,null,null,null,null,null,null,null,null,null,{"$f":"IFERROR(VLOOKUP(L1849,CIIU!A:B,2,0),\"\")","v":""}]
[null,null,null,null,null,null,null,null,null,null,null,null,{"$f":"IFERROR(VLOOKUP(L1850,CIIU!A:B,2,0),\"\")","v":""}]
[null,null,null,null,null,null,null,null,null,null,null,null,{"$f":"IFERROR(VLOOKUP(L1851,CIIU!A:B,2,0),\"\")","v":""}]
[null,null,null,null,null,null,null,null,null,null,null,null,{"$f":"IFERROR(VLOOKUP(L1852,CIIU!A:B,2,0),\"\")","v":""}]
[null,null,null,null,null,null,null,null,null,null,null,null,{"$f":"IFERROR(VLOOKUP(L1853,CIIU!A:B,2,0),\"\")","v":""}]
[null,null,null,null,null,null,null,null,null,null,null,null,{"$f":"IFERROR(VLOOKUP(L1854,CIIU!A:B,2,0),\"\")","v":""}]
[null,null,null,null,null,null,null,null,null,null,null,null,{"$f":"IFERROR(VLOOKUP(L1855,CIIU!A:B,2,0),\"\")","v":""}]
[null,null,null,null,null,null,null,null,null,null,null,null,{"$f":"IFERROR(VLOOKUP(L1856,CIIU!A:B,2,0),\"\")","v":""}]
[null,null,null,null,null,null,null,null,null,null,null,null,{"$f":"IFERROR(VLOOKUP(L1857,CIIU!A:B,2,0),\"\")","v":""}]
[null,null,null,null,null,null,null,null,null,null,null,null,{"$f":"IFERROR(VLOOKUP(L1858,CIIU!A:B,2,0),\"\")","v":""}]
[null,null,null,null,null,null,null,null,null,null,null,null,{"$f":"IFERROR(VLOOKUP(L1859,CIIU!A:B,2,0),\"\")","v":""}]
[null,null,null,null,null,null,null,null,null,null,null,null,{"$f":"IFERROR(VLOOKUP(L1860,CIIU!A:B,2,0),\"\")","v":""}]
[null,null,null,null,null,null,null,null,null,null,null,null,{"$f":"IFERROR(VLOOKUP(L1861,CIIU!A:B,2,0),\"\")","v":""}]
[null,null,null,null,null,null,null,null,null,null,null,null,{"$f":"IFERROR(VLOOKUP(L1862,CIIU!A:B,2,0),\"\")","v":""}]
[null,null,null,null,null,null,null,null,null,null,null,null,{"$f":"IFERROR(VLOOKUP(L1863,CIIU!A:B,2,0),\"\")","v":""}]
[null,null,null,null,null,null,null,null,null,null,null,null,{"$f":"IFERROR(VLOOKUP(L1864,CIIU!A:B,2,0),\"\")","v":""}]
[null,null,null,null,null,null,null,null,null,null,null,null,{"$f":"IFERROR(VLOOKUP(L1865,CIIU!A:B,2,0),\"\")","v":""}]
[null,null,null,null,null,null,null,null,null,null,null,null,{"$f":"IFERROR(VLOOKUP(L1866,CIIU!A:B,2,0),\"\")","v":""}]
[null,null,null,null,null,null,null,null,null,null,null,null,{"$f":"IFERROR(VLOOKUP(L1867,CIIU!A:B,2,0),\"\")","v":""}]
[null,null,null,null,null,null,null,null,null,null,null,null,{"$f":"IFERROR(VLOOKUP(L1868,CIIU!A:B,2,0),\"\")","v":""}]
[null,null,null,null,null,null,null,null,null,null,null,null,{"$f":"IFERROR(VLOOKUP(L1869,CIIU!A:B,2,0),\"\")","v":""}]
[null,null,null,null,null,null,null,null,null,null,null,null,{"$f":"IFERROR(VLOOKUP(L1870,CIIU!A:B,2,0),\"\")","v":""}]
[null,null,null,null,null,null,null,null,null,null,null,null,{"$f":"IFERROR(VLOOKUP(L1871,CIIU!A:B,2,0),\"\")","v":""}]
[null,null,null,null,null,null,null,null,null,null,null,null,{"$f":"IFERROR(VLOOKUP(L1872,CIIU!A:B,2,0),\"\")","v":""}]
[null,null,null,null,null,null,null,null,null,null,null,null,{"$f":"IFERROR(VLOOKUP(L1873,CIIU!A:B,2,0),\"\")","v":""}]
[null,null,null,null,null,null,null,null,null,null,null,null,{"$f":"IFERROR(VLOOKUP(L1874,CIIU!A:B,2,0),\"\")","v":""}]
[null,null,null,null,null,null,null,null,null,null,null,null,{"$f":"IFERROR(VLOOKUP(L1875,CIIU!A:B,2,0),\"\")","v":""}]
[null,null,null,null,null,null,null,null,null,null,null,null,{"$f":"IFERROR(VLOOKUP(L1876,CIIU!A:B,2,0),\"\")","v":""}]
[null,null,null,null,null,null,null,null,null,null,null,null,{"$f":"IFERROR(VLOOKUP(L1877,CIIU!A:B,2,0),\"\")","v":""}]
[null,null,null,null,null,null,null,null,null,null,null,null,{"$f":"IFERROR(VLOOKUP(L1878,CIIU!A:B,2,0),\"\")","v":""}]
[null,null,null,null,null,null,null,null,null,null,null,null,{"$f":"IFERROR(VLOOKUP(L1879,CIIU!A:B,2,0),\"\")","v":""}]
[null,null,null,null,null,null,null,null,null,null,null,null,{"$f":"IFERROR(VLOOKUP(L1880,CIIU!A:B,2,0),\"\")","v":""}]
[null,null,null,null,null,null,null,null,null,null,null,null,{"$f":"IFERROR(VLOOKUP(L1881,CIIU!A:B,2,0),\"\")","v":""}]
[null,null,null,null,null,null,null,null,null,null,null,null,{"$f":"IFERROR(VLOOKUP(L1882,CIIU!A:B,2,0),\"\")","v":""}]
[null,null,null,null,null,null,null,null,null,null,null,null,{"$f":"IFERROR(VLOOKUP(L1883,CIIU!A:B,2,0),\"\")","v":""}]
[null,null,null,null,null,null,null,null,null,null,null,null,{"$f":"IFERROR(VLOOKUP(L1884,CIIU!A:B,2,0),\"\")","v":""}]
[null,null,null,null,null,null,null,null,null,null,null,null,{"$f":"IFERROR(VLOOKUP(L1885,CIIU!A:B,2,0),\"\")","v":""}]
[null,null,null,null,null,null,null,null,null,null,null,null,{"$f":"IFERROR(VLOOKUP(L1886,CIIU!A:B,2,0),\"\")","v":""}]
[null,null,null,null,null,null,null,null,null,null,null,null,{"$f":"IFERROR(VLOOKUP(L1887,CIIU!A:B,2,0),\"\")","v":""}]
[null,null,null,null,null,null,null,null,null,null,null,null,{"$f":"IFERROR(VLOOKUP(L1888,CIIU!A:B,2,0),\"\")","v":""}]
[null,null,null,null,null,null,null,null,null,null,null,null,{"$f":"IFERROR(VLOOKUP(L1889,CIIU!A:B,2,0),\"\")","v":""}]
[null,null,null,null,null,null,null,null,null,null,null,null,{"$f":"IFERROR(VLOOKUP(L1890,CIIU!A:B,2,0),\"\")","v":""}]
[null,null,null,null,null,null,null,null,null,null,null,null,{"$f":"IFERROR(VLOOKUP(L1891,CIIU!A:B,2,0),\"\")","v":""}]
[null,null,null,null,null,null,null,null,null,null,null,null,{"$f":"IFERROR(VLOOKUP(L1892,CIIU!A:B,2,0),\"\")","v":""}]
[null,null,null,null,null,null,null,null,null,null,null,null,{"$f":"IFERROR(VLOOKUP(L1893,CIIU!A:B,2,0),\"\")","v":""}]
[null,null,null,null,null,null,null,null,null,null,null,null,{"$f":"IFERROR(VLOOKUP(L1894,CIIU!A:B,2,0),\"\")","v":""}]
[null,null,null,null,null,null,null,null,null,null,null,null,{"$f":"IFERROR(VLOOKUP(L1895,CIIU!A:B,2,0),\"\")","v":""}]
[null,null,null,null,null,null,null,null,null,null,null,null,{"$f":"IFERROR(VLOOKUP(L1896,CIIU!A:B,2,0),\"\")","v":""}]
[null,null,null,null,null,null,null,null,null,null,null,null,{"$f":"IFERROR(VLOOKUP(L1897,CIIU!A:B,2,0),\"\")","v":""}]
[null,null,null,null,null,null,null,null,null,null,null,null,{"$f":"IFERROR(VLOOKUP(L1898,CIIU!A:B,2,0),\"\")","v":""}]
[null,null,null,null,null,null,null,null,null,null,null,null,{"$f":"IFERROR(VLOOKUP(L1899,CIIU!A:B,2,0),\"\")","v":""}]
[null,null,null,null,null,null,null,null,null,null,null,null,{"$f":"IFERROR(VLOOKUP(L1900,CIIU!A:B,2,0),\"\")","v":""}]
[null,null,null,null,null,null,null,null,null,null,null,null,{"$f":"IFERROR(VLOOKUP(L1901,CIIU!A:B,2,0),\"\")","v":""}]
[null,null,null,null,null,null,null,null,null,null,null,null,{"$f":"IFERROR(VLOOKUP(L1902,CIIU!A:B,2,0),\"\")","v":""}]
[null,null,null,null,null,null,null,null,null,null,null,null,{"$f":"IFERROR(VLOOKUP(L1903,CIIU!A:B,2,0),\"\")","v":""}]
[null,null,null,null,null,null,null,null,null,null,null,null,{"$f":"IFERROR(VLOOKUP(L1904,CIIU!A:B,2,0),\"\")","v":""}]
[null,null,null,null,null,null,null,null,null,null,null,null,{"$f":"IFERROR(VLOOKUP(L1905,CIIU!A:B,2,0),\"\")","v":""}]
[null,null,null,null,null,null,null,null,null,null,null,null,{"$f":"IFERROR(VLOOKUP(L1906,CIIU!A:B,2,0),\"\")","v":""}]
[null,null,null,null,null,null,null,null,null,null,null,null,{"$f":"IFERROR(VLOOKUP(L1907,CIIU!A:B,2,0),\"\")","v":""}]
[null,null,null,null,null,null,null,null,null,null,null,null,{"$f":"IFERROR(VLOOKUP(L1908,CIIU!A:B,2,0),\"\")","v":""}]
[null,null,null,null,null,null,null,null,null,null,null,null,{"$f":"IFERROR(VLOOKUP(L1909,CIIU!A:B,2,0),\"\")","v":""}]
[null,null,null,null,null,null,null,null,null,null,null,null,{"$f":"IFERROR(VLOOKUP(L1910,CIIU!A:B,2,0),\"\")","v":""}]
[null,null,null,null,null,null,null,null,null,null,null,null,{"$f":"IFERROR(VLOOKUP(L1911,CIIU!A:B,2,0),\"\")","v":""}]
[null,null,null,null,null,null,null,null,null,null,null,null,{"$f":"IFERROR(VLOOKUP(L1912,CIIU!A:B,2,0),\"\")","v":""}]
[null,null,null,null,null,null,null,null,null,null,null,null,{"$f":"IFERROR(VLOOKUP(L1913,CIIU!A:B,2,0),\"\")","v":""}]
[null,null,null,null,null,null,null,null,null,null,null,null,{"$f":"IFERROR(VLOOKUP(L1914,CIIU!A:B,2,0),\"\")","v":""}]
[null,null,null,null,null,null,null,null,null,null,null,null,{"$f":"IFERROR(VLOOKUP(L1915,CIIU!A:B,2,0),\"\")","v":""}]
[null,null,null,null,null,null,null,null,null,null,null,null,{"$f":"IFERROR(VLOOKUP(L1916,CIIU!A:B,2,0),\"\")","v":""}]
[null,null,null,null,null,null,null,null,null,null,null,null,{"$f":"IFERROR(VLOOKUP(L1917,CIIU!A:B,2,0),\"\")","v":""}]
[null,null,null,null,null,null,null,null,null,null,null,null,{"$f":"IFERROR(VLOOKUP(L1918,CIIU!A:B,2,0),\"\")","v":""}]
[null,null,null,null,null,null,null,null,null,null,null,null,{"$f":"IFERROR(VLOOKUP(L1919,CIIU!A:B,2,0),\"\")","v":""}]
[null,null,null,null,null,null,null,null,null,null,null,null,{"$f":"IFERROR(VLOOKUP(L1920,CIIU!A:B,2,0),\"\")","v":""}]
[null,null,null,null,null,null,null,null,null,null,null,null,{"$f":"IFERROR(VLOOKUP(L1921,CIIU!A:B,2,0),\"\")","v":""}]
[null,null,null,null,null,null,null,null,null,null,null,null,{"$f":"IFERROR(VLOOKUP(L1922,CIIU!A:B,2,0),\"\")","v":""}]
[null,null,null,null,null,null,null,null,null,null,null,null,{"$f":"IFERROR(VLOOKUP(L1923,CIIU!A:B,2,0),\"\")","v":""}]
[null,null,null,null,null,null,null,null,null,null,null,null,{"$f":"IFERROR(VLOOKUP(L1924,CIIU!A:B,2,0),\"\")","v":""}]
[null,null,null,null,null,null,null,null,null,null,null,null,{"$f":"IFERROR(VLOOKUP(L1925,CIIU!A:B,2,0),\"\")","v":""}]
[null,null,null,null,null,null,null,null,null,null,null,null,{"$f":"IFERROR(VLOOKUP(L1926,CIIU!A:B,2,0),\"\")","v":""}]
[null,null,null,null,null,null,null,null,null,null,null,null,{"$f":"IFERROR(VLOOKUP(L1927,CIIU!A:B,2,0),\"\")","v":""}]
[null,null,null,null,null,null,null,null,null,null,null,null,{"$f":"IFERROR(VLOOKUP(L1928,CIIU!A:B,2,0),\"\")","v":""}]
[null,null,null,null,null,null,null,null,null,null,null,null,{"$f":"IFERROR(VLOOKUP(L1929,CIIU!A:B,2,0),\"\")","v":""}]
[null,null,null,null,null,null,null,null,null,null,null,null,{"$f":"IFERROR(VLOOKUP(L1930,CIIU!A:B,2,0),\"\")","v":""}]
[null,null,null,null,null,null,null,null,null,null,null,null,{"$f":"IFERROR(VLOOKUP(L1931,CIIU!A:B,2,0),\"\")","v":""}]
[null,null,null,null,null,null,null,null,null,null,null,null,{"$f":"IFERROR(VLOOKUP(L1932,CIIU!A:B,2,0),\"\")","v":""}]
[null,null,null,null,null,null,null,null,null,null,null,null,{"$f":"IFERROR(VLOOKUP(L1933,CIIU!A:B,2,0),\"\")","v":""}]
[null,null,null,null,null,null,null,null,null,null,null,null,{"$f":"IFERROR(VLOOKUP(L1934,CIIU!A:B,2,0),\"\")","v":""}]
[null,null,null,null,null,null,null,null,null,null,null,null,{"$f":"IFERROR(VLOOKUP(L1935,CIIU!A:B,2,0),\"\")","v":""}]
[null,null,null,null,null,null,null,null,null,null,null,null,{"$f":"IFERROR(VLOOKUP(L1936,CIIU!A:B,2,0),\"\")","v":""}]
[null,null,null,null,null,null,null,null,null,null,null,null,{"$f":"IFERROR(VLOOKUP(L1937,CIIU!A:B,2,0),\"\")","v":""}]
[null,null,null,null,null,null,null,null,null,null,null,null,{"$f":"IFERROR(VLOOKUP(L1938,CIIU!A:B,2,0),\"\")","v":""}]
[null,null,null,null,null,null,null,null,null,null,null,null,{"$f":"IFERROR(VLOOKUP(L1939,CIIU!A:B,2,0),\"\")","v":""}]
[null,null,null,null,null,null,null,null,null,null,null,null,{"$f":"IFERROR(VLOOKUP(L1940,CIIU!A:B,2,0),\"\")","v":""}]
[null,null,null,null,null,null,null,null,null,null,null,null,{"$f":"IFERROR(VLOOKUP(L1941,CIIU!A:B,2,0),\"\")","v":""}]
[null,null,null,null,null,null,null,null,null,null,null,null,{"$f":"IFERROR(VLOOKUP(L1942,CIIU!A:B,2,0),\"\")","v":""}]
[null,null,null,null,null,null,null,null,null,null,null,null,{"$f":"IFERROR(VLOOKUP(L1943,CIIU!A:B,2,0),\"\")","v":""}]
[null,null,null,null,null,null,null,null,null,null,null,null,{"$f":"IFERROR(VLOOKUP(L1944,CIIU!A:B,2,0),\"\")","v":""}]
[null,null,null,null,null,null,null,null,null,null,null,null,{"$f":"IFERROR(VLOOKUP(L1945,CIIU!A:B,2,0),\"\")","v":""}]
[null,null,null,null,null,null,null,null,null,null,null,null,{"$f":"IFERROR(VLOOKUP(L1946,CIIU!A:B,2,0),\"\")","v":""}]
[null,null,null,null,null,null,null,null,null,null,null,null,{"$f":"IFERROR(VLOOKUP(L1947,CIIU!A:B,2,0),\"\")","v":""}]
[null,null,null,null,null,null,null,null,null,null,null,null,{"$f":"IFERROR(VLOOKUP(L1948,CIIU!A:B,2,0),\"\")","v":""}]
[null,null,null,null,null,null,null,null,null,null,null,null,{"$f":"IFERROR(VLOOKUP(L1949,CIIU!A:B,2,0),\"\")","v":""}]
[null,null,null,null,null,null,null,null,null,null,null,null,{"$f":"IFERROR(VLOOKUP(L1950,CIIU!A:B,2,0),\"\")","v":""}]
[null,null,null,null,null,null,null,null,null,null,null,null,{"$f":"IFERROR(VLOOKUP(L1951,CIIU!A:B,2,0),\"\")","v":""}]
[null,null,null,null,null,null,null,null,null,null,null,null,{"$f":"IFERROR(VLOOKUP(L1952,CIIU!A:B,2,0),\"\")","v":""}]
[null,null,null,null,null,null,null,null,null,null,null,null,{"$f":"IFERROR(VLOOKUP(L1953,CIIU!A:B,2,0),\"\")","v":""}]
[null,null,null,null,null,null,null,null,null,null,null,null,{"$f":"IFERROR(VLOOKUP(L1954,CIIU!A:B,2,0),\"\")","v":""}]
[null,null,null,null,null,null,null,null,null,null,null,null,{"$f":"IFERROR(VLOOKUP(L1955,CIIU!A:B,2,0),\"\")","v":""}]
[null,null,null,null,null,null,null,null,null,null,null,null,{"$f":"IFERROR(VLOOKUP(L1956,CIIU!A:B,2,0),\"\")","v":""}]
[null,null,null,null,null,null,null,null,null,null,null,null,{"$f":"IFERROR(VLOOKUP(L1957,CIIU!A:B,2,0),\"\")","v":""}]
[null,null,null,null,null,null,null,null,null,null,null,null,{"$f":"IFERROR(VLOOKUP(L1958,CIIU!A:B,2,0),\"\")","v":""}]
[null,null,null,null,null,null,null,null,null,null,null,null,{"$f":"IFERROR(VLOOKUP(L1959,CIIU!A:B,2,0),\"\")","v":""}]
[null,null,null,null,null,null,null,null,null,null,null,null,{"$f":"IFERROR(VLOOKUP(L1960,CIIU!A:B,2,0),\"\")","v":""}]
[null,null,null,null,null,null,null,null,null,null,null,null,{"$f":"IFERROR(VLOOKUP(L1961,CIIU!A:B,2,0),\"\")","v":""}]
[null,null,null,null,null,null,null,null,null,null,null,null,{"$f":"IFERROR(VLOOKUP(L1962,CIIU!A:B,2,0),\"\")","v":""}]
[null,null,null,null,null,null,null,null,null,null,null,null,{"$f":"IFERROR(VLOOKUP(L1963,CIIU!A:B,2,0),\"\")","v":""}]
[null,null,null,null,null,null,null,null,null,null,null,null,{"$f":"IFERROR(VLOOKUP(L1964,CIIU!A:B,2,0),\"\")","v":""}]
[null,null,null,null,null,null,null,null,null,null,null,null,{"$f":"IFERROR(VLOOKUP(L1965,CIIU!A:B,2,0),\"\")","v":""}]
[null,null,null,null,null,null,null,null,null,null,null,null,{"$f":"IFERROR(VLOOKUP(L1966,CIIU!A:B,2,0),\"\")","v":""}]
[null,null,null,null,null,null,null,null,null,null,null,null,{"$f":"IFERROR(VLOOKUP(L1967,CIIU!A:B,2,0),\"\")","v":""}]
[null,null,null,null,null,null,null,null,null,null,null,null,{"$f":"IFERROR(VLOOKUP(L1968,CIIU!A:B,2,0),\"\")","v":""}]
[null,null,null,null,null,null,null,null,null,null,null,null,{"$f":"IFERROR(VLOOKUP(L1969,CIIU!A:B,2,0),\"\")","v":""}]
[null,null,null,null,null,null,null,null,null,null,null,null,{"$f":"IFERROR(VLOOKUP(L1970,CIIU!A:B,2,0),\"\")","v":""}]
[null,null,null,null,null,null,null,null,null,null,null,null,{"$f":"IFERROR(VLOOKUP(L1971,CIIU!A:B,2,0),\"\")","v":""}]
[null,null,null,null,null,null,null,null,null,null,null,null,{"$f":"IFERROR(VLOOKUP(L1972,CIIU!A:B,2,0),\"\")","v":""}]
[null,null,null,null,null,null,null,null,null,null,null,null,{"$f":"IFERROR(VLOOKUP(L1973,CIIU!A:B,2,0),\"\")","v":""}]
[null,null,null,null,null,null,null,null,null,null,null,null,{"$f":"IFERROR(VLOOKUP(L1974,CIIU!A:B,2,0),\"\")","v":""}]
[null,null,null,null,null,null,null,null,null,null,null,null,{"$f":"IFERROR(VLOOKUP(L1975,CIIU!A:B,2,0),\"\")","v":""}]
[null,null,null,null,null,null,null,null,null,null,null,null,{"$f":"IFERROR(VLOOKUP(L1976,CIIU!A:B,2,0),\"\")","v":""}]
[null,null,null,null,null,null,null,null,null,null,null,null,{"$f":"IFERROR(VLOOKUP(L1977,CIIU!A:B,2,0),\"\")","v":""}]
[null,null,null,null,null,null,null,null,null,null,null,null,{"$f":"IFERROR(VLOOKUP(L1978,CIIU!A:B,2,0),\"\")","v":""}]
[null,null,null,null,null,null,null,null,null,null,null,null,{"$f":"IFERROR(VLOOKUP(L1979,CIIU!A:B,2,0),\"\")","v":""}]
[null,null,null,null,null,null,null,null,null,null,null,null,{"$f":"IFERROR(VLOOKUP(L1980,CIIU!A:B,2,0),\"\")","v":""}]
[null,null,null,null,null,null,null,null,null,null,null,null,{"$f":"IFERROR(VLOOKUP(L1981,CIIU!A:B,2,0),\"\")","v":""}]
[null,null,null,null,null,null,null,null,null,null,null,null,{"$f":"IFERROR(VLOOKUP(L1982,CIIU!A:B,2,0),\"\")","v":""}]
[null,null,null,null,null,null,null,null,null,null,null,null,{"$f":"IFERROR(VLOOKUP(L1983,CIIU!A:B,2,0),\"\")","v":""}]
[null,null,null,null,null,null,null,null,null,null,null,null,{"$f":"IFERROR(VLOOKUP(L1984,CIIU!A:B,2,0),\"\")","v":""}]
[null,null,null,null,null,null,null,null,null,null,null,null,{"$f":"IFERROR(VLOOKUP(L1985,CIIU!A:B,2,0),\"\")","v":""}]
[null,null,null,null,null,null,null,null,null,null,null,null,{"$f":"IFERROR(VLOOKUP(L1986,CIIU!A:B,2,0),\"\")","v":""}]
[null,null,null,null,null,null,null,null,null,null,null,null,{"$f":"IFERROR(VLOOKUP(L1987,CIIU!A:B,2,0),\"\")","v":""}]
[null,null,null,null,null,null,null,null,null,null,null,null,{"$f":"IFERROR(VLOOKUP(L1988,CIIU!A:B,2,0),\"\")","v":""}]
[null,null,null,null,null,null,null,null,null,null,null,null,{"$f":"IFERROR(VLOOKUP(L1989,CIIU!A:B,2,0),\"\")","v":""}]
[null,null,null,null,null,null,null,null,null,null,null,null,{"$f":"IFERROR(VLOOKUP(L1990,CIIU!A:B,2,0),\"\")","v":""}]
[null,null,null,null,null,null,null,null,null,null,null,null,{"$f":"IFERROR(VLOOKUP(L1991,CIIU!A:B,2,0),\"\")","v":""}]
[null,null,null,null,null,null,null,null,null,null,null,null,{"$f":"IFERROR(VLOOKUP(L1992,CIIU!A:B,2,0),\"\")","v":""}]
[null,null,null,null,null,null,null,null,null,null,null,null,{"$f":"IFERROR(VLOOKUP(L1993,CIIU!A:B,2,0),\"\")","v":""}]
[null,null,null,null,null,null,null,null,null,null,null,null,{"$f":"IFERROR(VLOOKUP(L1994,CIIU!A:B,2,0),\"\")","v":""}]
[null,null,null,null,null,null,null,null,null,null,null,null,{"$f":"IFERROR(VLOOKUP(L1995,CIIU!A:B,2,0),\"\")","v":""}]
[null,null,null,null,null,null,null,null,null,null,null,null,{"$f":"IFERROR(VLOOKUP(L1996,CIIU!A:B,2,0),\"\")","v":""}]
[null,null,null,null,null,null,null,null,null,null,null,null,{"$f":"IFERROR(VLOOKUP(L1997,CIIU!A:B,2,0),\"\")","v":""}]
[null,null,null,null,null,null,null,null,null,null,null,null,{"$f":"IFERROR(VLOOKUP(L1998,CIIU!A:B,2,0),\"\")","v":""}]
[null,null,null,null,null,null,null,null,null,null,null,null,{"$f":"IFERROR(VLOOKUP(L1999,CIIU!A:B,2,0),\"\")","v":""}]
[null,null,null,null,null,null,null,null,null,null,null,null,{"$f":"IFERROR(VLOOKUP(L2000,CIIU!A:B,2,0),\"\")","v":""}]
[null,null,null,null,null,null,null,null,null,null,null,null,{"$f":"IFERROR(VLOOKUP(L2001,CIIU!A:B,2,0),\"\")","v":""}]
[null,null,null,null,null,null,null,null,null,null,null,null,{"$f":"IFERROR(VLOOKUP(L2002,CIIU!A:B,2,0),\"\")","v":""}]
[null,null,null,null,null,null,null,null,null,null,null,null,{"$f":"IFERROR(VLOOKUP(L2003,CIIU!A:B,2,0),\"\")","v":""}]

{"sheet":"LogErrores","index":2,"n_rows":1,"n_cols":1,"rows_kept":1,"cut":false,"hidden":false,"merged":[]}
["Descripción de los errores generados en la validación de los contratos de colaboración empresarial"]

{"sheet":"TiposContrato","index":3,"n_rows":8,"n_cols":3,"rows_kept":8,"cut":false,"hidden":true,"merged":[]}
["ID","TIPO","ID"]
[1,"Consorcio",1]
[2,"Unión temporal",2]
[3,"Contrato de mandato",3]
[4,"Administración delegada",4]
[5,"Joint venture",5]
[6,"Cuentas en participación",6]
[7,"Convenios de cooperación",7]

{"sheet":"Tipos Documento identidad","index":4,"n_rows":8,"n_cols":3,"rows_kept":8,"cut":false,"hidden":true,"merged":[[0,0,0,1]]}
["Tipos de documento"]
["Id","Tipo documento"]
["1","NIT","1"]
["2","Cédula de ciudadanía","2"]
["3","Cédula de extranjería","3"]
["4","Pasaporte","4"]
["5","Tarjeta de identidad","5"]
["6","Otros","6"]

{"sheet":"CIIU","index":5,"n_rows":558,"n_cols":3,"rows_kept":558,"cut":false,"hidden":true,"merged":[]}
["Código","Descripción","Código"]
[510,"Extracción de hulla (carbón de piedra)",510]
[520,"Extracción de carbón lignito",520]
[610,"Extracción de petróleo crudo",610]
[620,"Extracción de gas natural",620]
[710,"Extracción de minerales de hierro",710]
[721,"Extracción de minerales de uranio y de torio",721]
[722,"Extracción de oro y otros metales preciosos",722]
[723,"Extracción de minerales de níquel",723]
[729,"Extracción de otros minerales metalíferos no ferrosos n.c.p.",729]
[811,"Extracción de piedra, arena, arcillas comunes, yeso y anhidrita",811]
[812,"Extracción de arcillas de uso industrial, caliza, caolín y bentonitas",812]
[820,"Extracción de esmeraldas, piedras preciosas y semipreciosas",820]
[891,"Extracción de minerales para la fabricación de abonos y productos químicos",891]
[892,"Extracción de halita (sal)",892]
[899,"Extracción de otros minerales no metálicos n.c.p.",899]
[1011,"Procesamiento y conservación de carne y productos cárnicos",1011]
[1012,"Procesamiento y conservación de pescados, crustáceos y moluscos",1012]
[1020,"Procesamiento y conservación de frutas, legumbres, hortalizas y tubérculos",1020]
[1030,"Elaboración de aceites y grasas de origen vegetal y animal",1030]
[1040,"Elaboración de productos lácteos",1040]
[1051,"Elaboración de productos de molinería",1051]
[1052,"Elaboración de almidones y productos derivados del almidón",1052]
[1061,"Trilla de café",1061]
[1062,"Descafeinado, tostión y molienda del café",1062]
[1063,"Otros derivados del café",1063]
[1071,"Elaboración y refinación de azúcar",1071]
[1072,"Elaboración de panela",1072]
[1081,"Elaboración de productos de panadería",1081]
[1082,"Elaboración de cacao, chocolate y productos de confitería",1082]
[1083,"Elaboración de macarrones, fideos, alcuzcuz y productos farináceos similares",1083]
[1084,"Elaboración de comidas y platos preparados",1084]
[1089,"Elaboración de otros productos alimenticios n.c.p.",1089]
[1090,"Elaboración de alimentos preparados para animales",1090]
[1101,"Destilación, rectificación y mezcla de bebidas alcohólicas",1101]
[1102,"Elaboración de bebidas fermentadas no destiladas",1102]
[1103,"Producción de malta, elaboración de cervezas y otras bebidas malteadas",1103]
["1103A","Producción de malta, elaboración de cervezas y otras bebidas malteadas sin alcohol","1103A"]
["1103B","Producción de malta, elaboración de cervezas y otras bebidas malteadas que tengan algún grado de alcohol","1103B"]
[1104,"Elaboración de bebidas no alcohólicas, producción de aguas minerales y de otras aguas embotelladas",1104]
[1200,"Elaboración de productos de tabaco",1200]
[1311,"Preparación e hilatura de fibras textiles",1311]
[1312,"Tejeduría de productos textiles",1312]
[1313,"Acabado de productos textiles",1313]
[1391,"Fabricación de tejidos de punto y ganchillo",1391]
[1392,"Confección de artículos con materiales textiles, excepto prendas de vestir",1392]
[1393,"Fabricación de tapetes y alfombras para pisos",1393]
[1394,"Fabricación de cuerdas, cordeles, cables, bramantes y redes",1394]
[1399,"Fabricación de otros artículos textiles n.c.p.",1399]
[1410,"Confección de prendas de vestir, excepto prendas de piel",1410]
[1420,"Fabricación de artículos de piel",1420]
[1430,"Fabricación de artículos de punto y ganchillo",1430]
[1511,"Curtido y recurtido de cueros; recurtido y teñido de pieles",1511]
[1512,"Fabricación de artículos de viaje, bolsos de mano y artículos similares elaborados en cuero, y fabricación de artículos de talabartería y guarnicionería",1512]
[1513,"Fabricación de artículos de viaje, bolsos de mano y artículos similares; artículos de talabartería y guarnicionería elaborados en otros materiales",1513]
[1521,"Fabricación de calzado de cuero y piel, con cualquier tipo de suela",1521]
[1522,"Fabricación de otros tipos de calzado, excepto calzado de cuero y piel",1522]
[1523,"Fabricación de partes del calzado",1523]
[1610,"Aserrado, acepillado e impregnación de la madera",1610]
[1620,"Fabricación de hojas de madera para enchapado; fabricación de tableros contrachapados, tableros laminados, tableros de partículas y otros tableros y paneles",1620]
[1630,"Fabricación de partes y piezas de madera, de carpintería y ebanistería para la construcción",1630]
[1640,"Fabricación de recipientes de madera",1640]
[1690,"Fabricación de otros productos de madera; fabricación de artículos de corcho, cestería y espartería",1690]
[1701,"Fabricación de pulpas (pastas) celulósicas; papel y cartón",1701]
[1702,"Fabricación de papel y cartón ondulado (corrugado); fabricación de envases, empaques y de  embalajes de papel y cartón",1702]
[1709,"Fabricación de otros artículos de papel y cartón",1709]
[1811,"Tipografía y artes graficas",1811]
[1812,"Actividades de servicios relacionados con la impresión",1812]
[1910,"Fabricación de productos de hornos de coque",1910]
[1921,"Fabricación de productos de la refinación del petróleo",1921]
[1922,"Actividad de mezcla de combustibles",1922]
[2011,"Fabricación de sustancias y productos químicos básicos",2011]
[2012,"Fabricación de abonos y compuestos inorgánicos nitrogenados",2012]
[2013,"Fabricación de plásticos en formas primarias",2013]
[2014,"Fabricación de caucho sintético en formas primarias",2014]
[2021,"Fabricación de plaguicidas y otros productos químicos de uso agropecuario",2021]
[2022,"Fabricación de pinturas, barnices y revestimientos similares, tintas para impresión y masillas",2022]
[2023,"Fabricación de jabones y detergentes, preparados para limpiar y pulir; perfumes y preparados  de tocador",2023]
[2029,"Fabricación de otros productos químicos n.c.p.",2029]
[2030,"Fabricación de fibras sintéticas y artificiales",2030]
[2100,"Fabricación de productos farmacéuticos, sustancias químicas medicinales y productos botánicos  de uso farmacéutico",2100]
[2211,"Fabricación de llantas y neumáticos de caucho",2211]
[2219,"Fabricación de formas básicas de caucho y otros productos de caucho n.c.p.",2219]
[2221,"Fabricación de formas básicas de plástico",2221]
[2229,"Fabricación de artículos de plástico n.c.p.",2229]
[2310,"Fabricación de vidrio y productos de vidrio",2310]
[2391,"Fabricación de productos refractarios",2391]
[2392,"Fabricación de materiales de arcilla para la construcción",2392]
[2393,"Fabricación de otros productos de cerámica y porcelana",2393]
[2394,"Fabricación de cemento, cal y yeso",2394]
[2395,"Fabricación de artículos de hormigón, cemento y yeso",2395]
[2396,"Corte, tallado y acabado de la piedra",2396]
[2399,"Fabricación de otros productos minerales no metálicos n.c.p.",2399]
[2410,"Producción de hierro",2410]
[2421,"Industrias básicas de metales preciosos",2421]
[2429,"Industrias básicas de otros metales no ferrosos",2429]
[2431,"Fundición de hierro y de acero",2431]
[2432,"Fundición de metales no ferrosos",2432]
[2511,"Fabricación de productos metálicos para uso estructural",2511]
[2512,"Fabricación de tanques, depósitos y recipientes de metal, excepto los utilizados para el envase o transporte de mercancías",2512]
[2513,"Fabricación de generadores de vapor, excepto calderas de agua caliente para calefacción central",2513]
[2520,"Fabricación de armas y municiones",2520]
[2591,"Forja, prensado, estampado y laminado de metal; pulvimetalurgia",2591]
[2592,"Tratamiento y revestimiento de metales; mecanizado",2592]
[2593,"Fabricación de artículos de cuchillería, herramientas de mano y artículos de ferretería",2593]
[2599,"Fabricación de otros productos elaborados de metal n.c.p.",2599]
[2610,"Fabricación de componentes y tableros electrónicos",2610]
[2620,"Fabricación de computadoras y de equipo periférico",2620]
[2630,"Fabricación de equipos de comunicación",2630]
[2640,"Fabricación de aparatos electrónicos de consumo",2640]
[2651,"Fabricación de equipo de medición, prueba, navegación y control",2651]
[2652,"Fabricación de relojes",2652]
[2660,"Fabricación de equipo de irradiación y equipo electrónico de uso médico y terapéutico",2660]
[2670,"Fabricación de instrumentos ópticos y equipo fotográfico",2670]
[2680,"Fabricación de medios magnéticos y ópticos para almacenamiento de datos",2680]
[2711,"Fabricación de motores, generadores y transformadores eléctricos",2711]
[2712,"Fabricación de aparatos de distribución y control de la energía eléctrica",2712]
[2720,"Fabricación de pilas, baterías y acumuladores eléctricos",2720]
[2731,"Fabricación de hilos y cables eléctricos y de fibra óptica",2731]
[2732,"Fabricación de dispositivos de cableado",2732]
[2740,"Fabricación de equipos eléctricos de iluminación",2740]
[2750,"Fabricación de aparatos de uso doméstico",2750]
[2790,"Fabricación de otros tipos de equipo eléctrico n.c.p.",2790]
[2811,"Fabricación de motores, turbinas, y partes para motores de combustión interna",2811]
[2812,"Fabricación de equipos de potencia hidráulica y neumática",2812]
[2813,"Fabricación de otras bombas, compresores, grifos y válvulas",2813]
[2814,"Fabricación de cojinetes, engranajes, trenes de engranajes y piezas de transmisión",2814]
[2815,"Fabricación de hornos, hogares y quemadores industriales",2815]
[2816,"Fabricación de equipo de elevación y manipulación",2816]
[2817,"Fabricación de maquinaria y equipo de oficina (excepto computadoras y equipo periférico)",2817]
[2818,"Fabricación de herramientas manuales con motor",2818]
[2819,"Fabricación de otros tipos de maquinaria y equipo de uso general n.c.p.",2819]
[2821,"Fabricación de maquinaria agropecuaria y forestal",2821]
[2822,"Fabricación de máquinas formadoras de metal y de máquinas herramienta",2822]
[2823,"Fabricación de maquinaria para la metalurgia",2823]
[2824,"Fabricación de maquinaria para explotación de minas y canteras y para obras de construcción",2824]
[2825,"Fabricación de maquinaria para la elaboración de alimentos, bebidas y tabaco",2825]
[2826,"Fabricación de maquinaria para la elaboración de productos textiles, prendas de vestir y cueros",2826]
[2829,"Fabricación de otros tipos de maquinaria y equipo de uso especial n.c.p.",2829]
[2910,"Fabricación de vehículos automotores y sus motores",2910]
[2920,"Fabricación de carrocerías para vehículos automotores; fabricación de remolques y semirremolques",2920]
[2930,"Fabricación de partes, piezas (autopartes) y accesorios (lujos) para vehículos automotores",2930]
[3011,"Construcción de barcos y de estructuras flotantes",3011]
[3012,"Construcción de embarcaciones de recreo y deporte",3012]
[3020,"Fabricación de locomotoras y de material rodante para ferrocarriles",3020]
[3030,"Fabricación de aeronaves, naves espaciales y de maquinaria conexa",3030]
[3040,"Fabricación de vehículos militares de combate",3040]
[3091,"Fabricación de motocicletas",3091]
[3092,"Fabricación de bicicletas y de sillas de ruedas para personas con discapacidad",3092]
[3099,"Fabricación de otros tipos de equipo de transporte n.c.p.",3099]
["3099A","Fabricación de materiales de transporte de uso industrial","3099A"]
["3099B","Fabricación de otros tipos de equipo de transporte n.c.p. ","3099B"]
[3110,"Fabricación de muebles",3110]
[3120,"Fabricación de colchones y somieres",3120]
[3210,"Fabricación de joyas, bisutería y artículos conexos",3210]
[3220,"Fabricación de instrumentos musicales",3220]
[3230,"Fabricación de artículos y equipo para la práctica del deporte",3230]
[3240,"Fabricación de juegos, juguetes y rompecabezas",3240]
[3250,"Fabricación de instrumentos, aparatos y materiales médicos y odontológicos (incluido mobiliario)",3250]
[3290,"Otras industrias manufactureras n.c.p.",3290]
[5811,"Edición de libros",5811]
[5812,"Edición de directorios y listas de correo",5812]
[5813,"Edición de periódicos, revistas y otras publicaciones periódicas",5813]
["5813A","Edición de periódicos","5813A"]
["5813B","Edición de revistas y otras publicaciones periódicas","5813B"]
[5819,"Otros trabajos de edición",5819]
["SD","Se deberán clasificar en el código CIIU del producto. Toda actividad industrial con sede fabril en Medellín, cuando la comercialización de sus productos, se haga a través de distribuidores diferentes del industrial, con domicilio en este municipio, siempre y cuando, exista contrato suscrito con el distribuidor.","SD"]
[4511,"Comercio de vehículos automotores nuevos",4511]
["4511A","Comercio de vehículos automotores nuevos nacionales y automotores producidos o ensamblados en los países del pacto andino","4511A"]
["4511B","Comercio de vehículos automotores nuevos extranjeros","4511B"]
["4511C","Comercio de vehículos automotores nuevos con motor eléctrico","4511C"]
[4512,"Comercio de vehículos automotores usados",4512]
["4512A","Comercio de vehículos automotores usados nacionales y automotores producidos o ensamblados en los países del pacto andino","4512A"]
["4512B","Comercio de vehículos automotores usados extranjeros y motocicletas extranjeras","4512B"]
["4512C","Comercio de vehículos automotores usados de motor eléctrico","4512C"]
[4530,"Comercio de partes, piezas (autopartes) y accesorios (lujos) para vehículos automotores",4530]
[4541,"Comercio de motocicletas y de sus partes, piezas y accesorios",4541]
["4541A","Comercio de motocicletas con motor eléctrico","4541A"]
["4541B","Comercio de motocicletas y de sus partes, piezas y accesorios n.c.p.","4541B"]
[4610,"Comercio al por mayor a cambio de una retribución o por contrata",4610]
[4620,"Comercio al por mayor de materias primas agropecuarias; animales vivos",4620]
[4631,"Comercio al por mayor de productos alimenticios",4631]
["4631A","Comercio al por mayor y distribución de productos lácteos bajo la modalidad de contrato de distribución o suministro","4631A"]
["4631B","Comercio al por mayor de productos alimenticios n.c.p.","4631B"]
[4632,"Comercio al por mayor de bebidas y tabaco",4632]
[4641,"Comercio al por mayor de productos textiles, productos confeccionados para uso doméstico",4641]
[4642,"Comercio al por mayor de prendas de vestir",4642]
[4643,"Comercio al por mayor de calzado",4643]
[4644,"Comercio al por mayor de aparatos y equipo de uso doméstico",4644]
[4645,"Comercio al por mayor de productos farmacéuticos, medicinales, cosméticos y de tocador",4645]
[4649,"Comercio al por mayor de otros utensilios domésticos n.c.p.",4649]
["4649A","Comercio al por mayor bicicletas, incluyendo las eléctricas mientras cumplan con la reglamentación del Ministerio de Transporte.","4649A"]
["4649B","Comercio al por mayor de otros utensilios domésticos n.c.p.","4649B"]
[4651,"Comercio al por mayor de computadores, equipo periférico y programas de informática",4651]
[4652,"Comercio al por mayor de equipo, partes y piezas electrónicos y de telecomunicaciones",4652]
[4653,"Comercio al por mayor de maquinaria y equipo agropecuarios",4653]
[4659,"Comercio al por mayor de otros tipos de maquinaria y equipo n.c.p.",4659]
[4661,"Comercio al por mayor de combustibles sólidos, líquidos, gaseosos y productos conexos",4661]
["4661A","Comercio al por mayor de grasas, lubricantes y aceites no conexos con el petróleo o combustibles","4661A"]
["4661B","Comercio al por mayor de combustibles sólidos, líquidos, gaseosos y productos conexos con el petróleo o combustibles","4661B"]
[4662,"Comercio al por mayor y por menor de metales y productos metalíferos",4662]
[4663,"Comercio al por mayor de materiales de construcción, artículos de ferretería, pinturas, productos de vidrio, equipo y materiales de fontanería y calefacción",4663]
[4664,"Comercio al por mayor de productos químicos básicos, cauchos y plásticos en formas primarias y productos químicos de uso agropecuario",4664]
[4665,"Comercio al por mayor de desperdicios, desechos y chatarra",4665]
[4669,"Comercio al por mayor de otros productos n.c.p.",4669]
[4690,"Comercio al por mayor no especializado",4690]
[4711,"Comercio al por menor en establecimientos no especializados con surtido compuesto principalmente por alimentos, bebidas o tabaco",4711]
[4719,"Comercio al por menor en establecimientos no especializados, con surtido compuesto principalmente por productos diferentes de alimentos (víveres en general), bebidas y tabaco",4719]
[4721,"Comercio al por menor de productos agrícolas para el consumo en establecimientos especializados",4721]
[4722,"Comercio al por menor de leche, productos lácteos y huevos, en establecimientos especializados",4722]
["4722A","Comercio al por menor y distribución de productos lácteos bajo la modalidad de contrato de distribución o suministro","4722A"]
["4722B","Comercio al por menor de leche, productos lácteos y huevos, en establecimientos especializados n.c.p.","4722B"]
[4723,"Comercio al por menor de carnes (incluye aves de corral), productos cárnicos, pescados y productos de mar, en establecimientos especializados",4723]
[4724,"Comercio al por menor de bebidas y productos del tabaco, en establecimientos especializados",4724]
[4729,"Comercio al por menor de otros productos alimenticios n.c.p., en establecimientos especializados",4729]
[4731,"Comercio al por menor de combustible para automotores",4731]
[4732,"Comercio al por menor de lubricantes (aceites, grasas), aditivos y productos de limpieza para vehículos automotores",4732]
[4741,"Comercio al por menor de computadores, equipos periféricos, programas de informática y equipos de telecomunicaciones en establecimientos especializados",4741]
[4742,"Comercio al por menor de equipos y aparatos de sonido y de video, en establecimientos especializados",4742]
[4751,"Comercio al por menor de productos textiles en establecimientos especializados",4751]
[4752,"Comercio al por menor de artículos de ferretería, pinturas y productos de vidrio en establecimientos  especializados",4752]
[4753,"Comercio al por menor de tapices, alfombras y cubrimientos para paredes y pisos en establecimientos  especializados",4753]
[4754,"Comercio al por menor de electrodomésticos y gasodomésticos de uso doméstico, muebles y equipos de iluminación",4754]
[4755,"Comercio al por menor de artículos y utensilios de uso doméstico",4755]
[4759,"Comercio al por menor de otros artículos domésticos en establecimientos especializados",4759]
[4761,"Comercio al por menor de libros, periódicos, materiales y artículos de papelería y escritorio,  en establecimientos especializados",4761]
[4762,"Comercio al por menor de artículos deportivos, en establecimientos especializados",4762]
[4769,"Comercio al por menor de otros artículos culturales y de entretenimiento n.c.p. en establecimientos especializados",4769]
[4771,"Comercio al por menor de prendas de vestir y sus accesorios (incluye artículos de piel) en establecimientos especializados",4771]
[4772,"Comercio al por menor de todo tipo de calzado y artículos de cuero y sucedáneos del cuero en establecimientos especializados",4772]
[4773,"Comercio al por menor de productos farmacéuticos y medicinales, cosméticos y artículos de tocador en establecimientos especializados",4773]
[4774,"Comercio al por menor de otros productos nuevos en establecimientos especializados",4774]
[4775,"Comercio al por menor de artículos de segunda mano",4775]
[4781,"Comercio al por menor de alimentos, bebidas y tabaco, en puestos de venta móviles",4781]
[4782,"Comercio al por menor de productos textiles, prendas de vestir y calzado, en puestos de venta móviles",4782]
[4789,"Comercio al por menor de otros productos en puestos de venta móviles",4789]
[4791,"Comercio al por menor realizado a través de internet (dirigirse al artículo 44 de este acuerdo)",4791]
["4791A","Comercio al por mayor realizado a través de tecnologías de información y comunicación","4791A"]
["4791B","Comercio al por menor realizado a través de tecnologías de información y comunicación","4791B"]
[4792,"Comercio al por menor realizado a través de casas de venta o por correo",4792]
[4799,"Otros tipos de comercio al por menor no realizado en establecimientos,   puestos de venta o  mercados",4799]
["SD","Se deberán clasificar en el código CIIU del producto. Toda venta de productos fabricados en industrias con sede fabril en Medellín o en el Área Metropolitana y que distribuyan los productos bajo la modalidad de contrato, suscrito con el industrial. Deberá entregar copia del contrato a la Secretaría de Hacienda. ","SD"]
[161,"Actividades de apoyo a la agricultura ",161]
[162,"Actividades de apoyo a la ganadería",162]
[240,"Servicios de apoyo a la silvicultura ",240]
[910,"Actividades de apoyo para la extracción de petróleo y de gas natural",910]
[990,"Actividades de apoyo para otras actividades de explotación de minas y canteras",990]
[1820,"Producción de copias a partir de grabaciones originales",1820]
[2212,"Reencauche de llantas usadas",2212]
[3311,"Mantenimiento y reparación especializado de productos elaborados en metal",3311]
[3312,"Mantenimiento y reparación especializado de maquinaria y equipo",3312]
[3313,"Mantenimiento y reparación especializado de equipo electrónico y óptico",3313]
[3314,"Mantenimiento y reparación especializado de equipo eléctrico",3314]
[3315,"Mantenimiento y reparación especializado de equipo de transporte, excepto los vehículos automotores, motocicletas y bicicletas",3315]
[3319,"Mantenimiento y reparación de otros tipos de equipos y sus componentes n.c.p.",3319]
[3320,"Instalación especializada de maquinaria y equipo industrial",3320]
[3511,"Generación de energía eléctrica",3511]
[3512,"Transmisión de energía eléctrica",3512]
[3513,"Distribución de energía eléctrica",3513]
[3514,"Comercialización de energía eléctrica",3514]
[3520,"Producción de gas; distribución de combustibles gaseosos por tuberías",3520]
[3530,"Suministro de vapor y aire acondicionado",3530]
[3600,"Captación, tratamiento y distribución de agua",3600]
[3700,"Evacuación y tratamiento de aguas residuales",3700]
[3811,"Recolección de desechos no peligrosos",3811]
[3812,"Recolección de desechos peligrosos",3812]
[3821,"Tratamiento y disposición de desechos no peligrosos",3821]
[3822,"Tratamiento y disposición de desechos peligrosos",3822]
[3830,"Recuperación de materiales",3830]
[3900,"Actividades de saneamiento ambiental y otros servicios de gestión de desechos",3900]
[4111,"Construcción de edificios residenciales",4111]
[4112,"Construcción de edificios no residenciales ",4112]
[4210,"Construcción de carreteras y vías de ferrocarril",4210]
[4220,"Construcción de proyectos de servicio público",4220]
[4290,"Construcción de otras obras de ingeniería civil",4290]
[4311,"Demolición",4311]
[4312,"Preparación del terreno para la construcción",4312]
[4321,"Instalaciones eléctricas",4321]
[4322,"Instalaciones de fontanería, calefacción y aire acondicionado",4322]
[4329,"Otras instalaciones especializadas",4329]
[4330,"Terminación y acabado de edificios y obras de ingeniería civil",4330]
[4390,"Otras actividades especializadas para la construcción de edificios y obras de ingeniería civil",4390]
[4520,"Mantenimiento y reparación de vehículos automotores",4520]
[4542,"Mantenimiento y reparación de motocicletas y de sus partes y piezas",4542]
[4911,"Transporte férreo de pasajeros",4911]
[4912,"Transporte férreo de carga",4912]
[4921,"Transporte de pasajeros",4921]
["4921A","Transporte urbano de pasajeros","4921A"]
["4921B","Transporte de pasajeros n.c.p","4921B"]
[4922,"Transporte mixto",4922]
[4923,"Transporte de carga por carretera",4923]
[4930,"Transporte por tuberías",4930]
[5011,"Transporte de pasajeros marítimo y de cabotaje",5011]
[5012,"Transporte de carga marítimo y de cabotaje",5012]
[5021,"Transporte fluvial de pasajeros",5021]
[5022,"Transporte fluvial de carga",5022]
[5111,"Transporte aéreo nacional de pasajeros",5111]
["5111A","Transporte aéreo nacional de pasajeros (empresas de transporte de pasajeros aéreas excepto las que operan dentro de áreas metropolitanas o ciudades dormitorio (ley 1558 de 2012, Ley de turismo))","5111A"]
["5111B","Transporte aéreo nacional de pasajeros (las demás empresas de transporte de pasajeros aéreas no mencionadas en las otras clasificaciones)","5111B"]
[5112,"Transporte aéreo internacional de pasajeros",5112]
[5121,"Transporte aéreo nacional de carga",5121]
[5122,"Transporte aéreo internacional de carga",5122]
[5210,"Almacenamiento y depósito",5210]
[5221,"Actividades de estaciones, vías y servicios complementarios para el transporte terrestre",5221]
[5222,"Actividades de puertos y servicios complementarios para el transporte acuático",5222]
[5223,"Actividades de aeropuertos, servicios de navegación aérea y demás actividades conexas al transporte aéreo",5223]
[5224,"Manipulación de carga",5224]
[5229,"Otras actividades complementarias al transporte",5229]
[5310,"Actividades postales nacionales",5310]
[5320,"Actividades de mensajería",5320]
[5511,"Alojamiento en hoteles ",5511]
["5511A","Alojamiento en hoteles y servicio de restaurante mientras estén inscritos en el Registro Nacional de Turismo (Ley 1558 de 2012, Ley de turismo)","5511A"]
["5511B","Alojamiento en hoteles que no estén inscritos en el Registro Nacional de Turismo","5511B"]
[5512,"Alojamiento en apartahoteles",5512]
["5512A","Alojamiento en apartahoteles, empresas comercializadoras de proyectos de tiempo compartido y multipropiedad y servicio de restaurante mientras estén inscritos en el Registro Nacional de Turismo (Ley 1558 de 2012, Ley de turismo)","5512A"]
["5512B","Alojamiento en apartahoteles que no estén inscritos en el Registro Nacional de Turismo","5512B"]
[5513,"Alojamiento en centros vacacionales",5513]
["5513A","Alojamiento en centros vacacionales mientras estén inscritos en el Registro Nacional de Turismo (Ley 1558 de 2012, Ley de turismo)","5513A"]
["5513B","Alojamiento en centros vacacionales que no estén inscritos en el Registro Nacional de Turismo","5513B"]
[5514,"Alojamiento rural",5514]
["5514A","Alojamiento rural (concesionarios de servicios turísticos en parques nacionales que presten servicios turísticos (ley 1558 de 2012))","5514A"]
["5514B","Alojamiento rural (los demás establecimientos de alojamiento rural no mencionadas en las otras clasificaciones)","5514B"]
[5519,"Otros tipos de alojamientos para visitantes",5519]
["5519A","Otros tipos de alojamientos para visitantes, prestados por clubes sociales vacacionales y centros de convenciones mientras estén inscritos en el Registro Nacional de Turismo (Ley 1558 de 2012, Ley de turismo)","5519A"]
["5519B","Otros tipos de alojamientos para visitantes que no estén inscritos en el Registro Nacional de Turismo","5519B"]
[5520,"Actividades de zonas de camping y parques para vehículos recreacionales)",5520]
[5530,"Servicio por horas",5530]
[5590,"Otros tipos de alojamiento n.c.p.",5590]
["5590A","Otros tipos de alojamiento n.c.p. mientras estén inscritos en el Registro Nacional de Turismo (Ley 1558 de 2012, Ley de turismo)","5590A"]
["5590B","Otros tipos de alojamiento n.c.p. que no estén inscritos en el Registro Nacional de Turismo","5590B"]
[5611,"Expendio a la mesa de comidas preparadas",5611]
[5612,"Expendio por autoservicio de comidas preparadas",5612]
[5613,"Expendio de comidas preparadas en cafeterías",5613]
[5619,"Otros tipos de expendio de comidas preparadas n.c.p.",5619]
[5621,"Catering para eventos",5621]
[5629,"Actividades de otros servicios de comidas",5629]
[5630,"Expendio de bebidas alcohólicas para el consumo dentro del establecimiento",5630]
[5820,"Edición de programas de informática (software)",5820]
[5911,"Actividades de producción de películas cinematográficas, videos, programas, anuncios y comerciales de televisión",5911]
[5912,"Actividades de posproducción de películas cinematográficas, videos, programas, anuncios y comerciales de televisión",5912]
[5913,"Actividades de distribución de películas cinematográficas, videos, programas, anuncios y comerciales de televisión",5913]
[5914,"Actividades de exhibición de películas cinematográficas y videos",5914]
[5920,"Actividades de grabación de sonido y edición de música",5920]
[6010,"Actividades de programación y transmisión en el servicio de radiodifusión sonora",6010]
[6020,"Actividades de programación y transmisión de televisión",6020]
[6110,"Actividades de telecomunicaciones alámbricas",6110]
[6120,"Actividades de telecomunicaciones inalámbricas",6120]
[6130,"Actividades de telecomunicación satelital",6130]
[6190,"Otras actividades de telecomunicaciones",6190]
[6201,"Actividades de desarrollo de sistemas informáticos (planificación, análisis, diseño, programación, pruebas)",6201]
[6202,"Actividades de consultoría informática y actividades de administración de instalaciones informáticas",6202]
[6209,"Otras actividades de tecnologías de información y actividades de servicios informáticos",6209]
["6209A","Actividades de intermediación a través de tecnología de información y comunicación (dirigirse al Artículo 44 de este acuerdo)","6209A"]
["6209B","Otras actividades de tecnologías de información y actividades de servicios informáticos n.c.p.","6209B"]
[6311,"Procesamiento de datos, alojamiento (hosting) y actividades relacionadas",6311]
["6311A","Actividades de hosting y streaming (dirigirse al Artículo 44 de este acuerdo)","6311A"]
["6311B","Las demás actividades relacionadas con el procesamiento de datos n.c.p.","6311B"]
[6312,"Portales web",6312]
["6312A","Portales web dedicados a ser medios de difusión que se actualizan de forma periódica","6312A"]
["6312B","Las demás actividades relacionadas con portales web n.c.p. (dirigirse al artículo 44 de este acuerdo)","6312B"]
[6391,"Actividades de agencias de noticias",6391]
[6399,"Otras actividades de servicio de información n.c.p.",6399]
[6810,"Actividades inmobiliarias realizadas con bienes propios o arrendados (incluye compra, venta, administración, alquiler o arrendamiento)",6810]
[6820,"Actividades inmobiliarias realizadas a cambio de una retribución o por contrata",6820]
[6910,"Actividades jurídicas",6910]
[6920,"Actividades de contabilidad, teneduría de libros, auditoría financiera y asesoría tributaria",6920]
[7010,"Actividades de administración empresarial",7010]
[7020,"Actividades de consultaría de gestión",7020]
[7110,"Actividades de arquitectura e ingeniería y otras actividades conexas de consultoría técnica",7110]
[7120,"Ensayos y análisis técnicos",7120]
[7210,"Investigaciones y desarrollo experimental en el campo de las ciencias naturales y la ingeniería",7210]
[7220,"Investigaciones y desarrollo experimental en el campo de las ciencias sociales y las humanidades",7220]
[7310,"Publicidad",7310]
[7320,"Estudios de mercado y realización de encuestas de opinión pública",7320]
[7410,"Actividades especializadas de diseño",7410]
[7420,"Actividades de fotografía",7420]
[7490,"Otras actividades profesionales, científicas y técnicas n.c.p.",7490]
[7499,"Profesiones liberales realizadas por personas naturales",7499]
[7500,"Actividades veterinarias",7500]
[7710,"Alquiler y arrendamiento de vehículos automotores",7710]
["7710A","Alquiler y arrendamiento de vehículos automotores  para turismo nacional e internacional","7710A"]
["7710B","Alquiler y arrendamiento de vehículos automotores n.c.p.","7710B"]
[7721,"Alquiler y arrendamiento de equipo recreativo y deportivo",7721]
[7722,"Alquiler de videos y discos",7722]
[7729,"Alquiler y arrendamiento de otros efectos personales y enseres domésticos n.c.p.",7729]
[7730,"Alquiler y arrendamiento de otros tipos de maquinaria, equipo y bienes tangibles n.c.p.",7730]
[7740,"Arrendamiento de propiedad intelectual y productos similares, excepto obras protegidas por derechos de autor",7740]
[7810,"Actividades de agencias de empleo",7810]
[7820,"Actividades de agencias de empleo temporal",7820]
[7830,"Otras actividades de suministro de recurso humano",7830]
[7911,"Las agencias de viajes y turismo, agencias mayoristas y las agencias operadoras  siempre y cuando se encuentren debidamente inscritos en el Registro Nacional de Turismo. (ley 1558 de 2012)",7911]
[7912,"Actividades de operadores turísticos",7912]
["7912A","Actividades de agencias operadoras mientras estén inscritas en el Registro Nacional de Turismo. (Ley 1558 de 2012, Ley de Turismo)","7912A"]
["7912B","Actividades de empresas dedicadas a la operación de actividades de turismo de naturaleza o aventura, tales como canotaje, balsaje, espeleología, escalda, parapente, canopy, buceo y deportes náuticos en general mientras estén inscritas en el Registro Nacional de Turismo. (Ley 1558 de 2012, Ley de Turismo)","7912B"]
[7990,"Otros servicios de reserva y actividades relacionadas",7990]
["7990A","Otros servicios de reserva y actividades relacionadas: empresas asociativas de redes de vendedores multinivel de servicios turísticos, usuarios operadores, desarrolladores e industriales en zonas francas turísticas, oficinas de representaciones turísticas, establecimientos del comercio ubicados en las terminales de transporte de pasajeros terrestre, aéreo y marítimo, empresas captadoras de ahorro para viajes y de servicios turísticos prepagados, guías turísticos, mientras se encuentren inscritas en el Registro Nacional de Turismo (Ley 1558 de 2012, Ley de Turismo)","7990A"]
["7990B","Otros servicios de reserva y actividades relacionadas n.c.p. incluyendo las que no estén inscritas en el Registro Nacional de Turismo","7990B"]
[8010,"Actividades de seguridad privada",8010]
[8020,"Actividades de servicios de sistemas de seguridad",8020]
[8030,"Actividades de detectives e investigadores privados",8030]
[8110,"Actividades combinadas de apoyo a instalaciones",8110]
[8121,"Limpieza general interior de edificios",8121]
[8129,"Otras actividades de limpieza de edificios e instalaciones industriales",8129]
[8130,"Actividades de paisajismo y servicios de mantenimiento conexos",8130]
[8211,"Actividades combinadas de servicios administrativos de oficina",8211]
[8219,"Fotocopiado, preparación de documentos y otras actividades especializadas de apoyo a oficina",8219]
[8220,"Actividades de centros de llamadas (Call center)",8220]
[8230,"Organización de convenciones y eventos comerciales",8230]
["8230A","Organización de convenciones y eventos comerciales de operadores profesionales de congresos, ferias y convenciones de impacto internacional, excepto las universidades e instituciones de educación superior y los medios de comunicación que realicen actividades de esta naturaleza, cuando su objeto o tema sea afín a su misión. (Ley 1558 de 2012, Ley de Turismo)","8230A"]
["8230B","Organización de convenciones y eventos comerciales n.c.p.","8230B"]
[8291,"Actividades de agencias de cobranza y oficinas de calificación crediticia",8291]
[8292,"Actividades de envase y empaque",8292]
[8299,"Otras actividades de servicio de apoyo a las empresas n.c.p.",8299]
[8430,"Actividades de planes de seguridad social de afiliación obligatoria (intermediación)",8430]
[8511,"Educación de la primera infancia",8511]
[8512,"Educación preescolar",8512]
[8513,"Educación básica primaria",8513]
[8521,"Educación básica secundaria",8521]
[8522,"Educación media académica",8522]
[8523,"Educación media técnica y de formación laboral",8523]
[8530,"Establecimientos que combinan diferentes niveles de educación",8530]
[8541,"Educación técnica profesional",8541]
[8542,"Educación tecnológica",8542]
[8543,"Educación de instituciones universitarias o de escuelas tecnológicas",8543]
[8544,"Educación de universidades",8544]
[8551,"Formación académica no formal",8551]
[8552,"Enseñanza deportiva y recreativa",8552]
[8553,"Enseñanza cultural",8553]
[8559,"Otros tipos de educación n.c.p.",8559]
[8560,"Actividades de apoyo a la educación",8560]
[8621,"Actividades de la práctica médica, sin internación",8621]
[8622,"Actividades de la práctica odontológica",8622]
[8691,"Actividades de apoyo diagnóstico",8691]
[8692,"Actividades de apoyo terapéutico",8692]
[8699,"Otras actividades de atención de la salud humana",8699]
[8710,"Actividades de atención residencial medicalizada de tipo general",8710]
[8720,"Actividades de atención residencial, para el cuidado de pacientes con retardo mental, enfermedad mental y consumo de sustancias psicoactivas",8720]
[8730,"Actividades de atención en instituciones para el cuidado de personas mayores o discapacitadas",8730]
[8790,"Otras actividades de atención en instituciones con alojamiento",8790]
[8810,"Actividades de asistencia social sin alojamiento para personas mayores y discapacitadas",8810]
[8890,"Otras actividades de asistencia social sin alojamiento",8890]
[9311,"Gestión de instalaciones deportivas",9311]
[9321,"Actividades de parques de atracciones y parques temáticos. ",9321]
["9321A","Actividades de parques de atracciones y parques temáticos mientras estén inscritos en el Registro Nacional de Turismo (Ley 1558 de 2012, Ley de Turismo)","9321A"]
["9321B","Actividades de parques de atracciones y parques temáticos no inscritos en el Registro Nacional de Turismo","9321B"]
[9329,"Otras actividades recreativas y de esparcimiento n.c.p.",9329]
["9329A","Otras actividades recreativas y de esparcimiento n.c.p., mientras estén inscritas en el Registro Nacional de Turismo (Ley 1558 de 2012, Ley de Turismo)","9329A"]
["9329B","Otras actividades recreativas y de esparcimiento n.c.p. no inscritas en el Registro Nacional de Turismo","9329B"]
[9511,"Mantenimiento y reparación de computadores y de equipo periférico",9511]
[9512,"Mantenimiento y reparación de equipos de comunicación",9512]
[9521,"Mantenimiento y reparación de aparatos electrónicos de consumo",9521]
[9522,"Mantenimiento y reparación de aparatos y equipos domésticos y de jardinería",9522]
[9523,"Reparación de calzado y artículos de cuero",9523]
[9524,"Reparación de muebles y accesorios para el hogar",9524]
[9529,"Mantenimiento y reparación de otros efectos personales y enseres domésticos",9529]
[9601,"Lavado y limpieza, incluso la limpieza en seco, de productos textiles y de piel",9601]
[9602,"Peluquería y otros tratamientos de belleza",9602]
[9603,"Pompas fúnebres y actividades relacionadas",9603]
[9609,"Otras actividades de servicios personales n.c.p.",9609]
[6411,"Banco central",6411]
[6412,"Bancos comerciales",6412]
[6421,"Actividades de las corporaciones financieras",6421]
[6422,"Actividades de las compañías de financiamiento",6422]
[6423,"Banca de segundo piso",6423]
[6424,"Actividades de las cooperativas financieras",6424]
[6431,"Fideicomisos, fondos y entidades financieras similares",6431]
[6432,"Fondos de cesantías",6432]
[6491,"Leasing financiero (arrendamiento financiero)",6491]
[6492,"Actividades financieras de fondos de empleados y otras formas asociativas del sector solidario",6492]
[6493,"Actividades de compra de cartera o factoring",6493]
[6494,"Otras actividades de distribución de fondos",6494]
[6495,"Instituciones especiales oficiales",6495]
[6499,"Otras actividades de servicio financiero, excepto las de seguros y pensiones n.c.p.",6499]
[6511,"Seguros generales",6511]
[6512,"Seguros de vida",6512]
[6513,"Reaseguros",6513]
[6514,"Capitalización",6514]
[6521,"Servicios de seguros sociales de salud",6521]
[6522,"Servicios de seguros sociales de riesgos profesionales",6522]
[6531,"Régimen de prima media con prestación definida (RPM)",6531]
[6532,"Régimen de ahorro individual (RAI)",6532]
[6611,"Administración de mercados financieros",6611]
[6612,"Corretaje de valores y de contratos de productos básicos",6612]
[6613,"Otras actividades relacionadas con el mercado de valores",6613]
[6614,"Actividades de las casas de cambio",6614]
[6615,"Actividades de los profesionales de compra y venta de divisas",6615]
[6619,"Otras actividades auxiliares de las actividades de servicios financieros n.c.p.",6619]
[6621,"Actividades de agentes y corredores de seguros",6621]
[6629,"Evaluación de riesgos y daños, y otras actividades de servicios auxiliares",6629]
[6630,"Actividades de administración de fondos",6630]
[9001,"Creación literaria",9001]
[9002,"Creación musical",9002]
[9003,"Creación teatral",9003]
[9004,"Creación audiovisual",9004]
[9005,"Artes plásticas y visuales",9005]
[9006,"Actividades teatrales",9006]
[9007,"Actividades de espectáculos musicales en vivo (además de las actividades conexas, como las de manejo de la escenografía, los telones de fondo y el equipo de iluminación y de sonido)",9007]
[9008,"Otras actividades de espectáculos en vivo",9008]
[9101,"Actividades de bibliotecas y archivos",9101]
[9319,"Otras actividades deportivas",9319]
["OTROS"]
[111,"Cultivo de cereales (excepto arroz), legumbres y semillas oleaginosas ",111]
[112,"Cultivo de arroz ",112]
[113,"Cultivo de hortalizas, raíces y tubérculos ",113]
[114,"Cultivo de tabaco ",114]
[115,"Cultivo de plantas textiles ",115]
[119,"Otros cultivos transitorios n.c.p.",119]
[121,"Cultivo de frutas tropicales y subtropicales",121]
[122,"Cultivo de plátano y banano",122]
[123,"Cultivo de café",123]
[124,"Cultivo de caña de azúcar",124]
[125,"Cultivo de flor de corte",125]
[126,"Cultivo de palma para aceite (palma africana) y otros frutos oleaginosos",126]
[127,"Cultivo de plantas con las que se preparan bebidas",127]
[128,"Cultivo de especias y de plantas aromáticas y medicinales ",128]
[129,"Otros cultivos permanentes n.c.p.",129]
[130,"Propagación de plantas (actividades de los viveros, excepto viveros forestales) ",130]
[141,"Cría de ganado bovino y bufalino",141]
[142,"Cría de caballos y otros equinos ",142]
[143,"Cría de ovejas y cabras ",143]
[144,"Cría de ganado porcino",144]
[145,"Cría de aves de corral",145]
[149,"Cría de otros animales n.c.p.",149]
[150,"Explotación mixta (agrícola y pecuaria) ",150]
[163,"Actividades posteriores a la cosecha ",163]
[164,"Tratamiento de semillas para propagación ",164]
[170,"Caza ordinaria y mediante trampas y actividades de servicios conexas ",170]
[210,"Silvicultura y otras actividades forestales",210]
[220,"Extracción de madera ",220]
[230,"Recolección de productos forestales diferentes a la madera",230]
[311,"Pesca marítima ",311]
[312,"Pesca de agua dulce ",312]
[321,"Acuicultura marítima ",321]
[322,"Acuicultura de agua dulce",322]
[8411,"Actividades legislativas de la administración pública",8411]
[8412,"Actividades ejecutivas de la administración pública",8412]
[8413,"Regulación de las actividades de organismos que prestan servicios de salud, educativos, culturales y otros servicios sociales, excepto servicios de seguridad social ",8413]
[8414,"Actividades reguladoras y facilitadoras de la actividad económica",8414]
[8415,"Actividades de los otros órganos de control",8415]
[8421,"Relaciones exteriores ",8421]
[8422,"Actividades de defensa",8422]
[8423,"Orden público y actividades de seguridad",8423]
[8424,"Administración de justicia",8424]
[8610,"Actividades de hospitales y clínicas, con internación",8610]
[9102,"Actividades y funcionamiento de museos, conservación de edificios y sitios históricos",9102]
[9103,"Actividades de jardines botánicos, zoológicos y reservas naturales",9103]
[9200,"Actividades de juegos de azar y apuestas",9200]
[9312,"Actividades de clubes deportivos",9312]
[9411,"Actividades de asociaciones empresariales y de empleadores",9411]
[9412,"Actividades de asociaciones profesionales",9412]
[9420,"Actividades de sindicatos de empleados",9420]
[9491,"Actividades de asociaciones religiosas",9491]
[9492,"Actividades de asociaciones políticas",9492]
[9499,"Actividades de otras asociaciones n.c.p.",9499]
[9700,"Actividades de los hogares individuales como empleadores de personal doméstico",9700]
[9810,"Actividades no diferenciadas de los hogares individuales como productores de bienes para uso propio",9810]
[9820,"Actividades no diferenciadas de los hogares individuales como productores de servicios para uso propio",9820]
[9900,"Actividades de organizaciones y entidades extraterritoriales",9900]

{"sheet":"Departamentos - Municipios","index":6,"n_rows":1160,"n_cols":6,"rows_kept":1160,"cut":false,"hidden":true,"merged":[[1,0,3,0],[1,1,3,1],[1,3,3,3],[1,4,3,4]]}
["Fuente información: Listado de departamentos y Municipios DANE, https://www.dane.gov.co/files/censos/.../NBI_total_cab_resto_mpio_nal_31dic08.xls"]
["Código Departamento","Nombre Departamento",null,"Código Municipio","Nombre Municipio"]
[]
[]
["05","ANTIOQUIA","05","05001","MEDELLIN",{"$f":"D5","v":"05001"}]
["05","ANTIOQUIA","05","05002","ABEJORRAL",{"$f":"D6","v":"05002"}]
["05","ANTIOQUIA","05","05004","ABRIAQUI","05004"]
["05","ANTIOQUIA","05","05021","ALEJANDRIA","05021"]
["05","ANTIOQUIA","05","05030","AMAGA","05030"]
["05","ANTIOQUIA","05","05031","AMALFI","05031"]
["05","ANTIOQUIA","05","05034","ANDES","05034"]
["05","ANTIOQUIA","05","05036","ANGELOPOLIS","05036"]
["05","ANTIOQUIA","05","05038","ANGOSTURA","05038"]
["05","ANTIOQUIA","05","05040","ANORI","05040"]
["05","ANTIOQUIA","05","05042","SANTAFE DE ANTIOQUIA","05042"]
["05","ANTIOQUIA","05","05044","ANZA","05044"]
["05","ANTIOQUIA","05","05045","APARTADO","05045"]
["05","ANTIOQUIA","05","05051","ARBOLETES","05051"]
["05","ANTIOQUIA","05","05055","ARGELIA","05055"]
["05","ANTIOQUIA","05","05059","ARMENIA","05059"]
["05","ANTIOQUIA","05","05079","BARBOSA","05079"]
["05","ANTIOQUIA","05","05086","BELMIRA","05086"]
["05","ANTIOQUIA","05","05088","BELLO","05088"]
["05","ANTIOQUIA","05","05091","BETANIA","05091"]
["05","ANTIOQUIA","05","05093","BETULIA","05093"]
["05","ANTIOQUIA","05","05101","CIUDAD BOLIVAR","05101"]
["05","ANTIOQUIA","05","05107","BRICEÑO","05107"]
["05","ANTIOQUIA","05","05113","BURITICA","05113"]
["05","ANTIOQUIA","05","05120","CACERES","05120"]
["05","ANTIOQUIA","05","05125","CAICEDO","05125"]
["05","ANTIOQUIA","05","05129","CALDAS","05129"]
["05","ANTIOQUIA","05","05134","CAMPAMENTO","05134"]
["05","ANTIOQUIA","05","05138","CAÑASGORDAS","05138"]
["05","ANTIOQUIA","05","05142","CARACOLI","05142"]
["05","ANTIOQUIA","05","05145","CARAMANTA","05145"]
["05","ANTIOQUIA","05","05147","CAREPA","05147"]
["05","ANTIOQUIA","05","05148","EL CARMEN DE VIBORAL","05148"]
["05","ANTIOQUIA","05","05150","CAROLINA","05150"]
["05","ANTIOQUIA","05","05154","CAUCASIA","05154"]
["05","ANTIOQUIA","05","05172","CHIGORODO","05172"]
["05","ANTIOQUIA","05","05190","CISNEROS","05190"]
["05","ANTIOQUIA","05","05197","COCORNA","05197"]
["05","ANTIOQUIA","05","05206","CONCEPCION","05206"]
["05","ANTIOQUIA","05","05209","CONCORDIA","05209"]
["05","ANTIOQUIA","05","05212","COPACABANA","05212"]
["05","ANTIOQUIA","05","05234","DABEIBA","05234"]
["05","ANTIOQUIA","05","05237","DON MATIAS","05237"]
["05","ANTIOQUIA","05","05240","EBEJICO","05240"]
["05","ANTIOQUIA","05","05250","EL BAGRE","05250"]
["05","ANTIOQUIA","05","05264","ENTRERRIOS","05264"]
["05","ANTIOQUIA","05","05266","ENVIGADO","05266"]
["05","ANTIOQUIA","05","05282","FREDONIA","05282"]
["05","ANTIOQUIA","05","05284","FRONTINO","05284"]
["05","ANTIOQUIA","05","05306","GIRALDO","05306"]
["05","ANTIOQUIA","05","05308","GIRARDOTA","05308"]
["05","ANTIOQUIA","05","05310","GOMEZ PLATA","05310"]
["05","ANTIOQUIA","05","05313","GRANADA","05313"]
["05","ANTIOQUIA","05","05315","GUADALUPE","05315"]
["05","ANTIOQUIA","05","05318","GUARNE","05318"]
["05","ANTIOQUIA","05","05321","GUATAPE","05321"]
["05","ANTIOQUIA","05","05347","HELICONIA","05347"]
["05","ANTIOQUIA","05","05353","HISPANIA","05353"]
["05","ANTIOQUIA","05","05360","ITAGUI","05360"]
["05","ANTIOQUIA","05","05361","ITUANGO","05361"]
["05","ANTIOQUIA","05","05364","JARDIN","05364"]
["05","ANTIOQUIA","05","05368","JERICO","05368"]
["05","ANTIOQUIA","05","05376","LA CEJA","05376"]
["05","ANTIOQUIA","05","05380","LA ESTRELLA","05380"]
["05","ANTIOQUIA","05","05390","LA PINTADA","05390"]
["05","ANTIOQUIA","05","05400","LA UNION",{"$f":"D70","v":"05400"}]
["05","ANTIOQUIA","05","05411","LIBORINA","05411"]
["05","ANTIOQUIA","05","05425","MACEO","05425"]
["05","ANTIOQUIA","05","05440","MARINILLA","05440"]
["05","ANTIOQUIA","05","05467","MONTEBELLO","05467"]
["05","ANTIOQUIA","05","05475","MURINDO","05475"]
["05","ANTIOQUIA","05","05480","MUTATA","05480"]
["05","ANTIOQUIA","05","05483","NARIÑO","05483"]
["05","ANTIOQUIA","05","05490","NECOCLI","05490"]
["05","ANTIOQUIA","05","05495","NECHI","05495"]
["05","ANTIOQUIA","05","05501","OLAYA","05501"]
["05","ANTIOQUIA","05","05541","PEÐOL","05541"]
["05","ANTIOQUIA","05","05543","PEQUE","05543"]
["05","ANTIOQUIA","05","05576","PUEBLORRICO","05576"]
["05","ANTIOQUIA","05","05579","PUERTO BERRIO","05579"]
["05","ANTIOQUIA","05","05585","PUERTO NARE","05585"]
["05","ANTIOQUIA","05","05591","PUERTO TRIUNFO","05591"]
["05","ANTIOQUIA","05","05604","REMEDIOS","05604"]
["05","ANTIOQUIA","05","05607","RETIRO","05607"]
["05","ANTIOQUIA","05","05615","RIONEGRO","05615"]
["05","ANTIOQUIA","05","05628","SABANALARGA","05628"]
["05","ANTIOQUIA","05","05631","SABANETA","05631"]
["05","ANTIOQUIA","05","05642","SALGAR","05642"]
["05","ANTIOQUIA","05","05647","SAN ANDRES DE CUERQUIA","05647"]
["05","ANTIOQUIA","05","05649","SAN CARLOS","05649"]
["05","ANTIOQUIA","05","05652","SAN FRANCISCO","05652"]
["05","ANTIOQUIA","05","05656","SAN JERONIMO","05656"]
["05","ANTIOQUIA","05","05658","SAN JOSE DE LA MONTAÑA","05658"]
["05","ANTIOQUIA","05","05659","SAN JUAN DE URABA","05659"]
["05","ANTIOQUIA","05","05660","SAN LUIS","05660"]
["05","ANTIOQUIA","05","05664","SAN PEDRO","05664"]
["05","ANTIOQUIA","05","05665","SAN PEDRO DE URABA","05665"]
["05","ANTIOQUIA","05","05667","SAN RAFAEL","05667"]
["05","ANTIOQUIA","05","05670","SAN ROQUE","05670"]
["05","ANTIOQUIA","05","05674","SAN VICENTE","05674"]
["05","ANTIOQUIA","05","05679","SANTA BARBARA","05679"]
["05","ANTIOQUIA","05","05686","SANTA ROSA DE OSOS","05686"]
["05","ANTIOQUIA","05","05690","SANTO DOMINGO","05690"]
["05","ANTIOQUIA","05","05697","EL SANTUARIO","05697"]
["05","ANTIOQUIA","05","05736","SEGOVIA","05736"]
["05","ANTIOQUIA","05","05756","SONSON","05756"]
["05","ANTIOQUIA","05","05761","SOPETRAN","05761"]
["05","ANTIOQUIA","05","05789","TAMESIS","05789"]
["05","ANTIOQUIA","05","05790","TARAZA","05790"]
["05","ANTIOQUIA","05","05792","TARSO","05792"]
["05","ANTIOQUIA","05","05809","TITIRIBI","05809"]
["05","ANTIOQUIA","05","05819","TOLEDO","05819"]
["05","ANTIOQUIA","05","05837","TURBO","05837"]
["05","ANTIOQUIA","05","05842","URAMITA","05842"]
["05","ANTIOQUIA","05","05847","URRAO","05847"]
["05","ANTIOQUIA","05","05854","VALDIVIA","05854"]
["05","ANTIOQUIA","05","05856","VALPARAISO","05856"]
["05","ANTIOQUIA","05","05858","VEGACHI","05858"]
["05","ANTIOQUIA","05","05861","VENECIA","05861"]
["05","ANTIOQUIA","05","05873","VIGIA DEL FUERTE","05873"]
["05","ANTIOQUIA","05","05885","YALI","05885"]
["05","ANTIOQUIA","05","05887","YARUMAL","05887"]
["05","ANTIOQUIA","05","05890","YOLOMBO","05890"]
["05","ANTIOQUIA","05","05893","YONDO","05893"]
["05","ANTIOQUIA","05","05895","ZARAGOZA","05895"]
["08","ATLANTICO","08","08001","BARRANQUILLA","08001"]
["08","ATLANTICO","08","08078","BARANOA","08078"]
["08","ATLANTICO","08","08137","CAMPO DE LA CRUZ","08137"]
["08","ATLANTICO","08","08141","CANDELARIA","08141"]
["08","ATLANTICO","08","08296","GALAPA",{"$f":"D134","v":"08296"}]
["08","ATLANTICO","08","08372","JUAN DE ACOSTA","08372"]
["08","ATLANTICO","08","08421","LURUACO","08421"]
["08","ATLANTICO","08","08433","MALAMBO","08433"]
["08","ATLANTICO","08","08436","MANATI","08436"]
["08","ATLANTICO","08","08520","PALMAR DE VARELA","08520"]
["08","ATLANTICO","08","08549","PIOJO","08549"]
["08","ATLANTICO","08","08558","POLONUEVO","08558"]
["08","ATLANTICO","08","08560","PONEDERA","08560"]
["08","ATLANTICO","08","08573","PUERTO COLOMBIA","08573"]
["08","ATLANTICO","08","08606","REPELON","08606"]
["08","ATLANTICO","08","08634","SABANAGRANDE","08634"]
["08","ATLANTICO","08","08638","SABANALARGA","08638"]
["08","ATLANTICO","08","08675","SANTA LUCIA","08675"]
["08","ATLANTICO","08","08685","SANTO TOMAS","08685"]
["08","ATLANTICO","08","08758","SOLEDAD","08758"]
["08","ATLANTICO","08","08770","SUAN","08770"]
["08","ATLANTICO","08","08832","TUBARA","08832"]
["08","ATLANTICO","08","08849","USIACURI","08849"]
["11","BOGOTA","11","11001","BOGOTA, D.C.","11001"]
["13","BOLIVAR","13","13001","CARTAGENA","13001"]
["13","BOLIVAR","13","13006","ACHI","13006"]
["13","BOLIVAR","13","13030","ALTOS DEL ROSARIO","13030"]
["13","BOLIVAR","13","13042","ARENAL","13042"]
["13","BOLIVAR","13","13052","ARJONA","13052"]
["13","BOLIVAR","13","13062","ARROYOHONDO","13062"]
["13","BOLIVAR","13","13074","BARRANCO DE LOBA","13074"]
["13","BOLIVAR","13","13140","CALAMAR","13140"]
["13","BOLIVAR","13","13160","CANTAGALLO","13160"]
["13","BOLIVAR","13","13188","CICUCO","13188"]
["13","BOLIVAR","13","13212","CORDOBA","13212"]
["13","BOLIVAR","13","13222","CLEMENCIA","13222"]
["13","BOLIVAR","13","13244","EL CARMEN DE BOLIVAR","13244"]
["13","BOLIVAR","13","13248","EL GUAMO","13248"]
["13","BOLIVAR","13","13268","EL PEÑON","13268"]
["13","BOLIVAR","13","13300","HATILLO DE LOBA","13300"]
["13","BOLIVAR","13","13430","MAGANGUE","13430"]
["13","BOLIVAR","13","13433","MAHATES","13433"]
["13","BOLIVAR","13","13440","MARGARITA","13440"]
["13","BOLIVAR","13","13442","MARIA LA BAJA","13442"]
["13","BOLIVAR","13","13458","MONTECRISTO","13458"]
["13","BOLIVAR","13","13468","MOMPOS","13468"]
["13","BOLIVAR","13","13490","NOROSI","13490"]
["13","BOLIVAR","13","13473","MORALES","13473"]
["13","BOLIVAR","13","13549","PINILLOS","13549"]
["13","BOLIVAR","13","13580","REGIDOR","13580"]
["13","BOLIVAR","13","13600","RIO VIEJO","13600"]
["13","BOLIVAR","13","13620","SAN CRISTOBAL","13620"]
["13","BOLIVAR","13","13647","SAN ESTANISLAO","13647"]
["13","BOLIVAR","13","13650","SAN FERNANDO","13650"]
["13","BOLIVAR","13","13654","SAN JACINTO","13654"]
["13","BOLIVAR","13","13655","SAN JACINTO DEL CAUCA","13655"]
["13","BOLIVAR","13","13657","SAN JUAN NEPOMUCENO","13657"]
["13","BOLIVAR","13","13667","SAN MARTIN DE LOBA","13667"]
["13","BOLIVAR","13","13670","SAN PABLO","13670"]
["13","BOLIVAR","13","13673","SANTA CATALINA","13673"]
["13","BOLIVAR","13","13683","SANTA ROSA","13683"]
["13","BOLIVAR","13","13688","SANTA ROSA DEL SUR","13688"]
["13","BOLIVAR","13","13744","SIMITI","13744"]
["13","BOLIVAR","13","13760","SOPLAVIENTO","13760"]
["13","BOLIVAR","13","13780","TALAIGUA NUEVO","13780"]
["13","BOLIVAR","13","13810","TIQUISIO","13810"]
["13","BOLIVAR","13","13836","TURBACO","13836"]
["13","BOLIVAR","13","13838","TURBANA","13838"]
["13","BOLIVAR","13","13873","VILLANUEVA",{"$f":"D198","v":"13873"}]
["13","BOLIVAR","13","13894","ZAMBRANO","13894"]
["15","BOYACA","15","15001","TUNJA","15001"]
["15","BOYACA","15","15022","ALMEIDA","15022"]
["15","BOYACA","15","15047","AQUITANIA","15047"]
["15","BOYACA","15","15051","ARCABUCO","15051"]
["15","BOYACA","15","15087","BELEN","15087"]
["15","BOYACA","15","15090","BERBEO","15090"]
["15","BOYACA","15","15092","BETEITIVA","15092"]
["15","BOYACA","15","15097","BOAVITA","15097"]
["15","BOYACA","15","15104","BOYACA","15104"]
["15","BOYACA","15","15106","BRICEÑO","15106"]
["15","BOYACA","15","15109","BUENAVISTA","15109"]
["15","BOYACA","15","15114","BUSBANZA","15114"]
["15","BOYACA","15","15131","CALDAS","15131"]
["15","BOYACA","15","15135","CAMPOHERMOSO","15135"]
["15","BOYACA","15","15162","CERINZA","15162"]
["15","BOYACA","15","15172","CHINAVITA","15172"]
["15","BOYACA","15","15176","CHIQUINQUIRA","15176"]
["15","BOYACA","15","15180","CHISCAS","15180"]
["15","BOYACA","15","15183","CHITA","15183"]
["15","BOYACA","15","15185","CHITARAQUE","15185"]
["15","BOYACA","15","15187","CHIVATA","15187"]
["15","BOYACA","15","15189","CIENEGA","15189"]
["15","BOYACA","15","15204","COMBITA","15204"]
["15","BOYACA","15","15212","COPER","15212"]
["15","BOYACA","15","15215","CORRALES","15215"]
["15","BOYACA","15","15218","COVARACHIA","15218"]
["15","BOYACA","15","15223","CUBARA","15223"]
["15","BOYACA","15","15224","CUCAITA","15224"]
["15","BOYACA","15","15226","CUITIVA","15226"]
["15","BOYACA","15","15232","CHIQUIZA","15232"]
["15","BOYACA","15","15236","CHIVOR","15236"]
["15","BOYACA","15","15238","DUITAMA","15238"]
["15","BOYACA","15","15244","EL COCUY","15244"]
["15","BOYACA","15","15248","EL ESPINO","15248"]
["15","BOYACA","15","15272","FIRAVITOBA","15272"]
["15","BOYACA","15","15276","FLORESTA","15276"]
["15","BOYACA","15","15293","GACHANTIVA","15293"]
["15","BOYACA","15","15296","GAMEZA","15296"]
["15","BOYACA","15","15299","GARAGOA","15299"]
["15","BOYACA","15","15317","GUACAMAYAS","15317"]
["15","BOYACA","15","15322","GUATEQUE","15322"]
["15","BOYACA","15","15325","GUAYATA","15325"]
["15","BOYACA","15","15332","GsICAN","15332"]
["15","BOYACA","15","15362","IZA","15362"]
["15","BOYACA","15","15367","JENESANO","15367"]
["15","BOYACA","15","15368","JERICO","15368"]
["15","BOYACA","15","15377","LABRANZAGRANDE","15377"]
["15","BOYACA","15","15380","LA CAPILLA","15380"]
["15","BOYACA","15","15401","LA VICTORIA","15401"]
["15","BOYACA","15","15403","LA UVITA","15403"]
["15","BOYACA","15","15407","VILLA DE LEYVA","15407"]
["15","BOYACA","15","15425","MACANAL","15425"]
["15","BOYACA","15","15442","MARIPI","15442"]
["15","BOYACA","15","15455","MIRAFLORES","15455"]
["15","BOYACA","15","15464","MONGUA","15464"]
["15","BOYACA","15","15466","MONGUI","15466"]
["15","BOYACA","15","15469","MONIQUIRA","15469"]
["15","BOYACA","15","15476","MOTAVITA","15476"]
["15","BOYACA","15","15480","MUZO","15480"]
["15","BOYACA","15","15491","NOBSA","15491"]
["15","BOYACA","15","15494","NUEVO COLON","15494"]
["15","BOYACA","15","15500","OICATA","15500"]
["15","BOYACA","15","15507","OTANCHE",{"$f":"D262","v":"15507"}]
["15","BOYACA","15","15511","PACHAVITA","15511"]
["15","BOYACA","15","15514","PAEZ","15514"]
["15","BOYACA","15","15516","PAIPA","15516"]
["15","BOYACA","15","15518","PAJARITO","15518"]
["15","BOYACA","15","15522","PANQUEBA","15522"]
["15","BOYACA","15","15531","PAUNA","15531"]
["15","BOYACA","15","15533","PAYA","15533"]
["15","BOYACA","15","15537","PAZ DE RIO","15537"]
["15","BOYACA","15","15542","PESCA","15542"]
["15","BOYACA","15","15550","PISBA","15550"]
["15","BOYACA","15","15572","PUERTO BOYACA","15572"]
["15","BOYACA","15","15580","QUIPAMA","15580"]
["15","BOYACA","15","15599","RAMIRIQUI","15599"]
["15","BOYACA","15","15600","RAQUIRA","15600"]
["15","BOYACA","15","15621","RONDON","15621"]
["15","BOYACA","15","15632","SABOYA","15632"]
["15","BOYACA","15","15638","SACHICA","15638"]
["15","BOYACA","15","15646","SAMACA","15646"]
["15","BOYACA","15","15660","SAN EDUARDO","15660"]
["15","BOYACA","15","15664","SAN JOSE DE PARE","15664"]
["15","BOYACA","15","15667","SAN LUIS DE GACENO","15667"]
["15","BOYACA","15","15673","SAN MATEO","15673"]
["15","BOYACA","15","15676","SAN MIGUEL DE SEMA","15676"]
["15","BOYACA","15","15681","SAN PABLO DE BORBUR","15681"]
["15","BOYACA","15","15686","SANTANA","15686"]
["15","BOYACA","15","15690","SANTA MARIA","15690"]
["15","BOYACA","15","15693","SANTA ROSA DE VITERBO","15693"]
["15","BOYACA","15","15696","SANTA SOFIA","15696"]
["15","BOYACA","15","15720","SATIVANORTE","15720"]
["15","BOYACA","15","15723","SATIVASUR","15723"]
["15","BOYACA","15","15740","SIACHOQUE","15740"]
["15","BOYACA","15","15753","SOATA","15753"]
["15","BOYACA","15","15755","SOCOTA","15755"]
["15","BOYACA","15","15757","SOCHA","15757"]
["15","BOYACA","15","15759","SOGAMOSO","15759"]
["15","BOYACA","15","15761","SOMONDOCO","15761"]
["15","BOYACA","15","15762","SORA","15762"]
["15","BOYACA","15","15763","SOTAQUIRA","15763"]
["15","BOYACA","15","15764","SORACA","15764"]
["15","BOYACA","15","15774","SUSACON","15774"]
["15","BOYACA","15","15776","SUTAMARCHAN","15776"]
["15","BOYACA","15","15778","SUTATENZA","15778"]
["15","BOYACA","15","15790","TASCO","15790"]
["15","BOYACA","15","15798","TENZA","15798"]
["15","BOYACA","15","15804","TIBANA","15804"]
["15","BOYACA","15","15806","TIBASOSA","15806"]
["15","BOYACA","15","15808","TINJACA","15808"]
["15","BOYACA","15","15810","TIPACOQUE","15810"]
["15","BOYACA","15","15814","TOCA","15814"]
["15","BOYACA","15","15816","TOGsI","15816"]
["15","BOYACA","15","15820","TOPAGA","15820"]
["15","BOYACA","15","15822","TOTA","15822"]
["15","BOYACA","15","15832","TUNUNGUA","15832"]
["15","BOYACA","15","15835","TURMEQUE","15835"]
["15","BOYACA","15","15837","TUTA","15837"]
["15","BOYACA","15","15839","TUTAZA","15839"]
["15","BOYACA","15","15842","UMBITA","15842"]
["15","BOYACA","15","15861","VENTAQUEMADA","15861"]
["15","BOYACA","15","15879","VIRACACHA","15879"]
["15","BOYACA","15","15897","ZETAQUIRA","15897"]
["17","CALDAS","17","17001","MANIZALES","17001"]
["17","CALDAS","17","17013","AGUADAS","17013"]
["17","CALDAS","17","17042","ANSERMA","17042"]
["17","CALDAS","17","17050","ARANZAZU",{"$f":"D326","v":"17050"}]
["17","CALDAS","17","17088","BELALCAZAR","17088"]
["17","CALDAS","17","17174","CHINCHINA","17174"]
["17","CALDAS","17","17272","FILADELFIA","17272"]
["17","CALDAS","17","17380","LA DORADA","17380"]
["17","CALDAS","17","17388","LA MERCED","17388"]
["17","CALDAS","17","17433","MANZANARES","17433"]
["17","CALDAS","17","17442","MARMATO","17442"]
["17","CALDAS","17","17444","MARQUETALIA","17444"]
["17","CALDAS","17","17446","MARULANDA","17446"]
["17","CALDAS","17","17486","NEIRA","17486"]
["17","CALDAS","17","17495","NORCASIA","17495"]
["17","CALDAS","17","17513","PACORA","17513"]
["17","CALDAS","17","17524","PALESTINA","17524"]
["17","CALDAS","17","17541","PENSILVANIA","17541"]
["17","CALDAS","17","17614","RIOSUCIO","17614"]
["17","CALDAS","17","17616","RISARALDA","17616"]
["17","CALDAS","17","17653","SALAMINA","17653"]
["17","CALDAS","17","17662","SAMANA","17662"]
["17","CALDAS","17","17665","SAN JOSE","17665"]
["17","CALDAS","17","17777","SUPIA","17777"]
["17","CALDAS","17","17867","VICTORIA","17867"]
["17","CALDAS","17","17873","VILLAMARIA","17873"]
["17","CALDAS","17","17877","VITERBO","17877"]
["18","CAQUETA","18","18001","FLORENCIA","18001"]
["18","CAQUETA","18","18029","ALBANIA","18029"]
["18","CAQUETA","18","18094","BELEN DE LOS ANDAQUIES","18094"]
["18","CAQUETA","18","18150","CARTAGENA DEL CHAIRA","18150"]
["18","CAQUETA","18","18205","CURILLO","18205"]
["18","CAQUETA","18","18247","EL DONCELLO","18247"]
["18","CAQUETA","18","18256","EL PAUJIL","18256"]
["18","CAQUETA","18","18410","LA MONTAÑITA","18410"]
["18","CAQUETA","18","18460","MILAN","18460"]
["18","CAQUETA","18","18479","MORELIA","18479"]
["18","CAQUETA","18","18592","PUERTO RICO","18592"]
["18","CAQUETA","18","18610","SAN JOSE DEL FRAGUA","18610"]
["18","CAQUETA","18","18753","SAN VICENTE DEL CAGUAN","18753"]
["18","CAQUETA","18","18756","SOLANO","18756"]
["18","CAQUETA","18","18785","SOLITA","18785"]
["18","CAQUETA","18","18860","VALPARAISO","18860"]
["19","CAUCA","19","19001","POPAYAN","19001"]
["19","CAUCA","19","19022","ALMAGUER","19022"]
["19","CAUCA","19","19050","ARGELIA","19050"]
["19","CAUCA","19","19075","BALBOA","19075"]
["19","CAUCA","19","19100","BOLIVAR","19100"]
["19","CAUCA","19","19110","BUENOS AIRES","19110"]
["19","CAUCA","19","19130","CAJIBIO","19130"]
["19","CAUCA","19","19137","CALDONO","19137"]
["19","CAUCA","19","19142","CALOTO","19142"]
["19","CAUCA","19","19212","CORINTO","19212"]
["19","CAUCA","19","19256","EL TAMBO","19256"]
["19","CAUCA","19","19290","FLORENCIA","19290"]
["19","CAUCA","19","19300","GUACHENE","19300"]
["19","CAUCA","19","19318","GUAPI","19318"]
["19","CAUCA","19","19355","INZA","19355"]
["19","CAUCA","19","19364","JAMBALO","19364"]
["19","CAUCA","19","19392","LA SIERRA","19392"]
["19","CAUCA","19","19397","LA VEGA","19397"]
["19","CAUCA","19","19418","LOPEZ","19418"]
["19","CAUCA","19","19450","MERCADERES","19450"]
["19","CAUCA","19","19455","MIRANDA","19455"]
["19","CAUCA","19","19473","MORALES","19473"]
["19","CAUCA","19","19513","PADILLA","19513"]
["19","CAUCA","19","19517","PAEZ","19517"]
["19","CAUCA","19","19532","PATIA",{"$f":"D390","v":"19532"}]
["19","CAUCA","19","19533","PIAMONTE","19533"]
["19","CAUCA","19","19548","PIENDAMO","19548"]
["19","CAUCA","19","19573","PUERTO TEJADA","19573"]
["19","CAUCA","19","19585","PURACE","19585"]
["19","CAUCA","19","19622","ROSAS","19622"]
["19","CAUCA","19","19693","SAN SEBASTIAN","19693"]
["19","CAUCA","19","19698","SANTANDER DE QUILICHAO","19698"]
["19","CAUCA","19","19701","SANTA ROSA","19701"]
["19","CAUCA","19","19743","SILVIA","19743"]
["19","CAUCA","19","19760","SOTARA","19760"]
["19","CAUCA","19","19780","SUAREZ","19780"]
["19","CAUCA","19","19785","SUCRE","19785"]
["19","CAUCA","19","19807","TIMBIO","19807"]
["19","CAUCA","19","19809","TIMBIQUI","19809"]
["19","CAUCA","19","19821","TORIBIO","19821"]
["19","CAUCA","19","19824","TOTORO","19824"]
["19","CAUCA","19","19845","VILLA RICA","19845"]
["20","CESAR","20","20001","VALLEDUPAR","20001"]
["20","CESAR","20","20011","AGUACHICA","20011"]
["20","CESAR","20","20013","AGUSTIN CODAZZI","20013"]
["20","CESAR","20","20032","ASTREA","20032"]
["20","CESAR","20","20045","BECERRIL","20045"]
["20","CESAR","20","20060","BOSCONIA","20060"]
["20","CESAR","20","20175","CHIMICHAGUA","20175"]
["20","CESAR","20","20178","CHIRIGUANA","20178"]
["20","CESAR","20","20228","CURUMANI","20228"]
["20","CESAR","20","20238","EL COPEY","20238"]
["20","CESAR","20","20250","EL PASO","20250"]
["20","CESAR","20","20295","GAMARRA","20295"]
["20","CESAR","20","20310","GONZALEZ","20310"]
["20","CESAR","20","20383","LA GLORIA","20383"]
["20","CESAR","20","20400","LA JAGUA DE IBIRICO","20400"]
["20","CESAR","20","20443","MANAURE","20443"]
["20","CESAR","20","20517","PAILITAS","20517"]
["20","CESAR","20","20550","PELAYA","20550"]
["20","CESAR","20","20570","PUEBLO BELLO","20570"]
["20","CESAR","20","20614","RIO DE ORO","20614"]
["20","CESAR","20","20621","LA PAZ","20621"]
["20","CESAR","20","20710","SAN ALBERTO","20710"]
["20","CESAR","20","20750","SAN DIEGO","20750"]
["20","CESAR","20","20770","SAN MARTIN","20770"]
["20","CESAR","20","20787","TAMALAMEQUE","20787"]
["23","CORDOBA","23","23001","MONTERIA","23001"]
["23","CORDOBA","23","23068","AYAPEL","23068"]
["23","CORDOBA","23","23079","BUENAVISTA","23079"]
["23","CORDOBA","23","23090","CANALETE","23090"]
["23","CORDOBA","23","23162","CERETE","23162"]
["23","CORDOBA","23","23168","CHIMA","23168"]
["23","CORDOBA","23","23182","CHINU","23182"]
["23","CORDOBA","23","23189","CIENAGA DE ORO","23189"]
["23","CORDOBA","23","23300","COTORRA","23300"]
["23","CORDOBA","23","23350","LA APARTADA","23350"]
["23","CORDOBA","23","23417","LORICA","23417"]
["23","CORDOBA","23","23419","LOS CORDOBAS","23419"]
["23","CORDOBA","23","23464","MOMIL","23464"]
["23","CORDOBA","23","23466","MONTELIBANO","23466"]
["23","CORDOBA","23","23500","MOÑITOS","23500"]
["23","CORDOBA","23","23555","PLANETA RICA","23555"]
["23","CORDOBA","23","23570","PUEBLO NUEVO","23570"]
["23","CORDOBA","23","23574","PUERTO ESCONDIDO","23574"]
["23","CORDOBA","23","23580","PUERTO LIBERTADOR","23580"]
["23","CORDOBA","23","23586","PURISIMA","23586"]
["23","CORDOBA","23","23660","SAHAGUN","23660"]
["23","CORDOBA","23","23670","SAN ANDRES SOTAVENTO",{"$f":"D454","v":"23670"}]
["23","CORDOBA","23","23672","SAN ANTERO","23672"]
["23","CORDOBA","23","23675","SAN BERNARDO DEL VIENTO","23675"]
["23","CORDOBA","23","23678","SAN CARLOS","23678"]
["23","CORDOBA","23","23686","SAN PELAYO","23686"]
["23","CORDOBA","23","23807","TIERRALTA","23807"]
["23","CORDOBA","23","23855","VALENCIA","23855"]
["25","CUNDINAMARCA","25","25001","AGUA DE DIOS","25001"]
["25","CUNDINAMARCA","25","25019","ALBAN","25019"]
["25","CUNDINAMARCA","25","25035","ANAPOIMA","25035"]
["25","CUNDINAMARCA","25","25040","ANOLAIMA","25040"]
["25","CUNDINAMARCA","25","25053","ARBELAEZ","25053"]
["25","CUNDINAMARCA","25","25086","BELTRAN","25086"]
["25","CUNDINAMARCA","25","25095","BITUIMA","25095"]
["25","CUNDINAMARCA","25","25099","BOJACA","25099"]
["25","CUNDINAMARCA","25","25120","CABRERA","25120"]
["25","CUNDINAMARCA","25","25123","CACHIPAY","25123"]
["25","CUNDINAMARCA","25","25126","CAJICA","25126"]
["25","CUNDINAMARCA","25","25148","CAPARRAPI","25148"]
["25","CUNDINAMARCA","25","25151","CAQUEZA","25151"]
["25","CUNDINAMARCA","25","25154","CARMEN DE CARUPA","25154"]
["25","CUNDINAMARCA","25","25168","CHAGUANI","25168"]
["25","CUNDINAMARCA","25","25175","CHIA","25175"]
["25","CUNDINAMARCA","25","25178","CHIPAQUE","25178"]
["25","CUNDINAMARCA","25","25181","CHOACHI","25181"]
["25","CUNDINAMARCA","25","25183","CHOCONTA","25183"]
["25","CUNDINAMARCA","25","25200","COGUA","25200"]
["25","CUNDINAMARCA","25","25214","COTA","25214"]
["25","CUNDINAMARCA","25","25224","CUCUNUBA","25224"]
["25","CUNDINAMARCA","25","25245","EL COLEGIO","25245"]
["25","CUNDINAMARCA","25","25258","EL PEÑON","25258"]
["25","CUNDINAMARCA","25","25260","EL ROSAL","25260"]
["25","CUNDINAMARCA","25","25269","FACATATIVA","25269"]
["25","CUNDINAMARCA","25","25279","FOMEQUE","25279"]
["25","CUNDINAMARCA","25","25281","FOSCA","25281"]
["25","CUNDINAMARCA","25","25286","FUNZA","25286"]
["25","CUNDINAMARCA","25","25288","FUQUENE","25288"]
["25","CUNDINAMARCA","25","25290","FUSAGASUGA","25290"]
["25","CUNDINAMARCA","25","25293","GACHALA","25293"]
["25","CUNDINAMARCA","25","25295","GACHANCIPA","25295"]
["25","CUNDINAMARCA","25","25297","GACHETA","25297"]
["25","CUNDINAMARCA","25","25299","GAMA","25299"]
["25","CUNDINAMARCA","25","25307","GIRARDOT","25307"]
["25","CUNDINAMARCA","25","25312","GRANADA","25312"]
["25","CUNDINAMARCA","25","25317","GUACHETA","25317"]
["25","CUNDINAMARCA","25","25320","GUADUAS","25320"]
["25","CUNDINAMARCA","25","25322","GUASCA","25322"]
["25","CUNDINAMARCA","25","25324","GUATAQUI","25324"]
["25","CUNDINAMARCA","25","25326","GUATAVITA","25326"]
["25","CUNDINAMARCA","25","25328","GUAYABAL DE SIQUIMA","25328"]
["25","CUNDINAMARCA","25","25335","GUAYABETAL","25335"]
["25","CUNDINAMARCA","25","25339","GUTIERREZ","25339"]
["25","CUNDINAMARCA","25","25368","JERUSALEN","25368"]
["25","CUNDINAMARCA","25","25372","JUNIN","25372"]
["25","CUNDINAMARCA","25","25377","LA CALERA","25377"]
["25","CUNDINAMARCA","25","25386","LA MESA","25386"]
["25","CUNDINAMARCA","25","25394","LA PALMA","25394"]
["25","CUNDINAMARCA","25","25398","LA PEÑA","25398"]
["25","CUNDINAMARCA","25","25402","LA VEGA","25402"]
["25","CUNDINAMARCA","25","25407","LENGUAZAQUE","25407"]
["25","CUNDINAMARCA","25","25426","MACHETA","25426"]
["25","CUNDINAMARCA","25","25430","MADRID","25430"]
["25","CUNDINAMARCA","25","25436","MANTA","25436"]
["25","CUNDINAMARCA","25","25438","MEDINA","25438"]
["25","CUNDINAMARCA","25","25473","MOSQUERA",{"$f":"D518","v":"25473"}]
["25","CUNDINAMARCA","25","25483","NARIÑO","25483"]
["25","CUNDINAMARCA","25","25486","NEMOCON","25486"]
["25","CUNDINAMARCA","25","25488","NILO","25488"]
["25","CUNDINAMARCA","25","25489","NIMAIMA","25489"]
["25","CUNDINAMARCA","25","25491","NOCAIMA","25491"]
["25","CUNDINAMARCA","25","25506","VENECIA","25506"]
["25","CUNDINAMARCA","25","25513","PACHO","25513"]
["25","CUNDINAMARCA","25","25518","PAIME","25518"]
["25","CUNDINAMARCA","25","25524","PANDI","25524"]
["25","CUNDINAMARCA","25","25530","PARATEBUENO","25530"]
["25","CUNDINAMARCA","25","25535","PASCA","25535"]
["25","CUNDINAMARCA","25","25572","PUERTO SALGAR","25572"]
["25","CUNDINAMARCA","25","25580","PULI","25580"]
["25","CUNDINAMARCA","25","25592","QUEBRADANEGRA","25592"]
["25","CUNDINAMARCA","25","25594","QUETAME","25594"]
["25","CUNDINAMARCA","25","25596","QUIPILE","25596"]
["25","CUNDINAMARCA","25","25599","APULO","25599"]
["25","CUNDINAMARCA","25","25612","RICAURTE","25612"]
["25","CUNDINAMARCA","25","25645","SAN ANTONIO DEL TEQUENDAMA","25645"]
["25","CUNDINAMARCA","25","25649","SAN BERNARDO","25649"]
["25","CUNDINAMARCA","25","25653","SAN CAYETANO","25653"]
["25","CUNDINAMARCA","25","25658","SAN FRANCISCO","25658"]
["25","CUNDINAMARCA","25","25662","SAN JUAN DE RIO SECO","25662"]
["25","CUNDINAMARCA","25","25718","SASAIMA","25718"]
["25","CUNDINAMARCA","25","25736","SESQUILE","25736"]
["25","CUNDINAMARCA","25","25740","SIBATE","25740"]
["25","CUNDINAMARCA","25","25743","SILVANIA","25743"]
["25","CUNDINAMARCA","25","25745","SIMIJACA","25745"]
["25","CUNDINAMARCA","25","25754","SOACHA","25754"]
["25","CUNDINAMARCA","25","25758","SOPO","25758"]
["25","CUNDINAMARCA","25","25769","SUBACHOQUE","25769"]
["25","CUNDINAMARCA","25","25772","SUESCA","25772"]
["25","CUNDINAMARCA","25","25777","SUPATA","25777"]
["25","CUNDINAMARCA","25","25779","SUSA","25779"]
["25","CUNDINAMARCA","25","25781","SUTATAUSA","25781"]
["25","CUNDINAMARCA","25","25785","TABIO","25785"]
["25","CUNDINAMARCA","25","25793","TAUSA","25793"]
["25","CUNDINAMARCA","25","25797","TENA","25797"]
["25","CUNDINAMARCA","25","25799","TENJO","25799"]
["25","CUNDINAMARCA","25","25805","TIBACUY","25805"]
["25","CUNDINAMARCA","25","25807","TIBIRITA","25807"]
["25","CUNDINAMARCA","25","25815","TOCAIMA","25815"]
["25","CUNDINAMARCA","25","25817","TOCANCIPA","25817"]
["25","CUNDINAMARCA","25","25823","TOPAIPI","25823"]
["25","CUNDINAMARCA","25","25839","UBALA","25839"]
["25","CUNDINAMARCA","25","25841","UBAQUE","25841"]
["25","CUNDINAMARCA","25","25843","VILLA DE SAN DIEGO DE UBATE","25843"]
["25","CUNDINAMARCA","25","25845","UNE","25845"]
["25","CUNDINAMARCA","25","25851","UTICA","25851"]
["25","CUNDINAMARCA","25","25862","VERGARA","25862"]
["25","CUNDINAMARCA","25","25867","VIANI","25867"]
["25","CUNDINAMARCA","25","25871","VILLAGOMEZ","25871"]
["25","CUNDINAMARCA","25","25873","VILLAPINZON","25873"]
["25","CUNDINAMARCA","25","25875","VILLETA","25875"]
["25","CUNDINAMARCA","25","25878","VIOTA","25878"]
["25","CUNDINAMARCA","25","25885","YACOPI","25885"]
["25","CUNDINAMARCA","25","25898","ZIPACON","25898"]
["25","CUNDINAMARCA","25","25899","ZIPAQUIRA","25899"]
["27","CHOCO","27","27001","QUIBDO","27001"]
["27","CHOCO","27","27006","ACANDI","27006"]
["27","CHOCO","27","27025","ALTO BAUDO","27025"]
["27","CHOCO","27","27050","ATRATO","27050"]
["27","CHOCO","27","27073","BAGADO","27073"]
["27","CHOCO","27","27075","BAHIA SOLANO",{"$f":"D582","v":"27075"}]
["27","CHOCO","27","27077","BAJO BAUDO","27077"]
["27","CHOCO","27","27099","BOJAYA","27099"]
["27","CHOCO","27","27135","EL CANTON DEL SAN PABLO","27135"]
["27","CHOCO","27","27150","CARMEN DEL DARIEN","27150"]
["27","CHOCO","27","27160","CERTEGUI","27160"]
["27","CHOCO","27","27205","CONDOTO","27205"]
["27","CHOCO","27","27245","EL CARMEN DE ATRATO","27245"]
["27","CHOCO","27","27250","EL LITORAL DEL SAN JUAN","27250"]
["27","CHOCO","27","27361","ISTMINA","27361"]
["27","CHOCO","27","27372","JURADO","27372"]
["27","CHOCO","27","27413","LLORO","27413"]
["27","CHOCO","27","27425","MEDIO ATRATO","27425"]
["27","CHOCO","27","27430","MEDIO BAUDO","27430"]
["27","CHOCO","27","27450","MEDIO SAN JUAN","27450"]
["27","CHOCO","27","27491","NOVITA","27491"]
["27","CHOCO","27","27495","NUQUI","27495"]
["27","CHOCO","27","27580","RIO IRO","27580"]
["27","CHOCO","27","27600","RIO QUITO","27600"]
["27","CHOCO","27","27615","RIOSUCIO","27615"]
["27","CHOCO","27","27660","SAN JOSE DEL PALMAR","27660"]
["27","CHOCO","27","27745","SIPI","27745"]
["27","CHOCO","27","27787","TADO","27787"]
["27","CHOCO","27","27800","UNGUIA","27800"]
["27","CHOCO","27","27810","UNION PANAMERICANA","27810"]
["41","HUILA","41","41001","NEIVA","41001"]
["41","HUILA","41","41006","ACEVEDO","41006"]
["41","HUILA","41","41013","AGRADO","41013"]
["41","HUILA","41","41016","AIPE","41016"]
["41","HUILA","41","41020","ALGECIRAS","41020"]
["41","HUILA","41","41026","ALTAMIRA","41026"]
["41","HUILA","41","41078","BARAYA","41078"]
["41","HUILA","41","41132","CAMPOALEGRE","41132"]
["41","HUILA","41","41206","COLOMBIA","41206"]
["41","HUILA","41","41244","ELIAS","41244"]
["41","HUILA","41","41298","GARZON","41298"]
["41","HUILA","41","41306","GIGANTE","41306"]
["41","HUILA","41","41319","GUADALUPE","41319"]
["41","HUILA","41","41349","HOBO","41349"]
["41","HUILA","41","41357","IQUIRA","41357"]
["41","HUILA","41","41359","ISNOS","41359"]
["41","HUILA","41","41378","LA ARGENTINA","41378"]
["41","HUILA","41","41396","LA PLATA","41396"]
["41","HUILA","41","41483","NATAGA","41483"]
["41","HUILA","41","41503","OPORAPA","41503"]
["41","HUILA","41","41518","PAICOL","41518"]
["41","HUILA","41","41524","PALERMO","41524"]
["41","HUILA","41","41530","PALESTINA","41530"]
["41","HUILA","41","41548","PITAL","41548"]
["41","HUILA","41","41551","PITALITO","41551"]
["41","HUILA","41","41615","RIVERA","41615"]
["41","HUILA","41","41660","SALADOBLANCO","41660"]
["41","HUILA","41","41668","SAN AGUSTIN","41668"]
["41","HUILA","41","41676","SANTA MARIA","41676"]
["41","HUILA","41","41770","SUAZA","41770"]
["41","HUILA","41","41791","TARQUI","41791"]
["41","HUILA","41","41797","TESALIA","41797"]
["41","HUILA","41","41799","TELLO","41799"]
["41","HUILA","41","41801","TERUEL","41801"]
["41","HUILA","41","41807","TIMANA","41807"]
["41","HUILA","41","41872","VILLAVIEJA","41872"]
["41","HUILA","41","41885","YAGUARA","41885"]
["44","LA_GUAJIRA","44","44001","RIOHACHA","44001"]
["44","LA_GUAJIRA","44","44035","ALBANIA","44035"]
["44","LA_GUAJIRA","44","44078","BARRANCAS",{"$f":"D646","v":"44078"}]
["44","LA_GUAJIRA","44","44090","DIBULLA","44090"]
["44","LA_GUAJIRA","44","44098","DISTRACCION","44098"]
["44","LA_GUAJIRA","44","44110","EL MOLINO","44110"]
["44","LA_GUAJIRA","44","44279","FONSECA","44279"]
["44","LA_GUAJIRA","44","44378","HATONUEVO","44378"]
["44","LA_GUAJIRA","44","44420","LA JAGUA DEL PILAR","44420"]
["44","LA_GUAJIRA","44","44430","MAICAO","44430"]
["44","LA_GUAJIRA","44","44560","MANAURE","44560"]
["44","LA_GUAJIRA","44","44650","SAN JUAN DEL CESAR","44650"]
["44","LA_GUAJIRA","44","44847","URIBIA","44847"]
["44","LA_GUAJIRA","44","44855","URUMITA","44855"]
["44","LA_GUAJIRA","44","44874","VILLANUEVA","44874"]
["47","MAGDALENA","47","47001","SANTA MARTA","47001"]
["47","MAGDALENA","47","47030","ALGARROBO","47030"]
["47","MAGDALENA","47","47053","ARACATACA","47053"]
["47","MAGDALENA","47","47058","ARIGUANI","47058"]
["47","MAGDALENA","47","47161","CERRO SAN ANTONIO","47161"]
["47","MAGDALENA","47","47170","CHIBOLO","47170"]
["47","MAGDALENA","47","47189","CIENAGA","47189"]
["47","MAGDALENA","47","47205","CONCORDIA","47205"]
["47","MAGDALENA","47","47245","EL BANCO","47245"]
["47","MAGDALENA","47","47258","EL PIÑON","47258"]
["47","MAGDALENA","47","47268","EL RETEN","47268"]
["47","MAGDALENA","47","47288","FUNDACION","47288"]
["47","MAGDALENA","47","47318","GUAMAL","47318"]
["47","MAGDALENA","47","47460","NUEVA GRANADA","47460"]
["47","MAGDALENA","47","47541","PEDRAZA","47541"]
["47","MAGDALENA","47","47545","PIJIÑO DEL CARMEN","47545"]
["47","MAGDALENA","47","47551","PIVIJAY","47551"]
["47","MAGDALENA","47","47555","PLATO","47555"]
["47","MAGDALENA","47","47570","PUEBLOVIEJO","47570"]
["47","MAGDALENA","47","47605","REMOLINO","47605"]
["47","MAGDALENA","47","47660","SABANAS DE SAN ANGEL","47660"]
["47","MAGDALENA","47","47675","SALAMINA","47675"]
["47","MAGDALENA","47","47692","SAN SEBASTIAN DE BUENAVISTA","47692"]
["47","MAGDALENA","47","47703","SAN ZENON","47703"]
["47","MAGDALENA","47","47707","SANTA ANA","47707"]
["47","MAGDALENA","47","47720","SANTA BARBARA DE PINTO","47720"]
["47","MAGDALENA","47","47745","SITIONUEVO","47745"]
["47","MAGDALENA","47","47798","TENERIFE","47798"]
["47","MAGDALENA","47","47960","ZAPAYAN","47960"]
["47","MAGDALENA","47","47980","ZONA BANANERA","47980"]
["50","META","50","50001","VILLAVICENCIO","50001"]
["50","META","50","50006","ACACIAS","50006"]
["50","META","50","50110","BARRANCA DE UPIA","50110"]
["50","META","50","50124","CABUYARO","50124"]
["50","META","50","50150","CASTILLA LA NUEVA","50150"]
["50","META","50","50223","CUBARRAL","50223"]
["50","META","50","50226","CUMARAL","50226"]
["50","META","50","50245","EL CALVARIO","50245"]
["50","META","50","50251","EL CASTILLO","50251"]
["50","META","50","50270","EL DORADO","50270"]
["50","META","50","50287","FUENTE DE ORO","50287"]
["50","META","50","50313","GRANADA","50313"]
["50","META","50","50318","GUAMAL","50318"]
["50","META","50","50325","MAPIRIPAN","50325"]
["50","META","50","50330","MESETAS","50330"]
["50","META","50","50350","LA MACARENA","50350"]
["50","META","50","50370","URIBE","50370"]
["50","META","50","50400","LEJANIAS","50400"]
["50","META","50","50450","PUERTO CONCORDIA","50450"]
["50","META","50","50568","PUERTO GAITAN","50568"]
["50","META","50","50573","PUERTO LOPEZ","50573"]
["50","META","50","50577","PUERTO LLERAS",{"$f":"D710","v":"50577"}]
["50","META","50","50590","PUERTO RICO","50590"]
["50","META","50","50606","RESTREPO","50606"]
["50","META","50","50680","SAN CARLOS DE GUAROA","50680"]
["50","META","50","50683","SAN JUAN DE ARAMA","50683"]
["50","META","50","50686","SAN JUANITO","50686"]
["50","META","50","50689","SAN MARTIN","50689"]
["50","META","50","50711","VISTAHERMOSA","50711"]
["52","NARIÑO","52","52001","PASTO","52001"]
["52","NARIÑO","52","52019","ALBAN","52019"]
["52","NARIÑO","52","52022","ALDANA","52022"]
["52","NARIÑO","52","52036","ANCUYA","52036"]
["52","NARIÑO","52","52051","ARBOLEDA","52051"]
["52","NARIÑO","52","52079","BARBACOAS","52079"]
["52","NARIÑO","52","52083","BELEN","52083"]
["52","NARIÑO","52","52110","BUESACO","52110"]
["52","NARIÑO","52","52203","COLON","52203"]
["52","NARIÑO","52","52207","CONSACA","52207"]
["52","NARIÑO","52","52210","CONTADERO","52210"]
["52","NARIÑO","52","52215","CORDOBA","52215"]
["52","NARIÑO","52","52224","CUASPUD","52224"]
["52","NARIÑO","52","52227","CUMBAL","52227"]
["52","NARIÑO","52","52233","CUMBITARA","52233"]
["52","NARIÑO","52","52240","CHACHAGsI","52240"]
["52","NARIÑO","52","52250","EL CHARCO","52250"]
["52","NARIÑO","52","52254","EL PEÑOL","52254"]
["52","NARIÑO","52","52256","EL ROSARIO","52256"]
["52","NARIÑO","52","52258","EL TABLON DE GOMEZ","52258"]
["52","NARIÑO","52","52260","EL TAMBO","52260"]
["52","NARIÑO","52","52287","FUNES","52287"]
["52","NARIÑO","52","52317","GUACHUCAL","52317"]
["52","NARIÑO","52","52320","GUAITARILLA","52320"]
["52","NARIÑO","52","52323","GUALMATAN","52323"]
["52","NARIÑO","52","52352","ILES","52352"]
["52","NARIÑO","52","52354","IMUES","52354"]
["52","NARIÑO","52","52356","IPIALES","52356"]
["52","NARIÑO","52","52378","LA CRUZ","52378"]
["52","NARIÑO","52","52381","LA FLORIDA","52381"]
["52","NARIÑO","52","52385","LA LLANADA","52385"]
["52","NARIÑO","52","52390","LA TOLA","52390"]
["52","NARIÑO","52","52399","LA UNION","52399"]
["52","NARIÑO","52","52405","LEIVA","52405"]
["52","NARIÑO","52","52411","LINARES","52411"]
["52","NARIÑO","52","52418","LOS ANDES","52418"]
["52","NARIÑO","52","52427","MAGsI","52427"]
["52","NARIÑO","52","52435","MALLAMA","52435"]
["52","NARIÑO","52","52473","MOSQUERA","52473"]
["52","NARIÑO","52","52480","NARIÑO","52480"]
["52","NARIÑO","52","52490","OLAYA HERRERA","52490"]
["52","NARIÑO","52","52506","OSPINA","52506"]
["52","NARIÑO","52","52520","FRANCISCO PIZARRO","52520"]
["52","NARIÑO","52","52540","POLICARPA","52540"]
["52","NARIÑO","52","52560","POTOSI","52560"]
["52","NARIÑO","52","52565","PROVIDENCIA","52565"]
["52","NARIÑO","52","52573","PUERRES","52573"]
["52","NARIÑO","52","52585","PUPIALES","52585"]
["52","NARIÑO","52","52612","RICAURTE","52612"]
["52","NARIÑO","52","52621","ROBERTO PAYAN","52621"]
["52","NARIÑO","52","52678","SAMANIEGO","52678"]
["52","NARIÑO","52","52683","SANDONA","52683"]
["52","NARIÑO","52","52685","SAN BERNARDO","52685"]
["52","NARIÑO","52","52687","SAN LORENZO","52687"]
["52","NARIÑO","52","52693","SAN PABLO","52693"]
["52","NARIÑO","52","52694","SAN PEDRO DE CARTAGO","52694"]
["52","NARIÑO","52","52696","SANTA BARBARA",{"$f":"D774","v":"52696"}]
["52","NARIÑO","52","52699","SANTACRUZ","52699"]
["52","NARIÑO","52","52720","SAPUYES","52720"]
["52","NARIÑO","52","52786","TAMINANGO","52786"]
["52","NARIÑO","52","52788","TANGUA","52788"]
["52","NARIÑO","52","52835","SAN ANDRES DE TUMACO","52835"]
["52","NARIÑO","52","52838","TUQUERRES","52838"]
["52","NARIÑO","52","52885","YACUANQUER","52885"]
["54","N_DE_SANTANDER","54","54001","CUCUTA","54001"]
["54","N_DE_SANTANDER","54","54003","ABREGO","54003"]
["54","N_DE_SANTANDER","54","54051","ARBOLEDAS","54051"]
["54","N_DE_SANTANDER","54","54099","BOCHALEMA","54099"]
["54","N_DE_SANTANDER","54","54109","BUCARASICA","54109"]
["54","N_DE_SANTANDER","54","54125","CACOTA","54125"]
["54","N_DE_SANTANDER","54","54128","CACHIRA","54128"]
["54","N_DE_SANTANDER","54","54172","CHINACOTA","54172"]
["54","N_DE_SANTANDER","54","54174","CHITAGA","54174"]
["54","N_DE_SANTANDER","54","54206","CONVENCION","54206"]
["54","N_DE_SANTANDER","54","54223","CUCUTILLA","54223"]
["54","N_DE_SANTANDER","54","54239","DURANIA","54239"]
["54","N_DE_SANTANDER","54","54245","EL CARMEN","54245"]
["54","N_DE_SANTANDER","54","54250","EL TARRA","54250"]
["54","N_DE_SANTANDER","54","54261","EL ZULIA","54261"]
["54","N_DE_SANTANDER","54","54313","GRAMALOTE","54313"]
["54","N_DE_SANTANDER","54","54344","HACARI","54344"]
["54","N_DE_SANTANDER","54","54347","HERRAN","54347"]
["54","N_DE_SANTANDER","54","54377","LABATECA","54377"]
["54","N_DE_SANTANDER","54","54385","LA ESPERANZA","54385"]
["54","N_DE_SANTANDER","54","54398","LA PLAYA","54398"]
["54","N_DE_SANTANDER","54","54405","LOS PATIOS","54405"]
["54","N_DE_SANTANDER","54","54418","LOURDES","54418"]
["54","N_DE_SANTANDER","54","54480","MUTISCUA","54480"]
["54","N_DE_SANTANDER","54","54498","OCAÑA","54498"]
["54","N_DE_SANTANDER","54","54518","PAMPLONA","54518"]
["54","N_DE_SANTANDER","54","54520","PAMPLONITA","54520"]
["54","N_DE_SANTANDER","54","54553","PUERTO SANTANDER","54553"]
["54","N_DE_SANTANDER","54","54599","RAGONVALIA","54599"]
["54","N_DE_SANTANDER","54","54660","SALAZAR","54660"]
["54","N_DE_SANTANDER","54","54670","SAN CALIXTO","54670"]
["54","N_DE_SANTANDER","54","54673","SAN CAYETANO","54673"]
["54","N_DE_SANTANDER","54","54680","SANTIAGO","54680"]
["54","N_DE_SANTANDER","54","54720","SARDINATA","54720"]
["54","N_DE_SANTANDER","54","54743","SILOS","54743"]
["54","N_DE_SANTANDER","54","54800","TEORAMA","54800"]
["54","N_DE_SANTANDER","54","54810","TIBU","54810"]
["54","N_DE_SANTANDER","54","54820","TOLEDO","54820"]
["54","N_DE_SANTANDER","54","54871","VILLA CARO","54871"]
["54","N_DE_SANTANDER","54","54874","VILLA DEL ROSARIO","54874"]
["63","QUINDIO","63","63001","ARMENIA","63001"]
["63","QUINDIO","63","63111","BUENAVISTA","63111"]
["63","QUINDIO","63","63130","CALARCA","63130"]
["63","QUINDIO","63","63190","CIRCASIA","63190"]
["63","QUINDIO","63","63212","CORDOBA","63212"]
["63","QUINDIO","63","63272","FILANDIA","63272"]
["63","QUINDIO","63","63302","GENOVA","63302"]
["63","QUINDIO","63","63401","LA TEBAIDA","63401"]
["63","QUINDIO","63","63470","MONTENEGRO","63470"]
["63","QUINDIO","63","63548","PIJAO","63548"]
["63","QUINDIO","63","63594","QUIMBAYA","63594"]
["63","QUINDIO","63","63690","SALENTO","63690"]
["66","RISARALDA","66","66001","PEREIRA","66001"]
["66","RISARALDA","66","66045","APIA","66045"]
["66","RISARALDA","66","66075","BALBOA","66075"]
["66","RISARALDA","66","66088","BELEN DE UMBRIA","66088"]
["66","RISARALDA","66","66170","DOSQUEBRADAS",{"$f":"D838","v":"66170"}]
["66","RISARALDA","66","66318","GUATICA","66318"]
["66","RISARALDA","66","66383","LA CELIA","66383"]
["66","RISARALDA","66","66400","LA VIRGINIA","66400"]
["66","RISARALDA","66","66440","MARSELLA","66440"]
["66","RISARALDA","66","66456","MISTRATO","66456"]
["66","RISARALDA","66","66572","PUEBLO RICO","66572"]
["66","RISARALDA","66","66594","QUINCHIA","66594"]
["66","RISARALDA","66","66682","SANTA ROSA DE CABAL","66682"]
["66","RISARALDA","66","66687","SANTUARIO","66687"]
["68","SANTANDER","68","68001","BUCARAMANGA","68001"]
["68","SANTANDER","68","68013","AGUADA","68013"]
["68","SANTANDER","68","68020","ALBANIA","68020"]
["68","SANTANDER","68","68051","ARATOCA","68051"]
["68","SANTANDER","68","68077","BARBOSA","68077"]
["68","SANTANDER","68","68079","BARICHARA","68079"]
["68","SANTANDER","68","68081","BARRANCABERMEJA","68081"]
["68","SANTANDER","68","68092","BETULIA","68092"]
["68","SANTANDER","68","68101","BOLIVAR","68101"]
["68","SANTANDER","68","68121","CABRERA","68121"]
["68","SANTANDER","68","68132","CALIFORNIA","68132"]
["68","SANTANDER","68","68147","CAPITANEJO","68147"]
["68","SANTANDER","68","68152","CARCASI","68152"]
["68","SANTANDER","68","68160","CEPITA","68160"]
["68","SANTANDER","68","68162","CERRITO","68162"]
["68","SANTANDER","68","68167","CHARALA","68167"]
["68","SANTANDER","68","68169","CHARTA","68169"]
["68","SANTANDER","68","68176","CHIMA","68176"]
["68","SANTANDER","68","68179","CHIPATA","68179"]
["68","SANTANDER","68","68190","CIMITARRA","68190"]
["68","SANTANDER","68","68207","CONCEPCION","68207"]
["68","SANTANDER","68","68209","CONFINES","68209"]
["68","SANTANDER","68","68211","CONTRATACION","68211"]
["68","SANTANDER","68","68217","COROMORO","68217"]
["68","SANTANDER","68","68229","CURITI","68229"]
["68","SANTANDER","68","68235","EL CARMEN DE CHUCURI","68235"]
["68","SANTANDER","68","68245","EL GUACAMAYO","68245"]
["68","SANTANDER","68","68250","EL PEÑON","68250"]
["68","SANTANDER","68","68255","EL PLAYON","68255"]
["68","SANTANDER","68","68264","ENCINO","68264"]
["68","SANTANDER","68","68266","ENCISO","68266"]
["68","SANTANDER","68","68271","FLORIAN","68271"]
["68","SANTANDER","68","68276","FLORIDABLANCA","68276"]
["68","SANTANDER","68","68296","GALAN","68296"]
["68","SANTANDER","68","68298","GAMBITA","68298"]
["68","SANTANDER","68","68307","GIRON","68307"]
["68","SANTANDER","68","68318","GUACA","68318"]
["68","SANTANDER","68","68320","GUADALUPE","68320"]
["68","SANTANDER","68","68322","GUAPOTA","68322"]
["68","SANTANDER","68","68324","GUAVATA","68324"]
["68","SANTANDER","68","68327","GsEPSA","68327"]
["68","SANTANDER","68","68344","HATO","68344"]
["68","SANTANDER","68","68368","JESUS MARIA","68368"]
["68","SANTANDER","68","68370","JORDAN","68370"]
["68","SANTANDER","68","68377","LA BELLEZA","68377"]
["68","SANTANDER","68","68385","LANDAZURI","68385"]
["68","SANTANDER","68","68397","LA PAZ","68397"]
["68","SANTANDER","68","68406","LEBRIJA","68406"]
["68","SANTANDER","68","68418","LOS SANTOS","68418"]
["68","SANTANDER","68","68425","MACARAVITA","68425"]
["68","SANTANDER","68","68432","MALAGA","68432"]
["68","SANTANDER","68","68444","MATANZA","68444"]
["68","SANTANDER","68","68464","MOGOTES","68464"]
["68","SANTANDER","68","68468","MOLAGAVITA","68468"]
["68","SANTANDER","68","68498","OCAMONTE",{"$f":"D902","v":"68498"}]
["68","SANTANDER","68","68500","OIBA","68500"]
["68","SANTANDER","68","68502","ONZAGA","68502"]
["68","SANTANDER","68","68522","PALMAR","68522"]
["68","SANTANDER","68","68524","PALMAS DEL SOCORRO","68524"]
["68","SANTANDER","68","68533","PARAMO","68533"]
["68","SANTANDER","68","68547","PIEDECUESTA","68547"]
["68","SANTANDER","68","68549","PINCHOTE","68549"]
["68","SANTANDER","68","68572","PUENTE NACIONAL","68572"]
["68","SANTANDER","68","68573","PUERTO PARRA","68573"]
["68","SANTANDER","68","68575","PUERTO WILCHES","68575"]
["68","SANTANDER","68","68615","RIONEGRO","68615"]
["68","SANTANDER","68","68655","SABANA DE TORRES","68655"]
["68","SANTANDER","68","68669","SAN ANDRES","68669"]
["68","SANTANDER","68","68673","SAN BENITO","68673"]
["68","SANTANDER","68","68679","SAN GIL","68679"]
["68","SANTANDER","68","68682","SAN JOAQUIN","68682"]
["68","SANTANDER","68","68684","SAN JOSE DE MIRANDA","68684"]
["68","SANTANDER","68","68686","SAN MIGUEL","68686"]
["68","SANTANDER","68","68689","SAN VICENTE DE CHUCURI","68689"]
["68","SANTANDER","68","68705","SANTA BARBARA","68705"]
["68","SANTANDER","68","68720","SANTA HELENA DEL OPON","68720"]
["68","SANTANDER","68","68745","SIMACOTA","68745"]
["68","SANTANDER","68","68755","SOCORRO","68755"]
["68","SANTANDER","68","68770","SUAITA","68770"]
["68","SANTANDER","68","68773","SUCRE","68773"]
["68","SANTANDER","68","68780","SURATA","68780"]
["68","SANTANDER","68","68820","TONA","68820"]
["68","SANTANDER","68","68855","VALLE DE SAN JOSE","68855"]
["68","SANTANDER","68","68861","VELEZ","68861"]
["68","SANTANDER","68","68867","VETAS","68867"]
["68","SANTANDER","68","68872","VILLANUEVA","68872"]
["68","SANTANDER","68","68895","ZAPATOCA","68895"]
["70","SUCRE","70","70001","SINCELEJO","70001"]
["70","SUCRE","70","70110","BUENAVISTA","70110"]
["70","SUCRE","70","70124","CAIMITO","70124"]
["70","SUCRE","70","70204","COLOSO","70204"]
["70","SUCRE","70","70215","COROZAL","70215"]
["70","SUCRE","70","70221","COVEÑAS","70221"]
["70","SUCRE","70","70230","CHALAN","70230"]
["70","SUCRE","70","70233","EL ROBLE","70233"]
["70","SUCRE","70","70235","GALERAS","70235"]
["70","SUCRE","70","70265","GUARANDA","70265"]
["70","SUCRE","70","70400","LA UNION","70400"]
["70","SUCRE","70","70418","LOS PALMITOS","70418"]
["70","SUCRE","70","70429","MAJAGUAL","70429"]
["70","SUCRE","70","70473","MORROA","70473"]
["70","SUCRE","70","70508","OVEJAS","70508"]
["70","SUCRE","70","70523","PALMITO","70523"]
["70","SUCRE","70","70670","SAMPUES","70670"]
["70","SUCRE","70","70678","SAN BENITO ABAD","70678"]
["70","SUCRE","70","70702","SAN JUAN DE BETULIA","70702"]
["70","SUCRE","70","70708","SAN MARCOS","70708"]
["70","SUCRE","70","70713","SAN ONOFRE","70713"]
["70","SUCRE","70","70717","SAN PEDRO","70717"]
["70","SUCRE","70","70742","SAN LUIS DE SINCE","70742"]
["70","SUCRE","70","70771","SUCRE","70771"]
["70","SUCRE","70","70820","SANTIAGO DE TOLU","70820"]
["70","SUCRE","70","70823","TOLU VIEJO","70823"]
["73","TOLIMA","73","73001","IBAGUE","73001"]
["73","TOLIMA","73","73024","ALPUJARRA","73024"]
["73","TOLIMA","73","73026","ALVARADO","73026"]
["73","TOLIMA","73","73030","AMBALEMA","73030"]
["73","TOLIMA","73","73043","ANZOATEGUI","73043"]
["73","TOLIMA","73","73055","ARMERO",{"$f":"D966","v":"73055"}]
["73","TOLIMA","73","73067","ATACO","73067"]
["73","TOLIMA","73","73124","CAJAMARCA","73124"]
["73","TOLIMA","73","73148","CARMEN DE APICALA","73148"]
["73","TOLIMA","73","73152","CASABIANCA","73152"]
["73","TOLIMA","73","73168","CHAPARRAL","73168"]
["73","TOLIMA","73","73200","COELLO","73200"]
["73","TOLIMA","73","73217","COYAIMA","73217"]
["73","TOLIMA","73","73226","CUNDAY","73226"]
["73","TOLIMA","73","73236","DOLORES","73236"]
["73","TOLIMA","73","73268","ESPINAL","73268"]
["73","TOLIMA","73","73270","FALAN","73270"]
["73","TOLIMA","73","73275","FLANDES","73275"]
["73","TOLIMA","73","73283","FRESNO","73283"]
["73","TOLIMA","73","73319","GUAMO","73319"]
["73","TOLIMA","73","73347","HERVEO","73347"]
["73","TOLIMA","73","73349","HONDA","73349"]
["73","TOLIMA","73","73352","ICONONZO","73352"]
["73","TOLIMA","73","73408","LERIDA","73408"]
["73","TOLIMA","73","73411","LIBANO","73411"]
["73","TOLIMA","73","73443","MARIQUITA","73443"]
["73","TOLIMA","73","73449","MELGAR","73449"]
["73","TOLIMA","73","73461","MURILLO","73461"]
["73","TOLIMA","73","73483","NATAGAIMA","73483"]
["73","TOLIMA","73","73504","ORTEGA","73504"]
["73","TOLIMA","73","73520","PALOCABILDO","73520"]
["73","TOLIMA","73","73547","PIEDRAS","73547"]
["73","TOLIMA","73","73555","PLANADAS","73555"]
["73","TOLIMA","73","73563","PRADO","73563"]
["73","TOLIMA","73","73585","PURIFICACION","73585"]
["73","TOLIMA","73","73616","RIOBLANCO","73616"]
["73","TOLIMA","73","73622","RONCESVALLES","73622"]
["73","TOLIMA","73","73624","ROVIRA","73624"]
["73","TOLIMA","73","73671","SALDAÑA","73671"]
["73","TOLIMA","73","73675","SAN ANTONIO","73675"]
["73","TOLIMA","73","73678","SAN LUIS","73678"]
["73","TOLIMA","73","73686","SANTA ISABEL","73686"]
["73","TOLIMA","73","73770","SUAREZ","73770"]
["73","TOLIMA","73","73854","VALLE DE SAN JUAN","73854"]
["73","TOLIMA","73","73861","VENADILLO","73861"]
["73","TOLIMA","73","73870","VILLAHERMOSA","73870"]
["73","TOLIMA","73","73873","VILLARRICA","73873"]
["76","VALLE_DEL_CAUCA","76","76001","CALI","76001"]
["76","VALLE_DEL_CAUCA","76","76020","ALCALA","76020"]
["76","VALLE_DEL_CAUCA","76","76036","ANDALUCIA","76036"]
["76","VALLE_DEL_CAUCA","76","76041","ANSERMANUEVO","76041"]
["76","VALLE_DEL_CAUCA","76","76054","ARGELIA","76054"]
["76","VALLE_DEL_CAUCA","76","76100","BOLIVAR","76100"]
["76","VALLE_DEL_CAUCA","76","76109","BUENAVENTURA","76109"]
["76","VALLE_DEL_CAUCA","76","76111","GUADALAJARA DE BUGA","76111"]
["76","VALLE_DEL_CAUCA","76","76113","BUGALAGRANDE","76113"]
["76","VALLE_DEL_CAUCA","76","76122","CAICEDONIA","76122"]
["76","VALLE_DEL_CAUCA","76","76126","CALIMA","76126"]
["76","VALLE_DEL_CAUCA","76","76130","CANDELARIA","76130"]
["76","VALLE_DEL_CAUCA","76","76147","CARTAGO","76147"]
["76","VALLE_DEL_CAUCA","76","76233","DAGUA","76233"]
["76","VALLE_DEL_CAUCA","76","76243","EL AGUILA","76243"]
["76","VALLE_DEL_CAUCA","76","76246","EL CAIRO","76246"]
["76","VALLE_DEL_CAUCA","76","76248","EL CERRITO","76248"]
["76","VALLE_DEL_CAUCA","76","76250","EL DOVIO","76250"]
["76","VALLE_DEL_CAUCA","76","76275","FLORIDA","76275"]
["76","VALLE_DEL_CAUCA","76","76306","GINEBRA","76306"]
["76","VALLE_DEL_CAUCA","76","76318","GUACARI","76318"]
["76","VALLE_DEL_CAUCA","76","76364","JAMUNDI","76364"]
["76","VALLE_DEL_CAUCA","76","76377","LA CUMBRE",{"$f":"D1030","v":"76377"}]
["76","VALLE_DEL_CAUCA","76","76400","LA UNION","76400"]
["76","VALLE_DEL_CAUCA","76","76403","LA VICTORIA","76403"]
["76","VALLE_DEL_CAUCA","76","76497","OBANDO","76497"]
["76","VALLE_DEL_CAUCA","76","76520","PALMIRA","76520"]
["76","VALLE_DEL_CAUCA","76","76563","PRADERA","76563"]
["76","VALLE_DEL_CAUCA","76","76606","RESTREPO","76606"]
["76","VALLE_DEL_CAUCA","76","76616","RIOFRIO","76616"]
["76","VALLE_DEL_CAUCA","76","76622","ROLDANILLO","76622"]
["76","VALLE_DEL_CAUCA","76","76670","SAN PEDRO","76670"]
["76","VALLE_DEL_CAUCA","76","76736","SEVILLA","76736"]
["76","VALLE_DEL_CAUCA","76","76823","TORO","76823"]
["76","VALLE_DEL_CAUCA","76","76828","TRUJILLO","76828"]
["76","VALLE_DEL_CAUCA","76","76834","TULUA","76834"]
["76","VALLE_DEL_CAUCA","76","76845","ULLOA","76845"]
["76","VALLE_DEL_CAUCA","76","76863","VERSALLES","76863"]
["76","VALLE_DEL_CAUCA","76","76869","VIJES","76869"]
["76","VALLE_DEL_CAUCA","76","76890","YOTOCO","76890"]
["76","VALLE_DEL_CAUCA","76","76892","YUMBO","76892"]
["76","VALLE_DEL_CAUCA","76","76895","ZARZAL","76895"]
["81","ARAUCA","81","81001","ARAUCA","81001"]
["81","ARAUCA","81","81065","ARAUQUITA","81065"]
["81","ARAUCA","81","81220","CRAVO NORTE","81220"]
["81","ARAUCA","81","81300","FORTUL","81300"]
["81","ARAUCA","81","81591","PUERTO RONDON","81591"]
["81","ARAUCA","81","81736","SARAVENA","81736"]
["81","ARAUCA","81","81794","TAME","81794"]
["85","CASANARE","85","85001","YOPAL","85001"]
["85","CASANARE","85","85010","AGUAZUL","85010"]
["85","CASANARE","85","85015","CHAMEZA","85015"]
["85","CASANARE","85","85125","HATO COROZAL","85125"]
["85","CASANARE","85","85136","LA SALINA","85136"]
["85","CASANARE","85","85139","MANI","85139"]
["85","CASANARE","85","85162","MONTERREY","85162"]
["85","CASANARE","85","85225","NUNCHIA","85225"]
["85","CASANARE","85","85230","OROCUE","85230"]
["85","CASANARE","85","85250","PAZ DE ARIPORO","85250"]
["85","CASANARE","85","85263","PORE","85263"]
["85","CASANARE","85","85279","RECETOR","85279"]
["85","CASANARE","85","85300","SABANALARGA","85300"]
["85","CASANARE","85","85315","SACAMA","85315"]
["85","CASANARE","85","85325","SAN LUIS DE PALENQUE","85325"]
["85","CASANARE","85","85400","TAMARA","85400"]
["85","CASANARE","85","85410","TAURAMENA","85410"]
["85","CASANARE","85","85430","TRINIDAD","85430"]
["85","CASANARE","85","85440","VILLANUEVA","85440"]
["86","PUTUMAYO","86","86001","MOCOA","86001"]
["86","PUTUMAYO","86","86219","COLON","86219"]
["86","PUTUMAYO","86","86320","ORITO","86320"]
["86","PUTUMAYO","86","86568","PUERTO ASIS","86568"]
["86","PUTUMAYO","86","86569","PUERTO CAICEDO","86569"]
["86","PUTUMAYO","86","86571","PUERTO GUZMAN","86571"]
["86","PUTUMAYO","86","86573","LEGUIZAMO","86573"]
["86","PUTUMAYO","86","86749","SIBUNDOY","86749"]
["86","PUTUMAYO","86","86755","SAN FRANCISCO","86755"]
["86","PUTUMAYO","86","86757","SAN MIGUEL","86757"]
["86","PUTUMAYO","86","86760","SANTIAGO","86760"]
["86","PUTUMAYO","86","86865","VALLE DEL GUAMUEZ","86865"]
["86","PUTUMAYO","86","86885","VILLAGARZON","86885"]
["88","SAN_ANDRES","88","88001","SAN ANDRES","88001"]
["88","SAN_ANDRES","88","88564","PROVIDENCIA","88564"]
["91","AMAZONAS","91","91001","LETICIA","91001"]
["91","AMAZONAS","91","91263","EL ENCANTO","91263"]
["91","AMAZONAS","91","91405","LA CHORRERA","91405"]
["91","AMAZONAS","91","91407","LA PEDRERA",{"$f":"D1094","v":"91407"}]
["91","AMAZONAS","91","91430","LA VICTORIA","91430"]
["91","AMAZONAS","91","91460","MIRITI - PARANA","91460"]
["91","AMAZONAS","91","91530","PUERTO ALEGRIA","91530"]
["91","AMAZONAS","91","91536","PUERTO ARICA","91536"]
["91","AMAZONAS","91","91540","PUERTO NARIÑO","91540"]
["91","AMAZONAS","91","91669","PUERTO SANTANDER","91669"]
["91","AMAZONAS","91","91798","TARAPACA","91798"]
["94","GUAINIA","94","94001","INIRIDA","94001"]
["94","GUAINIA","94","94343","BARRANCO MINAS","94343"]
["94","GUAINIA","94","94663","MAPIRIPANA","94663"]
["94","GUAINIA","94","94883","SAN FELIPE","94883"]
["94","GUAINIA","94","94884","PUERTO COLOMBIA","94884"]
["94","GUAINIA","94","94885","LA GUADALUPE","94885"]
["94","GUAINIA","94","94886","CACAHUAL","94886"]
["94","GUAINIA","94","94887","PANA PANA","94887"]
["94","GUAINIA","94","94888","MORICHAL","94888"]
["95","GUAVIARE","95","95001","SAN JOSE DEL GUAVIARE","95001"]
["95","GUAVIARE","95","95015","CALAMAR","95015"]
["95","GUAVIARE","95","95025","EL RETORNO","95025"]
["95","GUAVIARE","95","95200","MIRAFLORES","95200"]
["97","VAUPES","97","97001","MITU","97001"]
["97","VAUPES","97","97161","CARURU","97161"]
[97,"VAUPES",97,"97511","PACOA","97511"]
["97","VAUPES","97","97666","TARAIRA","97666"]
["97","VAUPES","97","97777","PAPUNAUA","97777"]
["97","VAUPES","97","97889","YAVARATE","97889"]
["99","VICHADA","99","99001","PUERTO CARREÑO","99001"]
["99","VICHADA","99","99524","LA PRIMAVERA","99524"]
["99","VICHADA","99","99624","SANTA ROSALIA","99624"]
["99","VICHADA","99","99773","CUMARIBO","99773"]
[]
[]
[]
[null,"ANTIOQUIA","05"]
[null,"ATLANTICO","08"]
[null,"BOGOTA","11"]
[null,"BOLIVAR","13"]
[null,"BOYACA","15"]
[null,"CALDAS","17"]
[null,"CAQUETA","18"]
[null,"CAUCA","19"]
[null,"CESAR","20"]
[null,"CORDOBA","23"]
[null,"CUNDINAMARCA","25"]
[null,"CHOCO","27"]
[null,"HUILA","41"]
[null,"LA_GUAJIRA","44"]
[null,"MAGDALENA","47"]
[null,"META","50"]
[null,"NARIÑO","52"]
[null,"N_DE_SANTANDER","54"]
[null,"QUINDIO","63"]
[null,"RISARALDA","66"]
[null,"SANTANDER","68"]
[null,"SUCRE","70"]
[null,"TOLIMA","73"]
[null,"VALLE_DEL_CAUCA","76"]
[null,"ARAUCA","81"]
[null,"CASANARE","85"]
[null,"PUTUMAYO","86"]
[null,"SAN_ANDRES","88"]
[null,"AMAZONAS","91"]
[null,"GUAINIA","94"]
[null,"GUAVIARE","95"]
[null,"VAUPES","97"]
[null,"VICHADA","99"]